{"text_format":"1","workbook":"xlsx","n_sheets":42,"sheets":["Front Page","Disclaimer","Methodology","RAG","Significance Description","Summary","S1_Sustainable_Growth_Strategy","S4_Housing_Strategy","S5_Employment_Land_Strategy","S6_Sustainable_Access","STRA1_Infinity_Garden_Village","STRA2_Land_South_Mickleover","STRA3_Former_Drakelow_Power","FLG1_South_of_Mackworth","H1_Settlement_Hierarchy","H16_Primula_Way_Sunny_Hill","H20_Housing_Balance","H21_Affordable_Housing","H22_Gypsies_Travellers","E1_Strategic_Employment_Land","E2_Industrial_Business_Dev","E3_Existing_Employment_Areas","E4_Woodville_Regeneration_Area","E5_Rural_Employment_Development","SD2_Flood_Risk","SD3_Sustainable_Water_Supply","SD4_Contaminated_Land","SD6_Sustainable_Energy","BNE1_Design_Excellence","BNE2_Heritage_Assets","BNE3_Biodiversity","BNE4_Landscape_Character","INF1_Infrastructure","INF2_Sustainable_Transport","INF3_East_Midlands_Freeport","INF4_Transport_Improvements","INF5_East_Midlands_Airport","INF6_Community_Facilities","INF7_Blue_Green_Infrastructure","INF8_The_National_Forest","INF9_Open_Space_Sport","INF10_Tourism_Development"],"not_rendered":{"charts":0,"images":2,"macros":1,"external_links":0,"defined_names":2,"comments":0,"pivot_tables":0},"unopened":[],"bounds":{"document_bytes":16777216,"sheet_cells":100000,"rows_first":2000,"rows_last":500,"rows_between":2000,"halvings":0,"cell_chars":16384,"cell_head_chars":4096},"cells_cut":0,"cells_raw":0,"read":"whole","date_system":"1900"}

{"sheet":"Front Page","index":0,"n_rows":30,"n_cols":11,"rows_kept":30,"cut":false,"hidden":false,"merged":[[7,2,8,10]]}
[]
[]
[]
[]
[]
[]
[]
[]
[]
[]
[]
[]
[null,null,null,null,null,null,"South Derbyshire District Council    "]
[null,null,null,null,null,null,"Regulation 19 SA Report: Appendix E"]
[null,null,null,null,null,null,"Preferred Policies Assessments"]
[]
[]
[]
[]
[]
[]
[]
[null,null,null,null,null,null,null,null,null,null,"Prepared by:"]
[null,null,null,null,null,null,null,null,null,null,"SLR Consulting Ltd "]
[]
[]
[]
[]
[]
[null,null,null,null,null,null,null,null,null,null,"Project Ref: C0428"]

{"sheet":"Disclaimer","index":1,"n_rows":40,"n_cols":7,"rows_kept":40,"cut":false,"hidden":false,"merged":[[8,4,8,6],[21,2,34,6],[37,1,37,2],[37,6,37,7],[38,1,38,2],[38,6,38,7],[39,1,39,2],[39,6,39,7],[40,1,40,2],[40,6,40,7],[41,1,41,2],[41,6,41,7]]}
[]
[]
[]
[]
[null,null,null,"Contract  No:","C0428"]
[]
[null,null,null,"Issue",2]
[]
[null,null,null,"Authors        ","L Jones/ I Teague/K Watson"]
[]
[]
[]
[]
[null,null,null,"Project Director                     ","J Mitchell"]
[]
[]
[]
[]
[null,null,null,"Date:","2025-03-07"]
[]
[]
[null,null,"This document has been prepared by SLR Consulting Ltd with reasonable skill, care and diligence, and taking account of the timescales and resources devoted to it by agreement with South Derbyshire District Council (the Client) as part or all of the services it has been appointed by the Client to carry out. It is subject to the terms and conditions of that appointment.\nSLR shall not be liable for the use of or reliance on any information, advice, recommendations and opinions in this document for any purpose by any person other than the Client. Reliance may be granted to a third party only in the event that SLR and the third party have executed a reliance agreement or collateral warranty.\nInformation reported herein may be based on the interpretation of public domain data collected by SLR, and/or information supplied by the Client and/or its other advisors and associates. These data have been accepted in good faith as being accurate and valid.  \nThe copyright and intellectual property in all drawings, reports, specifications, bills of quantities, calculations and other information set out in this report remain vested in SLR unless the terms of appointment state otherwise.  \nThis document may contain information of a specialised and/or highly technical nature and the Client is advised to seek clarification on any elements which may be unclear to it. \nInformation, advice, recommendations and opinions in this document should only be relied upon in the context of the whole document and any documents referenced explicitly herein and should then only be used within the context of the appointment."]
[]
[]
[]
[]
[]
[]
[]
[]
[]
[]
[]
[]
[]
[]
[null,"VERSION CONTROL RECORD"]
[null,"Issue",null,"Description of Status","Date","Reviewer Initials","Authors Initials"]
[null,1,null,"Draft for Reg 19 SA Report","2025-03-06","VP","LJ/IT/KW"]
[null,2,null,"Final for Reg 19 SA Report","2025-03-07","VP","LJ/IT/KW"]

{"sheet":"Methodology","index":2,"n_rows":19,"n_cols":12,"rows_kept":19,"cut":false,"hidden":true,"merged":[[16,0,16,12],[17,0,17,12],[18,0,18,12],[9,3,9,7],[11,0,11,12],[12,0,12,12],[13,0,13,12],[14,0,14,12],[15,0,15,12],[2,1,2,2],[3,1,3,2],[4,1,4,2],[5,1,5,2],[7,0,7,1],[7,2,7,11]]}
["The methodology used for the assessment of all policies is outlined below, with an explanation given under each header. The same assessment matrices has been used for the assessment of all policies, hence all follow the same format. "]
[]
["Policy/Alternative name"]
["Chapter"]
["Policy/alternative description"]
["Assumptions Made"]
[]
["SA Framework",null,"SA Policy Assessment"]
["SA objective","SA sub-objective","Direct/\nIndirect","Magnitude","Duration","Spatial Extent","Permanence/ Reversibility","Significance","Description of potential effects","Potential for cumulative effects? ","Mitigation","Enhancements"]
["SA objectives will be listed here","SA sub-objectives will be listed here.","This indicates if assessors were able to consider the assessment question as part of their assessment. ","Details on the nature of any potential effects will be listed here. For further details and definitions of each category, please see the 'Significance Scores' tab. \nFor cases where a neutral effect has been identified, N/A will be present across columns  H-L. ",null,null,null,null,"A significance score will be selected here, which corresponds with the definitions detailed in the 'Significance Scores' tab. ","The potential effect identified in columns H-L will be detailed here, with justification for the significance score. \nAny information considered as a part of the assessments which has informed these potential effects will also be detailed here. ","Yes or No will be inserted here. If yes, see summary box at the bottom of the matrices for further details of the potential cumulative effect. ","Any mitigation required for potential negative or uncertain effects will be detailed here. If the sole method of preventing a potential adverse effect is to not develop a site, \"No mitigation identified.\" will be written here. "]
[]
["Significant Negative and Uncertain Effects"]
["All potential significant negative and uncertain effects outlined in the assessment above, will be accumulated into this box. "]
["Significant Positive Effects"]
["Any potential significant positive effects identified within the assessment will be detailed here. "]
["Potential Cumulative Effects Identified"]
["Details of any potential cumulative effects, including which SA objectives could be affected, will be outlined here. This could include specific cumulative effects with another site, or those which could arise as a result of all development across the borough. "]
["Mitigation and enhancements"]
["Details of all  mitigation listed in column P and any potential enhancements arising from assessment will be summarised against the relevant assessment here. All potential significant negative and uncertain effects will have mitigation listed. "]

{"sheet":"RAG","index":3,"n_rows":9,"n_cols":50,"rows_kept":9,"cut":false,"hidden":false,"merged":[[2,32,2,36],[2,37,2,40],[2,42,2,43],[2,44,2,47],[2,48,2,49],[2,28,2,30],[2,2,2,8],[2,10,2,17],[2,19,2,20],[2,21,2,22],[2,23,2,27]]}
[]
[null,null,"S01","S01","S01","S01","S01","S01","S01","S02","S03","S03","S03","S03","S03","S03","S03","S03","S05","S06","S06","S07","S07","S08","S08","S08","S08","S08","S09","S09","S09","S010","S011","S011","S011","S011","S011","S012","S012","S012","S012","S013","S014","S014","S015","S015","S015","S015","S016","S016"]
[null,null,"S01",null,null,null,null,null,null,"S02","S03",null,null,null,null,null,null,null,"S05","S06",null,"S07",null,"S08",null,null,null,null,"S09",null,null,"S010","S011",null,null,null,null,"S012",null,null,null,"S013","S014",null,"S015",null,null,null,"S016"]
[null,"Option","Proximity to River Mease SAC","SSSI proximity","Within SSSI impact risk zone","Parks and informal open space","Local Wildlife Sites & potential LWS","Proximity to Tree Preservation orders","Proximity to LIGS","Affordable housing","Proximity to GP Practice","Primary and secondary school capacity","Proximity to existing or planned primary school ","Proximity to existing or planned secondary school ","Proximity to existing and planned employment sites via active travel","Proximity to formal recreation e.g., sport centre, play parks","Proximity to informal recreation space i.e., open space","Proximity to retail facilities","IMD deprivation scores","IMD deprivation scores","Provision of retail and town centre uses","Provision of employment space","Proximity to existing and planned employment areas","Proximity to GP Practice","Proximity to existing or planned primary school ","Proximity to existing or planned secondary school ","Proximity to existing and planned employment sites via active travel","Proximity to town/ village centre","Proximity to train station","Proximity to bus stop","Proximity to existing cycle routes ","Proximity to town/ village centre via active travel","Agricultural Land Classifications","Mineral source protection zone (sand and gravel, grit, and coal)","Historic Landfill Sites","Brownfield Land","Contaminated Land","Distance to groundwater protection zones","Distance to River Mease SAC nutrient neutrality zone","Noise pollution ","Night blight map ","Distance to EV charging points ","Flood risk","Proximity to watercourse","Ancient Monuments & Buffer","Conservation Areas","Listed Buildings","Historic parks and gardens","Greenbelt","AMES sensitivity regions"]
[null,"STRA1_Infinity_Garden_Village","G","G","G","G","R","R","R","G","G","G","G","G","G","G","G","R","G","G","G","G","G","G","G","G","G","R","R","G","G","R","A","A","G","R","A","G","G","R","A","R","R","A","G","G","G","G","G","G"]
[null,"STRA2_Land_South_Mickleover","G","G","G","R","G","A","G","G","R","G","G","A","R","R","R","R","G","G","G","G","G","R","G","A","R","R","R","G","G","R","A","G","G","R","A","G","G","R","A","A","A","A","G","G","G","G","G","G"]
[null,"STRA3_Former_Drakelow_Power","G","G","G","A","R","R","G",null,null,null,null,null,null,null,null,null,"G","G",null,"G",null,null,null,null,null,null,"R","R","R",null,"G","G","R","A","R","G","G","G","A","R","A","R","G","G","R","G","G","A"]
[null,"FLG1_South_of_Mackworth","G","G","G","G","G","G","G","G","R","R","G","A","R","G","G","R","G","G","G","R","R","R","G","A","R","R","R","G","A","R","A","G","R","R","G","G","G","G","A","R","G","A","G","G","G","G","G","A"]
[null,"INF3_East_Midlands_Freeport","G","G","G",null,"G","R","G",null,null,null,null,null,null,null,null,null,"G","G",null,"G",null,null,null,null,null,null,"R","G",null,null,"A","R","R","R","R","G","G","R","R","A","G","A","G","G","G","G","G","G"]

{"sheet":"Significance Description","index":4,"n_rows":28,"n_cols":10,"rows_kept":28,"cut":false,"hidden":true,"merged":[[21,7,26,7],[21,8,26,8],[21,9,26,9],[27,7,36,7],[27,8,36,8],[27,9,36,9],[2,1,2,2],[2,7,2,9],[4,7,11,7],[4,8,11,8],[4,9,11,9],[7,1,10,1],[11,1,14,1],[12,7,18,7],[12,8,18,8],[12,9,18,9],[15,1,18,1]]}
[]
[]
[null,"Nature of effects",null,null,null,null,null,"Significance Scores"]
[null,"Criterion","Description",null,null,null,null,"Symbol","Definitions of Significance of Effects Against the SA Objectives","Assumptions on the nature of effects"]
[null,"Significance ","An assessment of the significance of the potential effects identified. This could be a positive effect, negative effect, neutral effect, significant positive effect or significant negative effect. The definitions for these effects are detailed to the right.",null,null,null,null,"++","Significant Positive Effect: the policy option supports the achievement of this objective; it addresses all relevant assessment questions and could result in a potentially significant beneficial effect e.g. improved access by walking and cycling modes to a local or town centre","Permanent\nContinual\nMagnitude: High 80%+ receptor or environmental capacity affected; or Medium 40-80% of receptor or environmental capacity of affected\nThe effect could be to:\n•\tenhance and redefine the location in a positive manner, making a contribution at a national or international scale; \n•\trepair or restore receptors badly damaged or degraded through previous uses; and/or \n•\timprove one or more key elements/features/ characteristics of a receptor with recognised quality such as a specific regional or national designation."]
[null,"Permanent/temporary","An assessment of whether the predicted effects would be permanent (P), or temporary (T). "]
[null,"Reversible/Irreversible","An assessment of whether or not the identified effect can be reversed (R) e.g. the loss of greenfield land to development would be irreversible (I). "]
[null,"Spatial extent","How far the effect is predicted to be spread geographically: "]
[null,null,"Low (L) = A specific area within SDDC District"]
[null,null,"Medium (M) = Across the entire SDDC District, possibly reaching to neighbouring boroughs"]
[null,null,"High (H) = Beyond the SDDC Local Plan Boundary, with national or international ramifications"]
[null,"Magnitude","An assessment of the proportion of the receptor affected by the identified effect. "]
[null,null,"Low (L) =20-40% of receptor or capacity affected ",null,null,null,null,"+","Minor Positive Effect: the policy option supports the achievement of this objective; it addresses some relevant assessment questions, although it may have only a minor beneficial effect","Reversible\nInfrequent or intermittent\nMagnitude: Low 20-40% of receptor or capacity affected.\nThe size, nature and location of a proposed scheme would: \n•\timprove undesignated yet recognised receptor qualities at the neighbourhood scale; \n•\tfit into or with the existing location and existing receptor qualities; and/or\n•\tenable the restoration of valued characteristic features partially lost through other land uses.  "]
[null,null,"Medium (M) = 40-80% of receptor affected"]
[null,null,"High (H) =80+% of the receptor affected"]
[null,"Duration ","An assessment of the time period the predicted effects are likely to last. This could be:"]
[null,null,"Short (S)= 0-5 years"]
[null,null,"Medium (M) = 5-10 years"]
[null,null,"Long (L)= 10 years or more, up to the end of the Local Plan period "]
[null,"Direct/Indirect","An assessment of whether the predicted effect will be directly (D) as a result of option implementation, or indirectly (I) caused by the policy option. ",null,null,null,null,0,"Neutral Effect: the policy option has no impact or effect and is neutral insofar as the benefits and drawbacks appear equal and neither is considered significant","N/A"]
[null,"Likelihood","An assessment of how likely it is that the implementation of the policy option will lead to the precited effect. This could be low (L), moderate (M) or high (H). ",null,null,null,null,"?","Uncertain Effect: Uncertain or insufficient information on which to determine the assessment this stage","N/A"]
[null,"Cumulative effect","An assessment of whether or not there is potential for a cumulative effect to occur on the IIA objective as a result of the policy option working in combination with other circumstances, policies or factors. Y= potential cumulative effect. No potential cumulative effect identified. ",null,null,null,null,"-","Minor Negative Effect: the policy option appears to conflict with the achievement of this objective; it does not address relevant assessment questions and may result in minor adverse effects","Reversible\nInfrequent or intermittent\nMagnitude: Low 20-40% of receptor or capacity affected.\nThe size, nature and location of a proposed scheme would: \n•\tbe out of scale with the location; or \n•\tleave an adverse impact on a receptor of recognised quality such as a specific district or county designation."]
[]
[]
[]
[]
[]
[null,null,null,null,null,null,null,"- -","Significant Negative Effect: the policy option works against the achievement of this objective; it could exacerbate a negative situation and may result in a potentially significant adverse effect e.g. loss of all or part of a designated ecological site of national importance.","Permanent \nIrreversible\nContinual\nMagnitude: High 80%+ receptor or environmental capacity affected; or Medium 40-80% of receptor or environmental capacity of affected\nThe effect could be to:\n•\tpermanently degrade, diminish or destroy the integrity of the receptor; \n•\tcause a very high quality receptor to be permanently changed and its quality diminished; \n•\tcannot be fully mitigated and may cumulatively amount to a severe adverse effect;  \n•\tbe at a considerable variance to the location, degrading the integrity of the receptor; and/or \n•\twill be substantially damaging to a high quality receptor such as a specific regional or national designation."]

{"sheet":"Summary","index":5,"n_rows":40,"n_cols":39,"rows_kept":40,"cut":false,"hidden":false,"merged":[]}
[]
[null,"M",14,15,16,17,18,19,20,21,22,23,24,25,26,27,28,29]
[null,"H",8,9,10,11,12,13,14,15,16,17,18,19,20,21,22,23]
[null,"Policy Name","S01","S02","S03","S04","S05","S06","S07","S08","S09","S010","S011","S012","S013","S014","S015","S016",null,"Policy Name","S01","S02","S03","S04","S05","S06","S07","S08","S09","S010","S011","S012","S013","S014","S015","S016",null,"Significant positive","+ +"]
[null,"S1_Sustainable_Growth_Strategy",{"$f":"INDIRECT($B5&\"!\"&$B$3&C$3)","v":"Neutral"},{"$f":"INDIRECT($B5&\"!\"&$B$3&D$3)","v":"Significant Positive"},{"$f":"INDIRECT($B5&\"!\"&$B$3&E$3)","v":"Significant Positive"},{"$f":"INDIRECT($B5&\"!\"&$B$3&F$3)","v":"Neutral"},{"$f":"INDIRECT($B5&\"!\"&$B$3&G$3)","v":"Neutral"},{"$f":"INDIRECT($B5&\"!\"&$B$3&H$3)","v":"Significant Positive"},{"$f":"INDIRECT($B5&\"!\"&$B$3&I$3)","v":"Significant Positive"},{"$f":"INDIRECT($B5&\"!\"&$B$3&J$3)","v":"Significant Positive"},{"$f":"INDIRECT($B5&\"!\"&$B$3&K$3)","v":"Neutral"},{"$f":"INDIRECT($B5&\"!\"&$B$3&L$3)","v":"Neutral"},{"$f":"INDIRECT($B5&\"!\"&$B$3&M$3)","v":"Significant Negative"},{"$f":"INDIRECT($B5&\"!\"&$B$3&N$3)","v":"Uncertain"},{"$f":"INDIRECT($B5&\"!\"&$B$3&O$3)","v":"Neutral"},{"$f":"INDIRECT($B5&\"!\"&$B$3&P$3)","v":"Minor Positive"},{"$f":"INDIRECT($B5&\"!\"&$B$3&Q$3)","v":"Minor Positive"},{"$f":"INDIRECT($B5&\"!\"&$B$3&R$3)","v":"Minor Positive"},null,"S1_Sustainable_Growth_Strategy",{"$f":"INDEX($AM$4:$AM$9,MATCH(C5,$AL$4:$AL$9,0))","v":0},{"$f":"INDEX($AM$4:$AM$9,MATCH(D5,$AL$4:$AL$9,0))","v":"+ +"},{"$f":"INDEX($AM$4:$AM$9,MATCH(E5,$AL$4:$AL$9,0))","v":"+ +"},{"$f":"INDEX($AM$4:$AM$9,MATCH(F5,$AL$4:$AL$9,0))","v":0},{"$f":"INDEX($AM$4:$AM$9,MATCH(G5,$AL$4:$AL$9,0))","v":0},{"$f":"INDEX($AM$4:$AM$9,MATCH(H5,$AL$4:$AL$9,0))","v":"+ +"},{"$f":"INDEX($AM$4:$AM$9,MATCH(I5,$AL$4:$AL$9,0))","v":"+ +"},{"$f":"INDEX($AM$4:$AM$9,MATCH(J5,$AL$4:$AL$9,0))","v":"+ +"},{"$f":"INDEX($AM$4:$AM$9,MATCH(K5,$AL$4:$AL$9,0))","v":0},{"$f":"INDEX($AM$4:$AM$9,MATCH(L5,$AL$4:$AL$9,0))","v":0},{"$f":"INDEX($AM$4:$AM$9,MATCH(M5,$AL$4:$AL$9,0))","v":"--"},{"$f":"INDEX($AM$4:$AM$9,MATCH(N5,$AL$4:$AL$9,0))","v":"?"},{"$f":"INDEX($AM$4:$AM$9,MATCH(O5,$AL$4:$AL$9,0))","v":0},{"$f":"INDEX($AM$4:$AM$9,MATCH(P5,$AL$4:$AL$9,0))","v":"+"},{"$f":"INDEX($AM$4:$AM$9,MATCH(Q5,$AL$4:$AL$9,0))","v":"+"},{"$f":"INDEX($AM$4:$AM$9,MATCH(R5,$AL$4:$AL$9,0))","v":"+"},null,"Minor Positive","+"]
[null,"S4_Housing_Strategy",{"$f":"INDIRECT($B6&\"!\"&$B$3&C$3)","v":"Neutral"},{"$f":"INDIRECT($B6&\"!\"&$B$3&D$3)","v":"Significant Positive"},{"$f":"INDIRECT($B6&\"!\"&$B$3&E$3)","v":"Neutral"},{"$f":"INDIRECT($B6&\"!\"&$B$3&F$3)","v":"Neutral"},{"$f":"INDIRECT($B6&\"!\"&$B$3&G$3)","v":"Neutral"},{"$f":"INDIRECT($B6&\"!\"&$B$3&H$3)","v":"Minor Positive"},{"$f":"INDIRECT($B6&\"!\"&$B$3&I$3)","v":"Neutral"},{"$f":"INDIRECT($B6&\"!\"&$B$3&J$3)","v":"Neutral"},{"$f":"INDIRECT($B6&\"!\"&$B$3&K$3)","v":"Neutral"},{"$f":"INDIRECT($B6&\"!\"&$B$3&L$3)","v":"Neutral"},{"$f":"INDIRECT($B6&\"!\"&$B$3&M$3)","v":"Significant Negative"},{"$f":"INDIRECT($B6&\"!\"&$B$3&N$3)","v":"Uncertain"},{"$f":"INDIRECT($B6&\"!\"&$B$3&O$3)","v":"Neutral"},{"$f":"INDIRECT($B6&\"!\"&$B$3&P$3)","v":"Neutral"},{"$f":"INDIRECT($B6&\"!\"&$B$3&Q$3)","v":"Uncertain"},{"$f":"INDIRECT($B6&\"!\"&$B$3&R$3)","v":"Uncertain"},null,"S4_Housing_Strategy",0,"+ +",0,0,0,"+",0,0,0,0,"--","?",0,0,"?","?",null,"Neutral",0]
[null,"S5_Employment_Land_Strategy",{"$f":"INDIRECT($B7&\"!\"&$B$3&C$3)","v":"Neutral"},{"$f":"INDIRECT($B7&\"!\"&$B$3&D$3)","v":"Neutral"},{"$f":"INDIRECT($B7&\"!\"&$B$3&E$3)","v":"Minor Positive"},{"$f":"INDIRECT($B7&\"!\"&$B$3&F$3)","v":"Neutral"},{"$f":"INDIRECT($B7&\"!\"&$B$3&G$3)","v":"Neutral"},{"$f":"INDIRECT($B7&\"!\"&$B$3&H$3)","v":"Significant Positive"},{"$f":"INDIRECT($B7&\"!\"&$B$3&I$3)","v":"Significant Positive"},{"$f":"INDIRECT($B7&\"!\"&$B$3&J$3)","v":"Minor Positive"},{"$f":"INDIRECT($B7&\"!\"&$B$3&K$3)","v":"Minor Positive"},{"$f":"INDIRECT($B7&\"!\"&$B$3&L$3)","v":"Minor Positive"},{"$f":"INDIRECT($B7&\"!\"&$B$3&M$3)","v":"Significant Negative"},{"$f":"INDIRECT($B7&\"!\"&$B$3&N$3)","v":"Uncertain"},{"$f":"INDIRECT($B7&\"!\"&$B$3&O$3)","v":"Minor Positive"},{"$f":"INDIRECT($B7&\"!\"&$B$3&P$3)","v":"Minor Negative"},{"$f":"INDIRECT($B7&\"!\"&$B$3&Q$3)","v":"Uncertain"},{"$f":"INDIRECT($B7&\"!\"&$B$3&R$3)","v":"Minor Negative"},null,"S5_Employment_Land_Strategy",0,0,"+",0,0,"+ +","+ +","+","+","+","--","?","+","-","?","-",null,"Uncertain","?"]
[null,"S6_Sustainable_Access",{"$f":"INDIRECT($B8&\"!\"&$B$3&C$3)","v":"Neutral"},{"$f":"INDIRECT($B8&\"!\"&$B$3&D$3)","v":"Neutral"},{"$f":"INDIRECT($B8&\"!\"&$B$3&E$3)","v":"Minor Positive"},{"$f":"INDIRECT($B8&\"!\"&$B$3&F$3)","v":"Neutral"},{"$f":"INDIRECT($B8&\"!\"&$B$3&G$3)","v":"Neutral"},{"$f":"INDIRECT($B8&\"!\"&$B$3&H$3)","v":"Neutral"},{"$f":"INDIRECT($B8&\"!\"&$B$3&I$3)","v":"Neutral"},{"$f":"INDIRECT($B8&\"!\"&$B$3&J$3)","v":"Significant Positive"},{"$f":"INDIRECT($B8&\"!\"&$B$3&K$3)","v":"Significant Positive"},{"$f":"INDIRECT($B8&\"!\"&$B$3&L$3)","v":"Neutral"},{"$f":"INDIRECT($B8&\"!\"&$B$3&M$3)","v":"Neutral"},{"$f":"INDIRECT($B8&\"!\"&$B$3&N$3)","v":"Minor Positive"},{"$f":"INDIRECT($B8&\"!\"&$B$3&O$3)","v":"Minor Positive"},{"$f":"INDIRECT($B8&\"!\"&$B$3&P$3)","v":"Neutral"},{"$f":"INDIRECT($B8&\"!\"&$B$3&Q$3)","v":"Neutral"},{"$f":"INDIRECT($B8&\"!\"&$B$3&R$3)","v":"Neutral"},null,"S6_Sustainable_Access",0,0,"+",0,0,0,0,"+ +","+ +",0,0,"+","+",0,0,0,null,"Minor Negative","-"]
[null,"STRA1_Infinity_Garden_Village",{"$f":"INDIRECT($B9&\"!\"&$B$2&C$2)","v":"Significant Positive"},{"$f":"INDIRECT($B9&\"!\"&$B$2&D$2)","v":"Significant Positive"},{"$f":"INDIRECT($B9&\"!\"&$B$2&E$2)","v":"Significant Positive"},{"$f":"INDIRECT($B9&\"!\"&$B$2&F$2)","v":"Neutral"},{"$f":"INDIRECT($B9&\"!\"&$B$2&G$2)","v":"Neutral"},{"$f":"INDIRECT($B9&\"!\"&$B$2&H$2)","v":"Significant Positive"},{"$f":"INDIRECT($B9&\"!\"&$B$2&I$2)","v":"Significant Positive"},{"$f":"INDIRECT($B9&\"!\"&$B$2&J$2)","v":"Significant Positive"},{"$f":"INDIRECT($B9&\"!\"&$B$2&K$2)","v":"Minor Positive"},{"$f":"INDIRECT($B9&\"!\"&$B$2&L$2)","v":"Neutral"},{"$f":"INDIRECT($B9&\"!\"&$B$2&M$2)","v":"Significant Negative"},{"$f":"INDIRECT($B9&\"!\"&$B$2&N$2)","v":"Uncertain"},{"$f":"INDIRECT($B9&\"!\"&$B$2&O$2)","v":"Neutral"},{"$f":"INDIRECT($B9&\"!\"&$B$2&P$2)","v":"Minor Negative"},{"$f":"INDIRECT($B9&\"!\"&$B$2&Q$2)","v":"Neutral"},{"$f":"INDIRECT($B9&\"!\"&$B$2&R$2)","v":"Minor Negative"},null,"STRA1_Infinity_Garden_Village","+ +","+ +","+ +",0,0,"+ +","+ +","+ +","+",0,"--","?",0,"-",0,"-",null,"Significant Negative","--"]
[null,"STRA2_Land_South_Mickleover",{"$f":"INDIRECT($B10&\"!\"&$B$2&C$2)","v":"Significant Positive"},{"$f":"INDIRECT($B10&\"!\"&$B$2&D$2)","v":"Significant Positive"},{"$f":"INDIRECT($B10&\"!\"&$B$2&E$2)","v":"Minor Positive"},{"$f":"INDIRECT($B10&\"!\"&$B$2&F$2)","v":"Neutral"},{"$f":"INDIRECT($B10&\"!\"&$B$2&G$2)","v":"Neutral"},{"$f":"INDIRECT($B10&\"!\"&$B$2&H$2)","v":"Significant Positive"},{"$f":"INDIRECT($B10&\"!\"&$B$2&I$2)","v":"Significant Positive"},{"$f":"INDIRECT($B10&\"!\"&$B$2&J$2)","v":"Minor Positive"},{"$f":"INDIRECT($B10&\"!\"&$B$2&K$2)","v":"Minor Positive"},{"$f":"INDIRECT($B10&\"!\"&$B$2&L$2)","v":"Neutral"},{"$f":"INDIRECT($B10&\"!\"&$B$2&M$2)","v":"Significant Negative"},{"$f":"INDIRECT($B10&\"!\"&$B$2&N$2)","v":"Uncertain"},{"$f":"INDIRECT($B10&\"!\"&$B$2&O$2)","v":"Neutral"},{"$f":"INDIRECT($B10&\"!\"&$B$2&P$2)","v":"Minor Negative"},{"$f":"INDIRECT($B10&\"!\"&$B$2&Q$2)","v":"Neutral"},{"$f":"INDIRECT($B10&\"!\"&$B$2&R$2)","v":"Minor Negative"},null,"STRA2_Land_South_Mickleover","+ +","+ +","+",0,0,"+ +","+ +","+","+",0,"--","?",0,"-",0,"-"]
[null,"STRA3_Former_Drakelow_Power",{"$f":"INDIRECT($B11&\"!\"&$B$2&C$2)","v":"Significant Positive"},{"$f":"INDIRECT($B11&\"!\"&$B$2&D$2)","v":"Neutral"},{"$f":"INDIRECT($B11&\"!\"&$B$2&E$2)","v":"Minor Positive"},{"$f":"INDIRECT($B11&\"!\"&$B$2&F$2)","v":"Neutral"},{"$f":"INDIRECT($B11&\"!\"&$B$2&G$2)","v":"Neutral"},{"$f":"INDIRECT($B11&\"!\"&$B$2&H$2)","v":"Significant Positive"},{"$f":"INDIRECT($B11&\"!\"&$B$2&I$2)","v":"Significant Positive"},{"$f":"INDIRECT($B11&\"!\"&$B$2&J$2)","v":"Minor Positive"},{"$f":"INDIRECT($B11&\"!\"&$B$2&K$2)","v":"Minor Positive"},{"$f":"INDIRECT($B11&\"!\"&$B$2&L$2)","v":"Neutral"},{"$f":"INDIRECT($B11&\"!\"&$B$2&M$2)","v":"Uncertain"},{"$f":"INDIRECT($B11&\"!\"&$B$2&N$2)","v":"Uncertain"},{"$f":"INDIRECT($B11&\"!\"&$B$2&O$2)","v":"Minor Positive"},{"$f":"INDIRECT($B11&\"!\"&$B$2&P$2)","v":"Minor Negative"},{"$f":"INDIRECT($B11&\"!\"&$B$2&Q$2)","v":"Uncertain"},{"$f":"INDIRECT($B11&\"!\"&$B$2&R$2)","v":"Neutral"},null,"STRA3_Former_Drakelow_Power","+ +",0,"+",0,0,"+ +","+ +","+","+",0,"?","?","+","-","?",0]
[null,"FLG1_South_of_Mackworth",{"$f":"INDIRECT($B12&\"!\"&$B$2&C$2)","v":"Neutral"},{"$f":"INDIRECT($B12&\"!\"&$B$2&D$2)","v":"Significant Positive"},{"$f":"INDIRECT($B12&\"!\"&$B$2&E$2)","v":"Minor Positive"},{"$f":"INDIRECT($B12&\"!\"&$B$2&F$2)","v":"Neutral"},{"$f":"INDIRECT($B12&\"!\"&$B$2&G$2)","v":"Neutral"},{"$f":"INDIRECT($B12&\"!\"&$B$2&H$2)","v":"Uncertain"},{"$f":"INDIRECT($B12&\"!\"&$B$2&I$2)","v":"Uncertain"},{"$f":"INDIRECT($B12&\"!\"&$B$2&J$2)","v":"Minor Positive"},{"$f":"INDIRECT($B12&\"!\"&$B$2&K$2)","v":"Minor Positive"},{"$f":"INDIRECT($B12&\"!\"&$B$2&L$2)","v":"Neutral"},{"$f":"INDIRECT($B12&\"!\"&$B$2&M$2)","v":"Significant Negative"},{"$f":"INDIRECT($B12&\"!\"&$B$2&N$2)","v":"Uncertain"},{"$f":"INDIRECT($B12&\"!\"&$B$2&O$2)","v":"Minor Positive"},{"$f":"INDIRECT($B12&\"!\"&$B$2&P$2)","v":"Neutral"},{"$f":"INDIRECT($B12&\"!\"&$B$2&Q$2)","v":"Uncertain"},{"$f":"INDIRECT($B12&\"!\"&$B$2&R$2)","v":"Uncertain"},null,"FLG1_South_of_Mackworth",0,"+ +","+",0,0,"?","?","+","+",0,"--","?","+",0,"?","?"]
[null,"H1_Settlement_Hierarchy",{"$f":"INDIRECT($B13&\"!\"&$B$3&C$3)","v":"Neutral"},{"$f":"INDIRECT($B13&\"!\"&$B$3&D$3)","v":"Neutral"},{"$f":"INDIRECT($B13&\"!\"&$B$3&E$3)","v":"Minor Positive"},{"$f":"INDIRECT($B13&\"!\"&$B$3&F$3)","v":"Neutral"},{"$f":"INDIRECT($B13&\"!\"&$B$3&G$3)","v":"Neutral"},{"$f":"INDIRECT($B13&\"!\"&$B$3&H$3)","v":"Neutral"},{"$f":"INDIRECT($B13&\"!\"&$B$3&I$3)","v":"Neutral"},{"$f":"INDIRECT($B13&\"!\"&$B$3&J$3)","v":"Neutral"},{"$f":"INDIRECT($B13&\"!\"&$B$3&K$3)","v":"Neutral"},{"$f":"INDIRECT($B13&\"!\"&$B$3&L$3)","v":"Minor Positive"},{"$f":"INDIRECT($B13&\"!\"&$B$3&M$3)","v":"Neutral"},{"$f":"INDIRECT($B13&\"!\"&$B$3&N$3)","v":"Neutral"},{"$f":"INDIRECT($B13&\"!\"&$B$3&O$3)","v":"Neutral"},{"$f":"INDIRECT($B13&\"!\"&$B$3&P$3)","v":"Neutral"},{"$f":"INDIRECT($B13&\"!\"&$B$3&Q$3)","v":"Neutral"},{"$f":"INDIRECT($B13&\"!\"&$B$3&R$3)","v":"Minor Positive"},null,"H1_Settlement_Hierarchy",0,0,"+",0,0,0,0,0,0,"+",0,0,0,0,0,"+"]
[null,"H16_Primula_Way_Sunny_Hill",{"$f":"INDIRECT($B14&\"!\"&$B$3&C$3)","v":"Neutral"},{"$f":"INDIRECT($B14&\"!\"&$B$3&D$3)","v":"Uncertain"},{"$f":"INDIRECT($B14&\"!\"&$B$3&E$3)","v":"Minor Negative"},{"$f":"INDIRECT($B14&\"!\"&$B$3&F$3)","v":"Uncertain"},{"$f":"INDIRECT($B14&\"!\"&$B$3&G$3)","v":0},{"$f":"INDIRECT($B14&\"!\"&$B$3&H$3)","v":0},{"$f":"INDIRECT($B14&\"!\"&$B$3&I$3)","v":0},{"$f":"INDIRECT($B14&\"!\"&$B$3&J$3)","v":0},{"$f":"INDIRECT($B14&\"!\"&$B$3&K$3)","v":0},{"$f":"INDIRECT($B14&\"!\"&$B$3&L$3)","v":0},{"$f":"INDIRECT($B14&\"!\"&$B$3&M$3)","v":0},{"$f":"INDIRECT($B14&\"!\"&$B$3&N$3)","v":0},{"$f":"INDIRECT($B14&\"!\"&$B$3&O$3)","v":0},{"$f":"INDIRECT($B14&\"!\"&$B$3&P$3)","v":"Minor Negative"},{"$f":"INDIRECT($B14&\"!\"&$B$3&Q$3)","v":"Neutral"},{"$f":"INDIRECT($B14&\"!\"&$B$3&R$3)","v":"Neutral"},null,"H16_Primula_Way_Sunny_Hill",0,"?","-","?",{"$error":"#N/A"},{"$error":"#N/A"},{"$error":"#N/A"},{"$error":"#N/A"},{"$error":"#N/A"},{"$error":"#N/A"},{"$error":"#N/A"},{"$error":"#N/A"},{"$error":"#N/A"},"-",0,0]
[null,"H20_Housing_Balance",{"$f":"INDIRECT($B15&\"!\"&$B$3&C$3)","v":"Neutral"},{"$f":"INDIRECT($B15&\"!\"&$B$3&D$3)","v":"Significant Positive"},{"$f":"INDIRECT($B15&\"!\"&$B$3&E$3)","v":"Neutral"},{"$f":"INDIRECT($B15&\"!\"&$B$3&F$3)","v":"Neutral"},{"$f":"INDIRECT($B15&\"!\"&$B$3&G$3)","v":"Minor Positive"},{"$f":"INDIRECT($B15&\"!\"&$B$3&H$3)","v":"Neutral"},{"$f":"INDIRECT($B15&\"!\"&$B$3&I$3)","v":"Neutral"},{"$f":"INDIRECT($B15&\"!\"&$B$3&J$3)","v":"Neutral"},{"$f":"INDIRECT($B15&\"!\"&$B$3&K$3)","v":"Neutral"},{"$f":"INDIRECT($B15&\"!\"&$B$3&L$3)","v":"Neutral"},{"$f":"INDIRECT($B15&\"!\"&$B$3&M$3)","v":"Neutral"},{"$f":"INDIRECT($B15&\"!\"&$B$3&N$3)","v":"Neutral"},{"$f":"INDIRECT($B15&\"!\"&$B$3&O$3)","v":"Neutral"},{"$f":"INDIRECT($B15&\"!\"&$B$3&P$3)","v":"Neutral"},{"$f":"INDIRECT($B15&\"!\"&$B$3&Q$3)","v":"Neutral"},{"$f":"INDIRECT($B15&\"!\"&$B$3&R$3)","v":"Neutral"},null,"H20_Housing_Balance",0,"+ +",0,0,"+",0,0,0,0,0,0,0,0,0,0,0]
[null,"H21_Affordable_Housing",{"$f":"INDIRECT($B16&\"!\"&$B$3&C$3)","v":"Neutral"},{"$f":"INDIRECT($B16&\"!\"&$B$3&D$3)","v":"Uncertain"},{"$f":"INDIRECT($B16&\"!\"&$B$3&E$3)","v":"Neutral"},{"$f":"INDIRECT($B16&\"!\"&$B$3&F$3)","v":"Neutral"},{"$f":"INDIRECT($B16&\"!\"&$B$3&G$3)","v":"Neutral"},{"$f":"INDIRECT($B16&\"!\"&$B$3&H$3)","v":"Neutral"},{"$f":"INDIRECT($B16&\"!\"&$B$3&I$3)","v":"Neutral"},{"$f":"INDIRECT($B16&\"!\"&$B$3&J$3)","v":"Neutral"},{"$f":"INDIRECT($B16&\"!\"&$B$3&K$3)","v":"Neutral"},{"$f":"INDIRECT($B16&\"!\"&$B$3&L$3)","v":"Neutral"},{"$f":"INDIRECT($B16&\"!\"&$B$3&M$3)","v":"Neutral"},{"$f":"INDIRECT($B16&\"!\"&$B$3&N$3)","v":"Neutral"},{"$f":"INDIRECT($B16&\"!\"&$B$3&O$3)","v":"Neutral"},{"$f":"INDIRECT($B16&\"!\"&$B$3&P$3)","v":"Neutral"},{"$f":"INDIRECT($B16&\"!\"&$B$3&Q$3)","v":"Neutral"},{"$f":"INDIRECT($B16&\"!\"&$B$3&R$3)","v":"Neutral"},null,"H21_Affordable_Housing",0,"?",0,0,0,0,0,0,0,0,0,0,0,0,0,0]
[null,"H22_Gypsies_Travellers",{"$f":"INDIRECT($B17&\"!\"&$B$3&C$3)","v":"Minor Positive"},{"$f":"INDIRECT($B17&\"!\"&$B$3&D$3)","v":"Significant Positive"},{"$f":"INDIRECT($B17&\"!\"&$B$3&E$3)","v":"Minor Positive"},{"$f":"INDIRECT($B17&\"!\"&$B$3&F$3)","v":"Minor Positive"},{"$f":"INDIRECT($B17&\"!\"&$B$3&G$3)","v":"Minor Positive"},{"$f":"INDIRECT($B17&\"!\"&$B$3&H$3)","v":"Neutral"},{"$f":"INDIRECT($B17&\"!\"&$B$3&I$3)","v":"Neutral"},{"$f":"INDIRECT($B17&\"!\"&$B$3&J$3)","v":"Neutral"},{"$f":"INDIRECT($B17&\"!\"&$B$3&K$3)","v":"Neutral"},{"$f":"INDIRECT($B17&\"!\"&$B$3&L$3)","v":"Neutral"},{"$f":"INDIRECT($B17&\"!\"&$B$3&M$3)","v":"Neutral"},{"$f":"INDIRECT($B17&\"!\"&$B$3&N$3)","v":"Neutral"},{"$f":"INDIRECT($B17&\"!\"&$B$3&O$3)","v":"Neutral"},{"$f":"INDIRECT($B17&\"!\"&$B$3&P$3)","v":"Minor Positive"},{"$f":"INDIRECT($B17&\"!\"&$B$3&Q$3)","v":"Neutral"},{"$f":"INDIRECT($B17&\"!\"&$B$3&R$3)","v":"Neutral"},null,"H22_Gypsies_Travellers","+","+ +","+","+","+",0,0,0,0,0,0,0,0,"+",0,0]
[null,"E1_Strategic_Employment_Land",{"$f":"INDIRECT($B18&\"!\"&$B$3&C$3)","v":"Neutral"},{"$f":"INDIRECT($B18&\"!\"&$B$3&D$3)","v":"Neutral"},{"$f":"INDIRECT($B18&\"!\"&$B$3&E$3)","v":"Minor Positive"},{"$f":"INDIRECT($B18&\"!\"&$B$3&F$3)","v":"Neutral"},{"$f":"INDIRECT($B18&\"!\"&$B$3&G$3)","v":"Neutral"},{"$f":"INDIRECT($B18&\"!\"&$B$3&H$3)","v":"Significant Positive"},{"$f":"INDIRECT($B18&\"!\"&$B$3&I$3)","v":"Significant Positive"},{"$f":"INDIRECT($B18&\"!\"&$B$3&J$3)","v":"Minor Positive"},{"$f":"INDIRECT($B18&\"!\"&$B$3&K$3)","v":"Minor Positive"},{"$f":"INDIRECT($B18&\"!\"&$B$3&L$3)","v":"Neutral"},{"$f":"INDIRECT($B18&\"!\"&$B$3&M$3)","v":"Significant Negative"},{"$f":"INDIRECT($B18&\"!\"&$B$3&N$3)","v":"Uncertain"},{"$f":"INDIRECT($B18&\"!\"&$B$3&O$3)","v":"Minor Positive"},{"$f":"INDIRECT($B18&\"!\"&$B$3&P$3)","v":"Minor Negative"},{"$f":"INDIRECT($B18&\"!\"&$B$3&Q$3)","v":"Uncertain"},{"$f":"INDIRECT($B18&\"!\"&$B$3&R$3)","v":"Minor Negative"},null,"E1_Strategic_Employment_Land",0,0,"+",0,0,"+ +","+ +","+","+",0,"--","?","+","-","?","-"]
[null,"E2_Industrial_Business_Dev",{"$f":"INDIRECT($B19&\"!\"&$B$3&C$3)","v":"Minor Positive"},{"$f":"INDIRECT($B19&\"!\"&$B$3&D$3)","v":"Neutral"},{"$f":"INDIRECT($B19&\"!\"&$B$3&E$3)","v":"Minor Positive"},{"$f":"INDIRECT($B19&\"!\"&$B$3&F$3)","v":"Neutral"},{"$f":"INDIRECT($B19&\"!\"&$B$3&G$3)","v":"Neutral"},{"$f":"INDIRECT($B19&\"!\"&$B$3&H$3)","v":"Minor Positive"},{"$f":"INDIRECT($B19&\"!\"&$B$3&I$3)","v":"Neutral"},{"$f":"INDIRECT($B19&\"!\"&$B$3&J$3)","v":"Minor Positive"},{"$f":"INDIRECT($B19&\"!\"&$B$3&K$3)","v":"Neutral"},{"$f":"INDIRECT($B19&\"!\"&$B$3&L$3)","v":"Neutral"},{"$f":"INDIRECT($B19&\"!\"&$B$3&M$3)","v":"Neutral"},{"$f":"INDIRECT($B19&\"!\"&$B$3&N$3)","v":"Neutral"},{"$f":"INDIRECT($B19&\"!\"&$B$3&O$3)","v":"Neutral"},{"$f":"INDIRECT($B19&\"!\"&$B$3&P$3)","v":"Neutral"},{"$f":"INDIRECT($B19&\"!\"&$B$3&Q$3)","v":"Minor Positive"},{"$f":"INDIRECT($B19&\"!\"&$B$3&R$3)","v":"Minor Positive"},null,"E2_Industrial_Business_Dev","+",0,"+",0,0,"+",0,"+",0,0,0,0,0,0,"+","+"]
[null,"E3_Existing_Employment_Areas",{"$f":"INDIRECT($B20&\"!\"&$B$3&C$3)","v":"Neutral"},{"$f":"INDIRECT($B20&\"!\"&$B$3&D$3)","v":"Neutral"},{"$f":"INDIRECT($B20&\"!\"&$B$3&E$3)","v":"Neutral"},{"$f":"INDIRECT($B20&\"!\"&$B$3&F$3)","v":"Neutral"},{"$f":"INDIRECT($B20&\"!\"&$B$3&G$3)","v":"Neutral"},{"$f":"INDIRECT($B20&\"!\"&$B$3&H$3)","v":"Minor Positive"},{"$f":"INDIRECT($B20&\"!\"&$B$3&I$3)","v":"Neutral"},{"$f":"INDIRECT($B20&\"!\"&$B$3&J$3)","v":"Minor Positive"},{"$f":"INDIRECT($B20&\"!\"&$B$3&K$3)","v":"Neutral"},{"$f":"INDIRECT($B20&\"!\"&$B$3&L$3)","v":"Neutral"},{"$f":"INDIRECT($B20&\"!\"&$B$3&M$3)","v":"Neutral"},{"$f":"INDIRECT($B20&\"!\"&$B$3&N$3)","v":"Minor Positive"},{"$f":"INDIRECT($B20&\"!\"&$B$3&O$3)","v":"Neutral"},{"$f":"INDIRECT($B20&\"!\"&$B$3&P$3)","v":"Neutral"},{"$f":"INDIRECT($B20&\"!\"&$B$3&Q$3)","v":"Minor Positive"},{"$f":"INDIRECT($B20&\"!\"&$B$3&R$3)","v":"Neutral"},null,"E3_Existing_Employment_Areas",0,0,0,0,0,"+",0,"+",0,0,0,"+",0,0,"+",0]
[null,"E4_Woodville_Regeneration_Area",{"$f":"INDIRECT($B21&\"!\"&$B$3&C$3)","v":"Uncertain"},{"$f":"INDIRECT($B21&\"!\"&$B$3&D$3)","v":"Significant Positive"},{"$f":"INDIRECT($B21&\"!\"&$B$3&E$3)","v":"Uncertain"},{"$f":"INDIRECT($B21&\"!\"&$B$3&F$3)","v":"Neutral"},{"$f":"INDIRECT($B21&\"!\"&$B$3&G$3)","v":"Neutral"},{"$f":"INDIRECT($B21&\"!\"&$B$3&H$3)","v":"Minor Positive"},{"$f":"INDIRECT($B21&\"!\"&$B$3&I$3)","v":"Minor Positive"},{"$f":"INDIRECT($B21&\"!\"&$B$3&J$3)","v":"Minor Positive"},{"$f":"INDIRECT($B21&\"!\"&$B$3&K$3)","v":"Minor Positive"},{"$f":"INDIRECT($B21&\"!\"&$B$3&L$3)","v":"Neutral"},{"$f":"INDIRECT($B21&\"!\"&$B$3&M$3)","v":"Significant Positive"},{"$f":"INDIRECT($B21&\"!\"&$B$3&N$3)","v":"Neutral"},{"$f":"INDIRECT($B21&\"!\"&$B$3&O$3)","v":"Neutral"},{"$f":"INDIRECT($B21&\"!\"&$B$3&P$3)","v":"Neutral"},{"$f":"INDIRECT($B21&\"!\"&$B$3&Q$3)","v":"Significant Positive"},{"$f":"INDIRECT($B21&\"!\"&$B$3&R$3)","v":"Neutral"},null,"E4_Woodville_Regeneration_Area","?","+ +","?",0,0,"+","+","+","+",0,"+ +",0,0,0,"+ +",0]
[null,"E5_Rural_Employment_Development",{"$f":"INDIRECT($B22&\"!\"&$B$3&C$3)","v":"Minor Positive"},{"$f":"INDIRECT($B22&\"!\"&$B$3&D$3)","v":"Neutral"},{"$f":"INDIRECT($B22&\"!\"&$B$3&E$3)","v":"Neutral"},{"$f":"INDIRECT($B22&\"!\"&$B$3&F$3)","v":"Neutral"},{"$f":"INDIRECT($B22&\"!\"&$B$3&G$3)","v":"Neutral"},{"$f":"INDIRECT($B22&\"!\"&$B$3&H$3)","v":"Minor Positive"},{"$f":"INDIRECT($B22&\"!\"&$B$3&I$3)","v":"Minor Positive"},{"$f":"INDIRECT($B22&\"!\"&$B$3&J$3)","v":"Minor Positive"},{"$f":"INDIRECT($B22&\"!\"&$B$3&K$3)","v":"Neutral"},{"$f":"INDIRECT($B22&\"!\"&$B$3&L$3)","v":"Neutral"},{"$f":"INDIRECT($B22&\"!\"&$B$3&M$3)","v":"Neutral"},{"$f":"INDIRECT($B22&\"!\"&$B$3&N$3)","v":"Neutral"},{"$f":"INDIRECT($B22&\"!\"&$B$3&O$3)","v":"Neutral"},{"$f":"INDIRECT($B22&\"!\"&$B$3&P$3)","v":"Neutral"},{"$f":"INDIRECT($B22&\"!\"&$B$3&Q$3)","v":"Minor Positive"},{"$f":"INDIRECT($B22&\"!\"&$B$3&R$3)","v":"Neutral"},null,"E5_Rural_Employment_Development","+",0,0,0,0,"+","+","+",0,0,0,0,0,0,"+",0]
[null,"SD2_Flood_Risk",{"$f":"INDIRECT($B23&\"!\"&$B$3&C$3)","v":"Minor Positive"},{"$f":"INDIRECT($B23&\"!\"&$B$3&D$3)","v":"Neutral"},{"$f":"INDIRECT($B23&\"!\"&$B$3&E$3)","v":"Minor Positive"},{"$f":"INDIRECT($B23&\"!\"&$B$3&F$3)","v":"Neutral"},{"$f":"INDIRECT($B23&\"!\"&$B$3&G$3)","v":"Neutral"},{"$f":"INDIRECT($B23&\"!\"&$B$3&H$3)","v":"Minor Positive"},{"$f":"INDIRECT($B23&\"!\"&$B$3&I$3)","v":"Neutral"},{"$f":"INDIRECT($B23&\"!\"&$B$3&J$3)","v":"Neutral"},{"$f":"INDIRECT($B23&\"!\"&$B$3&K$3)","v":"Neutral"},{"$f":"INDIRECT($B23&\"!\"&$B$3&L$3)","v":"Neutral"},{"$f":"INDIRECT($B23&\"!\"&$B$3&M$3)","v":"Neutral"},{"$f":"INDIRECT($B23&\"!\"&$B$3&N$3)","v":"Minor Positive"},{"$f":"INDIRECT($B23&\"!\"&$B$3&O$3)","v":"Neutral"},{"$f":"INDIRECT($B23&\"!\"&$B$3&P$3)","v":"Significant Positive"},{"$f":"INDIRECT($B23&\"!\"&$B$3&Q$3)","v":"Neutral"},{"$f":"INDIRECT($B23&\"!\"&$B$3&R$3)","v":"Neutral"},null,"SD2_Flood_Risk","+",0,"+",0,0,"+",0,0,0,0,0,"+",0,"+ +",0,0]
[null,"SD3_Sustainable_Water_Supply",{"$f":"INDIRECT($B24&\"!\"&$B$3&C$3)","v":"Minor Positive"},{"$f":"INDIRECT($B24&\"!\"&$B$3&D$3)","v":"Neutral"},{"$f":"INDIRECT($B24&\"!\"&$B$3&E$3)","v":"Minor Positive"},{"$f":"INDIRECT($B24&\"!\"&$B$3&F$3)","v":"Neutral"},{"$f":"INDIRECT($B24&\"!\"&$B$3&G$3)","v":"Neutral"},{"$f":"INDIRECT($B24&\"!\"&$B$3&H$3)","v":"Neutral"},{"$f":"INDIRECT($B24&\"!\"&$B$3&I$3)","v":"Neutral"},{"$f":"INDIRECT($B24&\"!\"&$B$3&J$3)","v":"Neutral"},{"$f":"INDIRECT($B24&\"!\"&$B$3&K$3)","v":"Neutral"},{"$f":"INDIRECT($B24&\"!\"&$B$3&L$3)","v":"Neutral"},{"$f":"INDIRECT($B24&\"!\"&$B$3&M$3)","v":"Neutral"},{"$f":"INDIRECT($B24&\"!\"&$B$3&N$3)","v":"Neutral"},{"$f":"INDIRECT($B24&\"!\"&$B$3&O$3)","v":"Neutral"},{"$f":"INDIRECT($B24&\"!\"&$B$3&P$3)","v":"Significant Positive"},{"$f":"INDIRECT($B24&\"!\"&$B$3&Q$3)","v":"Neutral"},{"$f":"INDIRECT($B24&\"!\"&$B$3&R$3)","v":"Neutral"},null,"SD3_Sustainable_Water_Supply","+",0,"+",0,0,0,0,0,0,0,0,0,0,"+ +",0,0]
[null,"SD4_Contaminated_Land",{"$f":"INDIRECT($B25&\"!\"&$B$3&C$3)","v":"Neutral"},{"$f":"INDIRECT($B25&\"!\"&$B$3&D$3)","v":"Neutral"},{"$f":"INDIRECT($B25&\"!\"&$B$3&E$3)","v":"Minor Positive"},{"$f":"INDIRECT($B25&\"!\"&$B$3&F$3)","v":"Neutral"},{"$f":"INDIRECT($B25&\"!\"&$B$3&G$3)","v":"Neutral"},{"$f":"INDIRECT($B25&\"!\"&$B$3&H$3)","v":"Neutral"},{"$f":"INDIRECT($B25&\"!\"&$B$3&I$3)","v":"Neutral"},{"$f":"INDIRECT($B25&\"!\"&$B$3&J$3)","v":"Neutral"},{"$f":"INDIRECT($B25&\"!\"&$B$3&K$3)","v":"Neutral"},{"$f":"INDIRECT($B25&\"!\"&$B$3&L$3)","v":"Neutral"},{"$f":"INDIRECT($B25&\"!\"&$B$3&M$3)","v":"Minor Positive"},{"$f":"INDIRECT($B25&\"!\"&$B$3&N$3)","v":"Minor Positive"},{"$f":"INDIRECT($B25&\"!\"&$B$3&O$3)","v":"Neutral"},{"$f":"INDIRECT($B25&\"!\"&$B$3&P$3)","v":"Neutral"},{"$f":"INDIRECT($B25&\"!\"&$B$3&Q$3)","v":"Neutral"},{"$f":"INDIRECT($B25&\"!\"&$B$3&R$3)","v":"Minor Positive"},null,"SD4_Contaminated_Land",0,0,"+",0,0,0,0,0,0,0,"+","+",0,0,0,"+"]
[null,"SD6_Sustainable_Energy",{"$f":"INDIRECT($B26&\"!\"&$B$3&C$3)","v":"Minor Positive"},{"$f":"INDIRECT($B26&\"!\"&$B$3&D$3)","v":"Neutral"},{"$f":"INDIRECT($B26&\"!\"&$B$3&E$3)","v":"Neutral"},{"$f":"INDIRECT($B26&\"!\"&$B$3&F$3)","v":"Neutral"},{"$f":"INDIRECT($B26&\"!\"&$B$3&G$3)","v":"Neutral"},{"$f":"INDIRECT($B26&\"!\"&$B$3&H$3)","v":"Neutral"},{"$f":"INDIRECT($B26&\"!\"&$B$3&I$3)","v":"Minor Positive"},{"$f":"INDIRECT($B26&\"!\"&$B$3&J$3)","v":"Neutral"},{"$f":"INDIRECT($B26&\"!\"&$B$3&K$3)","v":"Neutral"},{"$f":"INDIRECT($B26&\"!\"&$B$3&L$3)","v":"Neutral"},{"$f":"INDIRECT($B26&\"!\"&$B$3&M$3)","v":"Minor Positive"},{"$f":"INDIRECT($B26&\"!\"&$B$3&N$3)","v":"Minor Positive"},{"$f":"INDIRECT($B26&\"!\"&$B$3&O$3)","v":"Significant Positive"},{"$f":"INDIRECT($B26&\"!\"&$B$3&P$3)","v":"Neutral"},{"$f":"INDIRECT($B26&\"!\"&$B$3&Q$3)","v":"Minor Positive"},{"$f":"INDIRECT($B26&\"!\"&$B$3&R$3)","v":"Minor Positive"},null,"SD6_Sustainable_Energy","+",0,0,0,0,0,"+",0,0,0,"+","+","+ +",0,"+","+"]
[null,"BNE1_Design_Excellence",{"$f":"INDIRECT($B27&\"!\"&$B$3&C$3)","v":"Minor Positive"},{"$f":"INDIRECT($B27&\"!\"&$B$3&D$3)","v":"Neutral"},{"$f":"INDIRECT($B27&\"!\"&$B$3&E$3)","v":"Minor Positive"},{"$f":"INDIRECT($B27&\"!\"&$B$3&F$3)","v":"Significant Positive"},{"$f":"INDIRECT($B27&\"!\"&$B$3&G$3)","v":"Neutral"},{"$f":"INDIRECT($B27&\"!\"&$B$3&H$3)","v":"Neutral"},{"$f":"INDIRECT($B27&\"!\"&$B$3&I$3)","v":"Neutral"},{"$f":"INDIRECT($B27&\"!\"&$B$3&J$3)","v":"Neutral"},{"$f":"INDIRECT($B27&\"!\"&$B$3&K$3)","v":"Significant Positive"},{"$f":"INDIRECT($B27&\"!\"&$B$3&L$3)","v":"Minor Positive"},{"$f":"INDIRECT($B27&\"!\"&$B$3&M$3)","v":"Minor Positive"},{"$f":"INDIRECT($B27&\"!\"&$B$3&N$3)","v":"Neutral"},{"$f":"INDIRECT($B27&\"!\"&$B$3&O$3)","v":"Neutral"},{"$f":"INDIRECT($B27&\"!\"&$B$3&P$3)","v":"Neutral"},{"$f":"INDIRECT($B27&\"!\"&$B$3&Q$3)","v":"Minor Positive"},{"$f":"INDIRECT($B27&\"!\"&$B$3&R$3)","v":"Minor Positive"},null,"BNE1_Design_Excellence","+",0,"+","+ +",0,0,0,0,"+ +","+","+",0,0,0,"+","+"]
[null,"BNE2_Heritage_Assets",{"$f":"INDIRECT($B28&\"!\"&$B$3&C$3)","v":"Minor Positive"},{"$f":"INDIRECT($B28&\"!\"&$B$3&D$3)","v":"Neutral"},{"$f":"INDIRECT($B28&\"!\"&$B$3&E$3)","v":"Neutral"},{"$f":"INDIRECT($B28&\"!\"&$B$3&F$3)","v":"Neutral"},{"$f":"INDIRECT($B28&\"!\"&$B$3&G$3)","v":"Neutral"},{"$f":"INDIRECT($B28&\"!\"&$B$3&H$3)","v":"Minor Positive"},{"$f":"INDIRECT($B28&\"!\"&$B$3&I$3)","v":"Minor Positive"},{"$f":"INDIRECT($B28&\"!\"&$B$3&J$3)","v":"Neutral"},{"$f":"INDIRECT($B28&\"!\"&$B$3&K$3)","v":"Neutral"},{"$f":"INDIRECT($B28&\"!\"&$B$3&L$3)","v":"Minor Positive"},{"$f":"INDIRECT($B28&\"!\"&$B$3&M$3)","v":"Neutral"},{"$f":"INDIRECT($B28&\"!\"&$B$3&N$3)","v":"Neutral"},{"$f":"INDIRECT($B28&\"!\"&$B$3&O$3)","v":"Neutral"},{"$f":"INDIRECT($B28&\"!\"&$B$3&P$3)","v":"Neutral"},{"$f":"INDIRECT($B28&\"!\"&$B$3&Q$3)","v":"Significant Positive"},{"$f":"INDIRECT($B28&\"!\"&$B$3&R$3)","v":"Minor Positive"},null,"BNE2_Heritage_Assets","+",0,0,0,0,"+","+",0,0,"+",0,0,0,0,"+ +","+"]
[null,"BNE3_Biodiversity",{"$f":"INDIRECT($B29&\"!\"&$B$3&C$3)","v":"Significant Positive"},{"$f":"INDIRECT($B29&\"!\"&$B$3&D$3)","v":"Neutral"},{"$f":"INDIRECT($B29&\"!\"&$B$3&E$3)","v":"Minor Positive"},{"$f":"INDIRECT($B29&\"!\"&$B$3&F$3)","v":"Neutral"},{"$f":"INDIRECT($B29&\"!\"&$B$3&G$3)","v":"Neutral"},{"$f":"INDIRECT($B29&\"!\"&$B$3&H$3)","v":"Neutral"},{"$f":"INDIRECT($B29&\"!\"&$B$3&I$3)","v":"Neutral"},{"$f":"INDIRECT($B29&\"!\"&$B$3&J$3)","v":"Neutral"},{"$f":"INDIRECT($B29&\"!\"&$B$3&K$3)","v":"Neutral"},{"$f":"INDIRECT($B29&\"!\"&$B$3&L$3)","v":"Neutral"},{"$f":"INDIRECT($B29&\"!\"&$B$3&M$3)","v":"Neutral"},{"$f":"INDIRECT($B29&\"!\"&$B$3&N$3)","v":"Minor Positive"},{"$f":"INDIRECT($B29&\"!\"&$B$3&O$3)","v":"Neutral"},{"$f":"INDIRECT($B29&\"!\"&$B$3&P$3)","v":"Minor Positive"},{"$f":"INDIRECT($B29&\"!\"&$B$3&Q$3)","v":"Neutral"},{"$f":"INDIRECT($B29&\"!\"&$B$3&R$3)","v":"Minor Positive"},null,"BNE3_Biodiversity","+ +",0,"+",0,0,0,0,0,0,0,0,"+",0,"+",0,"+"]
[null,"BNE4_Landscape_Character",{"$f":"INDIRECT($B30&\"!\"&$B$3&C$3)","v":"Minor Positive"},{"$f":"INDIRECT($B30&\"!\"&$B$3&D$3)","v":"Neutral"},{"$f":"INDIRECT($B30&\"!\"&$B$3&E$3)","v":"Neutral"},{"$f":"INDIRECT($B30&\"!\"&$B$3&F$3)","v":"Neutral"},{"$f":"INDIRECT($B30&\"!\"&$B$3&G$3)","v":"Neutral"},{"$f":"INDIRECT($B30&\"!\"&$B$3&H$3)","v":"Minor Positive"},{"$f":"INDIRECT($B30&\"!\"&$B$3&I$3)","v":"Neutral"},{"$f":"INDIRECT($B30&\"!\"&$B$3&J$3)","v":"Neutral"},{"$f":"INDIRECT($B30&\"!\"&$B$3&K$3)","v":"Neutral"},{"$f":"INDIRECT($B30&\"!\"&$B$3&L$3)","v":"Neutral"},{"$f":"INDIRECT($B30&\"!\"&$B$3&M$3)","v":"Minor Positive"},{"$f":"INDIRECT($B30&\"!\"&$B$3&N$3)","v":"Neutral"},{"$f":"INDIRECT($B30&\"!\"&$B$3&O$3)","v":"Neutral"},{"$f":"INDIRECT($B30&\"!\"&$B$3&P$3)","v":"Neutral"},{"$f":"INDIRECT($B30&\"!\"&$B$3&Q$3)","v":"Minor Positive"},{"$f":"INDIRECT($B30&\"!\"&$B$3&R$3)","v":"Significant Positive"},null,"BNE4_Landscape_Character","+",0,0,0,0,"+",0,0,0,0,"+",0,0,0,"+","+ +"]
[null,"INF1_Infrastructure",{"$f":"INDIRECT($B31&\"!\"&$B$3&C$3)","v":"Neutral"},{"$f":"INDIRECT($B31&\"!\"&$B$3&D$3)","v":"Neutral"},{"$f":"INDIRECT($B31&\"!\"&$B$3&E$3)","v":"Minor Positive"},{"$f":"INDIRECT($B31&\"!\"&$B$3&F$3)","v":"Neutral"},{"$f":"INDIRECT($B31&\"!\"&$B$3&G$3)","v":"Neutral"},{"$f":"INDIRECT($B31&\"!\"&$B$3&H$3)","v":"Neutral"},{"$f":"INDIRECT($B31&\"!\"&$B$3&I$3)","v":"Significant Positive"},{"$f":"INDIRECT($B31&\"!\"&$B$3&J$3)","v":"Significant Positive"},{"$f":"INDIRECT($B31&\"!\"&$B$3&K$3)","v":"Minor Positive"},{"$f":"INDIRECT($B31&\"!\"&$B$3&L$3)","v":"Neutral"},{"$f":"INDIRECT($B31&\"!\"&$B$3&M$3)","v":"Minor Positive"},{"$f":"INDIRECT($B31&\"!\"&$B$3&N$3)","v":"Minor Positive"},{"$f":"INDIRECT($B31&\"!\"&$B$3&O$3)","v":"Neutral"},{"$f":"INDIRECT($B31&\"!\"&$B$3&P$3)","v":"Minor Positive"},{"$f":"INDIRECT($B31&\"!\"&$B$3&Q$3)","v":"Neutral"},{"$f":"INDIRECT($B31&\"!\"&$B$3&R$3)","v":"Neutral"},null,"INF1_Infrastructure",0,0,"+",0,0,0,"+ +","+ +","+",0,"+","+",0,"+",0,0]
[null,"INF2_Sustainable_Transport",{"$f":"INDIRECT($B32&\"!\"&$B$3&C$3)","v":"Minor Positive"},{"$f":"INDIRECT($B32&\"!\"&$B$3&D$3)","v":"Neutral"},{"$f":"INDIRECT($B32&\"!\"&$B$3&E$3)","v":"Minor Positive"},{"$f":"INDIRECT($B32&\"!\"&$B$3&F$3)","v":"Neutral"},{"$f":"INDIRECT($B32&\"!\"&$B$3&G$3)","v":"Neutral"},{"$f":"INDIRECT($B32&\"!\"&$B$3&H$3)","v":"Minor Positive"},{"$f":"INDIRECT($B32&\"!\"&$B$3&I$3)","v":"Minor Positive"},{"$f":"INDIRECT($B32&\"!\"&$B$3&J$3)","v":"Minor Positive"},{"$f":"INDIRECT($B32&\"!\"&$B$3&K$3)","v":"Significant Positive"},{"$f":"INDIRECT($B32&\"!\"&$B$3&L$3)","v":"Neutral"},{"$f":"INDIRECT($B32&\"!\"&$B$3&M$3)","v":"Neutral"},{"$f":"INDIRECT($B32&\"!\"&$B$3&N$3)","v":"Minor Positive"},{"$f":"INDIRECT($B32&\"!\"&$B$3&O$3)","v":"Significant Positive"},{"$f":"INDIRECT($B32&\"!\"&$B$3&P$3)","v":"Neutral"},{"$f":"INDIRECT($B32&\"!\"&$B$3&Q$3)","v":"Neutral"},{"$f":"INDIRECT($B32&\"!\"&$B$3&R$3)","v":"Neutral"},null,"INF2_Sustainable_Transport","+",0,"+",0,0,"+","+","+","+ +",0,0,"+","+ +",0,0,0]
[null,"INF3_East_Midlands_Freeport",{"$f":"INDIRECT($B33&\"!\"&$B$2&C$2)","v":"Minor Positive"},{"$f":"INDIRECT($B33&\"!\"&$B$2&D$2)","v":"Neutral"},{"$f":"INDIRECT($B33&\"!\"&$B$2&E$2)","v":"Minor Positive"},{"$f":"INDIRECT($B33&\"!\"&$B$2&F$2)","v":"Neutral"},{"$f":"INDIRECT($B33&\"!\"&$B$2&G$2)","v":"Neutral"},{"$f":"INDIRECT($B33&\"!\"&$B$2&H$2)","v":"Significant Positive"},{"$f":"INDIRECT($B33&\"!\"&$B$2&I$2)","v":"Significant Positive"},{"$f":"INDIRECT($B33&\"!\"&$B$2&J$2)","v":"Minor Positive"},{"$f":"INDIRECT($B33&\"!\"&$B$2&K$2)","v":"Minor Positive"},{"$f":"INDIRECT($B33&\"!\"&$B$2&L$2)","v":"Neutral"},{"$f":"INDIRECT($B33&\"!\"&$B$2&M$2)","v":"Uncertain"},{"$f":"INDIRECT($B33&\"!\"&$B$2&N$2)","v":"Uncertain"},{"$f":"INDIRECT($B33&\"!\"&$B$2&O$2)","v":"Minor Positive"},{"$f":"INDIRECT($B33&\"!\"&$B$2&P$2)","v":"Minor Negative"},{"$f":"INDIRECT($B33&\"!\"&$B$2&Q$2)","v":"Neutral"},{"$f":"INDIRECT($B33&\"!\"&$B$2&R$2)","v":"Minor Negative"},null,"INF3_East_Midlands_Freeport","+",0,"+",0,0,"+ +","+ +","+","+",0,"?","?","+","-",0,"-"]
[null,"INF4_Transport_Improvements",{"$f":"INDIRECT($B34&\"!\"&$B$3&C$3)","v":"Minor Positive"},{"$f":"INDIRECT($B34&\"!\"&$B$3&D$3)","v":"Neutral"},{"$f":"INDIRECT($B34&\"!\"&$B$3&E$3)","v":"Minor Positive"},{"$f":"INDIRECT($B34&\"!\"&$B$3&F$3)","v":"Neutral"},{"$f":"INDIRECT($B34&\"!\"&$B$3&G$3)","v":"Neutral"},{"$f":"INDIRECT($B34&\"!\"&$B$3&H$3)","v":"Minor Positive"},{"$f":"INDIRECT($B34&\"!\"&$B$3&I$3)","v":"Minor Positive"},{"$f":"INDIRECT($B34&\"!\"&$B$3&J$3)","v":"Minor Positive"},{"$f":"INDIRECT($B34&\"!\"&$B$3&K$3)","v":"Minor Positive"},{"$f":"INDIRECT($B34&\"!\"&$B$3&L$3)","v":"Neutral"},{"$f":"INDIRECT($B34&\"!\"&$B$3&M$3)","v":"Neutral"},{"$f":"INDIRECT($B34&\"!\"&$B$3&N$3)","v":"Minor Negative"},{"$f":"INDIRECT($B34&\"!\"&$B$3&O$3)","v":"Neutral"},{"$f":"INDIRECT($B34&\"!\"&$B$3&P$3)","v":"Minor Positive"},{"$f":"INDIRECT($B34&\"!\"&$B$3&Q$3)","v":"Minor Positive"},{"$f":"INDIRECT($B34&\"!\"&$B$3&R$3)","v":"Minor Positive"},null,"INF4_Transport_Improvements","+",0,"+",0,0,"+","+","+","+",0,0,"-",0,"+","+","+"]
[null,"INF5_East_Midlands_Airport",{"$f":"INDIRECT($B35&\"!\"&$B$3&C$3)","v":"Minor Negative"},{"$f":"INDIRECT($B35&\"!\"&$B$3&D$3)","v":"Neutral"},{"$f":"INDIRECT($B35&\"!\"&$B$3&E$3)","v":"Neutral"},{"$f":"INDIRECT($B35&\"!\"&$B$3&F$3)","v":"Neutral"},{"$f":"INDIRECT($B35&\"!\"&$B$3&G$3)","v":"Neutral"},{"$f":"INDIRECT($B35&\"!\"&$B$3&H$3)","v":"Minor Positive"},{"$f":"INDIRECT($B35&\"!\"&$B$3&I$3)","v":"Minor Positive"},{"$f":"INDIRECT($B35&\"!\"&$B$3&J$3)","v":"Minor Negative"},{"$f":"INDIRECT($B35&\"!\"&$B$3&K$3)","v":"Neutral"},{"$f":"INDIRECT($B35&\"!\"&$B$3&L$3)","v":"Neutral"},{"$f":"INDIRECT($B35&\"!\"&$B$3&M$3)","v":"Neutral"},{"$f":"INDIRECT($B35&\"!\"&$B$3&N$3)","v":"Neutral"},{"$f":"INDIRECT($B35&\"!\"&$B$3&O$3)","v":"Minor Negative"},{"$f":"INDIRECT($B35&\"!\"&$B$3&P$3)","v":"Neutral"},{"$f":"INDIRECT($B35&\"!\"&$B$3&Q$3)","v":"Neutral"},{"$f":"INDIRECT($B35&\"!\"&$B$3&R$3)","v":"Neutral"},null,"INF5_East_Midlands_Airport","-",0,0,0,0,"+","+","-",0,0,0,0,"-",0,0,0]
[null,"INF6_Community_Facilities",{"$f":"INDIRECT($B36&\"!\"&$B$3&C$3)","v":"Neutral"},{"$f":"INDIRECT($B36&\"!\"&$B$3&D$3)","v":"Minor Positive"},{"$f":"INDIRECT($B36&\"!\"&$B$3&E$3)","v":"Minor Positive"},{"$f":"INDIRECT($B36&\"!\"&$B$3&F$3)","v":"Minor Positive"},{"$f":"INDIRECT($B36&\"!\"&$B$3&G$3)","v":"Neutral"},{"$f":"INDIRECT($B36&\"!\"&$B$3&H$3)","v":"Minor Positive"},{"$f":"INDIRECT($B36&\"!\"&$B$3&I$3)","v":"Minor Positive"},{"$f":"INDIRECT($B36&\"!\"&$B$3&J$3)","v":"Significant Positive"},{"$f":"INDIRECT($B36&\"!\"&$B$3&K$3)","v":"Minor Positive"},{"$f":"INDIRECT($B36&\"!\"&$B$3&L$3)","v":"Minor Positive"},{"$f":"INDIRECT($B36&\"!\"&$B$3&M$3)","v":"Neutral"},{"$f":"INDIRECT($B36&\"!\"&$B$3&N$3)","v":"Neutral"},{"$f":"INDIRECT($B36&\"!\"&$B$3&O$3)","v":"Neutral"},{"$f":"INDIRECT($B36&\"!\"&$B$3&P$3)","v":"Neutral"},{"$f":"INDIRECT($B36&\"!\"&$B$3&Q$3)","v":"Neutral"},{"$f":"INDIRECT($B36&\"!\"&$B$3&R$3)","v":"Neutral"},null,"INF6_Community_Facilities",0,"+","+","+",0,"+","+","+ +","+","+",0,0,0,0,0,0]
[null,"INF7_Blue_Green_Infrastructure",{"$f":"INDIRECT($B37&\"!\"&$B$3&C$3)","v":"Significant Positive"},{"$f":"INDIRECT($B37&\"!\"&$B$3&D$3)","v":"Neutral"},{"$f":"INDIRECT($B37&\"!\"&$B$3&E$3)","v":"Significant Positive"},{"$f":"INDIRECT($B37&\"!\"&$B$3&F$3)","v":"Minor Positive"},{"$f":"INDIRECT($B37&\"!\"&$B$3&G$3)","v":"Minor Positive"},{"$f":"INDIRECT($B37&\"!\"&$B$3&H$3)","v":"Minor Positive"},{"$f":"INDIRECT($B37&\"!\"&$B$3&I$3)","v":"Neutral"},{"$f":"INDIRECT($B37&\"!\"&$B$3&J$3)","v":"Minor Positive"},{"$f":"INDIRECT($B37&\"!\"&$B$3&K$3)","v":"Minor Positive"},{"$f":"INDIRECT($B37&\"!\"&$B$3&L$3)","v":"Neutral"},{"$f":"INDIRECT($B37&\"!\"&$B$3&M$3)","v":"Neutral"},{"$f":"INDIRECT($B37&\"!\"&$B$3&N$3)","v":"Significant Positive"},{"$f":"INDIRECT($B37&\"!\"&$B$3&O$3)","v":"Minor Positive"},{"$f":"INDIRECT($B37&\"!\"&$B$3&P$3)","v":"Minor Positive"},{"$f":"INDIRECT($B37&\"!\"&$B$3&Q$3)","v":"Minor Positive"},{"$f":"INDIRECT($B37&\"!\"&$B$3&R$3)","v":"Minor Positive"},null,"INF7_Blue_Green_Infrastructure","+ +",0,"+ +","+","+","+",0,"+","+",0,0,"+ +","+","+","+","+"]
[null,"INF8_The_National_Forest",{"$f":"INDIRECT($B38&\"!\"&$B$3&C$3)","v":"Significant Positive"},{"$f":"INDIRECT($B38&\"!\"&$B$3&D$3)","v":"Neutral"},{"$f":"INDIRECT($B38&\"!\"&$B$3&E$3)","v":"Minor Positive"},{"$f":"INDIRECT($B38&\"!\"&$B$3&F$3)","v":"Neutral"},{"$f":"INDIRECT($B38&\"!\"&$B$3&G$3)","v":"Neutral"},{"$f":"INDIRECT($B38&\"!\"&$B$3&H$3)","v":"Significant Positive"},{"$f":"INDIRECT($B38&\"!\"&$B$3&I$3)","v":"Minor Positive"},{"$f":"INDIRECT($B38&\"!\"&$B$3&J$3)","v":"Neutral"},{"$f":"INDIRECT($B38&\"!\"&$B$3&K$3)","v":"Minor Positive"},{"$f":"INDIRECT($B38&\"!\"&$B$3&L$3)","v":"Neutral"},{"$f":"INDIRECT($B38&\"!\"&$B$3&M$3)","v":"Neutral"},{"$f":"INDIRECT($B38&\"!\"&$B$3&N$3)","v":"Minor Positive"},{"$f":"INDIRECT($B38&\"!\"&$B$3&O$3)","v":"Minor Positive"},{"$f":"INDIRECT($B38&\"!\"&$B$3&P$3)","v":"Neutral"},{"$f":"INDIRECT($B38&\"!\"&$B$3&Q$3)","v":"Neutral"},{"$f":"INDIRECT($B38&\"!\"&$B$3&R$3)","v":"Minor Positive"},null,"INF8_The_National_Forest","+ +",0,"+",0,0,"+ +","+",0,"+",0,0,"+","+",0,0,"+"]
[null,"INF9_Open_Space_Sport",{"$f":"INDIRECT($B39&\"!\"&$B$3&C$3)","v":"Minor Positive"},{"$f":"INDIRECT($B39&\"!\"&$B$3&D$3)","v":"Neutral"},{"$f":"INDIRECT($B39&\"!\"&$B$3&E$3)","v":"Minor Positive"},{"$f":"INDIRECT($B39&\"!\"&$B$3&F$3)","v":"Minor Positive"},{"$f":"INDIRECT($B39&\"!\"&$B$3&G$3)","v":"Minor Positive"},{"$f":"INDIRECT($B39&\"!\"&$B$3&H$3)","v":"Neutral"},{"$f":"INDIRECT($B39&\"!\"&$B$3&I$3)","v":"Minor Positive"},{"$f":"INDIRECT($B39&\"!\"&$B$3&J$3)","v":"Minor Positive"},{"$f":"INDIRECT($B39&\"!\"&$B$3&K$3)","v":"Minor Positive"},{"$f":"INDIRECT($B39&\"!\"&$B$3&L$3)","v":"Minor Positive"},{"$f":"INDIRECT($B39&\"!\"&$B$3&M$3)","v":"Neutral"},{"$f":"INDIRECT($B39&\"!\"&$B$3&N$3)","v":"Neutral"},{"$f":"INDIRECT($B39&\"!\"&$B$3&O$3)","v":"Neutral"},{"$f":"INDIRECT($B39&\"!\"&$B$3&P$3)","v":"Neutral"},{"$f":"INDIRECT($B39&\"!\"&$B$3&Q$3)","v":"Neutral"},{"$f":"INDIRECT($B39&\"!\"&$B$3&R$3)","v":"Uncertain"},null,"INF9_Open_Space_Sport","+",0,"+","+","+",0,"+","+","+","+",0,0,0,0,0,"?"]
[null,"INF10_Tourism_Development",{"$f":"INDIRECT($B40&\"!\"&$B$3&C$3)","v":"Minor Positive"},{"$f":"INDIRECT($B40&\"!\"&$B$3&D$3)","v":"Neutral"},{"$f":"INDIRECT($B40&\"!\"&$B$3&E$3)","v":"Neutral"},{"$f":"INDIRECT($B40&\"!\"&$B$3&F$3)","v":"Neutral"},{"$f":"INDIRECT($B40&\"!\"&$B$3&G$3)","v":"Neutral"},{"$f":"INDIRECT($B40&\"!\"&$B$3&H$3)","v":"Significant Positive"},{"$f":"INDIRECT($B40&\"!\"&$B$3&I$3)","v":"Minor Positive"},{"$f":"INDIRECT($B40&\"!\"&$B$3&J$3)","v":"Neutral"},{"$f":"INDIRECT($B40&\"!\"&$B$3&K$3)","v":"Minor Positive"},{"$f":"INDIRECT($B40&\"!\"&$B$3&L$3)","v":"Minor Positive"},{"$f":"INDIRECT($B40&\"!\"&$B$3&M$3)","v":"Neutral"},{"$f":"INDIRECT($B40&\"!\"&$B$3&N$3)","v":"Minor Positive"},{"$f":"INDIRECT($B40&\"!\"&$B$3&O$3)","v":"Neutral"},{"$f":"INDIRECT($B40&\"!\"&$B$3&P$3)","v":"Neutral"},{"$f":"INDIRECT($B40&\"!\"&$B$3&Q$3)","v":"Minor Positive"},{"$f":"INDIRECT($B40&\"!\"&$B$3&R$3)","v":"Minor Positive"},null,"INF10_Tourism_Development","+",0,0,0,0,"+ +","+",0,"+","+",0,"+",0,0,"+","+"]

{"sheet":"S1_Sustainable_Growth_Strategy","index":6,"n_rows":23,"n_cols":15,"rows_kept":23,"cut":false,"hidden":false,"merged":[[0,1,0,2],[1,1,1,2],[2,1,2,2],[3,1,3,2],[5,0,5,1],[5,2,5,11]]}
["Policy/Alternative name","Policy S1: Sustainable Growth Strategy"]
["Chapter","Spatial Strategy"]
["Policy/alternative description","South Derbyshire will promote sustainable growth to meet its objectively assessed housing and commercial needs in the plan period 2022-2039. Over the plan period (2022 – 2041) at least 14500 dwellings will be built within South Derbyshire. This comprises 9633 homes to meet South Derbyshire’s own needs and the remainder to help meet Derby City’s unmet need; to reflect the high level of housing delivery experienced in South Derbyshire in recent years; to provide flexibility in regard to site delivery and to help match affordable housing need with delivery as closely as possible. "]
["Assumptions Made","None. "]
[]
["SA Framework",null,"SA Policy Assessment"]
["SA objective","SA sub-objective","Direct/\nIndirect","Magnitude","Duration","Spatial Extent","Permanence/ Reversibility","Significance","Description of potential effects","Potential for cumulative effects? ","Mitigation","Enhancements","SDDC Comments"]
["S01 Biodiversity\nTo safeguard and enhance biodiversity (including BAP habitats and species) and geodiversity through biodiversity net gain and improve connectivity between, and access to, green spaces and functional habitats.","· Will it conserve and enhance natural or semi natural habitats including internationally, nationally and locally designated wildlife sites, or create new wildlife habitats, and contribute to the creation of a network of habitats and green infrastructure in the District?\n· Will it protect BAP or protected species and contribute to the delivery of new, or safeguard existing BAP priority species and habitats?\n· Will it protect sites of geological importance?","N/A","N/A","N/A","N/A","N/A","Neutral","The policy neither supports nor detracts from the achievement of the SA objective. Therefore a neutral effect is predicted.","No"]
["S02 Housing\nTo ensure everyone has access to sustainable housing, which is affordable, and meets the needs of all residents including the elderly and other vulnerable groups and will support the vitality of existing communities and settlements. ","· Will it reduce the number of households waiting for accommodation or accepted as homeless?\n· Will it increase the number and mix of housing? \n· Will it improve the suitability of new homes for older and disabled people?\n· Will it provide affordable housing for those unable to access market housing?\n· Will it meet the needs of the travelling community and show people?\n· Will it secure infrastructure or community facilities?","Direct","Medium","Medium/Long","District-wide","Permeant/Reversible","Significant Positive","Policy S1 supports the achievement of SA2 as it aims to increase the number of homes within South Derbyshire across the plan period (2022-2041), by making provision for at least 14,500 dwellings. Therefore, a potential significant positive effect has been identified. ","Yes"]
["S03 Accessibility and Health\nTo improve local accessibility to healthcare, education, employment, retail facilities and recreational resources (including open spaces and sports facilities) and enhance wellbeing, promoting healthy and sustainable lifestyles.","· Will it promote healthy lifestyles?\n· Will it deliver new, or contribute to the expansion or improvement of existing open spaces, green infrastructure, schools or healthcare facilities within reasonable walking distance?\n· Will it deliver growth within reasonable walking distance to a planned or existing major employment area (5ha +) or town centre?\n· Will it improve opportunities for active travel including walking and cycling?\n· Will it deliver services or facilities on-site or elsewhere within the District? ","Direct","Low","Medium/Long","District-wide","Permeant/Reversible","Significant Positive","Policy S1 supports the achievement of SA3 as it highlights new infrastructure, including education provision, will be provided to support new development. Additionally, schemes to improve access to services and facilities will be supported. This objective is further supported through encouragement for healthy lifestyles through leisure pursuits, open space and greater accessibility for residents. Therefore, a potential significant positive effect is identified.","No"]
["S04 Quality of Life\nTo create safe and attractive places which contribute towards quality of life and community cohesion.","· Will it contribute towards reducing crime or fear of crime?\n· Will it provide attractive places which provide opportunities for communities to mix and meet?","N/A","N/A","N/A","N/A","N/A","Neutral","The policy neither supports nor detracts from the achievement of the SA objective. Therefore a neutral effect is predicted.","No"]
["S05 Inequalities\nEnsure all residents have equitable access to employment, education, community services and facilities irrespective of race, religion, sex, age, sexual orientation, disability, gender reassignment, marriage and civil partnership or pregnancy/maternity.","· Ensure the option / policy does not have an adverse/ discriminatory impact on protected characteristics/ equality groups?\n· Will it narrow the inequality gap between the richest and poorest in the District?\n· Will it reduce inequalities associated with deprivation across the District?","N/A","N/A","N/A","N/A","N/A","Neutral","The policy neither supports nor detracts from the achievement of the SA objective. Therefore a neutral effect is predicted.","No"]
["S06 Economy\nTo deliver growth in key employment sectors and support the creation of new and retention of existing businesses in urban and rural areas.","· Will it encourage the creation of new businesses and existing businesses to grow?\n· Will it encourage economic diversification?\n· Will it help support and encourage the growth of the local economy (including in rural areas)?\n· Will it support the enhancement of the District’s tourism and cultural offer?","Direct","Medium","Medium/Long","District-wide","Permeant/Reversible","Significant Positive","Policy S1 supports the achievement of SA6 as it aims to increase the number of homes within South Derbyshire across the plan period (2022-2041), in order to accommodate the growing population of the District. The development of these homes will help to support economic growth across the District by increasing footfall in town and village centres and providing further opportunities for business growth/development. The policy also promotes tourism within the District, in order to contribute further to the local economy. Therefore, a potential significant positive effect is identified.","No"]
["S07 Employment\nTo create greater employment opportunities and higher value jobs across the whole District","· Will it help to improve skills levels and access to training within the District?\n· Will it reduce unemployment rates overall and reduce disparities which exist across different parts of the District?","Direct","Medium","Medium/Long","District-wide","Permeant/Reversible","Significant Positive","Policy S1 supports the achievement of SA7 as it highlights that employment development to meet South Derbyshire's needs should be retained, promoted and regenerated through the provision of sites measuring 178-183ha in urban areas on the edge of the Derby urban area, brownfield sites at Drakelow, Dove Valley and Hilton and sites within the Swadlincote urban area. A 173ha site has also been allocated at Egginton Common for an East Midlands Intermodal Park Strategic Rail Freight Interchange/ East Midlands Freeport. Subsequently, the policy supports the provision of employment opportunities, in the most sustainable areas of the District. Therefore, a potential significant positive effect is identified.","No"]
["S08 Infrastructure\nTo deliver improved infrastructure to support growth and economic competitiveness of urban and rural businesses and communities.","· Will it minimise the impact of traffic congestion on the strategic and local road network through the delivery of new or enhanced transport infrastructure?\n· Will it provide opportunities to access key services, including doctor’s surgeries, education facilities, employment and town, local or village centres by means other than car?\n· Will it make the best use of other infrastructure which serves new development?","Direct","Medium","Medium/Long","District-wide","Permeant/Reversible","Significant Positive","Policy S1 supports the achievement of SA8 as it aims to provide new infrastructure across the District, including transport and education provision, sport and physical recreational facilities, and other services/facilities. Therefore, a potential significant positive effect is identified.","No"]
["S09 Sustainable Travel\nTo promote sustainable travel habits including walking, cycling and public transport (bus and rail) usage.  ","· Will it reduce journey lengths and times? \n· Will it maximise opportunities for walking and cycling?\n· Will it maximise opportunities to access public transport provision?","N/A","N/A","N/A","N/A","N/A","Neutral","The policy neither supports nor detracts from the achievement of the SA objective. Therefore a neutral effect is predicted.","No"]
["S010 Town and Village Centres\nTo ensure that town and village centres are vibrant and viable.","· Will it improve existing shopping facilities within town and village centres? \n· Will it help safeguard existing town and village centres?","N/A","N/A","N/A","N/A","N/A","Neutral","The policy neither supports nor detracts from the achievement of the SA objective. Therefore a neutral effect is predicted.","No"]
["S011 Resources\nTo minimise waste and ensure the sustainable use and protection of natural resources including greenfield land, soil and minerals resources.  ","· Will it enhance opportunities for increased levels of recycling in the District?\n· Will it improve or remediate contaminated land or reuse previously developed land which has not been restored?\n· Will it protect Best and Most Versatile (BMV) Agricultural Land?\n· Will it avoid the sterilisation of minerals resources?","Direct","Medium","Medium/Long","District-wide","Permenant/Irreversible","Significant Negative","Although there are a number of developments on brownfield land (e.g. Drakelow Power Station), a significant amount of development is on greenfield land (e.g. large strategic sites such as Infinity Garden Village and Land South of Mickleover). The development of 14,500 homes over the plan period is therefore likely to lead to the permenant and irreversible loss of greenfield land- including land classed as best and most versatile. Therefore, a potential significant negative effect is predicted.","No","Loss of greenfield/ best and most versatile land cannot be mitigated.",null,null,"is it likely to affect BMV?","Please add a sentence stating that some of the emp sites are brownfield but (if this is true) the large strategic sites are greenfield. I'm not sure it's quite right saying we're not how many homes will be on greenfield because I think we know a lot of them will be. "]
["S012 Pollution\nTo minimise water, air, light and noise pollution and ensure that future growth does not lead to the further deterioration of environmental conditions.","· Will it contribute to improvements in water quality in the District?\n· Will it avoid increasing noise levels locally or introducing incompatible uses into an already noisy location?\n· Will it avoid deterioration in air quality within the District?\n· Will it reduce light pollution on sensitive receptors by keeping external lighting to the minimum required for safety and security?","N/A","N/A","N/A","N/A","N/A","Uncertain","The development of 14,500 homes over the plan period could contribute to air, noise and light pollution. It is noted that this will be dependent on the location and design of developments however, making it difficult to determine what impact this could have. Therefore an uncertain effect is predicted.","Yes","Further details of plans for development could assist in determining the significance score. A criterion should be added to the policy which requires air, noise and light pollution to be planned and mitigated prior to development. Whilst Policy SD1 could help to achieve this, explicit criteria in the policy could help to ensure the best outcome for local receptors."]
["S013 Contributions to Climate Change \nTo reduce the District’s contribution towards the emission of climate change gases.","· Will it provide opportunities to access local services and facilities by public transport walking or cycling?\n· Will it support the delivery of renewable energy capacity (including small scale or community energy projects)?\n· Will it support the shift toward usage of electric and ultralow emissions vehicles? ","N/A","N/A","N/A","N/A","N/A","Neutral","The policy neither supports nor detracts from the achievement of the SA objective. Therefore a neutral effect is predicted.","No"]
["S014 Adaptation to Climate Change \nTo manage the effects of climate change including flood risk, reduced water availability and overheating.","· Will it minimise flood risk?\n· Will it include provision of sustainable urban drainage which mimic natural drainage patterns?\n· Will it contribute towards sustainable water use?","Direct","Low","Medium/Long","District-wide","Permeant/Reversible","Minor Positive","Policy S1 supports the achievement of SA14 as it highlights that in bringing forward new development the Council will seek to ensure that the schemes respond to and address environmental and social issues including the need to tackle climate change and minimise resource use. Therefore, a potential minor positive effect is identified.","No"]
["S015 Townscape and Historic Environment\nTo conserve and enhance the townscape, historic environment, heritage assets (including known and unknown archaeological sites) and their settings. ","· Will it protect and enhance the condition and setting of historic, cultural, architectural and archaeological features in South Derbyshire?\n· Does it improve the quality of the built environment, and respect and protect existing townscape character?\n· Will it improve access to, and understanding of, the District’s historic and cultural assets for enjoyment and educational purposes?","Direct","Low","Medium/Long","District-wide","Permeant/Reversible","Minor Positive","Policy S1 supports the achievement of SA15 as it highlights that the District's heritage assets must be protected, conserved and enhanced, alongside new development. Therefore, a potential minor positive effect is identified.","No"]
["S016 Landscape\nTo conserve and enhance the District’s landscape character.","· Does it respect and protect existing landscape character?\n· Will it protect sensitive landscapes including those within the World Heritage Site or its buffer or Special Landscape Areas?\n· Will it safeguard landscape features such as hedgerows?\n· Will it avoid intrusion into the greenbelt?","Direct","Low","Medium/Long","District-wide","Permeant/Reversible","Minor Positive","Policy S1 supports the achievement of SA16 as it highlights that the District's landscape and rural character must be protected, conserved and enhanced, alongside new development. Therefore, a potential minor positive effect is identified.","No"]

{"sheet":"S4_Housing_Strategy","index":7,"n_rows":23,"n_cols":14,"rows_kept":23,"cut":false,"hidden":false,"merged":[[0,1,0,2],[1,1,1,2],[2,1,2,2],[3,1,3,2],[5,0,5,1],[5,2,5,11]]}
["Policy/Alternative name","Policy S4: Housing Strategy"]
["Chapter","Spatial Strategy"]
["Policy/alternative description","Provision will be made in the Local Plan Part 1 for at least 12,470 additional dwellings on allocated sites over the plan period. In addition, 242 dwellings will be provided in the form of dwellings remaining to be completed on saved allocated sites in the adopted 2017 Local Plan Part 2.  The balance of provision needed to meet the overall requirement of 14,500 homes, as identified under Policy S1, will be provided through existing unallocated sites of ten dwellings or more with planning permission and windfall development on sites of fewer than ten dwellings comprising a minimum of 1788 dwellings. "]
["Assumptions Made","None. "]
[]
["SA Framework",null,"SA Policy Assessment"]
["SA objective","SA sub-objective","Direct/\nIndirect","Magnitude","Duration","Spatial Extent","Permanence/ Reversibility","Significance","Description of potential effects","Potential for cumulative effects? ","Mitigation","Enhancements","SDDC Comments"]
["S01 Biodiversity\nTo safeguard and enhance biodiversity (including BAP habitats and species) and geodiversity through biodiversity net gain and improve connectivity between, and access to, green spaces and functional habitats.","· Will it conserve and enhance natural or semi natural habitats including internationally, nationally and locally designated wildlife sites, or create new wildlife habitats, and contribute to the creation of a network of habitats and green infrastructure in the District?\n· Will it protect BAP or protected species and contribute to the delivery of new, or safeguard existing BAP priority species and habitats?\n· Will it protect sites of geological importance?","N/A","N/A","N/A","N/A","N/A","Neutral","Although there is uncertainty surrounding the location of the 1788 homes to be delivered as windfall developments, it is unlikely that a negative effect will be generated on biodiversity due to Policy BNE3 Biodiversity, which requires developments to  avoid any adverse impact on sites of nature conservation value, as well as deliver a minimum of 10% BNG, in line with national policy requirements. Therefore, a neutral effect has been predicted.","No",null,null,null,"do you need to consider the impact of proposed windfall development? Do the biodiversity policies address this if these are being taken into account. If this is the case I think the neutral explanation needs to be changed"]
["S02 Housing\nTo ensure everyone has access to sustainable housing, which is affordable, and meets the needs of all residents including the elderly and other vulnerable groups and will support the vitality of existing communities and settlements. ","· Will it reduce the number of households waiting for accommodation or accepted as homeless?\n· Will it increase the number and mix of housing? \n· Will it improve the suitability of new homes for older and disabled people?\n· Will it provide affordable housing for those unable to access market housing?\n· Will it meet the needs of the travelling community and show people?\n· Will it secure infrastructure or community facilities?","Direct","Medium","Medium/Long","District-wide","Permeant/Reversible","Significant Positive","Policy S4 aims to increase the number of homes within South Derbyshire across the plan period (2022-2041), by making provision for at least 12,470 additional dwellings on allocated sites. In addition 242 dwellings will be provided in the form of dwellings remaining to be completed on saved allocated sites in the adopted 2017 Local Plan Part 2. 1788 dwellings will be provided through existing unallocated sites of ten dwellings or more with planning permission and windfall development in order to meet the overall plan period requirement of 14,500 dwellings. This works directly towards the objectives of SO2, hence a potential significant positive effect has been identified. ","Yes"]
["S03 Accessibility and Health\nTo improve local accessibility to healthcare, education, employment, retail facilities and recreational resources (including open spaces and sports facilities) and enhance wellbeing, promoting healthy and sustainable lifestyles.","· Will it promote healthy lifestyles?\n· Will it deliver new, or contribute to the expansion or improvement of existing open spaces, green infrastructure, schools or healthcare facilities within reasonable walking distance?\n· Will it deliver growth within reasonable walking distance to a planned or existing major employment area (5ha +) or town centre?\n· Will it improve opportunities for active travel including walking and cycling?\n· Will it deliver services or facilities on-site or elsewhere within the District? ","N/A","N/A","N/A","N/A","N/A","Neutral","The policy neither supports nor detracts from the achievement of the SA objective. Therefore a neutral effect is predicted.","No"]
["S04 Quality of Life\nTo create safe and attractive places which contribute towards quality of life and community cohesion.","· Will it contribute towards reducing crime or fear of crime?\n· Will it provide attractive places which provide opportunities for communities to mix and meet?","N/A","N/A","N/A","N/A","N/A","Neutral","The policy neither supports nor detracts from the achievement of the SA objective. Therefore a neutral effect is predicted.","No"]
["S05 Inequalities\nEnsure all residents have equitable access to employment, education, community services and facilities irrespective of race, religion, sex, age, sexual orientation, disability, gender reassignment, marriage and civil partnership or pregnancy/maternity.","· Ensure the option / policy does not have an adverse/ discriminatory impact on protected characteristics/ equality groups?\n· Will it narrow the inequality gap between the richest and poorest in the District?\n· Will it reduce inequalities associated with deprivation across the District?","N/A","N/A","N/A","N/A","N/A","Neutral","The policy neither supports nor detracts from the achievement of the SA objective. Therefore a neutral effect is predicted.","No"]
["S06 Economy\nTo deliver growth in key employment sectors and support the creation of new and retention of existing businesses in urban and rural areas.","· Will it encourage the creation of new businesses and existing businesses to grow?\n· Will it encourage economic diversification?\n· Will it help support and encourage the growth of the local economy (including in rural areas)?\n· Will it support the enhancement of the District’s tourism and cultural offer?","Indirect","Medium","Medium/Long","District-wide","Permeant/Reversible","Minor Positive","Policy S4 aims to increase the number of homes within South Derbyshire across the plan period (2022-2041), in order to accommodate the growing population of the District. The development of these homes will help to indirectly support economic growth across the District by increasing footfall in town and village centres and providing further opportunities for business growth/development. Therefore, as this policy indirectly meets some of the criteria for SA6, a potential minor positive effect has been identified.","No"]
["S07 Employment\nTo create greater employment opportunities and higher value jobs across the whole District","· Will it help to improve skills levels and access to training within the District?\n· Will it reduce unemployment rates overall and reduce disparities which exist across different parts of the District?","N/A","N/A","N/A","N/A","N/A","Neutral","The policy neither supports nor detracts from the achievement of the SA objective. Therefore a neutral effect is predicted.","No"]
["S08 Infrastructure\nTo deliver improved infrastructure to support growth and economic competitiveness of urban and rural businesses and communities.","· Will it minimise the impact of traffic congestion on the strategic and local road network through the delivery of new or enhanced transport infrastructure?\n· Will it provide opportunities to access key services, including doctor’s surgeries, education facilities, employment and town, local or village centres by means other than car?\n· Will it make the best use of other infrastructure which serves new development?","N/A","N/A","N/A","N/A","N/A","Neutral","The policy neither supports nor detracts from the achievement of the SA objective. Therefore a neutral effect is predicted.","No"]
["S09 Sustainable Travel\nTo promote sustainable travel habits including walking, cycling and public transport (bus and rail) usage.  ","· Will it reduce journey lengths and times? \n· Will it maximise opportunities for walking and cycling?\n· Will it maximise opportunities to access public transport provision?","N/A","N/A","N/A","N/A","N/A","Neutral","Although there is uncertainty surrounding the location of the 1788 homes to be delivered as existing unallocated sites and windfall developments, it is unlikely that a negative impact will be generated on sustainable travel as Policy INF1 Infrastructure and Developer Contributions will only permit development if necessary infrastructure (both on- and off-site) is already in place; this includes the provision of transport infrastructure. Therefore, a neutral effect is predicted.","No"]
["S010 Town and Village Centres\nTo ensure that town and village centres are vibrant and viable.","· Will it improve existing shopping facilities within town and village centres? \n· Will it help safeguard existing town and village centres?","N/A","N/A","N/A","N/A","N/A","Neutral","The policy neither supports nor detracts from the achievement of the SA objective. Therefore a neutral effect is predicted.","No"]
["S011 Resources\nTo minimise waste and ensure the sustainable use and protection of natural resources including greenfield land, soil and minerals resources.  ","· Will it enhance opportunities for increased levels of recycling in the District?\n· Will it improve or remediate contaminated land or reuse previously developed land which has not been restored?\n· Will it protect Best and Most Versatile (BMV) Agricultural Land?\n· Will it avoid the sterilisation of minerals resources?","Direct","Medium","Medium/Long","District-wide","Permenant/Irreversible","Significant Negative","Although there are a number of developments on brownfield land, a significant amount of development is on greenfield land (e.g. large strategic sites such as Infinity Garden Village and Land South of Mickleover). The development of 14,500 homes over the plan period is therefore likely to lead to the permenant and irreversible loss of greenfield/best and most versatile agricultural land. Therefore, a potential significant negative effect is predicted.","No","Loss of greenfield/ best and most versatile land cannot be mitigated.",null,null,"do you need to consider the impact of proposed windfall development on PDL and BMV? Should this be uncertain or are their policies address this if these are being taken into account. If this is the case I think the neutral explanation needs to be changed"]
["S012 Pollution\nTo minimise water, air, light and noise pollution and ensure that future growth does not lead to the further deterioration of environmental conditions.","· Will it contribute to improvements in water quality in the District?\n· Will it avoid increasing noise levels locally or introducing incompatible uses into an already noisy location?\n· Will it avoid deterioration in air quality within the District?\n· Will it reduce light pollution on sensitive receptors by keeping external lighting to the minimum required for safety and security?","N/A","N/A","N/A","N/A","N/A","Uncertain","The development of 14,5004 homes over the plan period could contribute to air, noise and light pollution. Although Policy SD1 Amenity and Environmental Quality will require developments to consider the need for a strategic buffer in order to mitigate noise and light pollution, it is noted that it may be difficult to mitigate all impacts as this will be dependent on the location and design of developments. Therefore an uncertain effect is predicted.","Yes","No further mitigation proposed in addition Policy SD1. "]
["S013 Contributions to Climate Change \nTo reduce the District’s contribution towards the emission of climate change gases.","· Will it provide opportunities to access local services and facilities by public transport walking or cycling?\n· Will it support the delivery of renewable energy capacity (including small scale or community energy projects)?\n· Will it support the shift toward usage of electric and ultralow emissions vehicles? ","N/A","N/A","N/A","N/A","N/A","Neutral","The policy neither supports nor detracts from the achievement of the SA objective. Therefore a neutral effect is predicted.","No",null,null,null,"is this uncertain?"]
["S014 Adaptation to Climate Change \nTo manage the effects of climate change including flood risk, reduced water availability and overheating.","· Will it minimise flood risk?\n· Will it include provision of sustainable urban drainage which mimic natural drainage patterns?\n· Will it contribute towards sustainable water use?","N/A","N/A","N/A","N/A","N/A","Neutral","The policy neither supports nor detracts from the achievement of the SA objective. Therefore a neutral effect is predicted.","No"]
["S015 Townscape and Historic Environment\nTo conserve and enhance the townscape, historic environment, heritage assets (including known and unknown archaeological sites) and their settings. ","· Will it protect and enhance the condition and setting of historic, cultural, architectural and archaeological features in South Derbyshire?\n· Does it improve the quality of the built environment, and respect and protect existing townscape character?\n· Will it improve access to, and understanding of, the District’s historic and cultural assets for enjoyment and educational purposes?","N/A","N/A","N/A","N/A","N/A","Uncertain","Due to uncertainty surrounding the location of the 1788 homes to be delivered as existing unallocated sites and windfall developments, it is difficult to determine whether an impact would be generated on heritage assets. Therefore, an uncertain effect is predicted.","No","Further details of proposals for development could assist in determining the significance score.",null,null,"as above with relation to uncertain impacts on historic assets"]
["S016 Landscape\nTo conserve and enhance the District’s landscape character.","· Does it respect and protect existing landscape character?\n· Will it protect sensitive landscapes including those within the World Heritage Site or its buffer or Special Landscape Areas?\n· Will it safeguard landscape features such as hedgerows?\n· Will it avoid intrusion into the greenbelt?","N/A","N/A","N/A","N/A","N/A","Uncertain","Although Policy BNE4 Landscape Character and Local Distinctiveness will require developments to conserve local distinctiveness, retain landscape features (e.g. hedgerows) and offset any damage to landscape features, uncertainty surrounding the location of the 1788 homes to be delivered as windfall developments makes it is difficult to determine whether an impact would be generated on landscape, such as coalescence or development on greenfield land. Therefore, an uncertain effect is predicted.","No","Further details of proposals for development could assist in determining the significance score.\nLoss of greenfield land cannot be mitigated.",null,null,"as above with relation to uncertain impacts on landscape with relation to windfall development?"]

{"sheet":"S5_Employment_Land_Strategy","index":8,"n_rows":23,"n_cols":13,"rows_kept":23,"cut":false,"hidden":false,"merged":[[0,1,0,2],[1,1,1,2],[2,1,2,2],[3,1,3,2],[5,0,5,1],[5,2,5,11]]}
["Policy/Alternative name","Policy S5: Employment Land Strategy"]
["Chapter","Spatial Strategy"]
["Policy/alternative description","This policy outlines how provision will be made for the development, redevelopment and protection of land for industrial and business development  in support of the Economic Strategies of South Derbyshire District Council and the East Midlands Combined County Authority. \nLand measuring a total of 178-183 ha is allocated to meet the employment needs (Use Classes E(g), B2 and B8) of South Derbyshire District, including sites to balance housing growth at allocations STRA1 and STRA2 and to bring brownfield land into beneficial use at allocation STRA3.    \nLand measuring 173ha north of the Derby-Crewe railway line is allocated for the development of the East Midlands Freeport/Strategic Rail Freight Interchange at Egginton Common to assist in meeting National and Regional needs.    "]
["Assumptions Made","None."]
[]
["SA Framework",null,"SA Policy Assessment"]
["SA objective","SA sub-objective","Direct/\nIndirect","Magnitude","Duration","Spatial Extent","Permanence/ Reversibility","Significance","Description of potential effects","Potential for cumulative effects? ","Mitigation","Enhancements","SDDC Comments"]
["S01 Biodiversity\nTo safeguard and enhance biodiversity (including BAP habitats and species) and geodiversity through biodiversity net gain and improve connectivity between, and access to, green spaces and functional habitats.","· Will it conserve and enhance natural or semi natural habitats including internationally, nationally and locally designated wildlife sites, or create new wildlife habitats, and contribute to the creation of a network of habitats and green infrastructure in the District?\n· Will it protect BAP or protected species and contribute to the delivery of new, or safeguard existing BAP priority species and habitats?\n· Will it protect sites of geological importance?","N/A","N/A","N/A","N/A","N/A","Neutral","The policy itself is unlikely to result in positive or negative effects on this SA objective. The assessments of the strategic allocation sites themselves are predicted to result in potential positive effects in relation to biodiversity due to the mitigation and enhancement measures proposed within their policies. An overall neutral effect is identified for this policy. ","No"]
["S02 Housing\nTo ensure everyone has access to sustainable housing, which is affordable, and meets the needs of all residents including the elderly and other vulnerable groups and will support the vitality of existing communities and settlements. ","· Will it reduce the number of households waiting for accommodation or accepted as homeless?\n· Will it increase the number and mix of housing? \n· Will it improve the suitability of new homes for older and disabled people?\n· Will it provide affordable housing for those unable to access market housing?\n· Will it meet the needs of the travelling community and show people?\n· Will it secure infrastructure or community facilities?","N/A","N/A","N/A","N/A","N/A","Neutral","The policy neither supports nor detracts from the achievement of the SA objective. Therefore a neutral effect is predicted.","No"]
["S03 Accessibility and Health\nTo improve local accessibility to healthcare, education, employment, retail facilities and recreational resources (including open spaces and sports facilities) and enhance wellbeing, promoting healthy and sustainable lifestyles.","· Will it promote healthy lifestyles?\n· Will it deliver new, or contribute to the expansion or improvement of existing open spaces, green infrastructure, schools or healthcare facilities within reasonable walking distance?\n· Will it deliver growth within reasonable walking distance to a planned or existing major employment area (5ha +) or town centre?\n· Will it improve opportunities for active travel including walking and cycling?\n· Will it deliver services or facilities on-site or elsewhere within the District? ","Direct","Medium","Medium(10yrs)","District-wide","Permenant/Reversible","Minor Positive","This policy supports S03 by potentially improving local accessibility to employment and contributing to the economic vitality of the area. New areas of employment are distributed across the District and are generally accessible by public transport or the road network. The development of allocated employment sites (e.g. Infinity Garden Village, Land South of Mickleover) should contribute towards the development of green infrastructure networks, which will allow employment sites to be accessible via active travel methods. This should subsequently improve their accessibility, as well as provide employees with opportunities to walk/cycle to work. Therefore, a potential minor positive effect has been identified. Therefore, a minor positive effect has been identified.\n ","No"]
["S04 Quality of Life\nTo create safe and attractive places which contribute towards quality of life and community cohesion.","· Will it contribute towards reducing crime or fear of crime?\n· Will it provide attractive places which provide opportunities for communities to mix and meet?","N/A","N/A","N/A","N/A","N/A","Neutral","The policy neither supports nor detracts from the achievement of the SA objective. Therefore a neutral effect is predicted.","No"]
["S05 Inequalities\nEnsure all residents have equitable access to employment, education, community services and facilities irrespective of race, religion, sex, age, sexual orientation, disability, gender reassignment, marriage and civil partnership or pregnancy/maternity.","· Ensure the option / policy does not have an adverse/ discriminatory impact on protected characteristics/ equality groups?\n· Will it narrow the inequality gap between the richest and poorest in the District?\n· Will it reduce inequalities associated with deprivation across the District?","N/A","N/A","N/A","N/A","N/A","Neutral","The policy neither supports nor detracts from the achievement of the SA objective. Therefore a neutral effect is predicted.","No"]
["S06 Economy\nTo deliver growth in key employment sectors and support the creation of new and retention of existing businesses in urban and rural areas.","· Will it encourage the creation of new businesses and existing businesses to grow?\n· Will it encourage economic diversification?\n· Will it help support and encourage the growth of the local economy (including in rural areas)?\n· Will it support the enhancement of the District’s tourism and cultural offer?","Direct","High","Medium(10yrs)","District-wide","Permenant/Reversible","Significant Positive","This policy strongly supports S06 by protecting existing employment land and allocating new employment land which should support the creation of new businesses, supporting economic diversification, and enhancing the local economy. Therefore, a potential significant positive effect has been identified. ","Yes"]
["S07 Employment\nTo create greater employment opportunities and higher value jobs across the whole District","· Will it help to improve skills levels and access to training within the District?\n· Will it reduce unemployment rates overall and reduce disparities which exist across different parts of the District?","Direct","High","Medium(10yrs)","District-wide","Permenant/Reversible","Significant Positive","This policy supports S07 by creating greater employment opportunities and potentially higher value jobs across the District. Therefore, a potential significant positive effect has been identified.","Yes"]
["S08 Infrastructure\nTo deliver improved infrastructure to support growth and economic competitiveness of urban and rural businesses and communities.","· Will it minimise the impact of traffic congestion on the strategic and local road network through the delivery of new or enhanced transport infrastructure?\n· Will it provide opportunities to access key services, including doctor’s surgeries, education facilities, employment and town, local or village centres by means other than car?\n· Will it make the best use of other infrastructure which serves new development?","Direct","Medium","Medium(10yrs)","District-wide","Permenant/Reversible","Minor Positive","This policy outlines how new areas of employment will be provided within the District. The development of allocated employment sites (e.g. Infinity Garden Village, Land South of Mickleover) should contribute towards the development of green infrastructure networks, which will allow employment sites to be accessible via active travel methods. Development at the Former Drakelow Power Station will provide high quality, frequent public transport to Burton-on-Trent and Swadlincote. Development at some sites, for example at East Midlands Freeport, may provide passenger rail access if it is deemed to be feasible.  Overall, this policy is likely to result in improvements to the District's infrastructure, therefore a potential minor positive effect has been identified. ","No",null,"Due to the scale of the strategic employment sites, it is recommended that a criterion is added to the policy which requires congestion to be planned and mitigated. "]
["S09 Sustainable Travel\nTo promote sustainable travel habits including walking, cycling and public transport (bus and rail) usage.  ","· Will it reduce journey lengths and times? \n· Will it maximise opportunities for walking and cycling?\n· Will it maximise opportunities to access public transport provision?","Direct","Medium","Medium(10yrs)","District-wide","Permenant/Reversible","Minor Positive","The development of allocated employment sites listed within Policy S5 and Policy E1 should contribute towards improvements to transport infrastructure and active travel links (e.g. new public transport services and pedestrian/cycle links will be provided as a result of the Drakelow Power Station site and the East Midlands Freeport site), which should provide residents with more opportunities to utilise public and active transport to travel to work. Therefore, a potential minor positive effect has been identified.","No",null,"Due to the scale of the strategic employment sites, it is recommended that a criterion is added to the policy which requires sustainable transport links to be planned and developed alongside the employment sites. "]
["S010 Town and Village Centres\nTo ensure that town and village centres are vibrant and viable.","· Will it improve existing shopping facilities within town and village centres? \n· Will it help safeguard existing town and village centres?","Indirect","Low","Medium(10yrs)","Localised","Permenant/Reversible","Minor Positive","The policy supports the development of employment space within the District. Some sites are located within town centres, for example Woodville Regeneration Area and Hilton, which is likely to enhance the vitality and viability of Swadlincote and Hilton respectively. Other sites are not located within or near to town centres, for example Dove Valley Park, and Drakelow, however, the uses proposed at these sites are not likely to detract from town and village centres.  An overall minor positive effect is identified.","No"]
["S011 Resources\nTo minimise waste and ensure the sustainable use and protection of natural resources including greenfield land, soil and minerals resources.  ","· Will it enhance opportunities for increased levels of recycling in the District?\n· Will it improve or remediate contaminated land or reuse previously developed land which has not been restored?\n· Will it protect Best and Most Versatile (BMV) Agricultural Land?\n· Will it avoid the sterilisation of minerals resources?","Direct","High","Long(20+yrs)","District-wide","Permenant/Irreversible","Significant Negative","The development of employment land over the plan period is likely to lead to some loss of greenfield/best and most versatile agricultural land. A number of allocated employment sites contain grade 3 agricultural land (e.g. Infinity Garden Village, Land South of Mickleover, East Midlands Freeport). Development will subsequently lead to the irreversible loss of greenfield land, and soils considered as the 'best and most versatile'. As the loss of greenfield land/Grade 3 agricultural land cannot be mitigated, a potential significant negative effect is identified. ","No","Loss of greenfield land and Grade 3 agricultural land cannot be mitigated. A detailed agricultural land assessment should be undertaken in order to identify more accurately what the agricultural classification grade is on development sites"]
["S012 Pollution\nTo minimise water, air, light and noise pollution and ensure that future growth does not lead to the further deterioration of environmental conditions.","· Will it contribute to improvements in water quality in the District?\n· Will it avoid increasing noise levels locally or introducing incompatible uses into an already noisy location?\n· Will it avoid deterioration in air quality within the District?\n· Will it reduce light pollution on sensitive receptors by keeping external lighting to the minimum required for safety and security?","N/A","N/A","N/A","N/A","N/A","Uncertain","It is likely that development of employment sites as listed within this policy and Policy E1 which outlines the specific locations of the allocations will increase air, noise and light pollution across the District. Although mitigation will be provided through Policy SD1 Amenity and Environmental Quality, it is not clear whether all potential effects can be minimised. Therefore, an uncertain effect is identified.","No","No further mitigation proposed in addition Policy SD1. "]
["S013 Contributions to Climate Change \nTo reduce the District’s contribution towards the emission of climate change gases.","· Will it provide opportunities to access local services and facilities by public transport walking or cycling?\n· Will it support the delivery of renewable energy capacity (including small scale or community energy projects)?\n· Will it support the shift toward usage of electric and ultralow emissions vehicles? ","Direct","Medium","Medium(10yrs)","District-wide","Permenant/Reversible","Minor Positive","The development of allocated employment sites should contribute towards improvements to transport infrastructure and active travel links (e.g. new public transport services and pedestrian/cycle links will be provided as a result of the Drakelow Power Station site and the East Midlands Freeport site), which should provide residents with more opportunities to utilise public and active transport to travel to work. Therefore, a potential minor positive effect has been identified.","No",null,"Due to the scale of the strategic employment sites, it is recommended that a criterion is added to the policy which requires EV charging points and renewable energy generation to be considered within the design for the employment sites. "]
["S014 Adaptation to Climate Change \nTo manage the effects of climate change including flood risk, reduced water availability and overheating.","· Will it minimise flood risk?\n· Will it include provision of sustainable urban drainage which mimic natural drainage patterns?\n· Will it contribute towards sustainable water use?","Direct","Medium","Medium(10yrs)","District-wide","Permenant/Irreversible","Minor Negative","A number of allocated employment sites lie within Flood Zones 2 and 3 (e.g. Infinity Garden Village, Land South of Mickleover, Drakelow Power Station, East Midlands Freeport). Although mitigation will be provided through Policy SD2 Flood Risk and strategic policies, the sites could still be at risk from flood events. Therefore, a potential minor negative effect is identified.","No"]
["S015 Townscape and Historic Environment\nTo conserve and enhance the townscape, historic environment, heritage assets (including known and unknown archaeological sites) and their settings. ","· Will it protect and enhance the condition and setting of historic, cultural, architectural and archaeological features in South Derbyshire?\n· Does it improve the quality of the built environment, and respect and protect existing townscape character?\n· Will it improve access to, and understanding of, the District’s historic and cultural assets for enjoyment and educational purposes?","N/A","N/A","N/A","N/A","N/A","Uncertain","The development of employment sites at the locations outlined in Policy S5 and Policy E1 could have negative impacts on heritage assets across the District (e.g. Drakelow Power Station contains a listed building). Although mitigation will be provided through site specific policies, it is not clear whether all potential effects can be minimised. Therefore, an uncertain effect is identified.","No","No further mitigation proposed in addition to site allocation policy requirements."]
["S016 Landscape\nTo conserve and enhance the District’s landscape character.","· Does it respect and protect existing landscape character?\n· Will it protect sensitive landscapes including those within the World Heritage Site or its buffer or Special Landscape Areas?\n· Will it safeguard landscape features such as hedgerows?\n· Will it avoid intrusion into the greenbelt?","Direct","Medium","Medium(10yrs)","District-wide","Permenant/Irreversible","Minor Negative","Although no allocated employment sites lie within the Green Belt, a number of the allocated employment sites (e.g. Infinity Garden Village, Land South of Mickleover, East Midlands Freeport) will lead to the loss of greenfield land, which could cause alterations to the landscape, even with mitigation incorporated into development design. Therefore, a potential minor negative effect is identified.","No"]

{"sheet":"S6_Sustainable_Access","index":9,"n_rows":23,"n_cols":13,"rows_kept":23,"cut":false,"hidden":false,"merged":[[0,1,0,2],[1,1,1,2],[2,1,2,2],[3,1,3,2],[5,0,5,1],[5,2,5,11]]}
["Policy/Alternative name","Policy S6: Sustainable Access"]
["Chapter","Spatial Strategy"]
["Policy/alternative description","Policy S6 sets out the desire to decrease journey lengths for employment, shopping, leisure, education and other activities as well as encouraging a modal shift away from private car use to walking, cycling, public transport and rail freight. This will be achieved through providing mixed use development in locations with existing infrastructure, technology and services or which are able to provide new active travel links where needed. Strategic cycle routes will be safeguarded and development with a demonstrable transport impact will be required to make financial contributions towards public transport services, sustainable transport measures and offsite highway improvements where necessary. "]
["Assumptions Made","None. "]
[]
["SA Framework",null,"SA Policy Assessment"]
["SA objective","SA sub-objective","Direct/\nIndirect","Magnitude","Duration","Spatial Extent","Permanence/ Reversibility","Significance","Description of potential effects","Potential for cumulative effects? ","Mitigation","Enhancements","SDDC Comments"]
["S01 Biodiversity\nTo safeguard and enhance biodiversity (including BAP habitats and species) and geodiversity through biodiversity net gain and improve connectivity between, and access to, green spaces and functional habitats.","· Will it conserve and enhance natural or semi natural habitats including internationally, nationally and locally designated wildlife sites, or create new wildlife habitats, and contribute to the creation of a network of habitats and green infrastructure in the District?\n· Will it protect BAP or protected species and contribute to the delivery of new, or safeguard existing BAP priority species and habitats?\n· Will it protect sites of geological importance?","N/A","N/A","N/A","N/A","N/A","Neutral","The policy neither supports nor detracts from the achievement of the SA objective. Therefore a neutral effect is predicted.","No"]
["S02 Housing\nTo ensure everyone has access to sustainable housing, which is affordable, and meets the needs of all residents including the elderly and other vulnerable groups and will support the vitality of existing communities and settlements. ","· Will it reduce the number of households waiting for accommodation or accepted as homeless?\n· Will it increase the number and mix of housing? \n· Will it improve the suitability of new homes for older and disabled people?\n· Will it provide affordable housing for those unable to access market housing?\n· Will it meet the needs of the travelling community and show people?\n· Will it secure infrastructure or community facilities?","N/A","N/A","N/A","N/A","N/A","Neutral","The policy neither supports nor detracts from the achievement of the SA objective. Therefore a neutral effect is predicted.","No"]
["S03 Accessibility and Health\nTo improve local accessibility to healthcare, education, employment, retail facilities and recreational resources (including open spaces and sports facilities) and enhance wellbeing, promoting healthy and sustainable lifestyles.","· Will it promote healthy lifestyles?\n· Will it deliver new, or contribute to the expansion or improvement of existing open spaces, green infrastructure, schools or healthcare facilities within reasonable walking distance?\n· Will it deliver growth within reasonable walking distance to a planned or existing major employment area (5ha +) or town centre?\n· Will it improve opportunities for active travel including walking and cycling?\n· Will it deliver services or facilities on-site or elsewhere within the District? ","Direct","Medium","Medium(10yrs)","District-wide","Permeant/Reversible","Minor Positive","Policy S6 will support the development of public transport and active travel links to local services, healthcare, employment and leisure, thus active lifestyles could be supported by the implementation of this policy. ","Yes"]
["S04 Quality of Life\nTo create safe and attractive places which contribute towards quality of life and community cohesion.","· Will it contribute towards reducing crime or fear of crime?\n· Will it provide attractive places which provide opportunities for communities to mix and meet?","N/A","N/A","N/A","N/A","N/A","Neutral","The policy neither supports nor detracts from the achievement of the SA objective. Therefore a neutral effect is predicted.","No"]
["S05 Inequalities\nEnsure all residents have equitable access to employment, education, community services and facilities irrespective of race, religion, sex, age, sexual orientation, disability, gender reassignment, marriage and civil partnership or pregnancy/maternity.","· Ensure the option / policy does not have an adverse/ discriminatory impact on protected characteristics/ equality groups?\n· Will it narrow the inequality gap between the richest and poorest in the District?\n· Will it reduce inequalities associated with deprivation across the District?","N/A","N/A","N/A","N/A","N/A","Neutral","The policy neither supports nor detracts from the achievement of the SA objective. Therefore a neutral effect is predicted.","No"]
["S06 Economy\nTo deliver growth in key employment sectors and support the creation of new and retention of existing businesses in urban and rural areas.","· Will it encourage the creation of new businesses and existing businesses to grow?\n· Will it encourage economic diversification?\n· Will it help support and encourage the growth of the local economy (including in rural areas)?\n· Will it support the enhancement of the District’s tourism and cultural offer?","N/A","N/A","N/A","N/A","N/A","Neutral","The policy neither supports nor detracts from the achievement of the SA objective. Therefore a neutral effect is predicted.","No"]
["S07 Employment\nTo create greater employment opportunities and higher value jobs across the whole District","· Will it help to improve skills levels and access to training within the District?\n· Will it reduce unemployment rates overall and reduce disparities which exist across different parts of the District?","N/A","N/A","N/A","N/A","N/A","Neutral","The policy neither supports nor detracts from the achievement of the SA objective. Therefore a neutral effect is predicted.","No"]
["S08 Infrastructure\nTo deliver improved infrastructure to support growth and economic competitiveness of urban and rural businesses and communities.","· Will it minimise the impact of traffic congestion on the strategic and local road network through the delivery of new or enhanced transport infrastructure?\n· Will it provide opportunities to access key services, including doctor’s surgeries, education facilities, employment and town, local or village centres by means other than car?\n· Will it make the best use of other infrastructure which serves new development?","Direct","Medium","Medium/Long","District-wide","Permeant/Reversible","Significant Positive","Policy S6 will work directly to protect existing and develop new active and public transport links. It also sets out a need for mixed use development to reduce all journey lengths. This works directly towards the objectives of SO8, hence a potential significant positive effect has been identified. ","Yes"]
["S09 Sustainable Travel\nTo promote sustainable travel habits including walking, cycling and public transport (bus and rail) usage.  ","· Will it reduce journey lengths and times? \n· Will it maximise opportunities for walking and cycling?\n· Will it maximise opportunities to access public transport provision?","Direct","Medium","Medium/Long","District-wide","Permeant/Reversible","Significant Positive","Policy S6 will work directly to protect existing and develop new active and public transport links. It also sets out a need for mixed use development to reduce all journey lengths. This works directly towards the objectives of SO8, hence a potential significant positive effect has been identified. ","Yes"]
["S010 Town and Village Centres\nTo ensure that town and village centres are vibrant and viable.","· Will it improve existing shopping facilities within town and village centres? \n· Will it help safeguard existing town and village centres?","N/A","N/A","N/A","N/A","N/A","Neutral","The policy neither supports nor detracts from the achievement of the SA objective. Therefore a neutral effect is predicted.","No"]
["S011 Resources\nTo minimise waste and ensure the sustainable use and protection of natural resources including greenfield land, soil and minerals resources.  ","· Will it enhance opportunities for increased levels of recycling in the District?\n· Will it improve or remediate contaminated land or reuse previously developed land which has not been restored?\n· Will it protect Best and Most Versatile (BMV) Agricultural Land?\n· Will it avoid the sterilisation of minerals resources?","N/A","N/A","N/A","N/A","N/A","Neutral","The policy neither supports nor detracts from the achievement of the SA objective. Therefore a neutral effect is predicted.","No"]
["S012 Pollution\nTo minimise water, air, light and noise pollution and ensure that future growth does not lead to the further deterioration of environmental conditions.","· Will it contribute to improvements in water quality in the District?\n· Will it avoid increasing noise levels locally or introducing incompatible uses into an already noisy location?\n· Will it avoid deterioration in air quality within the District?\n· Will it reduce light pollution on sensitive receptors by keeping external lighting to the minimum required for safety and security?","Indirect","Medium","Medium(10yrs)","District-wide","Permeant/Reversible","Minor Positive","The implementation of Policy S6 could indirectly aid in avoiding air pollution within the District, as active and public transport modes will be encouraged. This could reduce the use of private cars, thus avoiding the emission of air pollutants.","Yes"]
["S013 Contributions to Climate Change \nTo reduce the District’s contribution towards the emission of climate change gases.","· Will it provide opportunities to access local services and facilities by public transport walking or cycling?\n· Will it support the delivery of renewable energy capacity (including small scale or community energy projects)?\n· Will it support the shift toward usage of electric and ultralow emissions vehicles? ","Direct","Medium","Medium(10yrs)","District-wide","Permeant/Reversible","Minor Positive","Policy S6 will support the development of public transport and active travel links to local services, employment and leisure, thus total emissions from the District could be lowered. Therefore, a minor positive effect has been identified. ","No"]
["S014 Adaptation to Climate Change \nTo manage the effects of climate change including flood risk, reduced water availability and overheating.","· Will it minimise flood risk?\n· Will it include provision of sustainable urban drainage which mimic natural drainage patterns?\n· Will it contribute towards sustainable water use?","N/A","N/A","N/A","N/A","N/A","Neutral","The policy neither supports nor detracts from the achievement of the SA objective. Therefore a neutral effect is predicted.","No"]
["S015 Townscape and Historic Environment\nTo conserve and enhance the townscape, historic environment, heritage assets (including known and unknown archaeological sites) and their settings. ","· Will it protect and enhance the condition and setting of historic, cultural, architectural and archaeological features in South Derbyshire?\n· Does it improve the quality of the built environment, and respect and protect existing townscape character?\n· Will it improve access to, and understanding of, the District’s historic and cultural assets for enjoyment and educational purposes?","N/A","N/A","N/A","N/A","N/A","Neutral","The policy neither supports nor detracts from the achievement of the SA objective. Therefore a neutral effect is predicted.","No"]
["S016 Landscape\nTo conserve and enhance the District’s landscape character.","· Does it respect and protect existing landscape character?\n· Will it protect sensitive landscapes including those within the World Heritage Site or its buffer or Special Landscape Areas?\n· Will it safeguard landscape features such as hedgerows?\n· Will it avoid intrusion into the greenbelt?","N/A","N/A","N/A","N/A","N/A","Neutral","The policy neither supports nor detracts from the achievement of the SA objective. Therefore a neutral effect is predicted.","No"]

{"sheet":"STRA1_Infinity_Garden_Village","index":10,"n_rows":29,"n_cols":22,"rows_kept":29,"cut":false,"hidden":false,"merged":[[11,0,11,2],[11,3,11,6],[11,7,11,17]]}
["Site Name",null,"STRA1_Infinity_Garden_Village"]
["Site Address",null,"Infinity Garden Village"]
["Town/Locality",null,"Barrow Upon Trent; Stenson Fields; Twyford and Stenson and Swarkestone"]
["Est Housing Yield/Employment Space",null,"2000 dwellings, 70ha employment land"]
["Site Area (ha)",null,205]
["Site Description",null,"The development of this site will also provide:\n- Provision of Gypsy and Traveller pitches\n- Primary vehicle accesses via a new junction on the A50 and junctions via Infinity Park Way\n- A new local centre (including retail facilities)\n- A two form entry primary school\n- A secondary school (including community sport facilities)\n- Recreation facilities"]
["Greenfield/Brownfield",null,"Greenfield"]
["Assumptions Made",null,"This allocation will be implemented alongside the policies set out in the South Derbyshire Local Plan Part 1."]
["Policy Name ",null,"Policy STRA1: Infinity Garden Village"]
["Policy Description",null,"The Strategic Allocation identified at Infinity Garden Village is located within the Southern Derby Area. The mixed-use allocation will further developed the Southern Derby Area by providing approximately 2000 additional dwellings and 70 ha of employment land. Development of the site offers the opportunity to deliver new infrastructure due to its critical mass. "]
[]
["SA Framework",null,null,"GIS Inputs",null,null,null,"SA Policy Assessment"]
["SA objective","SA","SA sub-objective","GIS Data Available?","R","A","G","Direct/\nIndirect","Magnitude","Duration","Spatial Extent","Permanence/ Reversibility","Significance","Description of potential effects","Potential for cumulative effects? ","Policy Mitigation","Mitigation Recommendations","Enhancement Recommendation","SDDC Comments","review comments (hide)",null,"Link "]
["S01 Biodiversity\nTo safeguard and enhance biodiversity (including BAP habitats and species) and geodiversity through biodiversity net gain and improve connectivity between, and access to, green spaces and functional habitats.","S01","· Will it conserve and enhance natural or semi natural habitats including internationally, nationally and locally designated wildlife sites, or create new wildlife habitats, and contribute to the creation of a network of habitats and green infrastructure in the District?\n· Will it protect BAP or protected species and contribute to the delivery of new, or safeguard existing BAP priority species and habitats?\n· Will it protect sites of geological importance?","Yes",{"$f":"COUNTIFS(INDIRECT(\"RAG!$C$\"&$V14&\":$AX$\"&$V14),E$13,RAG!$C$2:$AX$2,$B14)","v":3},{"$f":"COUNTIFS(INDIRECT(\"RAG!$C$\"&$V14&\":$AX$\"&$V14),F$13,RAG!$C$2:$AX$2,$B14)","v":0},{"$f":"COUNTIFS(INDIRECT(\"RAG!$C$\"&$V14&\":$AX$\"&$V14),G$13,RAG!$C$2:$AX$2,$B14)","v":4},"Direct","Medium","Medium/Long","Localised","Permenant/Reversible","Significant Positive","The site contains a local wildlife site, a LIG, and contains a number of TPOs. Development may subsequently negatively impact on biodiversity. However, mitigation will be provided by Policy BNE3 Biodiversity and Policy STRA1, which requires a minimum on site biodiversity net gain of 10%, and management of key biodiversity assets. The policy also makes provision for a network of green infrastructure, which will help maintain and create new habitat/wildlife corridors within the District and linking into Derby City. Therefore, an overall significant positive effect is predicted.","No","Policy BNE3 Biodiversity requires developments to  avoid any adverse impact on sites of nature conservation value, as well as deliver a minimum of 10% BNG, in line with national policy requirements.",null,null,null,"edited the enhancement. Copy over to the other sites assessed?",null,{"$f":"MATCH($C$1,RAG!$B$1:$B$8, 0)","v":5}]
["S02 Housing\nTo ensure everyone has access to sustainable housing, which is affordable, and meets the needs of all residents including the elderly and other vulnerable groups and will support the vitality of existing communities and settlements. ","S02","· Will it reduce the number of households waiting for accommodation or accepted as homeless?\n· Will it increase the number and mix of housing? \n· Will it improve the suitability of new homes for older and disabled people?\n· Will it provide affordable housing for those unable to access market housing?\n· Will it meet the needs of the travelling community and show people?\n· Will it secure infrastructure or community facilities?","Yes",{"$f":"COUNTIFS(INDIRECT(\"RAG!$C$\"&$V15&\":$AX$\"&$V15),E$13,RAG!$C$2:$AX$2,$B15)","v":0},{"$f":"COUNTIFS(INDIRECT(\"RAG!$C$\"&$V15&\":$AX$\"&$V15),F$13,RAG!$C$2:$AX$2,$B15)","v":0},{"$f":"COUNTIFS(INDIRECT(\"RAG!$C$\"&$V15&\":$AX$\"&$V15),G$13,RAG!$C$2:$AX$2,$B15)","v":1},"Direct","Medium","Medium/Long","Localised","Permanent/Irreversible","Significant Positive","The site will provide up to 2000 dwellings. It is assumed that this allocation works alongside Policy H20 Affordable Housing, which requires developments of 10 or more dwellings to provide 40% of the gross number of dwellings in the form of  'affordable housing', and alongside Policy H19 Housing Balance and Custom/Self-build, which requires developments to provide a mixed size and tenure of dwellings. Policy STRA1 also highlights that provision will be made for Gypsy and Traveller pitches, and that a retirement village may be possible. This policy subsequently supports a range of residents across South Derbyshire. Therefore, a potential significant positive effect is identified.","Yes",null,null,null,null,"edited the assessment 'the site will provide' changed from 'the site proposes to provide'. The site won't do that. The site proponents will.\n\nPotential positive CE form housing provision with the rest of the housing provision in the plan? Ight have an overall positive CE on housing availability and affordability in the district.",null,{"$f":"MATCH($C$1,RAG!$B$1:$B$8, 0)","v":5}]
["S03 Accessibility and Health\nTo improve local accessibility to healthcare, education, employment, retail facilities and recreational resources (including open spaces and sports facilities) and enhance wellbeing, promoting healthy and sustainable lifestyles.","S03","· Will it promote healthy lifestyles?\n· Will it deliver new, or contribute to the expansion or improvement of existing open spaces, green infrastructure, schools or healthcare facilities within reasonable walking distance?\n· Will it deliver growth within reasonable walking distance to a planned or existing major employment area (5ha +) or town centre?\n· Will it improve opportunities for active travel including walking and cycling?\n· Will it deliver services or facilities on-site or elsewhere within the District? ","Yes",{"$f":"COUNTIFS(INDIRECT(\"RAG!$C$\"&$V16&\":$AX$\"&$V16),E$13,RAG!$C$2:$AX$2,$B16)","v":1},{"$f":"COUNTIFS(INDIRECT(\"RAG!$C$\"&$V16&\":$AX$\"&$V16),F$13,RAG!$C$2:$AX$2,$B16)","v":0},{"$f":"COUNTIFS(INDIRECT(\"RAG!$C$\"&$V16&\":$AX$\"&$V16),G$13,RAG!$C$2:$AX$2,$B16)","v":7},"Direct","Medium","Medium/Long","Localised","Permanent/Irreversible","Significant Positive","The site has good access to a primary school which currently has capacity, and a GP surgery. Although the site has poor access to an existing secondary school and employment site, Policy STRA1 highlights that the site will provide a new secondary school and employment space, as well as a new primary school, retail and community facilities, and open space. Policy STRA1 also highlights that the site will provide support for the refurbishment of the existing Sinfin Health Centre (which will serve the site), as well as contribute towards addressing deficiencies of sport and recreation facilities. The loss of any existing sports or recreation facilities as a result of the development should be amended via a replacement. Finally, Policy STRA1 provisions for a green infrastructure network that will allow access to local destinations, including schools, shops, local services, employment centres and recreation points via active travel methods. It can therefore be assumed that infrastructure to support growth will be delivered alongside development, in line with Policy INF1 and Policy STRA1 Infinity Garden Village Mixed Use Allocation. Therefore, a potential significant positive effect is identified.","Yes",null,null,null,null,"edited assessment text",null,{"$f":"MATCH($C$1,RAG!$B$1:$B$8, 0)","v":5}]
["S04 Quality of Life\nTo create safe and attractive places which contribute towards quality of life and community cohesion.","S04","· Will it contribute towards reducing crime or fear of crime?\n· Will it provide attractive places which provide opportunities for communities to mix and meet?","No",null,null,null,"N/A","N/A","N/A","N/A","N/A","Neutral","It is assumed that this allocation will be delivered in accordance with Policy BNE1 Design Excellence, which requires developments to be designed to minimise opportunities for crime and anti-social behaviour, and encourage diversity and social interaction. Therefore, a neutral effect is identified.","No","Policy BNE1 Design Excellence requires developments to be designed to minimise opportunities for crime and anti-social behaviour, and encourage diversity and social interaction.",null,null,null,"edited assessment 'will be delivered in accordance with'. I don't think the struckthrough text is needed.",null,{"$f":"MATCH($C$1,RAG!$B$1:$B$8, 0)","v":5}]
["S05 Inequalities\nEnsure all residents have equitable access to employment, education, community services and facilities irrespective of race, religion, sex, age, sexual orientation, disability, gender reassignment, marriage and civil partnership or pregnancy/maternity.","S05","· Ensure the option / policy does not have an adverse/ discriminatory impact on protected characteristics/ equality groups?\n· Will it narrow the inequality gap between the richest and poorest in the District?\n· Will it reduce inequalities associated with deprivation across the District?","Yes",{"$f":"COUNTIFS(INDIRECT(\"RAG!$C$\"&$V18&\":$AX$\"&$V18),E$13,RAG!$C$2:$AX$2,$B18)","v":0},{"$f":"COUNTIFS(INDIRECT(\"RAG!$C$\"&$V18&\":$AX$\"&$V18),F$13,RAG!$C$2:$AX$2,$B18)","v":0},{"$f":"COUNTIFS(INDIRECT(\"RAG!$C$\"&$V18&\":$AX$\"&$V18),G$13,RAG!$C$2:$AX$2,$B18)","v":1},"N/A","N/A","N/A","N/A","N/A","Neutral","This site is within a low IMD deprivation area. However, development of this site alone will not necessarily reduce the gap between the richest and poorest in the District.","No",null,null,null,null,null,null,{"$f":"MATCH($C$1,RAG!$B$1:$B$8, 0)","v":5}]
["S06 Economy\nTo deliver growth in key employment sectors and support the creation of new and retention of existing businesses in urban and rural areas.","S06","· Will it encourage the creation of new businesses and existing businesses to grow?\n· Will it encourage economic diversification?\n· Will it help support and encourage the growth of the local economy (including in rural areas)?\n· Will it support the enhancement of the District’s tourism and cultural offer?","Yes",{"$f":"COUNTIFS(INDIRECT(\"RAG!$C$\"&$V19&\":$AX$\"&$V19),E$13,RAG!$C$2:$AX$2,$B19)","v":0},{"$f":"COUNTIFS(INDIRECT(\"RAG!$C$\"&$V19&\":$AX$\"&$V19),F$13,RAG!$C$2:$AX$2,$B19)","v":0},{"$f":"COUNTIFS(INDIRECT(\"RAG!$C$\"&$V19&\":$AX$\"&$V19),G$13,RAG!$C$2:$AX$2,$B19)","v":2},"Direct","Medium","Medium/Long","District-wide","Permanent/Irreversible","Significant Positive","The site will support economic growth by providing 70ha of new employment floorspace, alongside retail facilities. Additionally,  new residents of the development could support existing businesses within Findern local centre and Derby City. Therefore, a potential significant positive effect is identified.","Yes",null,null,null,null,"I think the site policy does say that retail will be provided? Delete the enhancement measure? Minor edits to assessment text and I don't think the struckthrough text is needed.",null,{"$f":"MATCH($C$1,RAG!$B$1:$B$8, 0)","v":5}]
["S07 Employment\nTo create greater employment opportunities and higher value jobs across the whole District","S07","· Will it help to improve skills levels and access to training within the District?\n· Will it reduce unemployment rates overall and reduce disparities which exist across different parts of the District?","Yes",{"$f":"COUNTIFS(INDIRECT(\"RAG!$C$\"&$V20&\":$AX$\"&$V20),E$13,RAG!$C$2:$AX$2,$B20)","v":0},{"$f":"COUNTIFS(INDIRECT(\"RAG!$C$\"&$V20&\":$AX$\"&$V20),F$13,RAG!$C$2:$AX$2,$B20)","v":0},{"$f":"COUNTIFS(INDIRECT(\"RAG!$C$\"&$V20&\":$AX$\"&$V20),G$13,RAG!$C$2:$AX$2,$B20)","v":2},"Direct","Medium","Medium/Long","District-wide","Permanent/Irreversible","Significant Positive","The site will support the provision of employment, by creating permanent and temporary jobs during construction and operation. For example, it is estimated that 530 jobs could be supported over the 20-year construction phase. The site is also located around 3km from a large employment site (the Toyota manufacturing site), and will subsequently be located around 2km from the East Midlands Intermodal Park once built. As a result, there will be a large number of employment opportunities both on- and off-site nearby for residents. Therefore, a potential significant positive effect is identified.","Yes",null,null,null,null,"edited assessment text slightly. Added word 'nearby' in last sentence. ",null,{"$f":"MATCH($C$1,RAG!$B$1:$B$8, 0)","v":5}]
["S08 Infrastructure\nTo deliver improved infrastructure to support growth and economic competitiveness of urban and rural businesses and communities.","S08","· Will it minimise the impact of traffic congestion on the strategic and local road network through the delivery of new or enhanced transport infrastructure?\n· Will it provide opportunities to access key services, including doctor’s surgeries, education facilities, employment and town, local or village centres by means other than car?\n· Will it make the best use of other infrastructure which serves new development?","No",{"$f":"COUNTIFS(INDIRECT(\"RAG!$C$\"&$V21&\":$AX$\"&$V21),E$13,RAG!$C$2:$AX$2,$B21)","v":1},{"$f":"COUNTIFS(INDIRECT(\"RAG!$C$\"&$V21&\":$AX$\"&$V21),F$13,RAG!$C$2:$AX$2,$B21)","v":0},{"$f":"COUNTIFS(INDIRECT(\"RAG!$C$\"&$V21&\":$AX$\"&$V21),G$13,RAG!$C$2:$AX$2,$B21)","v":4},"Direct","Medium","Medium/Long","District-wide","Permanent/Irreversible","Significant Positive","The site has good access to an existing primary school which currently has capacity, and a GP surgery. Although the site has poor access to an existing secondary school and employment site, the Policy STRA1 requires delivery of both, as well as a new primary school, retail and community facilities, and open space. The site will also provide support for the refurbishment of the existing Sinfin Health Centre, which will serve the site. New access points to the site, such as provision for a new junction on the A50, will be developed in order to ease road traffic pressure, and Policy STRA1 will require developers to contribute proportionately to ensure that the cost of providing transport infrastructure and services needed to support the development is met. Finally, Policy STRA1 states that no developments shall be occupied until the necessary infrastructure has been provided. Therefore, a potential significant positive effect has been identified. It can therefore be assumed that infrastructure to support growth will be delivered alongside development, in line with Policy INF1 and Policy STRA1 Infinity Garden Village Mixed Use Allocation. Therefore, a potential significant positive effect is identified.","No",null,null,null,null,"minor edits",null,{"$f":"MATCH($C$1,RAG!$B$1:$B$8, 0)","v":5}]
["S09 Sustainable Travel\nTo promote sustainable travel habits including walking, cycling and public transport (bus and rail) usage.  ","S09","· Will it reduce journey lengths and times? \n· Will it maximise opportunities for walking and cycling?\n· Will it maximise opportunities to access public transport provision?","Yes",{"$f":"COUNTIFS(INDIRECT(\"RAG!$C$\"&$V22&\":$AX$\"&$V22),E$13,RAG!$C$2:$AX$2,$B22)","v":1},{"$f":"COUNTIFS(INDIRECT(\"RAG!$C$\"&$V22&\":$AX$\"&$V22),F$13,RAG!$C$2:$AX$2,$B22)","v":0},{"$f":"COUNTIFS(INDIRECT(\"RAG!$C$\"&$V22&\":$AX$\"&$V22),G$13,RAG!$C$2:$AX$2,$B22)","v":2},"Direct","Medium","Medium/Long","Localised","Permanent/Irreversible","Minor Positive","The site currently lies within an acceptable distance to an existing bus stop, and to existing cycle routes. The site is more than 800m to a train station however. Policy INF1 highlights that new development will only be permitted if necessary infrastructure (both on- and off-site) is already in place; this includes the provision and improvement of transport infrastructure. Policy STRA1 will require developers to contribute proportionately to ensure that the cost of providing transport infrastructure and services needed to support the development is met. Policy STRA1 includes the provision of a green infrastructure network that will allow access to local destinations, including schools, shops, local services, employment centres and recreation points via active travel methods, as well as small developments to support these routes (e.g. changing rooms and cycle storage). Policy STRA1 also requires the development of bus routes and bus stops throughout the site, and indicates that the majority of dwellings should be no more than 400m from a bus stop/route. These policies should improve travel across the site, as well as into the rest of South Derbyshire and Derby City. Therefore, a potential minor positive effect is identified.","No",null,null,null,null,"I think the enhancement measure needs editing. I think the policy for the site requires new bus stops throughout the site.",null,{"$f":"MATCH($C$1,RAG!$B$1:$B$8, 0)","v":5}]
["S010 Town and Village Centres\nTo ensure that town and village centres are vibrant and viable.","S010","· Will it improve existing shopping facilities within town and village centres? \n· Will it help safeguard existing town and village centres?","Yes",{"$f":"COUNTIFS(INDIRECT(\"RAG!$C$\"&$V23&\":$AX$\"&$V23),E$13,RAG!$C$2:$AX$2,$B23)","v":1},{"$f":"COUNTIFS(INDIRECT(\"RAG!$C$\"&$V23&\":$AX$\"&$V23),F$13,RAG!$C$2:$AX$2,$B23)","v":0},{"$f":"COUNTIFS(INDIRECT(\"RAG!$C$\"&$V23&\":$AX$\"&$V23),G$13,RAG!$C$2:$AX$2,$B23)","v":0},"N/A","N/A","N/A","N/A","N/A","Neutral","The site is not located within or adjacent to a town or village centre (it is located on the edge of Derby City, and around 1.5km from the village of Findern). The development of a new local centre within the site would provide local facilities for new residents, enabling some self containment. These facilities would not be designed to provide facilities for the wider area and would not therefore detract from existing town and village centres. Therefore, a neutral effect is identified.","Yes",null,"Development proposals could be accompanied by an assessment of the impact of the development on the local economy. ",null,null,null,null,{"$f":"MATCH($C$1,RAG!$B$1:$B$8, 0)","v":5}]
["S011 Resources\nTo minimise waste and ensure the sustainable use and protection of natural resources including greenfield land, soil and minerals resources.  ","S011","· Will it enhance opportunities for increased levels of recycling in the District?\n· Will it improve or remediate contaminated land or reuse previously developed land which has not been restored?\n· Will it protect Best and Most Versatile (BMV) Agricultural Land?\n· Will it avoid the sterilisation of minerals resources?","Yes",{"$f":"COUNTIFS(INDIRECT(\"RAG!$C$\"&$V24&\":$AX$\"&$V24),E$13,RAG!$C$2:$AX$2,$B24)","v":1},{"$f":"COUNTIFS(INDIRECT(\"RAG!$C$\"&$V24&\":$AX$\"&$V24),F$13,RAG!$C$2:$AX$2,$B24)","v":3},{"$f":"COUNTIFS(INDIRECT(\"RAG!$C$\"&$V24&\":$AX$\"&$V24),G$13,RAG!$C$2:$AX$2,$B24)","v":1},"Direct","High","Medium/Long","Localised","Permanent/Irreversible","Significant Negative","This site is located on grade 3 agricultural land; development will subsequently lead to the irreversible loss of greenfield land, and soils considered as the 'best and most versatile'. The site also lies partially within a sand and gravel mineral safeguarding zone and a contamination zone; development may subsequently lead to the sterilisation of mineral resources. The development of this site in isolation will likely have no influence on the levels of recycling across South Derbyshire. However, It is assumed that this allocation will be in accordance with Policy BNE1 Design Excellence, which requires developments to provide adequate space for waste storage and collection. As the loss of greenfield land/Grade 3 agricultural land cannot be mitigated, a potential significant negative effect is identified.","Yes","Policy BNE1 Design Excellence will require developments to provide adequate space for waste storage and collection.","Loss of greenfield land and Grade 3 agricultural land cannot be mitigated. A detailed agricultural land assessment should be undertaken in order to identify more accurately what the agricultural classification grade is on development sites",null,null,"minor amends to the assessment text",null,{"$f":"MATCH($C$1,RAG!$B$1:$B$8, 0)","v":5}]
["S012 Pollution\nTo minimise water, air, light and noise pollution and ensure that future growth does not lead to the further deterioration of environmental conditions.","S012","· Will it contribute to improvements in water quality in the District?\n· Will it avoid increasing noise levels locally or introducing incompatible uses into an already noisy location?\n· Will it avoid deterioration in air quality within the District?\n· Will it reduce light pollution on sensitive receptors by keeping external lighting to the minimum required for safety and security?","Yes",{"$f":"COUNTIFS(INDIRECT(\"RAG!$C$\"&$V25&\":$AX$\"&$V25),E$13,RAG!$C$2:$AX$2,$B25)","v":1},{"$f":"COUNTIFS(INDIRECT(\"RAG!$C$\"&$V25&\":$AX$\"&$V25),F$13,RAG!$C$2:$AX$2,$B25)","v":1},{"$f":"COUNTIFS(INDIRECT(\"RAG!$C$\"&$V25&\":$AX$\"&$V25),G$13,RAG!$C$2:$AX$2,$B25)","v":2},"N/A","N/A","N/A","N/A","N/A","Uncertain","The site currently experiences high noise pollution and some light pollution. It is likely that development at this scale will increase both noise and light pollution. The A50 is located adjacent to the site and could be a source of noise and air pollution. It is likely that development at this scale will increase air pollution in South Derbyshire, as well as in Derby City as residents may commute into the city for work. The site does not lie within the River Mease nutrient neutrality zone or any groundwater protection zones. Policy SD1 Amenity and Environmental Quality will require developments to consider the need for a strategic buffer in order to mitigate noise and light pollution. The development should also be required to implement noise and light mitigation measures, although it is not clear whether all potential effects can be minimised through mitigation. Therefore, an uncertain effect is identified.","Yes","Policy SD1 Amenity and Environmental Quality will require developments to consider the need for a strategic buffer in order to mitigate noise and light pollution.","A criterion should be added to the policy which requires air, noise and light pollution to be planned and mitigated prior to development. Whilst Policy SD1 could help to achieve this, explicit criteria in the policy could help to ensure the best outcome for local receptors.",null,null,"I'm not sure that we can assume there is air pollution on the site just because it's near to some A roads. It would depend on the air dispersal pattern. I've edited the text. Is there no policy in the plan about light and noise development control? \nAdded",null,{"$f":"MATCH($C$1,RAG!$B$1:$B$8, 0)","v":5}]
["S013 Contributions to Climate Change \nTo reduce the District’s contribution towards the emission of climate change gases.","S013","· Will it provide opportunities to access local services and facilities by public transport walking or cycling?\n· Will it support the delivery of renewable energy capacity (including small scale or community energy projects)?\n· Will it support the shift toward usage of electric and ultralow emissions vehicles? ","Yes",{"$f":"COUNTIFS(INDIRECT(\"RAG!$C$\"&$V26&\":$AX$\"&$V26),E$13,RAG!$C$2:$AX$2,$B26)","v":1},{"$f":"COUNTIFS(INDIRECT(\"RAG!$C$\"&$V26&\":$AX$\"&$V26),F$13,RAG!$C$2:$AX$2,$B26)","v":0},{"$f":"COUNTIFS(INDIRECT(\"RAG!$C$\"&$V26&\":$AX$\"&$V26),G$13,RAG!$C$2:$AX$2,$B26)","v":0},"N/A","N/A","N/A","N/A","N/A","Neutral","The site is not located near to an existing EV charger, however, mitigation will be provided by Policy INF2 Sustainable Transport which will require the development to include EV chargers. The location of the site (near to Derby City) may assist in the development of heat networks , providing low carbon heating for future residents. Policy STRA1 requires the development of bus routes and bus stops throughout the site, and indicates that the majority of dwellings should be no more than 400m from a bus stop/route, encouraging residents to utilise public transport. The policy also makes provision for the development of pedestrian and cycle routes across the site, that link to the wider District and Derby City via the cycle network, in order to allow residents access to local facilities/services in town/village centres via active travel methods. Small developments to support these routes (e.g. changing rooms and cycle storage) are also provisioned for. Therefore, a neutral effect is identified.","No","Policy INF2 Sustainable Transport will require  developments to make provision for EV chargers.",null,"The site should be built to low-carbon standards with high levels of energy efficiency and small scale energy generation technologies (e.g. heat source pumps, solar PV) as well as heat networks being promoted where possible.",null,"see strikethrough text. Edited enhancement measure. Is there no policy in the plan which promotes energy efficiency etc? If there isn't we might need to suggest they need one!\n\nThey do not have an energy efficiency policy- recommend to client",null,{"$f":"MATCH($C$1,RAG!$B$1:$B$8, 0)","v":5}]
["S014 Adaptation to Climate Change \nTo manage the effects of climate change including flood risk, reduced water availability and overheating.","S014","· Will it minimise flood risk?\n· Will it include provision of sustainable urban drainage which mimic natural drainage patterns?\n· Will it contribute towards sustainable water use?","Yes",{"$f":"COUNTIFS(INDIRECT(\"RAG!$C$\"&$V27&\":$AX$\"&$V27),E$13,RAG!$C$2:$AX$2,$B27)","v":1},{"$f":"COUNTIFS(INDIRECT(\"RAG!$C$\"&$V27&\":$AX$\"&$V27),F$13,RAG!$C$2:$AX$2,$B27)","v":1},{"$f":"COUNTIFS(INDIRECT(\"RAG!$C$\"&$V27&\":$AX$\"&$V27),G$13,RAG!$C$2:$AX$2,$B27)","v":0},"Direct","Medium","Medium/Long","Localised","Permanent/Irreversible","Minor Negative","The site lies partly within Flood Zone 3 and within 1000m of a watercourse, which may place development on the site at risk of flooding. However, mitigation will be provided by Policy SD2 Flood Risk and Policy STRA1 which will require the strategic site to ensure that vulnerable development is wholly located within Flood Zone 1, as well as incorporate flood risk mitigation (SuDs). Although this won't eradicate flood risk, it will reduce the likelihood of a flood risk event taking place. Therefore, as the site is still at risk of flood events following policy mitigation, a potential minor negative effect is identified.","No","Policy SD2 Flood Risk will require developments to incorporate flood risk mitigation, such as SuDs.",null,null,null,null,null,{"$f":"MATCH($C$1,RAG!$B$1:$B$8, 0)","v":5}]
["S015 Townscape and Historic Environment\nTo conserve and enhance the townscape, historic environment, heritage assets (including known and unknown archaeological sites) and their settings. ","S015","· Will it protect and enhance the condition and setting of historic, cultural, architectural and archaeological features in South Derbyshire?\n· Does it improve the quality of the built environment, and respect and protect existing townscape character?\n· Will it improve access to, and understanding of, the District’s historic and cultural assets for enjoyment and educational purposes?","Yes",{"$f":"COUNTIFS(INDIRECT(\"RAG!$C$\"&$V28&\":$AX$\"&$V28),E$13,RAG!$C$2:$AX$2,$B28)","v":0},{"$f":"COUNTIFS(INDIRECT(\"RAG!$C$\"&$V28&\":$AX$\"&$V28),F$13,RAG!$C$2:$AX$2,$B28)","v":0},{"$f":"COUNTIFS(INDIRECT(\"RAG!$C$\"&$V28&\":$AX$\"&$V28),G$13,RAG!$C$2:$AX$2,$B28)","v":4},"N/A","N/A","N/A","N/A","N/A","Neutral","The site is not within close proximity to any designated heritage assets. Policy STRA1 also requires the site to respect the setting of nearby heritage assets. Therefore, a neutral effect is identified.","No",null,null,null,null,"I think this should be neutral. It doesn't address any of the sub-objectives and won't result in an overall positive outcome for heritage assets. ",null,{"$f":"MATCH($C$1,RAG!$B$1:$B$8, 0)","v":5}]
["S016 Landscape\nTo conserve and enhance the District’s landscape character.","S016","· Does it respect and protect existing landscape character?\n· Will it protect sensitive landscapes including those within the World Heritage Site or its buffer or Special Landscape Areas?\n· Will it safeguard landscape features such as hedgerows?\n· Will it avoid intrusion into the greenbelt?","Yes",{"$f":"COUNTIFS(INDIRECT(\"RAG!$C$\"&$V29&\":$AX$\"&$V29),E$13,RAG!$C$2:$AX$2,$B29)","v":0},{"$f":"COUNTIFS(INDIRECT(\"RAG!$C$\"&$V29&\":$AX$\"&$V29),F$13,RAG!$C$2:$AX$2,$B29)","v":0},{"$f":"COUNTIFS(INDIRECT(\"RAG!$C$\"&$V29&\":$AX$\"&$V29),G$13,RAG!$C$2:$AX$2,$B29)","v":2},"Direct","Medium","Medium/Long","Localised","Permanent/Irreversible","Minor Negative","The site does not lie within the Green Belt or any areas of multiple environmental sensitivity. Policy STRA1 Infinity Garden Village Mixed Use Allocation requires the development of green infrastructure, including the protection and enhancement of visual linkages from the eastern and western parts of the site and the continuation of green wedges from Derby City. This policy mitigation should subsequently avoid the 'trapping in' of current green wedges. Potential negative impacts to landscape will be mitigated by Policy BNE4 which requires developments to conserve local distinctiveness, retain landscape features (e.g. hedgerows) and offset any damage to landscape features.  The development will still lead to the loss of greenfield land however, which could cause alterations to the landscape.  Therefore, a potential minor negative effect is identified.","No","Policy BNE4 Landscape Character and Local Distinctiveness will require developments to conserve local distinctiveness, retain landscape features (e.g. hedgerows) and offset any damage to landscape features.","Loss of greenfield land cannot be mitigated.",null,null,"I think this should be minor positive at most. It's still going to result in the loss of greenfield land and change the landscape character irreversibly. It might even be neutral. This may need amending across all four site assessments.","I think we need to consider making this minor negative or uncertain, learning from the Amber examination. We make the point that it's developing greenfield land and this will have an impact on landscape. It's a large site.",{"$f":"MATCH($C$1,RAG!$B$1:$B$8, 0)","v":5}]

{"sheet":"STRA2_Land_South_Mickleover","index":11,"n_rows":29,"n_cols":22,"rows_kept":29,"cut":false,"hidden":false,"merged":[[11,0,11,2],[11,3,11,6],[11,7,11,17]]}
["Site Name",null,"STRA2_Land_South_Mickleover"]
["Site Address",null,"Land South of Mickleover"]
["Town/Locality",null,"Burnaston"]
["Est Housing Yield/Employment Space",null,"2500 homes"]
["Site Area (ha)",null,200]
["Site Description",null,"The site suggests the provision of:\n- Provision of Gypsy and Traveller pitches\n- A new local centre (including retail facilities)\n- A primary school\n- A secondary school\n- A sports hub\n- Financial contributions towards a secondary school and healthcare\n"]
["Greenfield/Brownfield",null,"Greenfield"]
["Assumptions Made",null,"This allocation will be implemented alongside the policies set out in the South Derbyshire Local Plan Part 1."]
["Policy Name ",null,"Policy STRA2: Land South of Mickleover"]
["Policy Description",null,"The Strategic Allocation identified as Land South of Mickleover lies adjacent to the administrative boundary of Derby City. The site is near Mickleover within Derby City and development of the redline boundary of the principal site adjoins the existing housing development within South Derbyshire at the former Pastures Hospital site. The site can deliver significant green infrastructure including the provision of a Country Park which will aim to achieve Green Flag status. Housing and built infrastructure development will be restricted to the northeast, east and south of the principal site and the Country Park will predominantly be located within the north and west of the site to preserve the setting of the pastures hospital site and the associated heritage assets. "]
[]
["SA Framework",null,null,"GIS Inputs",null,null,null,"SA Policy Assessment"]
["SA objective","SA","SA sub-objective","GIS Data Available?","R","A","G","Direct/\nIndirect","Magnitude","Duration","Spatial Extent","Permanence/ Reversibility","Significance","Description of potential effects","Potential for cumulative effects? ","Policy Mitigation","Mitigation Recommendations","Enhancement Recommendation","SDDC Comments","review comments",null,"Link "]
["S01 Biodiversity\nTo safeguard and enhance biodiversity (including BAP habitats and species) and geodiversity through biodiversity net gain and improve connectivity between, and access to, green spaces and functional habitats.","S01","· Will it conserve and enhance natural or semi natural habitats including internationally, nationally and locally designated wildlife sites, or create new wildlife habitats, and contribute to the creation of a network of habitats and green infrastructure in the District?\n· Will it protect BAP or protected species and contribute to the delivery of new, or safeguard existing BAP priority species and habitats?\n· Will it protect sites of geological importance?","Yes",{"$f":"COUNTIFS(INDIRECT(\"RAG!$C$\"&$V14&\":$AX$\"&$V14),E$13,RAG!$C$2:$AX$2,$B14)","v":1},{"$f":"COUNTIFS(INDIRECT(\"RAG!$C$\"&$V14&\":$AX$\"&$V14),F$13,RAG!$C$2:$AX$2,$B14)","v":1},{"$f":"COUNTIFS(INDIRECT(\"RAG!$C$\"&$V14&\":$AX$\"&$V14),G$13,RAG!$C$2:$AX$2,$B14)","v":5},"Direct","Medium","Medium/Long","Localised","Permenant/Reversible","Significant Positive","There are no internationally designated/BAP species or habitats located on or near to this site, nor are there any locally designated wildlife sites nearby. The site is within 10m of a number of TPOs. However as this allocation works alongside Policy BNE3 Biodiversity and Policy STRA2, which requires development to avoid any adverse impact on sites of nature conservation value, as well as deliver a minimum of 10% BNG, it is very unlikely that these will be damaged or removed during development. Policy STRA2 also requires the site to actively manage key biodiversity assets by setting out the habitats within the site to be protected or enhanced, opportunities for new habitat creation or improvements in connectivity and whether any off-site provision is likely to be necessary. Policy STRA2 also makes provision for a network of green infrastructure, including the provision of a green buffer and a Country Park, which will help create new habitat/wildlife corridors across the District. Therefore, a potential  significant positive effect is identified.","No",null,null,null,null,"edited the enhancement. Copy over to the other sites assessed?\n\nGreen wedges only relevant to this assessment",null,{"$f":"MATCH($C$1,RAG!$B$1:$B$8, 0)","v":6}]
["S02 Housing\nTo ensure everyone has access to sustainable housing, which is affordable, and meets the needs of all residents including the elderly and other vulnerable groups and will support the vitality of existing communities and settlements. ","S02","· Will it reduce the number of households waiting for accommodation or accepted as homeless?\n· Will it increase the number and mix of housing? \n· Will it improve the suitability of new homes for older and disabled people?\n· Will it provide affordable housing for those unable to access market housing?\n· Will it meet the needs of the travelling community and show people?\n· Will it secure infrastructure or community facilities?","Yes",{"$f":"COUNTIFS(INDIRECT(\"RAG!$C$\"&$V15&\":$AX$\"&$V15),E$13,RAG!$C$2:$AX$2,$B15)","v":0},{"$f":"COUNTIFS(INDIRECT(\"RAG!$C$\"&$V15&\":$AX$\"&$V15),F$13,RAG!$C$2:$AX$2,$B15)","v":0},{"$f":"COUNTIFS(INDIRECT(\"RAG!$C$\"&$V15&\":$AX$\"&$V15),G$13,RAG!$C$2:$AX$2,$B15)","v":1},"Direct","Medium","Medium/Long","Localised","Permanent/Irreversible","Significant Positive","The site will provide up to 2500 dwellings. It is assumed that this allocation works will be delivered in accordance with Policy H20 Affordable Housing, which requires developments within 10 or more dwellings to provide 40% of the gross number of dwellings in the form of  'affordable housing', and alongside Policy H19 Housing Balance and Custom/Self-build, which requires developments to provide a mixed size and tenure of dwellings. Policy STRA2: Land South of Mickleover also highlights that provision will be made for Gypsy and Traveller pitches, and that a retirement village may be possible. This policy subsequently supports a range of residents across South Derbyshire. Therefore, a potential significant positive effect is identified.","No",null,null,null,null,"minor edits",null,{"$f":"MATCH($C$1,RAG!$B$1:$B$8, 0)","v":6}]
["S03 Accessibility and Health\nTo improve local accessibility to healthcare, education, employment, retail facilities and recreational resources (including open spaces and sports facilities) and enhance wellbeing, promoting healthy and sustainable lifestyles.","S03","· Will it promote healthy lifestyles?\n· Will it deliver new, or contribute to the expansion or improvement of existing open spaces, green infrastructure, schools or healthcare facilities within reasonable walking distance?\n· Will it deliver growth within reasonable walking distance to a planned or existing major employment area (5ha +) or town centre?\n· Will it improve opportunities for active travel including walking and cycling?\n· Will it deliver services or facilities on-site or elsewhere within the District? ","Yes",{"$f":"COUNTIFS(INDIRECT(\"RAG!$C$\"&$V16&\":$AX$\"&$V16),E$13,RAG!$C$2:$AX$2,$B16)","v":5},{"$f":"COUNTIFS(INDIRECT(\"RAG!$C$\"&$V16&\":$AX$\"&$V16),F$13,RAG!$C$2:$AX$2,$B16)","v":1},{"$f":"COUNTIFS(INDIRECT(\"RAG!$C$\"&$V16&\":$AX$\"&$V16),G$13,RAG!$C$2:$AX$2,$B16)","v":2},"Direct","Low","Medium/Long","Localised","Permanent/Irreversible","Minor Positive","The site has good access to an existing primary school (which currently has capacity), and the development will make provision for the development of a three form entry primary school with nursery in accordance with Policy STRA2. Although the site has poor access to an existing secondary school, GP surgery, formal and informal recreation and employment site, the development will provide retail and community facilities, a sports hub and open space. The site will also provide financial contributions to healthcare provision and secondary education, as well as contribute towards addressing deficiencies of sport and recreation facilities. The loss of any existing sports or recreation facilities as a result of the development should be amended via a replacement. Finally, Policy STRA1 provisions for a green infrastructure network that will allow access to local destinations, including schools, shops, local services, employment centres and recreation points via active travel methods. It can therefore be assumed that some infrastructure to support growth will be delivered alongside development, in line with Policy INF1 and Policy STRA2. Therefore, a potential minor positive effect is identified.","Yes",null,null,null,null,"I'm changing some refs to 'the site' to 'the development'. Presume the minor is because some will be delivered offsite and may rely on other contributions / third parties.",null,{"$f":"MATCH($C$1,RAG!$B$1:$B$8, 0)","v":6}]
["S04 Quality of Life\nTo create safe and attractive places which contribute towards quality of life and community cohesion.","S04","· Will it contribute towards reducing crime or fear of crime?\n· Will it provide attractive places which provide opportunities for communities to mix and meet?","No",null,null,null,"N/A","N/A","N/A","N/A","N/A","Neutral","It is assumed that this allocation works alongside Policy BNE1 Design Excellence, which requires developments to be designed to minimise opportunities for crime and anti-social behaviour, and encourage diversity and social interaction. Therefore, a neutral effect is identified.","No","Policy BNE1 Design Excellence requires developments to be designed to minimise opportunities for crime and anti-social behaviour, and encourage diversity and social interaction.",null,null,null,"see strikethough",null,{"$f":"MATCH($C$1,RAG!$B$1:$B$8, 0)","v":6}]
["S05 Inequalities\nEnsure all residents have equitable access to employment, education, community services and facilities irrespective of race, religion, sex, age, sexual orientation, disability, gender reassignment, marriage and civil partnership or pregnancy/maternity.","S05","· Ensure the option / policy does not have an adverse/ discriminatory impact on protected characteristics/ equality groups?\n· Will it narrow the inequality gap between the richest and poorest in the District?\n· Will it reduce inequalities associated with deprivation across the District?","Yes",{"$f":"COUNTIFS(INDIRECT(\"RAG!$C$\"&$V18&\":$AX$\"&$V18),E$13,RAG!$C$2:$AX$2,$B18)","v":0},{"$f":"COUNTIFS(INDIRECT(\"RAG!$C$\"&$V18&\":$AX$\"&$V18),F$13,RAG!$C$2:$AX$2,$B18)","v":0},{"$f":"COUNTIFS(INDIRECT(\"RAG!$C$\"&$V18&\":$AX$\"&$V18),G$13,RAG!$C$2:$AX$2,$B18)","v":1},"N/A","N/A","N/A","N/A","N/A","Neutral","This site is within a low IMD deprivation area. However, development of this site alone will not necessarily reduce the gap between the richest and poorest in the District. Therefore, a neutral effect is identified.","No",null,null,null,null,null,null,{"$f":"MATCH($C$1,RAG!$B$1:$B$8, 0)","v":6}]
["S06 Economy\nTo deliver growth in key employment sectors and support the creation of new and retention of existing businesses in urban and rural areas.","S06","· Will it encourage the creation of new businesses and existing businesses to grow?\n· Will it encourage economic diversification?\n· Will it help support and encourage the growth of the local economy (including in rural areas)?\n· Will it support the enhancement of the District’s tourism and cultural offer?","Yes",{"$f":"COUNTIFS(INDIRECT(\"RAG!$C$\"&$V19&\":$AX$\"&$V19),E$13,RAG!$C$2:$AX$2,$B19)","v":0},{"$f":"COUNTIFS(INDIRECT(\"RAG!$C$\"&$V19&\":$AX$\"&$V19),F$13,RAG!$C$2:$AX$2,$B19)","v":0},{"$f":"COUNTIFS(INDIRECT(\"RAG!$C$\"&$V19&\":$AX$\"&$V19),G$13,RAG!$C$2:$AX$2,$B19)","v":2},"Direct","Low","Medium/Long","Localised","Permanent/Irreversible","Significant Positive","The site will deliver between 5-10ha of employment space. Development here could also indirectly support existing businesses within Findern local centre and Derby City. Therefore, a potential significant positive effect is identified.","Yes",null,null,null,null,null,null,{"$f":"MATCH($C$1,RAG!$B$1:$B$8, 0)","v":6}]
["S07 Employment\nTo create greater employment opportunities and higher value jobs across the whole District","S07","· Will it help to improve skills levels and access to training within the District?\n· Will it reduce unemployment rates overall and reduce disparities which exist across different parts of the District?","Yes",{"$f":"COUNTIFS(INDIRECT(\"RAG!$C$\"&$V20&\":$AX$\"&$V20),E$13,RAG!$C$2:$AX$2,$B20)","v":0},{"$f":"COUNTIFS(INDIRECT(\"RAG!$C$\"&$V20&\":$AX$\"&$V20),F$13,RAG!$C$2:$AX$2,$B20)","v":0},{"$f":"COUNTIFS(INDIRECT(\"RAG!$C$\"&$V20&\":$AX$\"&$V20),G$13,RAG!$C$2:$AX$2,$B20)","v":2},"Direct","Low","Medium/Long","Localised","Permanent/Irreversible","Significant Positive","The site will deliver between 5-10ha of employment space, and is located around 1.5km from a large employment site (the Toyota manufacturing site). The site will also be located around 2km from the East Midlands Intermodal Park once built. There will subsequently be a large number of employment opportunities both on- and off-site nearby for residents. Therefore, a potential significant positive effect is identified.","Yes",null,null,null,null,"minor edits",null,{"$f":"MATCH($C$1,RAG!$B$1:$B$8, 0)","v":6}]
["S08 Infrastructure\nTo deliver improved infrastructure to support growth and economic competitiveness of urban and rural businesses and communities.","S08","· Will it minimise the impact of traffic congestion on the strategic and local road network through the delivery of new or enhanced transport infrastructure?\n· Will it provide opportunities to access key services, including doctor’s surgeries, education facilities, employment and town, local or village centres by means other than car?\n· Will it make the best use of other infrastructure which serves new development?","No",{"$f":"COUNTIFS(INDIRECT(\"RAG!$C$\"&$V21&\":$AX$\"&$V21),E$13,RAG!$C$2:$AX$2,$B21)","v":3},{"$f":"COUNTIFS(INDIRECT(\"RAG!$C$\"&$V21&\":$AX$\"&$V21),F$13,RAG!$C$2:$AX$2,$B21)","v":1},{"$f":"COUNTIFS(INDIRECT(\"RAG!$C$\"&$V21&\":$AX$\"&$V21),G$13,RAG!$C$2:$AX$2,$B21)","v":1},"Direct","Low","Medium/Long","Localised","Permanent/Irreversible","Minor Positive","The site is not located near to existing infrastructure with the nearest secondary school (with capacity) being 3km walking distance, and the nearest GP surgery, existing employment site, and formal and informal recreation sites being over 800m walking distance. Although the site has poor access to an existing secondary school, GP surgery, formal and informal recreation and employment site, the development will be required to make provision for a three form primary school and nursery, retail and community facilities, a sports hub and open space. Healthcare infrastructure should also be provisioned for either on or off site. The development will also provide financial contributions to secondary education. New access points to the site will be developed (access to be off the A38 roundabout and off Rykneld Road) in order to ease road traffic pressure. Policy STRA2 states that no developments shall be occupied until the necessary infrastructure has been provided. Therefore, a potential significant positive effect has been identified. It can therefore be assumed that some infrastructure to support growth will be delivered alongside development, in line with Policy INF1 and Policy STRA2. Therefore, a potential minor positive effect is identified.","No",null,null,null,null,null,null,{"$f":"MATCH($C$1,RAG!$B$1:$B$8, 0)","v":6}]
["S09 Sustainable Travel\nTo promote sustainable travel habits including walking, cycling and public transport (bus and rail) usage.  ","S09","· Will it reduce journey lengths and times? \n· Will it maximise opportunities for walking and cycling?\n· Will it maximise opportunities to access public transport provision?","Yes",{"$f":"COUNTIFS(INDIRECT(\"RAG!$C$\"&$V22&\":$AX$\"&$V22),E$13,RAG!$C$2:$AX$2,$B22)","v":1},{"$f":"COUNTIFS(INDIRECT(\"RAG!$C$\"&$V22&\":$AX$\"&$V22),F$13,RAG!$C$2:$AX$2,$B22)","v":0},{"$f":"COUNTIFS(INDIRECT(\"RAG!$C$\"&$V22&\":$AX$\"&$V22),G$13,RAG!$C$2:$AX$2,$B22)","v":2},"Direct","Low","Medium/Long","Localised","Permanent/Irreversible","Minor Positive","The site currently lies within an acceptable distance to an existing bus stop, and to existing cycle routes. The site is more than 800m from a train station however. Policy INF1 highlights that new development will only be permitted if necessary infrastructure (both on- and off-site) is already in place; this includes the provision and improvement of transport infrastructure. Policy STRA2 requires a green infrastructure network that will allow access to local destinations, including schools, shops, local services, employment centres and recreation points via active travel methods, and small developments to support these routes (e.g. changing rooms and cycle storage). This policy also requires the development of bus routes and bus stops throughout the site, and indicates that the majority of dwellings should be no more than 400m from a bus stop/route. These policies should subsequently improve travel across the site, as well as into the rest of South Derbyshire and Derby City. It can therefore be determined that infrastructure to support growth will be delivered alongside development. Therefore, a potential minor positive effect is identified.","No",null,null,null,null,"is this the same as for site 1? I think it's slightly inconsistent. Please check\nThey have the same measures so it should be the same",null,{"$f":"MATCH($C$1,RAG!$B$1:$B$8, 0)","v":6}]
["S010 Town and Village Centres\nTo ensure that town and village centres are vibrant and viable.","S010","· Will it improve existing shopping facilities within town and village centres? \n· Will it help safeguard existing town and village centres?","Yes",{"$f":"COUNTIFS(INDIRECT(\"RAG!$C$\"&$V23&\":$AX$\"&$V23),E$13,RAG!$C$2:$AX$2,$B23)","v":1},{"$f":"COUNTIFS(INDIRECT(\"RAG!$C$\"&$V23&\":$AX$\"&$V23),F$13,RAG!$C$2:$AX$2,$B23)","v":0},{"$f":"COUNTIFS(INDIRECT(\"RAG!$C$\"&$V23&\":$AX$\"&$V23),G$13,RAG!$C$2:$AX$2,$B23)","v":0},"N/A","N/A","N/A","N/A","N/A","Neutral","The site is not located within or adjacent to a town or village centre (it is located on the edge of Derby City, and around 1.5km from the village of Findern). The development of a new local centre within the site would provide local facilities for new residents, enabling some self containment. These facilities would not be designed to provide facilities for the wider area and would not therefore detract from existing town and village centres. Therefore, a neutral effect is identified.","No",null,null,"Development proposals could be accompanied by an assessment of the impact of the development on the local economy. ",null,null,null,{"$f":"MATCH($C$1,RAG!$B$1:$B$8, 0)","v":6}]
["S011 Resources\nTo minimise waste and ensure the sustainable use and protection of natural resources including greenfield land, soil and minerals resources.  ","S011","· Will it enhance opportunities for increased levels of recycling in the District?\n· Will it improve or remediate contaminated land or reuse previously developed land which has not been restored?\n· Will it protect Best and Most Versatile (BMV) Agricultural Land?\n· Will it avoid the sterilisation of minerals resources?","Yes",{"$f":"COUNTIFS(INDIRECT(\"RAG!$C$\"&$V24&\":$AX$\"&$V24),E$13,RAG!$C$2:$AX$2,$B24)","v":1},{"$f":"COUNTIFS(INDIRECT(\"RAG!$C$\"&$V24&\":$AX$\"&$V24),F$13,RAG!$C$2:$AX$2,$B24)","v":2},{"$f":"COUNTIFS(INDIRECT(\"RAG!$C$\"&$V24&\":$AX$\"&$V24),G$13,RAG!$C$2:$AX$2,$B24)","v":2},"Direct","Low","Medium/Long","Localised","Permanent/Irreversible","Significant Negative","This site is located on grade 3 agricultural land; development will subsequently lead to the irreversible loss of greenfield land, and soils considered as the 'best and most versatile'. The site does not lie within a sand and gravel mineral safeguarding zone or a historic landfill site. The development of this site in isolation will likely have no influence on the levels of recycling across South Derbyshire. However, Policy BNE1 Design Excellence, will requires developments to provide adequate space for waste storage and collection. Therefore, as the loss of greenfield land/Grade 3 agricultural land cannot be mitigated, a potential significant negative effect is identified.","Yes","Policy BNE1 Design Excellence will require developments to provide adequate space for waste storage and collection.","Loss of greenfield land and Grade 3 agricultural land cannot be mitigated. A detailed agricultural land assessment should be undertaken in order to identify more accurately what the agricultural classification grade is on development sites",null,null,null,null,{"$f":"MATCH($C$1,RAG!$B$1:$B$8, 0)","v":6}]
["S012 Pollution\nTo minimise water, air, light and noise pollution and ensure that future growth does not lead to the further deterioration of environmental conditions.","S012","· Will it contribute to improvements in water quality in the District?\n· Will it avoid increasing noise levels locally or introducing incompatible uses into an already noisy location?\n· Will it avoid deterioration in air quality within the District?\n· Will it reduce light pollution on sensitive receptors by keeping external lighting to the minimum required for safety and security?","Yes",{"$f":"COUNTIFS(INDIRECT(\"RAG!$C$\"&$V25&\":$AX$\"&$V25),E$13,RAG!$C$2:$AX$2,$B25)","v":1},{"$f":"COUNTIFS(INDIRECT(\"RAG!$C$\"&$V25&\":$AX$\"&$V25),F$13,RAG!$C$2:$AX$2,$B25)","v":1},{"$f":"COUNTIFS(INDIRECT(\"RAG!$C$\"&$V25&\":$AX$\"&$V25),G$13,RAG!$C$2:$AX$2,$B25)","v":2},"N/A","N/A","N/A","N/A","N/A","Uncertain","The site currently experiences high noise pollution and some light pollution. It is likely that development at this scale will increase both noise and light pollution. The A38 and A516 are located adjacent to the site and these could be sources of air and noise pollution. It is likely that development at this scale will increase air pollution in South Derbyshire, as well as in Derby City as residents may commute into the city for work. Policy STRA2 requires noise mitigation to be implemented in relation to the A38 and A516. Policy SD1 Amenity and Environmental Quality will require developments to consider the need for a strategic buffer in order to mitigate noise and light pollution. The development should be required to implement light mitigation measures as well. It  is not clear whether all potential effects can be minimised through mitigation. Therefore, an uncertain effect is identified.","Yes","Policy SD1 Amenity and Environmental Quality will require developments to consider the need for a strategic buffer in order to mitigate noise and light pollution.","A criterion should be added to the policy which requires air, noise and light pollution to be planned and mitigated prior to development. Whilst Policy SD1 could help to achieve this, explicit criteria in the policy could help to ensure the best outcome for local receptors.",null,null,"I'm not sure that we can assume there is air pollution on the site just because it's near to some A roads. It would depend on the air dispersal pattern. I've edited the text and transferred to text about STRA2 into the assessment text. ",null,{"$f":"MATCH($C$1,RAG!$B$1:$B$8, 0)","v":6}]
["S013 Contributions to Climate Change \nTo reduce the District’s contribution towards the emission of climate change gases.","S013","· Will it provide opportunities to access local services and facilities by public transport walking or cycling?\n· Will it support the delivery of renewable energy capacity (including small scale or community energy projects)?\n· Will it support the shift toward usage of electric and ultralow emissions vehicles? ","Yes",{"$f":"COUNTIFS(INDIRECT(\"RAG!$C$\"&$V26&\":$AX$\"&$V26),E$13,RAG!$C$2:$AX$2,$B26)","v":0},{"$f":"COUNTIFS(INDIRECT(\"RAG!$C$\"&$V26&\":$AX$\"&$V26),F$13,RAG!$C$2:$AX$2,$B26)","v":1},{"$f":"COUNTIFS(INDIRECT(\"RAG!$C$\"&$V26&\":$AX$\"&$V26),G$13,RAG!$C$2:$AX$2,$B26)","v":0},"N/A","N/A","N/A","N/A","N/A","Neutral","The site is within 600m from an EV charger and Policy INF2 Sustainable Transport will require the development to make provision for EV chargers. Additionally, the site location (near to Derby City) may assist in the development of heat networks incorporating new homes, providing low carbon heating for future residents. Policy STRA2 requires the development of bus routes and bus stops throughout the site, and indicates that the majority of dwellings should be no more than 400m from a bus stop/route, encouraging residents to utilise public transport. The policy also makes provision for the development of pedestrian and cycle routes across the site, that link to the wider District (e.g. Burnaston village) and Derby City, in order to allow residents access to local facilities/services in town/village centres via active travel methods. Small developments to support these routes (e.g. changing rooms and cycle storage) are also provisioned for. Therefore, a neutral effect is identified.","No","Policy INF2 Sustainable Transport will require  developments to make provision for EV chargers.",null,"The site should be built to low-carbon standards with high levels of energy efficiency and small scale energy generation technologies (e.g. heat source pumps, solar PV) as well as heat networks being promoted where possible.",null,"minor edit. Edited enhancement measure. Is there no policy in the plan which promotes energy efficiency etc? If there isn't we might need to suggest they need one! \nThey do not have an energy efficiency policy- recommend to client",null,{"$f":"MATCH($C$1,RAG!$B$1:$B$8, 0)","v":6}]
["S014 Adaptation to Climate Change \nTo manage the effects of climate change including flood risk, reduced water availability and overheating.","S014","· Will it minimise flood risk?\n· Will it include provision of sustainable urban drainage which mimic natural drainage patterns?\n· Will it contribute towards sustainable water use?","Yes",{"$f":"COUNTIFS(INDIRECT(\"RAG!$C$\"&$V27&\":$AX$\"&$V27),E$13,RAG!$C$2:$AX$2,$B27)","v":0},{"$f":"COUNTIFS(INDIRECT(\"RAG!$C$\"&$V27&\":$AX$\"&$V27),F$13,RAG!$C$2:$AX$2,$B27)","v":2},{"$f":"COUNTIFS(INDIRECT(\"RAG!$C$\"&$V27&\":$AX$\"&$V27),G$13,RAG!$C$2:$AX$2,$B27)","v":0},"Direct","Medium","Medium/Long","Localised","Permanent/Irreversible","Minor Negative","Part of the site lies within Flood Zone 2 and within 1000m of a watercourse, which may place development on the site at risk of flooding. However, mitigation will be provided by Policy SD2 Flood Risk and Policy STRA2, which will require the site to incorporate flood risk mitigation, such as SuDs. Although this won't eradicate flood risk, it will reduce the likelihood of a flood risk event taking place. Policy STRA2 will also require the strategic site to ensure that vulnerable development is wholly located within Flood Zone 1. Therefore, as the site is still at risk of flood events following policy mitigation, a potential minor negative effect is identified.","No","Policy SD2 Flood Risk will require developments to incorporate flood risk mitigation, such as SuDs. ",null,null,null,null,null,{"$f":"MATCH($C$1,RAG!$B$1:$B$8, 0)","v":6}]
["S015 Townscape and Historic Environment\nTo conserve and enhance the townscape, historic environment, heritage assets (including known and unknown archaeological sites) and their settings. ","S015","· Will it protect and enhance the condition and setting of historic, cultural, architectural and archaeological features in South Derbyshire?\n· Does it improve the quality of the built environment, and respect and protect existing townscape character?\n· Will it improve access to, and understanding of, the District’s historic and cultural assets for enjoyment and educational purposes?","Yes",{"$f":"COUNTIFS(INDIRECT(\"RAG!$C$\"&$V28&\":$AX$\"&$V28),E$13,RAG!$C$2:$AX$2,$B28)","v":0},{"$f":"COUNTIFS(INDIRECT(\"RAG!$C$\"&$V28&\":$AX$\"&$V28),F$13,RAG!$C$2:$AX$2,$B28)","v":0},{"$f":"COUNTIFS(INDIRECT(\"RAG!$C$\"&$V28&\":$AX$\"&$V28),G$13,RAG!$C$2:$AX$2,$B28)","v":4},"N/A","N/A","N/A","N/A","N/A","Neutral","There are no known heritage assets within the site or wihtin 50m. However, there are two listed buildings within 150m: Grade II Church at Pastures Hospitals and Grade II Winter Garden at Pastures Hospital. Policy BNE2 Heritage Assets will refuse the majority of proposals that lead to substantial harm of a heritage asset, although some proposals may still be allowed if it can be demonstrated that the benefit of the development outweighs the harm of damaging the asset. Policy BNE2 also supports proposals that make a positive contribution to heritage assets including listed buildings. Policy STRA2 requires the strategic site to be designed in a way that respects the setting of these heritage assets. It is anticipated by SDDC that the Design Review process will secure an enhanced setting for these heritage assets with expanded green infrastructure in a parkland setting in order to enhance the setting of such heritage assets, but also providing opportunities for publicly accessible sport and recreation. As the listed buildings are more than 50m from the development boundary, and with the mitigation required by policies BNE2 and STRA2, and to be identified through the Design Review, it is assumed that it will be possible to mitigate any potential harm to their setting and a neutral effect is identified. ","No","Policy BNE2 Heritage Assets will refuse proposals that would lead to substantial harm, unless if can be demonstrated that benefit outweighs the harm. ","No further mitigation is proposed in addition to the requirements within Policy STRA2",null,null,"see site 1 comment. Amended to mention development.","I think we need to consider making this minor negative or uncertain, learning from the Amber examination. ",{"$f":"MATCH($C$1,RAG!$B$1:$B$8, 0)","v":6}]
["S016 Landscape\nTo conserve and enhance the District’s landscape character.","S016","· Does it respect and protect existing landscape character?\n· Will it protect sensitive landscapes including those within the World Heritage Site or its buffer or Special Landscape Areas?\n· Will it safeguard landscape features such as hedgerows?\n· Will it avoid intrusion into the greenbelt?","Yes",{"$f":"COUNTIFS(INDIRECT(\"RAG!$C$\"&$V29&\":$AX$\"&$V29),E$13,RAG!$C$2:$AX$2,$B29)","v":0},{"$f":"COUNTIFS(INDIRECT(\"RAG!$C$\"&$V29&\":$AX$\"&$V29),F$13,RAG!$C$2:$AX$2,$B29)","v":0},{"$f":"COUNTIFS(INDIRECT(\"RAG!$C$\"&$V29&\":$AX$\"&$V29),G$13,RAG!$C$2:$AX$2,$B29)","v":2},"Direct","Medium","Medium/Long","Localised","Permanent/Irreversible","Minor Negative","Policy STRA2 requires the development of green infrastructure, including the continuation of green wedges from Derby City. This policy mitigation should subsequently avoid the 'trapping in' of current green wedges. The development will still lead to the loss of greenfield land however, which could cause alterations to the landscape. Potential negative impacts to landscape will be mitigated by Policy BNE4 which requires developments to conserve local distinctiveness, retain landscape features (e.g. hedgerows) and offset any damage to landscape features. The development will still lead to the loss of greenfield land however, which could cause alterations to the landscape. Therefore, a potential minor negative effect is identified.","No","Policy BNE4 Landscape Character and Local Distinctiveness will require developments to conserve local distinctiveness, retain landscape features (e.g. hedgerows) and offset any damage to landscape features.","Loss of greenfield land cannot be mitigated.",null,null,"edited mitigation. Doesn't the strategic allocation policy contain any mitigation / requirement for GI or mention the green wedges?\nNot specifically the green wedges, this is only mentioned for Site 1","I think we need to consider making this minor negative or uncertain, learning from the Amber examination. We make the point that it's developing greenfield land and this will have an impact on landscape. It's a large site.",{"$f":"MATCH($C$1,RAG!$B$1:$B$8, 0)","v":6}]

{"sheet":"STRA3_Former_Drakelow_Power","index":12,"n_rows":29,"n_cols":22,"rows_kept":29,"cut":false,"hidden":false,"merged":[[11,0,11,2],[11,3,11,6],[11,7,11,17]]}
["Site Name",null,"STRA3_Former_Drakelow_Power"]
["Site Address",null,"N/A"]
["Town/Locality",null,"Drakelow"]
["Est Housing Yield/Employment Space",null,"Employment (Use Classes E(g), B2 and B8)"]
["Site Area (ha)",null,68]
["Site Description",null,"The strategic allocation identified as Former Drakelow Power Station lies adjacent to the south-west boundary of the District, near to Burton-Upon-Trent. "]
["Greenfield/Brownfield",null,"Brownfield"]
["Assumptions Made",null,"This allocation will be implemented alongside the policies set out in the South Derbyshire Local Plan Part 1."]
["Policy Name ",null,"Policy STRA3: Former Drakelow Power Station"]
["Policy Description",null,"Development within the strategic allocation boundary will be expected to deliver up to 68ha of employment use within Use Class E (g), B2 and B8, and ancillary uses, subject to the requirements of the policy. Outside of the allocation boundary, provision will be made for energy purposes to assist in the regeneration of the previously developed land. "]
[]
["SA Framework",null,null,"GIS Inputs",null,null,null,"SA Policy Assessment"]
["SA objective","SA","SA sub-objective","GIS Data Available?","R","A","G","Direct/\nIndirect","Magnitude","Duration","Spatial Extent","Permanence/ Reversibility","Significance","Description of potential effects","Potential for cumulative effects? ","Policy Mitigation","Mitigation Recommendations","Enhancement Recommendation","SDDC Comments","review comments",null,"Link "]
["S01 Biodiversity\nTo safeguard and enhance biodiversity (including BAP habitats and species) and geodiversity through biodiversity net gain and improve connectivity between, and access to, green spaces and functional habitats.","S01","· Will it conserve and enhance natural or semi natural habitats including internationally, nationally and locally designated wildlife sites, or create new wildlife habitats, and contribute to the creation of a network of habitats and green infrastructure in the District?\n· Will it protect BAP or protected species and contribute to the delivery of new, or safeguard existing BAP priority species and habitats?\n· Will it protect sites of geological importance?","Yes",{"$f":"COUNTIFS(INDIRECT(\"RAG!$C$\"&$V14&\":$AX$\"&$V14),E$13,RAG!$C$2:$AX$2,$B14)","v":2},{"$f":"COUNTIFS(INDIRECT(\"RAG!$C$\"&$V14&\":$AX$\"&$V14),F$13,RAG!$C$2:$AX$2,$B14)","v":1},{"$f":"COUNTIFS(INDIRECT(\"RAG!$C$\"&$V14&\":$AX$\"&$V14),G$13,RAG!$C$2:$AX$2,$B14)","v":4},"Direct","Medium","Medium/Long","Localised","Permenant/Reversible","Significant Positive","The site contains a locally designated wildlife site, as well as a number of TPOs. However as this allocation works alongside Policy BNE3 Biodiversity and the policy itself requires protection of nature conservation assets on site, as well as delivering a minimum of 10% BNG, it is very unlikely that these will be damaged or removed during development. Additionally, Policy STRA3 specifically requires the preservation and enhancement of key biodiversity assets, including Drakelow Nature Reserve, Drakelow Wildfowl Reserve Local Wildlife Site and Tree Preservation Order 122. Development should not negatively impact nearby assets such as the Branston Water Park Local Nature Site, the Grove Wood Local Wildlife Site and the River Trent. The policy also makes provision for a network of green infrastructure, which will help create new habitat/wildlife corridors across the District. However, despite these policy measures it is unclear whether all potential impacts can be mitigated. Therefore, a potential  significant positive effect is identified.","No","Policy BNE3 Biodiversity requires developments to  avoid any adverse impact on sites of nature conservation value, as well as deliver a minimum of 10% BNG, in line with national policy requirements.",null,null,null,"edited the enhancement. Copy over to the other sites assessed?\n\nGreen wedges only relevant to this assessment",null,{"$f":"MATCH($C$1,RAG!$B$1:$B$8, 0)","v":7}]
["S02 Housing\nTo ensure everyone has access to sustainable housing, which is affordable, and meets the needs of all residents including the elderly and other vulnerable groups and will support the vitality of existing communities and settlements. ","S02","· Will it reduce the number of households waiting for accommodation or accepted as homeless?\n· Will it increase the number and mix of housing? \n· Will it improve the suitability of new homes for older and disabled people?\n· Will it provide affordable housing for those unable to access market housing?\n· Will it meet the needs of the travelling community and show people?\n· Will it secure infrastructure or community facilities?","Yes",{"$f":"COUNTIFS(INDIRECT(\"RAG!$C$\"&$V15&\":$AX$\"&$V15),E$13,RAG!$C$2:$AX$2,$B15)","v":0},{"$f":"COUNTIFS(INDIRECT(\"RAG!$C$\"&$V15&\":$AX$\"&$V15),F$13,RAG!$C$2:$AX$2,$B15)","v":0},{"$f":"COUNTIFS(INDIRECT(\"RAG!$C$\"&$V15&\":$AX$\"&$V15),G$13,RAG!$C$2:$AX$2,$B15)","v":0},"N/A","N/A","N/A","N/A","N/A","Neutral","As the development encompasses employment uses only, the provision of housing is not relevant. Therefore, a neutral effect is predicted.","No",null,null,null,null,"minor edits",null,{"$f":"MATCH($C$1,RAG!$B$1:$B$8, 0)","v":7}]
["S03 Accessibility and Health\nTo improve local accessibility to healthcare, education, employment, retail facilities and recreational resources (including open spaces and sports facilities) and enhance wellbeing, promoting healthy and sustainable lifestyles.","S03","· Will it promote healthy lifestyles?\n· Will it deliver new, or contribute to the expansion or improvement of existing open spaces, green infrastructure, schools or healthcare facilities within reasonable walking distance?\n· Will it deliver growth within reasonable walking distance to a planned or existing major employment area (5ha +) or town centre?\n· Will it improve opportunities for active travel including walking and cycling?\n· Will it deliver services or facilities on-site or elsewhere within the District? ","Yes",{"$f":"COUNTIFS(INDIRECT(\"RAG!$C$\"&$V16&\":$AX$\"&$V16),E$13,RAG!$C$2:$AX$2,$B16)","v":0},{"$f":"COUNTIFS(INDIRECT(\"RAG!$C$\"&$V16&\":$AX$\"&$V16),F$13,RAG!$C$2:$AX$2,$B16)","v":0},{"$f":"COUNTIFS(INDIRECT(\"RAG!$C$\"&$V16&\":$AX$\"&$V16),G$13,RAG!$C$2:$AX$2,$B16)","v":0},"Direct","Medium","Medium/Long","Localised","Permeant/Reversible","Minor Positive","As the allocation will deliver employment uses only, the site's location in relation to a GP surgery, school, existing employment sites, leisure facilities and recreation is not relevant. However, the site will provide more accessibility to employment and will contribute to a network of green infrastructure. Policy STRA3 also highlights that the loss of any existing sports or recreation facilities as a result of the development should be mitigated via a replacement facility/ies.  Therefore, a potential minor positive effect is predicted.","No",null,null,null,null,"I'm changing some refs to 'the site' to 'the development'. Presume the minor is because some will be delivered offsite and may rely on other contributions / third parties.",null,{"$f":"MATCH($C$1,RAG!$B$1:$B$8, 0)","v":7}]
["S04 Quality of Life\nTo create safe and attractive places which contribute towards quality of life and community cohesion.","S04","· Will it contribute towards reducing crime or fear of crime?\n· Will it provide attractive places which provide opportunities for communities to mix and meet?","No",null,null,null,"N/A","N/A","N/A","N/A","N/A","Neutral","It is assumed that this allocation works alongside Policy BNE1 Design Excellence, which requires developments to be designed to minimise opportunities for crime and anti-social behaviour, and encourage diversity and social interaction. Therefore, a neutral effect is predicted.","No","Policy BNE1 Design Excellence requires developments to be designed to minimise opportunities for crime and anti-social behaviour, and encourage diversity and social interaction.",null,null,null,"see strikethrough",null,{"$f":"MATCH($C$1,RAG!$B$1:$B$8, 0)","v":7}]
["S05 Inequalities\nEnsure all residents have equitable access to employment, education, community services and facilities irrespective of race, religion, sex, age, sexual orientation, disability, gender reassignment, marriage and civil partnership or pregnancy/maternity.","S05","· Ensure the option / policy does not have an adverse/ discriminatory impact on protected characteristics/ equality groups?\n· Will it narrow the inequality gap between the richest and poorest in the District?\n· Will it reduce inequalities associated with deprivation across the District?","Yes",{"$f":"COUNTIFS(INDIRECT(\"RAG!$C$\"&$V18&\":$AX$\"&$V18),E$13,RAG!$C$2:$AX$2,$B18)","v":0},{"$f":"COUNTIFS(INDIRECT(\"RAG!$C$\"&$V18&\":$AX$\"&$V18),F$13,RAG!$C$2:$AX$2,$B18)","v":0},{"$f":"COUNTIFS(INDIRECT(\"RAG!$C$\"&$V18&\":$AX$\"&$V18),G$13,RAG!$C$2:$AX$2,$B18)","v":1},"N/A","N/A","N/A","N/A","N/A","Neutral","This site is within a low IMD deprivation area. However, development of this site alone will not necessarily reduce the gap between the richest and poorest in the District. Therefore, a neutral effect is predicted.","No",null,null,null,null,null,null,{"$f":"MATCH($C$1,RAG!$B$1:$B$8, 0)","v":7}]
["S06 Economy\nTo deliver growth in key employment sectors and support the creation of new and retention of existing businesses in urban and rural areas.","S06","· Will it encourage the creation of new businesses and existing businesses to grow?\n· Will it encourage economic diversification?\n· Will it help support and encourage the growth of the local economy (including in rural areas)?\n· Will it support the enhancement of the District’s tourism and cultural offer?","Yes",{"$f":"COUNTIFS(INDIRECT(\"RAG!$C$\"&$V19&\":$AX$\"&$V19),E$13,RAG!$C$2:$AX$2,$B19)","v":0},{"$f":"COUNTIFS(INDIRECT(\"RAG!$C$\"&$V19&\":$AX$\"&$V19),F$13,RAG!$C$2:$AX$2,$B19)","v":0},{"$f":"COUNTIFS(INDIRECT(\"RAG!$C$\"&$V19&\":$AX$\"&$V19),G$13,RAG!$C$2:$AX$2,$B19)","v":1},"Direct","Medium","Medium/Long","Localised","Permanent/Irreversible","Significant Positive","The site will deliver up to 68ha of employment use (including use Classes E(g), B2 and B8). This employment site will provide new space for businesses to grow, particularly small and medium sized businesses- as well as provide residents, in both South Derbyshire and Burton upon Trent, with employment opportunities. Therefore, a potential significant positive effect is identified.","Yes",null,null,null,null,null,null,{"$f":"MATCH($C$1,RAG!$B$1:$B$8, 0)","v":7}]
["S07 Employment\nTo create greater employment opportunities and higher value jobs across the whole District","S07","· Will it help to improve skills levels and access to training within the District?\n· Will it reduce unemployment rates overall and reduce disparities which exist across different parts of the District?","Yes",{"$f":"COUNTIFS(INDIRECT(\"RAG!$C$\"&$V20&\":$AX$\"&$V20),E$13,RAG!$C$2:$AX$2,$B20)","v":0},{"$f":"COUNTIFS(INDIRECT(\"RAG!$C$\"&$V20&\":$AX$\"&$V20),F$13,RAG!$C$2:$AX$2,$B20)","v":0},{"$f":"COUNTIFS(INDIRECT(\"RAG!$C$\"&$V20&\":$AX$\"&$V20),G$13,RAG!$C$2:$AX$2,$B20)","v":1},"Direct","Medium","Medium/Long","Localised","Permanent/Irreversible","Significant Positive","The site will deliver up to 68ha of new employment floorspace (including use Classes E(g), B2 and B8). This will subsequently provide a large number of employment opportunities for residents in South Derbyshire (particularly for those in the adjoining Drakelow Park development) and Burton upon Trent. Therefore, a potential significant positive effect is identified.","Yes",null,null,null,null,"minor edits",null,{"$f":"MATCH($C$1,RAG!$B$1:$B$8, 0)","v":7}]
["S08 Infrastructure\nTo deliver improved infrastructure to support growth and economic competitiveness of urban and rural businesses and communities.","S08","· Will it minimise the impact of traffic congestion on the strategic and local road network through the delivery of new or enhanced transport infrastructure?\n· Will it provide opportunities to access key services, including doctor’s surgeries, education facilities, employment and town, local or village centres by means other than car?\n· Will it make the best use of other infrastructure which serves new development?","No",{"$f":"COUNTIFS(INDIRECT(\"RAG!$C$\"&$V21&\":$AX$\"&$V21),E$13,RAG!$C$2:$AX$2,$B21)","v":0},{"$f":"COUNTIFS(INDIRECT(\"RAG!$C$\"&$V21&\":$AX$\"&$V21),F$13,RAG!$C$2:$AX$2,$B21)","v":0},{"$f":"COUNTIFS(INDIRECT(\"RAG!$C$\"&$V21&\":$AX$\"&$V21),G$13,RAG!$C$2:$AX$2,$B21)","v":0},"Direct","Medium","Medium/Long","Localised","Permanent/Irreversible","Minor Positive","As the development encompasses employment uses only, the site's location in relation to a GP surgery, school, existing employment sites, leisure facilities or recreation is not relevant. Policy STRA3 does however make provision for measures necessary to mitigate the transport impact of the site, including the use of travel plans to encourage the use of more sustainable transport modes in line with INF2. This also includes the provision of high quality, frequent and accessible public transport services, including connections to Burton-on-Trent and Swadlincote. Policy STRA3 also provisions for the pedestrian and cycle links, in order to provide opportunities to access the site via active travel. Therefore, a potential minor positive effect has been identified. ","No",null,null,null,null,null,null,{"$f":"MATCH($C$1,RAG!$B$1:$B$8, 0)","v":7}]
["S09 Sustainable Travel\nTo promote sustainable travel habits including walking, cycling and public transport (bus and rail) usage.  ","S09","· Will it reduce journey lengths and times? \n· Will it maximise opportunities for walking and cycling?\n· Will it maximise opportunities to access public transport provision?","Yes",{"$f":"COUNTIFS(INDIRECT(\"RAG!$C$\"&$V22&\":$AX$\"&$V22),E$13,RAG!$C$2:$AX$2,$B22)","v":3},{"$f":"COUNTIFS(INDIRECT(\"RAG!$C$\"&$V22&\":$AX$\"&$V22),F$13,RAG!$C$2:$AX$2,$B22)","v":0},{"$f":"COUNTIFS(INDIRECT(\"RAG!$C$\"&$V22&\":$AX$\"&$V22),G$13,RAG!$C$2:$AX$2,$B22)","v":0},"Direct","Low","Medium/Long","Localised","Permanent/Irreversible","Minor Positive","The site is not currently in proximity to existing bus stops/train stations. However, mitigation will be provided by Policy INF1, which highlights that new development will only be permitted if necessary infrastructure (both on- and off-site) is already in place; this includes the provision and improvement of transport infrastructure.\nFurther mitigation will be provided by Policy STRA3 which requires the development of high quality, frequent and accessible public transport services, encouraging residents that use the site to utilise public transport. The policy makes provision for the development of safe, functional, attractive and continuous pedestrian and cycle routes across the site and wider District, in order to allow access to the site via active travel methods. The routes should connect to the existing cycle network and adjoining Drakelow Park mixed use development. Small developments to support these routes (e.g. changing rooms) will also be provisioned for. It can therefore be determined that infrastructure to support growth will be delivered alongside development, subsequently improving travel across the site, as well as into the rest of South Derbyshire and Burton upon Trent. Therefore, a potential minor positive effect has been identified.","No",null,null,null,null,"is this the same as for site 1? I think it's slightly inconsistent. Please check\nThey have the same measures so it should be the same",null,{"$f":"MATCH($C$1,RAG!$B$1:$B$8, 0)","v":7}]
["S010 Town and Village Centres\nTo ensure that town and village centres are vibrant and viable.","S010","· Will it improve existing shopping facilities within town and village centres? \n· Will it help safeguard existing town and village centres?","Yes",{"$f":"COUNTIFS(INDIRECT(\"RAG!$C$\"&$V23&\":$AX$\"&$V23),E$13,RAG!$C$2:$AX$2,$B23)","v":0},{"$f":"COUNTIFS(INDIRECT(\"RAG!$C$\"&$V23&\":$AX$\"&$V23),F$13,RAG!$C$2:$AX$2,$B23)","v":0},{"$f":"COUNTIFS(INDIRECT(\"RAG!$C$\"&$V23&\":$AX$\"&$V23),G$13,RAG!$C$2:$AX$2,$B23)","v":0},"N/A","N/A","N/A","N/A","N/A","Neutral","The site is not located within or adjacent to a town or village centre (it is located on the edge of South Derbyshire, around 2km from the village of Rosliston and around 2.5km from Burton-upon-Trent). The development should not detract from towns and village centres however. Therefore a neutral effect is predicted.","No",null,null,null,null,null,"small edit in green",{"$f":"MATCH($C$1,RAG!$B$1:$B$8, 0)","v":7}]
["S011 Resources\nTo minimise waste and ensure the sustainable use and protection of natural resources including greenfield land, soil and minerals resources.  ","S011","· Will it enhance opportunities for increased levels of recycling in the District?\n· Will it improve or remediate contaminated land or reuse previously developed land which has not been restored?\n· Will it protect Best and Most Versatile (BMV) Agricultural Land?\n· Will it avoid the sterilisation of minerals resources?","Yes",{"$f":"COUNTIFS(INDIRECT(\"RAG!$C$\"&$V24&\":$AX$\"&$V24),E$13,RAG!$C$2:$AX$2,$B24)","v":2},{"$f":"COUNTIFS(INDIRECT(\"RAG!$C$\"&$V24&\":$AX$\"&$V24),F$13,RAG!$C$2:$AX$2,$B24)","v":1},{"$f":"COUNTIFS(INDIRECT(\"RAG!$C$\"&$V24&\":$AX$\"&$V24),G$13,RAG!$C$2:$AX$2,$B24)","v":2},"N/A","N/A","N/A","N/A","N/A","Uncertain","The site is located on non-agricultural/brownfield land and will therefore not lead to the irreversible loss of greenfield land and soils considered as the 'best and most versatile'. The site does not lie within a mineral source protection zone. The development of this site in isolation will likely have no influence on the levels of recycling across South Derbyshire. However, Policy BNE1 Design Excellence, will require developments to provide adequate space for waste storage and collection. Finally, the site is classified as contaminated land and does lie on a historic landfill site. Policy SD4 Contaminated Land and Mining Legacy will require the development proposals to incorporate necessary remediation measures to protect human health and/or the natural environment. Despite these policy measures it is unclear whether all potential impacts can be mitigated. Therefore, an uncertain effect has been identified.",null,"Policy BNE1 Design Excellence will require developments to provide adequate space for waste storage and collection.\n\nPolicy SD4 Contaminated Land and Mining Legacy will require the development of the site so incorporate necessary remediation measures to protect human health and/or the natural environment.",null,null,null,null,null,{"$f":"MATCH($C$1,RAG!$B$1:$B$8, 0)","v":7}]
["S012 Pollution\nTo minimise water, air, light and noise pollution and ensure that future growth does not lead to the further deterioration of environmental conditions.","S012","· Will it contribute to improvements in water quality in the District?\n· Will it avoid increasing noise levels locally or introducing incompatible uses into an already noisy location?\n· Will it avoid deterioration in air quality within the District?\n· Will it reduce light pollution on sensitive receptors by keeping external lighting to the minimum required for safety and security?","Yes",{"$f":"COUNTIFS(INDIRECT(\"RAG!$C$\"&$V25&\":$AX$\"&$V25),E$13,RAG!$C$2:$AX$2,$B25)","v":0},{"$f":"COUNTIFS(INDIRECT(\"RAG!$C$\"&$V25&\":$AX$\"&$V25),F$13,RAG!$C$2:$AX$2,$B25)","v":1},{"$f":"COUNTIFS(INDIRECT(\"RAG!$C$\"&$V25&\":$AX$\"&$V25),G$13,RAG!$C$2:$AX$2,$B25)","v":3},"N/A","N/A","N/A","N/A","N/A","Uncertain","The site currently experiences low noise pollution and some light pollution. It is likely that development at this scale will increase both noise and light pollution, as well as air pollution in South Derbyshire. Policy STRA3 provides mitigation for noise and light pollution, in relation to potential impacts on the adjoining Drakelow Park development, via a landscape buffer. Policy SD1 Amenity and Environmental Quality will also require developments to consider the need for a strategic buffer in order to mitigate noise and light pollution. However it is not clear whether all potential effects can be minimised through mitigation. Therefore, an uncertain effect has been identified. ","Yes","Policy SD1 Amenity and Environmental Quality will require developments to consider the need for a strategic buffer in order to mitigate noise and light pollution.","A criterion should be added to the policy which requires air, noise and light pollution to be planned and mitigated prior to development. Whilst Policy SD1 could help to achieve this, explicit criteria in the policy could help to ensure the best outcome for local receptors.",null,null,"I'm not sure that we can assume there is air pollution on the site just because it's near to some A roads. It would depend on the air dispersal pattern. I've edited the text and transferred to text about STRA2 into the assessment text. ",null,{"$f":"MATCH($C$1,RAG!$B$1:$B$8, 0)","v":7}]
["S013 Contributions to Climate Change \nTo reduce the District’s contribution towards the emission of climate change gases.","S013","· Will it provide opportunities to access local services and facilities by public transport walking or cycling?\n· Will it support the delivery of renewable energy capacity (including small scale or community energy projects)?\n· Will it support the shift toward usage of electric and ultralow emissions vehicles? ","Yes",{"$f":"COUNTIFS(INDIRECT(\"RAG!$C$\"&$V26&\":$AX$\"&$V26),E$13,RAG!$C$2:$AX$2,$B26)","v":1},{"$f":"COUNTIFS(INDIRECT(\"RAG!$C$\"&$V26&\":$AX$\"&$V26),F$13,RAG!$C$2:$AX$2,$B26)","v":0},{"$f":"COUNTIFS(INDIRECT(\"RAG!$C$\"&$V26&\":$AX$\"&$V26),G$13,RAG!$C$2:$AX$2,$B26)","v":0},"Direct","Medium","Medium/Long","Localised","Permanent/Irreversible","Minor Positive","The site is not located near to an existing EV charger, however, mitigation will be provided by Policy INF2 Sustainable Transport which will require the development to include EV chargers. The location of the site (near to Burton upon Trent) may assist in the development of heat networks, providing low carbon heating for future residents. The site is not currently in proximity to existing bus stops/railway stations. However, mitigation will be provided by Policy STRA3 which makes provision for high quality, frequent and conveniently accessible public transport services, encouraging residents that use the site to utilise public transport. The policy also makes provision for the development of safe, functional, attractive and continuous pedestrian and cycle routes across the site and wider District, in order to allow access to the site via active travel methods. The routes should connect to the existing cycle network and adjoining Drakelow Park mixed use development. Small developments to support these routes (e.g. changing rooms) will also provisioned for. Finally, the site includes a Renewable Energy Centre and Solar Park, contributing to the delivery of renewable energy capacity across the District. Therefore, a potential minor positive effect has been identified. ","No","Policy INF2 Sustainable Transport will require  developments to make provision for EV chargers.",null,null,null,"minor edit. Edited enhancement measure. Is there no policy in the plan which promotes energy efficiency etc? If there isn't we might need to suggest they need one! \nThey do not have an energy efficiency policy- recommend to client","presumably this would be sig pos if it already had good PT infrastructure? ",{"$f":"MATCH($C$1,RAG!$B$1:$B$8, 0)","v":7}]
["S014 Adaptation to Climate Change \nTo manage the effects of climate change including flood risk, reduced water availability and overheating.","S014","· Will it minimise flood risk?\n· Will it include provision of sustainable urban drainage which mimic natural drainage patterns?\n· Will it contribute towards sustainable water use?","Yes",{"$f":"COUNTIFS(INDIRECT(\"RAG!$C$\"&$V27&\":$AX$\"&$V27),E$13,RAG!$C$2:$AX$2,$B27)","v":1},{"$f":"COUNTIFS(INDIRECT(\"RAG!$C$\"&$V27&\":$AX$\"&$V27),F$13,RAG!$C$2:$AX$2,$B27)","v":1},{"$f":"COUNTIFS(INDIRECT(\"RAG!$C$\"&$V27&\":$AX$\"&$V27),G$13,RAG!$C$2:$AX$2,$B27)","v":0},"Direct","Medium","Medium/Long","Localised","Permanent/Irreversible","Minor Negative","The site lies within Flood Zones 2 and 3a and is adjacent to the River Trent. This is likely to place development on the site at risk of flooding. However, mitigation will be provided by Policy SD2 Flood Risk and Policy STRA3 which will require the site to incorporate flood risk mitigation (via SuDs). Although this won't eradicate flood risk, it will reduce the likelihood of a flood risk event taking place. Policy STRA3 will also require the strategic site to ensure that vulnerable development is wholly located within Flood Zone 1. Therefore, as the site is still at risk of flood events following policy mitigation, a potential minor negative effect is identified.","No","Policy SD2 Flood Risk will require developments to incorporate flood risk mitigation, such as SuDs.",null,null,null,null,null,{"$f":"MATCH($C$1,RAG!$B$1:$B$8, 0)","v":7}]
["S015 Townscape and Historic Environment\nTo conserve and enhance the townscape, historic environment, heritage assets (including known and unknown archaeological sites) and their settings. ","S015","· Will it protect and enhance the condition and setting of historic, cultural, architectural and archaeological features in South Derbyshire?\n· Does it improve the quality of the built environment, and respect and protect existing townscape character?\n· Will it improve access to, and understanding of, the District’s historic and cultural assets for enjoyment and educational purposes?","Yes",{"$f":"COUNTIFS(INDIRECT(\"RAG!$C$\"&$V28&\":$AX$\"&$V28),E$13,RAG!$C$2:$AX$2,$B28)","v":1},{"$f":"COUNTIFS(INDIRECT(\"RAG!$C$\"&$V28&\":$AX$\"&$V28),F$13,RAG!$C$2:$AX$2,$B28)","v":0},{"$f":"COUNTIFS(INDIRECT(\"RAG!$C$\"&$V28&\":$AX$\"&$V28),G$13,RAG!$C$2:$AX$2,$B28)","v":3},"N/A","N/A","N/A","N/A","N/A","Uncertain","The site is not within close proximity to any conservation areas, historic parks and gardens, or any ancient monuments. Gate Piers, a grade II listed building, is located on the site however. Although Policy STRA3 will require the development to be designed in a way that respects the setting of heritage assets, including Grade II Listed Gate Piers, adjoining walls and attached piers at Drakelow Lodge, it is unclear whether all potential impacts can be mitigated. Therefore, an uncertain effect is predicted.","No","Policy BNE2 Heritage Assets will refuse proposals that would lead to substantial harm, unless if can be demonstrated that benefit outweighs the harm. ","No further mitigation is proposed in addition to the requirements within Policy STRA3",null,null,"see site 1 comment. Amended to mention development.",null,{"$f":"MATCH($C$1,RAG!$B$1:$B$8, 0)","v":7}]
["S016 Landscape\nTo conserve and enhance the District’s landscape character.","S016","· Does it respect and protect existing landscape character?\n· Will it protect sensitive landscapes including those within the World Heritage Site or its buffer or Special Landscape Areas?\n· Will it safeguard landscape features such as hedgerows?\n· Will it avoid intrusion into the greenbelt?","Yes",{"$f":"COUNTIFS(INDIRECT(\"RAG!$C$\"&$V29&\":$AX$\"&$V29),E$13,RAG!$C$2:$AX$2,$B29)","v":0},{"$f":"COUNTIFS(INDIRECT(\"RAG!$C$\"&$V29&\":$AX$\"&$V29),F$13,RAG!$C$2:$AX$2,$B29)","v":1},{"$f":"COUNTIFS(INDIRECT(\"RAG!$C$\"&$V29&\":$AX$\"&$V29),G$13,RAG!$C$2:$AX$2,$B29)","v":1},"N/A","N/A","N/A","N/A","N/A","Neutral","The site is brownfield land which does not lie within the Greenbelt, however it does lie in secondary areas of multiple environmental sensitivity. Impacts to landscape could also combine with the Drakelow Park development to create a cumulative impact. Any impacts to landscape will be mitigated by Policy BNE4 and Policy STRA3 as they will require the strategic site to be designed in a way that respects the landscape character and minimise visual intrusion, for example, through the retention or addition of landscape screening. Policy STRA3 requires a landscape buffer to be implemented between the site and the Drakelow Park development. Policy STRA3 will also require the site to include a strategy which demonstrates how the National Grid Electricity Transmission (NGET) Design Guide and Principles have been applied, and the impact of the development has therefore been reduced through good design.  Therefore, a neutral effect is identified.","No","Policy BNE4 Landscape Character and Local Distinctiveness will require developments to conserve local distinctiveness, retain landscape features (e.g. hedgerows) and offset any damage to landscape features.",null,null,null,"edited mitigation. Doesn't the strategic allocation policy contain any mitigation / requirement for GI or mention the green wedges?\nNot specifically the green wedges, this is only mentioned for Site 1",null,{"$f":"MATCH($C$1,RAG!$B$1:$B$8, 0)","v":7}]

{"sheet":"FLG1_South_of_Mackworth","index":13,"n_rows":29,"n_cols":20,"rows_kept":29,"cut":false,"hidden":false,"merged":[[11,0,11,2],[11,3,11,6],[11,7,11,17]]}
["Site Name",null,"FLG1_South_of_Mackworth"]
["Site Address",null,"N/A"]
["Town/Locality",null,"Radbourne Common/Mackworth"]
["Est Housing Yield/Employment Space",null,"250 dwellings"]
["Site Area (ha)",null,"N/A"]
["Site Description",null,"The area will deliver overall housing numbers of up to 250 homes within South Derbyshire, and will include a new neighbourhood centre, primary and secondary school provision and a 3G playing pitch."]
["Greenfield/Brownfield",null,"Greenfield"]
["Assumptions Made",null,"The Policy is to be read in conjunction with Amber Valley Local Plan Policy SHGA1 to bring the Growth Area forward for development. Many of the site wide requirements are anticipated to be delivered on the Amber Valley part of the long term strategic housing Growth Area."]
["Policy Name ",null,"Policy FLG1: Long Term Strategic Housing Growth Area South of Mackworth"]
["Policy Description",null,"The Growth Area, within South Derbyshire and the remainder within Amber Valley Borough,  must only come forward through a strategic and comprehensive masterplan approach prepared in conjunction with neighbouring authorities, ensuring the coordination and phasing of development with the delivery of required infrastructure and services to meet the needs of the development, nearby developments and the immediate area of Derby"]
[]
["SA Framework",null,null,"GIS Inputs",null,null,null,"SA Policy Assessment"]
["SA objective","SA","SA sub-objective","GIS Data Available?","R","A","G","Direct/\nIndirect","Magnitude","Duration","Spatial Extent","Permanence/ Reversibility","Significance","Description of potential effects","Potential for cumulative effects? ","Policy Mitigation","Mitigation Recommendations","Enhancement Recommendation","SDDC Comments","review comments"]
["S01 Biodiversity\nTo safeguard and enhance biodiversity (including BAP habitats and species) and geodiversity through biodiversity net gain and improve connectivity between, and access to, green spaces and functional habitats.","S01","· Will it conserve and enhance natural or semi natural habitats including internationally, nationally and locally designated wildlife sites, or create new wildlife habitats, and contribute to the creation of a network of habitats and green infrastructure in the District?\n· Will it protect BAP or protected species and contribute to the delivery of new, or safeguard existing BAP priority species and habitats?\n· Will it protect sites of geological importance?","Yes",{"$f":"COUNTIFS(INDIRECT(\"RAG!$C$\"&#REF!&\":$AX$\"&#REF!),E$13,RAG!$C$2:$AX$2,$B14)","v":{"$error":"#REF!"}},{"$f":"COUNTIFS(INDIRECT(\"RAG!$C$\"&#REF!&\":$AX$\"&#REF!),F$13,RAG!$C$2:$AX$2,$B14)","v":{"$error":"#REF!"}},{"$f":"COUNTIFS(INDIRECT(\"RAG!$C$\"&#REF!&\":$AX$\"&#REF!),G$13,RAG!$C$2:$AX$2,$B14)","v":{"$error":"#REF!"}},"N/A","N/A","N/A","N/A","N/A","Neutral","There are no internationally designated/BAP species or habitats located on or near to the area (as marked on the Proposals Map), nor are there any locally designated wildlife sites nearby. The adjoining Area of Future Growth in AVBC contains some TPOs and is within 800m of a Local Wildlife Site, however, which may have indirect negative implications for biodiversity and associated habitat. Policy FLG1 highlights that SDDC will work with AVBC to develop a Green/Blue Infrastructure Framework for the whole future potential area, including landscape and Biodiversity Net Gain. Additionally, the policy will work alongside Policy BNE3 Biodiversity which requires development to avoid, mitigate, compensate and enhance key features of biodiversity, as well as deliver a minimum of 10% BNG. Therefore, a neutral effect is predicted.","No","Policy BNE3 Biodiversity requires developments to  avoid any adverse impact on sites of nature conservation value, as well as deliver a minimum of 10% BNG, in line with national policy requirements.",null,null,null,"edited the enhancement. Copy over to the other sites assessed?\n\nGreen wedges only relevant to this assessment"]
["S02 Housing\nTo ensure everyone has access to sustainable housing, which is affordable, and meets the needs of all residents including the elderly and other vulnerable groups and will support the vitality of existing communities and settlements. ","S02","· Will it reduce the number of households waiting for accommodation or accepted as homeless?\n· Will it increase the number and mix of housing? \n· Will it improve the suitability of new homes for older and disabled people?\n· Will it provide affordable housing for those unable to access market housing?\n· Will it meet the needs of the travelling community and show people?\n· Will it secure infrastructure or community facilities?","Yes",{"$f":"COUNTIFS(INDIRECT(\"RAG!$C$\"&#REF!&\":$AX$\"&#REF!),E$13,RAG!$C$2:$AX$2,$B15)","v":{"$error":"#REF!"}},{"$f":"COUNTIFS(INDIRECT(\"RAG!$C$\"&#REF!&\":$AX$\"&#REF!),F$13,RAG!$C$2:$AX$2,$B15)","v":{"$error":"#REF!"}},{"$f":"COUNTIFS(INDIRECT(\"RAG!$C$\"&#REF!&\":$AX$\"&#REF!),G$13,RAG!$C$2:$AX$2,$B15)","v":{"$error":"#REF!"}},"Direct","Medium","Medium/Long","Localised","Permanent/Irreversible","Significant Positive","The area will provide up to 250 dwellings in South Derbyshire and will support the provision of new homes within Amber Valley. It is assumed that a proportion of new homes, when delivered in the future, would be affordable. As this area is identified for future growth beyond the Local Plan period and is not yet allocated for housing development, a potential minor positive effect is identified as certain commitments, such as amount of affordable housing to be provided, are not yet known. ","Yes",null,null,null,null,"minor edits"]
["S03 Accessibility and Health\nTo improve local accessibility to healthcare, education, employment, retail facilities and recreational resources (including open spaces and sports facilities) and enhance wellbeing, promoting healthy and sustainable lifestyles.","S03","· Will it promote healthy lifestyles?\n· Will it deliver new, or contribute to the expansion or improvement of existing open spaces, green infrastructure, schools or healthcare facilities within reasonable walking distance?\n· Will it deliver growth within reasonable walking distance to a planned or existing major employment area (5ha +) or town centre?\n· Will it improve opportunities for active travel including walking and cycling?\n· Will it deliver services or facilities on-site or elsewhere within the District? ","Yes",{"$f":"COUNTIFS(INDIRECT(\"RAG!$C$\"&#REF!&\":$AX$\"&#REF!),E$13,RAG!$C$2:$AX$2,$B16)","v":{"$error":"#REF!"}},{"$f":"COUNTIFS(INDIRECT(\"RAG!$C$\"&#REF!&\":$AX$\"&#REF!),F$13,RAG!$C$2:$AX$2,$B16)","v":{"$error":"#REF!"}},{"$f":"COUNTIFS(INDIRECT(\"RAG!$C$\"&#REF!&\":$AX$\"&#REF!),G$13,RAG!$C$2:$AX$2,$B16)","v":{"$error":"#REF!"}},"Direct","Medium","Medium/Long","Localised","Permanent/Irreversible","Minor Positive","The area is within 1.2km of a secondary school, 400m of open space formal recreation, and 100m of a primary school (however this doesn't currently have  capacity). The area has poor access to a GP surgery and an existing employment site. The development of a new neighbourhood centre within the area would provide local facilities for new residents, enabling some self containment. New facilities provided in the development in the adjoining AVBC land would also presumably provide access to facilities, although this is uncertain at this stage. Policy FLG1 also highlights the need for primary and secondary school provision and a 3G playing pitch to meet the needs arising from the development either on site or in the local community. Finally, SDDC will work with AVBC to develop a Green/Blue Infrastructure Framework, which should support the health of residents once implemented. Therefore, a potential minor positive effect is identified.","No",null,null,null,null,"I'm changing some refs to 'the site' to 'the development'. Presume the minor is because some will be delivered offsite and may rely on other contributions / third parties."]
["S04 Quality of Life\nTo create safe and attractive places which contribute towards quality of life and community cohesion.","S04","· Will it contribute towards reducing crime or fear of crime?\n· Will it provide attractive places which provide opportunities for communities to mix and meet?","No",null,null,null,"N/A","N/A","N/A","N/A","N/A","Neutral","It is assumed that this allocation will be delivered in accordance with Policy BNE1 Design Excellence, which requires developments to be designed to minimise opportunities for crime and anti-social behaviour, and encourage diversity and social interaction. SDDC will also work alongside AVBC to develop an urban design framework, which should help to create a safe and attractive place for residents to live. Therefore, a neutral effect is identified.","No","Policy BNE1 Design Excellence requires developments to be designed to minimise opportunities for crime and anti-social behaviour, and encourage diversity and social interaction.",null,null,null,"see strikethough"]
["S05 Inequalities\nEnsure all residents have equitable access to employment, education, community services and facilities irrespective of race, religion, sex, age, sexual orientation, disability, gender reassignment, marriage and civil partnership or pregnancy/maternity.","S05","· Ensure the option / policy does not have an adverse/ discriminatory impact on protected characteristics/ equality groups?\n· Will it narrow the inequality gap between the richest and poorest in the District?\n· Will it reduce inequalities associated with deprivation across the District?","Yes",{"$f":"COUNTIFS(INDIRECT(\"RAG!$C$\"&#REF!&\":$AX$\"&#REF!),E$13,RAG!$C$2:$AX$2,$B18)","v":{"$error":"#REF!"}},{"$f":"COUNTIFS(INDIRECT(\"RAG!$C$\"&#REF!&\":$AX$\"&#REF!),F$13,RAG!$C$2:$AX$2,$B18)","v":{"$error":"#REF!"}},{"$f":"COUNTIFS(INDIRECT(\"RAG!$C$\"&#REF!&\":$AX$\"&#REF!),G$13,RAG!$C$2:$AX$2,$B18)","v":{"$error":"#REF!"}},"N/A","N/A","N/A","N/A","N/A","Neutral","This site is within a low IMD deprivation area. However, development of this site alone will not necessarily reduce the gap between the richest and poorest in the District. Therefore, a neutral effect is predicted.","No"]
["S06 Economy\nTo deliver growth in key employment sectors and support the creation of new and retention of existing businesses in urban and rural areas.","S06","· Will it encourage the creation of new businesses and existing businesses to grow?\n· Will it encourage economic diversification?\n· Will it help support and encourage the growth of the local economy (including in rural areas)?\n· Will it support the enhancement of the District’s tourism and cultural offer?","Yes",{"$f":"COUNTIFS(INDIRECT(\"RAG!$C$\"&#REF!&\":$AX$\"&#REF!),E$13,RAG!$C$2:$AX$2,$B19)","v":{"$error":"#REF!"}},{"$f":"COUNTIFS(INDIRECT(\"RAG!$C$\"&#REF!&\":$AX$\"&#REF!),F$13,RAG!$C$2:$AX$2,$B19)","v":{"$error":"#REF!"}},{"$f":"COUNTIFS(INDIRECT(\"RAG!$C$\"&#REF!&\":$AX$\"&#REF!),G$13,RAG!$C$2:$AX$2,$B19)","v":{"$error":"#REF!"}},"N/A","N/A","N/A","N/A","N/A","Uncertain","The area is not within 800m of an existing employment area. The adjoining Area of Future Growth in AVBC may contain mixed use development, and thus provide the opportunity for economic growth within the area, however this is not certain. Therefore, an uncertain effect is predicted.","No",null,"When an allocation is being considered in this area within the next iteration of the Local Plan, access to employment should be considered, within the context of proposed development within the adjoining AVBC area."]
["S07 Employment\nTo create greater employment opportunities and higher value jobs across the whole District","S07","· Will it help to improve skills levels and access to training within the District?\n· Will it reduce unemployment rates overall and reduce disparities which exist across different parts of the District?","Yes",{"$f":"COUNTIFS(INDIRECT(\"RAG!$C$\"&#REF!&\":$AX$\"&#REF!),E$13,RAG!$C$2:$AX$2,$B20)","v":{"$error":"#REF!"}},{"$f":"COUNTIFS(INDIRECT(\"RAG!$C$\"&#REF!&\":$AX$\"&#REF!),F$13,RAG!$C$2:$AX$2,$B20)","v":{"$error":"#REF!"}},{"$f":"COUNTIFS(INDIRECT(\"RAG!$C$\"&#REF!&\":$AX$\"&#REF!),G$13,RAG!$C$2:$AX$2,$B20)","v":{"$error":"#REF!"}},"N/A","N/A","N/A","N/A","N/A","Uncertain","The area is not within 800m of an existing employment area. The adjoining Area of Future Growth in AVBC may contain mixed use development, and thus provide employment opportunities within the area, however this is not certain. Therefore, an uncertain effect is predicted.","No",null,"When an allocation is being considered in this area within the next iteration of the Local Plan, access to employment should be considered, within the context of proposed development within the adjoining AVBC area.",null,null,"minor edits"]
["S08 Infrastructure\nTo deliver improved infrastructure to support growth and economic competitiveness of urban and rural businesses and communities.","S08","· Will it minimise the impact of traffic congestion on the strategic and local road network through the delivery of new or enhanced transport infrastructure?\n· Will it provide opportunities to access key services, including doctor’s surgeries, education facilities, employment and town, local or village centres by means other than car?\n· Will it make the best use of other infrastructure which serves new development?","No",{"$f":"COUNTIFS(INDIRECT(\"RAG!$C$\"&#REF!&\":$AX$\"&#REF!),E$13,RAG!$C$2:$AX$2,$B21)","v":{"$error":"#REF!"}},{"$f":"COUNTIFS(INDIRECT(\"RAG!$C$\"&#REF!&\":$AX$\"&#REF!),F$13,RAG!$C$2:$AX$2,$B21)","v":{"$error":"#REF!"}},{"$f":"COUNTIFS(INDIRECT(\"RAG!$C$\"&#REF!&\":$AX$\"&#REF!),G$13,RAG!$C$2:$AX$2,$B21)","v":{"$error":"#REF!"}},"Direct","Medium","Medium/Long","Localised","Permanent/Irreversible","Minor Positive","The area is within 1.2km of a secondary school, 400m of open space formal recreation, and 100m of a primary school (however this doesn't currently have  capacity). The area has poor access to a GP surgery and an existing employment site. The development of a new neighbourhood centre within the area would provide local facilities for new residents, enabling some self containment. Policy FLG1 also highlights the need for primary and secondary school provision and a 3G playing pitch to meet the needs arising from the development either on site or in the local community. Policy FLG1 also requires measures to mitigate the impact of the development on transport infrastructure through the potential construction of a new highway, as well as requires measures to improve public transport and active travel connections to the existing/proposed urban area and the wider countryside.  Finally, SDDC will work with AVBC to develop an infrastructure schedule and delivery, which should support the infrastructure needed as a conseqeunce of the development of this site.  Policy INF1 currently highlights that new development will only be permitted if necessary infrastructure (both on- and off-site) is already in place. Therefore, a potential minor positive effect is identified.","No"]
["S09 Sustainable Travel\nTo promote sustainable travel habits including walking, cycling and public transport (bus and rail) usage.  ","S09","· Will it reduce journey lengths and times? \n· Will it maximise opportunities for walking and cycling?\n· Will it maximise opportunities to access public transport provision?","Yes",{"$f":"COUNTIFS(INDIRECT(\"RAG!$C$\"&#REF!&\":$AX$\"&#REF!),E$13,RAG!$C$2:$AX$2,$B22)","v":{"$error":"#REF!"}},{"$f":"COUNTIFS(INDIRECT(\"RAG!$C$\"&#REF!&\":$AX$\"&#REF!),F$13,RAG!$C$2:$AX$2,$B22)","v":{"$error":"#REF!"}},{"$f":"COUNTIFS(INDIRECT(\"RAG!$C$\"&#REF!&\":$AX$\"&#REF!),G$13,RAG!$C$2:$AX$2,$B22)","v":{"$error":"#REF!"}},"Direct","Low","Medium/Long","Localised","Permanent/Irreversible","Minor Positive","The area currently lies within an acceptable distance to an existing bus stop. The area is more than 800m from a train station however, and is not in close proximity to existing cycle routes. Current Policy INF1 highlights that new development will only be permitted if necessary infrastructure (both on- and off-site) is already in place; this includes the provision and improvement of transport infrastructure. Policy FLG1 highlights that the site should integrate with existing rights of way, footpaths and highways in order to provide routes to existing services, facilities and the wider countryside. Policy FLG1 also requires measures to mitigate the impact of the development on transport infrastructure through the potential construction of a new highway, as well as requires measures to improve public transport and active travel connections to the existing/proposed urban area and the wider countryside. Finally, SDDC will work with AVBC to develop an 'access and movement framework', which should support the transport provision needed as a consequence of the development of this area. Therefore, a potential minor positive effect is identified. ","No",null,null,null,null,"is this the same as for site 1? I think it's slightly inconsistent. Please check\nThey have the same measures so it should be the same"]
["S010 Town and Village Centres\nTo ensure that town and village centres are vibrant and viable.","S010","· Will it improve existing shopping facilities within town and village centres? \n· Will it help safeguard existing town and village centres?","Yes",{"$f":"COUNTIFS(INDIRECT(\"RAG!$C$\"&#REF!&\":$AX$\"&#REF!),E$13,RAG!$C$2:$AX$2,$B23)","v":{"$error":"#REF!"}},{"$f":"COUNTIFS(INDIRECT(\"RAG!$C$\"&#REF!&\":$AX$\"&#REF!),F$13,RAG!$C$2:$AX$2,$B23)","v":{"$error":"#REF!"}},{"$f":"COUNTIFS(INDIRECT(\"RAG!$C$\"&#REF!&\":$AX$\"&#REF!),G$13,RAG!$C$2:$AX$2,$B23)","v":{"$error":"#REF!"}},"N/A","N/A","N/A","N/A","N/A","Neutral","The area is not located within or adjacent to a town or village centre (it is located on the edge of Derby City, and around 1.5km from Mickleover). The development of a new neighbourhood centre within the area would provide local facilities for new residents, enabling some self containment. These facilities would not be designed to provide facilities for the wider area. Therefore, a neutral effect is identified.","No"]
["S011 Resources\nTo minimise waste and ensure the sustainable use and protection of natural resources including greenfield land, soil and minerals resources.  ","S011","· Will it enhance opportunities for increased levels of recycling in the District?\n· Will it improve or remediate contaminated land or reuse previously developed land which has not been restored?\n· Will it protect Best and Most Versatile (BMV) Agricultural Land?\n· Will it avoid the sterilisation of minerals resources?","Yes",{"$f":"COUNTIFS(INDIRECT(\"RAG!$C$\"&#REF!&\":$AX$\"&#REF!),E$13,RAG!$C$2:$AX$2,$B24)","v":{"$error":"#REF!"}},{"$f":"COUNTIFS(INDIRECT(\"RAG!$C$\"&#REF!&\":$AX$\"&#REF!),F$13,RAG!$C$2:$AX$2,$B24)","v":{"$error":"#REF!"}},{"$f":"COUNTIFS(INDIRECT(\"RAG!$C$\"&#REF!&\":$AX$\"&#REF!),G$13,RAG!$C$2:$AX$2,$B24)","v":{"$error":"#REF!"}},"Direct","Low","Medium/Long","Localised","Permanent/Irreversible","Significant Negative","This area is located on grade 3 agricultural land; development will subsequently lead to the irreversible loss of greenfield land, and soils considered as the 'best and most versatile'. The area does not lie within a mineral safeguarding zone or on a historical landfill site. The development of area site in isolation will likely have no influence on the levels of recycling across South Derbyshire. However, It is assumed that this area, once allocated, will be in accordance with Policy BNE1 Design Excellence, which requires developments to provide adequate space for waste storage and collection. Finally, the site is classified as contaminated land. Policy SD4 Contaminated Land and Mining Legacy will require the development of the site so incorporate necessary remediation measures to protect human health and/or the natural environment. Therefore, as the loss of greenfield land/Grade 3 agricultural land cannot be mitigated, a potential significant negative effect is identified.","Yes","Policy BNE1 Design Excellence will require developments to provide adequate space for waste storage and collection.","Loss of greenfield land and Grade 3 agricultural land cannot be mitigated. A detailed agricultural land assessment should be undertaken in order to identify more accurately what the agricultural classification grade is on development sites"]
["S012 Pollution\nTo minimise water, air, light and noise pollution and ensure that future growth does not lead to the further deterioration of environmental conditions.","S012","· Will it contribute to improvements in water quality in the District?\n· Will it avoid increasing noise levels locally or introducing incompatible uses into an already noisy location?\n· Will it avoid deterioration in air quality within the District?\n· Will it reduce light pollution on sensitive receptors by keeping external lighting to the minimum required for safety and security?","Yes",{"$f":"COUNTIFS(INDIRECT(\"RAG!$C$\"&#REF!&\":$AX$\"&#REF!),E$13,RAG!$C$2:$AX$2,$B25)","v":{"$error":"#REF!"}},{"$f":"COUNTIFS(INDIRECT(\"RAG!$C$\"&#REF!&\":$AX$\"&#REF!),F$13,RAG!$C$2:$AX$2,$B25)","v":{"$error":"#REF!"}},{"$f":"COUNTIFS(INDIRECT(\"RAG!$C$\"&#REF!&\":$AX$\"&#REF!),G$13,RAG!$C$2:$AX$2,$B25)","v":{"$error":"#REF!"}},"N/A","N/A","N/A","N/A","N/A","Uncertain","The area currently experiences no noise pollution and low light pollution. It is likely that development at this scale will increase both noise and light pollution, as well as air pollution in South Derbyshire and Amber Valley. Policy SD1 Amenity and Environmental Quality will require developments to consider the need for a strategic buffer in order to mitigate noise and light pollution. The development should also be required to implement noise and light mitigation measures, although it is not clear whether all potential effects can be minimised through mitigation. Therefore, an uncertain effect has been predicted.","Yes","Policy SD1 Amenity and Environmental Quality will require developments to consider the need for a strategic buffer in order to mitigate noise and light pollution.","A criterion should be added to the policy which requires air, noise and light pollution to be planned and mitigated prior to development. Whilst Policy SD1 could help to achieve this, explicit criteria in the policy could help to ensure the best outcome for local receptors.",null,null,"I'm not sure that we can assume there is air pollution on the site just because it's near to some A roads. It would depend on the air dispersal pattern. I've edited the text and transferred to text about STRA2 into the assessment text. "]
["S013 Contributions to Climate Change \nTo reduce the District’s contribution towards the emission of climate change gases.","S013","· Will it provide opportunities to access local services and facilities by public transport walking or cycling?\n· Will it support the delivery of renewable energy capacity (including small scale or community energy projects)?\n· Will it support the shift toward usage of electric and ultralow emissions vehicles? ","Yes",{"$f":"COUNTIFS(INDIRECT(\"RAG!$C$\"&#REF!&\":$AX$\"&#REF!),E$13,RAG!$C$2:$AX$2,$B26)","v":{"$error":"#REF!"}},{"$f":"COUNTIFS(INDIRECT(\"RAG!$C$\"&#REF!&\":$AX$\"&#REF!),F$13,RAG!$C$2:$AX$2,$B26)","v":{"$error":"#REF!"}},{"$f":"COUNTIFS(INDIRECT(\"RAG!$C$\"&#REF!&\":$AX$\"&#REF!),G$13,RAG!$C$2:$AX$2,$B26)","v":{"$error":"#REF!"}},"Direct","Medium","Medium/Long","Localised","Permanent/Irreversible","Minor Positive","There is currently no EV charger within 600m of the area. Policy INF2 Sustainable Transport will require the development to include EV chargers however. The location of the area (near to Derby City) may assist in the development of heat networks , providing low carbon heating for future residents and potentially with coordination with the adjoining AVBC area. Policy FLG1 highlights that SDDC will work with AVBC to develop a sustainability and energy strategy in order to support the development of the area. The area is within 400m of a bus stop, but is not within 800m of a train station. Policy FLG1 highlights that the site should integrate with existing rights of way, footpaths and highways in order to provide routes to existing services, facilities and the wider countryside. Therefore, a potential minor positive effect is identified.\n","No","Policy INF2 Sustainable Transport will require  developments to make provision for EV chargers.",null,null,null,"minor edit. Edited enhancement measure. Is there no policy in the plan which promotes energy efficiency etc? If there isn't we might need to suggest they need one! \nThey do not have an energy efficiency policy- recommend to client"]
["S014 Adaptation to Climate Change \nTo manage the effects of climate change including flood risk, reduced water availability and overheating.","S014","· Will it minimise flood risk?\n· Will it include provision of sustainable urban drainage which mimic natural drainage patterns?\n· Will it contribute towards sustainable water use?","Yes",{"$f":"COUNTIFS(INDIRECT(\"RAG!$C$\"&#REF!&\":$AX$\"&#REF!),E$13,RAG!$C$2:$AX$2,$B27)","v":{"$error":"#REF!"}},{"$f":"COUNTIFS(INDIRECT(\"RAG!$C$\"&#REF!&\":$AX$\"&#REF!),F$13,RAG!$C$2:$AX$2,$B27)","v":{"$error":"#REF!"}},{"$f":"COUNTIFS(INDIRECT(\"RAG!$C$\"&#REF!&\":$AX$\"&#REF!),G$13,RAG!$C$2:$AX$2,$B27)","v":{"$error":"#REF!"}},"N/A","N/A","N/A","N/A","N/A","Neutral","The area lies within flood zone 1 . Mitigation will be provided in line with Local Plan policy (such as Policy SD2 Flood Risk) and Policy FLG1  requires a future allocation in this area to incorporate flood risk mitigation (SuDs), to address surface water flood risk issues. Therefore, a neutral effect is predicted.","No","Policy SD2 Flood Risk will require developments to incorporate flood risk mitigation, such as SuDs."]
["S015 Townscape and Historic Environment\nTo conserve and enhance the townscape, historic environment, heritage assets (including known and unknown archaeological sites) and their settings. ","S015","· Will it protect and enhance the condition and setting of historic, cultural, architectural and archaeological features in South Derbyshire?\n· Does it improve the quality of the built environment, and respect and protect existing townscape character?\n· Will it improve access to, and understanding of, the District’s historic and cultural assets for enjoyment and educational purposes?","Yes",{"$f":"COUNTIFS(INDIRECT(\"RAG!$C$\"&#REF!&\":$AX$\"&#REF!),E$13,RAG!$C$2:$AX$2,$B28)","v":{"$error":"#REF!"}},{"$f":"COUNTIFS(INDIRECT(\"RAG!$C$\"&#REF!&\":$AX$\"&#REF!),F$13,RAG!$C$2:$AX$2,$B28)","v":{"$error":"#REF!"}},{"$f":"COUNTIFS(INDIRECT(\"RAG!$C$\"&#REF!&\":$AX$\"&#REF!),G$13,RAG!$C$2:$AX$2,$B28)","v":{"$error":"#REF!"}},"N/A","N/A","N/A","N/A","N/A","Uncertain","Although the site is not within immediate proximity (50m) of any designated heritage assets, policy FLG1 highlights that there should be sensitive integration of heritage assets into the site design. This should include assessment of the archaeological remains including areas of former ridge and furrow, listed buildings, including Radbourne Hall, Scheduled Monuments, the registered park and garden and the Mackworth Conservation Area. Therefore, as there are potentially some assets which might be affected and it is not yet certain that negative effects can be fully mitigated, an uncertain effect is predicted.","No","Policy FLG1 requires minimisation of the level of harm through sensitive integration of heritage assets and their settings informed by a Heritage Impact Assessment.  ","No further mitigation recommended in addition to policy FLG1.",null,null,"see site 1 comment. Amended to mention development."]
["S016 Landscape\nTo conserve and enhance the District’s landscape character.","S016","· Does it respect and protect existing landscape character?\n· Will it protect sensitive landscapes including those within the World Heritage Site or its buffer or Special Landscape Areas?\n· Will it safeguard landscape features such as hedgerows?\n· Will it avoid intrusion into the greenbelt?","Yes",{"$f":"COUNTIFS(INDIRECT(\"RAG!$C$\"&#REF!&\":$AX$\"&#REF!),E$13,RAG!$C$2:$AX$2,$B29)","v":{"$error":"#REF!"}},{"$f":"COUNTIFS(INDIRECT(\"RAG!$C$\"&#REF!&\":$AX$\"&#REF!),F$13,RAG!$C$2:$AX$2,$B29)","v":{"$error":"#REF!"}},{"$f":"COUNTIFS(INDIRECT(\"RAG!$C$\"&#REF!&\":$AX$\"&#REF!),G$13,RAG!$C$2:$AX$2,$B29)","v":{"$error":"#REF!"}},"N/A","N/A","N/A","N/A","N/A","Uncertain","The site does not lie within the Greenbelt, however it does lie in secondary areas of multiple environmental sensitivity. Any impacts to landscape will be mitigated by Policy BNE4 which requires developments to conserve local distinctiveness, retain landscape features (e.g. hedgerows) and offset any damage to landscape features. Policy FLG1 also highlights that there should be landscaping on the site to ensure integration with the existing landscape, topography and green infrastructure. The development will still lead to the loss of greenfield land however, which could cause alterations to the landscape and it will need to be designed to integrate with adjoining Area of Future Growth in AVBC. For this reason, an uncertain effect is identified.","No","Policy BNE4 Landscape Character and Local Distinctiveness will require developments to conserve local distinctiveness, retain landscape features (e.g. hedgerows) and offset any damage to landscape features.","Loss of greenfield land cannot be mitigated.",null,null,"edited mitigation. Doesn't the strategic allocation policy contain any mitigation / requirement for GI or mention the green wedges?\nNot specifically the green wedges, this is only mentioned for Site 1"]

{"sheet":"H1_Settlement_Hierarchy","index":14,"n_rows":23,"n_cols":13,"rows_kept":23,"cut":false,"hidden":false,"merged":[[0,1,0,2],[1,1,1,2],[2,1,2,2],[3,1,3,2],[5,0,5,1],[5,2,5,11]]}
["Policy/Alternative name","Policy H1: Settlement Hierarchy"]
["Chapter","Housing"]
["Policy/alternative description","Policy H1 sets out the settlement hierarchy for the District, with settlements with similar roles grouped together as Urban Areas, Key Service Villages, Local Service Villages and Rural Villages. \nThe Settlement Hierarchy is based on the range of services and facilities that are offered by each settlement. The level of development for each settlement will be of a scale appropriate to the size and role of that settlement. As planning applications are received the merits of each individual site will be assessed through the Development Management process. \nThe settlement hierarchy is organised as follows: \n1) Urban Areas – the urban areas of Swadlincote including Woodville, adjoining Derby and adjoining Burton upon Trent \n2) Key Service Villages - Aston on Trent , Etwall, Hatton, Hilton, Linton, Melbourne, Overseal, Repton, Shardlow and Willington\t\t \n3) Local Service Villages - Coton in the Elms, Findern, Hartshorne, Mount Pleasant, Netherseal, Newton Solney, Rosliston, Ticknall and Weston on Trent \n4) Rural Villages - Ambaston, Barrow upon Trent, Bretby, Burnaston, Cauldwell, Church Broughton Coton Park, Dalbury, Drakelow Village Egginton, Elvaston, Foremark, Foston, Ingleby, Kings Newton, Lees, Long Lane, Lullington, Marston on Dove, Milton, Radbourne, Scropton, Smisby, Stanton, Stanton by Bridge, Sutton on the Hill, Swarkestone, Thulston, Trusley, Twyford, Walton on Trent \n5) Rural Areas – areas outside of the defined settlements listed above. Due to the lack of services and facilities and defined settlement boundaries, only development of limited infill and conversions of existing buildings will be acceptable."]
["Assumptions Made","None. "]
[]
["SA Framework",null,"SA Policy Assessment"]
["SA objective","SA sub-objective","Direct/\nIndirect","Magnitude","Duration","Spatial Extent","Permanence/ Reversibility","Significance","Description of potential effects","Potential for cumulative effects? ","Mitigation","Enhancements","SDDC Comments"]
["S01 Biodiversity\nTo safeguard and enhance biodiversity (including BAP habitats and species) and geodiversity through biodiversity net gain and improve connectivity between, and access to, green spaces and functional habitats.","· Will it conserve and enhance natural or semi natural habitats including internationally, nationally and locally designated wildlife sites, or create new wildlife habitats, and contribute to the creation of a network of habitats and green infrastructure in the District?\n· Will it protect BAP or protected species and contribute to the delivery of new, or safeguard existing BAP priority species and habitats?\n· Will it protect sites of geological importance?","N/A","N/A","N/A","N/A","N/A","Neutral","The policy neither supports nor detracts from the achievement of the SA objective. Therefore a neutral effect is predicted.","No"]
["S02 Housing\nTo ensure everyone has access to sustainable housing, which is affordable, and meets the needs of all residents including the elderly and other vulnerable groups and will support the vitality of existing communities and settlements. ","· Will it reduce the number of households waiting for accommodation or accepted as homeless?\n· Will it increase the number and mix of housing? \n· Will it improve the suitability of new homes for older and disabled people?\n· Will it provide affordable housing for those unable to access market housing?\n· Will it meet the needs of the travelling community and show people?\n· Will it secure infrastructure or community facilities?","N/A","N/A","N/A","N/A","N/A","Neutral","The policy neither supports nor detracts from the achievement of the SA objective. Therefore a neutral effect is predicted.","No"]
["S03 Accessibility and Health\nTo improve local accessibility to healthcare, education, employment, retail facilities and recreational resources (including open spaces and sports facilities) and enhance wellbeing, promoting healthy and sustainable lifestyles.","· Will it promote healthy lifestyles?\n· Will it deliver new, or contribute to the expansion or improvement of existing open spaces, green infrastructure, schools or healthcare facilities within reasonable walking distance?\n· Will it deliver growth within reasonable walking distance to a planned or existing major employment area (5ha +) or town centre?\n· Will it improve opportunities for active travel including walking and cycling?\n· Will it deliver services or facilities on-site or elsewhere within the District? ","Indirect","Low","Medium(10yrs)","District-wide","Permanent/Reversible","Minor Positive","Whilst Policy H1 will not provide new services, it will prioritise future development in locations where are in close proximity to existing services. This could help to ensure access to the services required is maintained for future residents. Therefore, an indirect minor positive effect has been identified. ","No"]
["S04 Quality of Life\nTo create safe and attractive places which contribute towards quality of life and community cohesion.","· Will it contribute towards reducing crime or fear of crime?\n· Will it provide attractive places which provide opportunities for communities to mix and meet?","N/A","N/A","N/A","N/A","N/A","Neutral","The policy neither supports nor detracts from the achievement of the SA objective. Therefore a neutral effect is predicted.","No"]
["S05 Inequalities\nEnsure all residents have equitable access to employment, education, community services and facilities irrespective of race, religion, sex, age, sexual orientation, disability, gender reassignment, marriage and civil partnership or pregnancy/maternity.","· Ensure the option / policy does not have an adverse/ discriminatory impact on protected characteristics/ equality groups?\n· Will it narrow the inequality gap between the richest and poorest in the District?\n· Will it reduce inequalities associated with deprivation across the District?","N/A","N/A","N/A","N/A","N/A","Neutral","The policy neither supports nor detracts from the achievement of the SA objective. Therefore a neutral effect is predicted.","No"]
["S06 Economy\nTo deliver growth in key employment sectors and support the creation of new and retention of existing businesses in urban and rural areas.","· Will it encourage the creation of new businesses and existing businesses to grow?\n· Will it encourage economic diversification?\n· Will it help support and encourage the growth of the local economy (including in rural areas)?\n· Will it support the enhancement of the District’s tourism and cultural offer?","N/A","N/A","N/A","N/A","N/A","Neutral","The policy neither supports nor detracts from the achievement of the SA objective. Therefore a neutral effect is predicted.","No"]
["S07 Employment\nTo create greater employment opportunities and higher value jobs across the whole District","· Will it help to improve skills levels and access to training within the District?\n· Will it reduce unemployment rates overall and reduce disparities which exist across different parts of the District?","N/A","N/A","N/A","N/A","N/A","Neutral","The policy neither supports nor detracts from the achievement of the SA objective. Therefore a neutral effect is predicted.","No"]
["S08 Infrastructure\nTo deliver improved infrastructure to support growth and economic competitiveness of urban and rural businesses and communities.","· Will it minimise the impact of traffic congestion on the strategic and local road network through the delivery of new or enhanced transport infrastructure?\n· Will it provide opportunities to access key services, including doctor’s surgeries, education facilities, employment and town, local or village centres by means other than car?\n· Will it make the best use of other infrastructure which serves new development?","N/A","N/A","N/A","N/A","N/A","Neutral","The policy neither supports nor detracts from the achievement of the SA objective. Therefore a neutral effect is predicted.","No"]
["S09 Sustainable Travel\nTo promote sustainable travel habits including walking, cycling and public transport (bus and rail) usage.  ","· Will it reduce journey lengths and times? \n· Will it maximise opportunities for walking and cycling?\n· Will it maximise opportunities to access public transport provision?","N/A","N/A","N/A","N/A","N/A","Neutral","The policy neither supports nor detracts from the achievement of the SA objective. Therefore a neutral effect is predicted.","No"]
["S010 Town and Village Centres\nTo ensure that town and village centres are vibrant and viable.","· Will it improve existing shopping facilities within town and village centres? \n· Will it help safeguard existing town and village centres?","Direct","Low","Medium(10yrs)","District-wide","Permanent/Reversible","Minor Positive","The settlement hierarchy detailed in Policy H1 could help to focus development into existing town and village centres, thus helping to maintain these settlements through increased footfall. ","No"]
["S011 Resources\nTo minimise waste and ensure the sustainable use and protection of natural resources including greenfield land, soil and minerals resources.  ","· Will it enhance opportunities for increased levels of recycling in the District?\n· Will it improve or remediate contaminated land or reuse previously developed land which has not been restored?\n· Will it protect Best and Most Versatile (BMV) Agricultural Land?\n· Will it avoid the sterilisation of minerals resources?","N/A","N/A","N/A","N/A","N/A","Neutral","The policy neither supports nor detracts from the achievement of the SA objective. Therefore a neutral effect is predicted.","No"]
["S012 Pollution\nTo minimise water, air, light and noise pollution and ensure that future growth does not lead to the further deterioration of environmental conditions.","· Will it contribute to improvements in water quality in the District?\n· Will it avoid increasing noise levels locally or introducing incompatible uses into an already noisy location?\n· Will it avoid deterioration in air quality within the District?\n· Will it reduce light pollution on sensitive receptors by keeping external lighting to the minimum required for safety and security?","N/A","N/A","N/A","N/A","N/A","Neutral","The policy neither supports nor detracts from the achievement of the SA objective. Therefore a neutral effect is predicted.","No"]
["S013 Contributions to Climate Change \nTo reduce the District’s contribution towards the emission of climate change gases.","· Will it provide opportunities to access local services and facilities by public transport walking or cycling?\n· Will it support the delivery of renewable energy capacity (including small scale or community energy projects)?\n· Will it support the shift toward usage of electric and ultralow emissions vehicles? ","N/A","N/A","N/A","N/A","N/A","Neutral","The policy neither supports nor detracts from the achievement of the SA objective. Therefore a neutral effect is predicted.","No"]
["S014 Adaptation to Climate Change \nTo manage the effects of climate change including flood risk, reduced water availability and overheating.","· Will it minimise flood risk?\n· Will it include provision of sustainable urban drainage which mimic natural drainage patterns?\n· Will it contribute towards sustainable water use?","N/A","N/A","N/A","N/A","N/A","Neutral","The policy neither supports nor detracts from the achievement of the SA objective. Therefore a neutral effect is predicted.","No"]
["S015 Townscape and Historic Environment\nTo conserve and enhance the townscape, historic environment, heritage assets (including known and unknown archaeological sites) and their settings. ","· Will it protect and enhance the condition and setting of historic, cultural, architectural and archaeological features in South Derbyshire?\n· Does it improve the quality of the built environment, and respect and protect existing townscape character?\n· Will it improve access to, and understanding of, the District’s historic and cultural assets for enjoyment and educational purposes?","N/A","N/A","N/A","N/A","N/A","Neutral","The policy neither supports nor detracts from the achievement of the SA objective. Therefore a neutral effect is predicted.","No"]
["S016 Landscape\nTo conserve and enhance the District’s landscape character.","· Does it respect and protect existing landscape character?\n· Will it protect sensitive landscapes including those within the World Heritage Site or its buffer or Special Landscape Areas?\n· Will it safeguard landscape features such as hedgerows?\n· Will it avoid intrusion into the greenbelt?","Direct","Low","Medium(10yrs)","District-wide","Permanent/Reversible","Minor Positive","Policy H1 will only permit limited infill development to occur outside of existing settlement boundaries. This could help to protect the existing landscape and avoid intrusion into the greenbelt. ","No"]

{"sheet":"H16_Primula_Way_Sunny_Hill","index":15,"n_rows":23,"n_cols":13,"rows_kept":23,"cut":false,"hidden":true,"merged":[[0,1,0,2],[1,1,1,2],[2,1,2,2],[3,1,3,2],[5,0,5,1],[5,2,5,11]]}
["Policy/Alternative name","Policy H16: Primula Way, Sunny Hill"]
["Chapter","Housing"]
["Policy/alternative description","Policy H16: Primula Way, Sunny Hill outlines the requirements for a residential development for around 500 dwellings. The Council will require the below listed site specifics and accordance with other Local Plan policies:\ni)\tThe south and west boundary of the site will require a green buffer and landscaping, to help soften the housing development against the rural landscape and create a new defensible boundary;\nii)\tAppropriate sound attenuation/noise mitigation from the railway line to the east of the site shall be provided.\niii)\tThe development should have high quality pedestrian connections into the existing residential areas within Derby City; "]
["Assumptions Made","None."]
[]
["SA Framework",null,"SA Policy Assessment"]
["SA objective","SA sub-objective","Direct/\nIndirect","Magnitude","Duration","Spatial Extent","Permanence/ Reversibility","Significance","Description of potential effects","Potential for cumulative effects? ","Mitigation","Enhancements","SDDC Comments"]
["S01 Biodiversity\nTo safeguard and enhance biodiversity (including BAP habitats and species) and geodiversity through biodiversity net gain and improve connectivity between, and access to, green spaces and functional habitats.","· Will it conserve and enhance natural or semi natural habitats including internationally, nationally and locally designated wildlife sites, or create new wildlife habitats?\n· Will it protect BAP or protected species and contribute to the delivery of new, or safeguard existing BAP priority species and habitats?\n· Will it protect sites of geological importance?","Direct","Medium","Long(20+yrs)","Regional","Permenant/Irreversible","Neutral","The policy does not directly address the requirements of this policy, however other policies within the Local Plan will ensure these are met, therefore a netural effect is predicted. "]
["S02 Housing\nTo ensure everyone has access to sustainable housing, which is affordable, and meets the needs of all residents including the elderly and other vulnerable groups and will support the vitality of existing communities and settlements. ","· Will it reduce the number of households waiting for accommodation or accepted as homeless?\n· Will it increase the number and mix of housing? \n· Will it improve the suitability of new homes for older and disabled people?\n· Will it provide affordable housing for those unable to access market housing?\n· Will it meet the needs of the travelling community and show people?\n· Will it secure infrastructure or community facilities?","Direct","Medium","Long(20+yrs)","District-wide","Permenant/Irreversible","Uncertain","This policy will increase the District's housing stock my around 500 dwellings. The policy states that developer contributions are to be made towards improvements to the A50/A514 and A50/A38 junctions to safeguard the operation of the Strategic Road Network. The policy does not stipulate whether the development will provide any affordable homes, gypsy or traveller accomodation. The housing mix at this site is also not outlined within the policy. In the absence of this information, an uncertain effect is predicted. "]
["S03 Accessibility and Health\nTo improve local accessibility to healthcare, education, employment, retail facilities and recreational resources (including open spaces and sports facilities) and enhance wellbeing, promoting healthy and sustainable lifestyles.","· Will it promote healthy lifestyles?\n· Will it deliver new, or contribute to the expansion or improvement of existing open spaces, schools or healthcare facilities within reasonable walking distance?\n· Will it deliver growth within reasonable walking distance to a planned or existing major employment area (5ha +) or town centre?\n· Will it improve opportunities for active travel including walking and cycling?\n· Will it deliver services or facilities on-site or elsewhere within the District? ","Direct","Medium","Medium(10yrs)","District-wide","Permenant/Reversible","Minor Negative","The policy states that development at this site will provide high quality pedestrian connections into the existing residential areas within Derby City. No other aspects of this policy ensure measures are put in place which will improve accessibility or health. A potential minor negative effect is therefore identified. ",null,null,"This policy should ensure high-quality cycle infrastructure is provided to allow for safe and sustainable transport connections between the development and key services within Derby City. "]
["S04 Quality of Life\nTo create safe and attractive places which contribute towards quality of life and community cohesion.","· Will it contribute towards reducing crime or fear of crime?\n· Will it provide attractive places which provide opportunities for communities to mix and meet?","Direct","Medium","Medium(10yrs)","Localised","Temporary/Reversible","Uncertain","The policy supports this objective by providing a green buffer and landscaping, which can create attractive and safe environments for residents. The policy does not make reference to any other ways in which the development would foster good quality of life and community cohesion. Therefore, an uncertain effect is predicted."]
["S05 Inequalities\nEnsure all residents have equitable access to employment, education, community services and facilities irrespective of race, religion, sex, age, sexual orientation, disability, gender reassignment, marriage and civil partnership or pregnancy/maternity.","· Ensure the option / policy does not have an adverse/ discriminatory impact on protected characteristics/ equality groups?\n· Will it narrow the inequality gap between the richest and poorest in the District?\n· Will it reduce inequalities associated with deprivation across the District?"]
["S06 Economy\nTo deliver growth in key employment sectors and support the creation of new and retention of existing businesses in urban and rural areas.","· Will it encourage the creation of new businesses and existing businesses to grow?\n· Will it encourage economic diversification?\n· Will it help support and encourage the growth of the local economy (including in rural areas)?\n· Will it support the enhancement of the District’s tourism and cultural offer?"]
["S07 Employment\nTo create greater employment opportunities and higher value jobs across the whole District","· Will it help to improve skills levels and access to training within the District?\n· Will it reduce unemployment rates overall and reduce disparities which exist across different parts of the District?"]
["S08 Infrastructure\nTo deliver improved infrastructure to support growth and economic competitiveness of urban and rural businesses and communities.","· Will it minimise the impact of traffic congestion on the strategic and local road network through the delivery of new or enhanced transport infrastructure?\n· Will it provide opportunities to access key services, including doctor’s surgeries, education facilities, employment and town, local or village centres by means other than car?\n· Will it make the best use of other infrastructure which serves new development?"]
["S09 Sustainable Travel\nTo promote sustainable travel habits including walking, cycling and public transport (bus and rail) usage.  ","· Will it reduce journey lengths and times? \n· Will it maximise opportunities for walking and cycling?\n· Will it maximise opportunities to access public transport provision?"]
["S010 Town and Village Centres\nTo ensure that town and village centres are vibrant and viable.","· Will it improve existing shopping facilities within town and village centres? \n· Will it help safeguard existing town and village centres?"]
["S011 Resources\nTo minimise waste and ensure the sustainable use and protection of natural resources including greenfield land, soil and minerals resources.  ","· Will it enhance opportunities for increased levels of recycling in the District?\n· Will it improve or remediate contaminated land or reuse previously developed land which has not been restored?\n· Will it protect Best and Most Versatile (BMV) Agricultural Land?\n· Will it avoid the sterilisation of minerals resources?"]
["S012 Pollution\nTo minimise water, air, light and noise pollution and ensure that future growth does not lead to the further deterioration of environmental conditions.","· Will it contribute to improvements in water quality in the District?\n· Will it avoid increasing noise levels locally or introducing incompatible uses into an already noisy location?\n· Will it avoid deterioration in air quality within the District?\n· Will it reduce light pollution on sensitive receptors by keeping external lighting to the minimum required for safety and security?"]
["S013 Contributions to Climate Change \nTo reduce the District’s contribution towards the emission of climate change gases.","· Will it provide opportunities to access local services and facilities by public transport walking or cycling?\n· Will it support the delivery of renewable energy capacity (including small scale or community energy projects)?\n· Will it support the shift toward usage of electric and ultralow emissions vehicles? ",null,null,null,null,null,null,"This policy will ensure high-qualitity pedestrian routes are provided between the site and other residential areas in Derby. The policy does not require suitable bicycle infrastructure to be provided. The site is served by a bus which connects the site to the Derby City. "]
["S014 Adaptation to Climate Change \nTo manage the effects of climate change including flood risk, reduced water availability and overheating.","· Will it minimise flood risk?\n· Will it include provision of sustainable urban drainage which mimic natural drainage patterns?\n· Will it contribute towards sustainable water use?","Direct","Medium","Long(20+yrs)","Regional","Permenant/Irreversible","Minor Negative","This policy states that 500 new dwellings will be built on greenfield land which is likely to increase the risk of flooding in the area. Other Local Plan policies will ensure that SUDS are provided on-site which should lessen the effects of this policy, therefore a potential minor negative effect is identified. "]
["S015 Townscape and Historic Environment\nTo conserve and enhance the townscape, historic environment, heritage assets (including known and unknown archaeological sites) and their settings. ","· Will it protect and enhance the condition and setting of historic, cultural, architectural and archaeological features in South Derbyshire?\n· Does it improve the quality of the built environment, and respect and protect existing townscape character?\n· Will it improve access to, and understanding of, the District’s historic and cultural assets for enjoyment and educational purposes?","N/A","N/A","N/A","N/A","N/A","Neutral","The policy neither supports nor detracts from the achievement of the SA objective. Therefore a neutral effect is predicted."]
["S016 Landscape\nTo conserve and enhance the District’s landscape character.","· Does it respect and protect existing landscape character?\n· Will it protect sensitive landscapes including those within the World Heritage Site or its buffer or Special Landscape Areas?\n· Will it safeguard landscape features such as hedgerows?\n· Will it avoid intrusion into the greenbelt?","Direct","Medium","Long(20+yrs)","Regional","Permenant/Irreversible","Neutral","The policy wil ensure screening in the form of a green buffer and lanscaping is present at the south and western boundary of the site . This will help to soften the housing development against the rural landscape and create a new defensible boundary. Therefore a neutral effect is predicted"]

{"sheet":"H20_Housing_Balance","index":16,"n_rows":23,"n_cols":13,"rows_kept":23,"cut":false,"hidden":false,"merged":[[0,1,0,2],[1,1,1,2],[2,1,2,2],[3,1,3,2],[5,0,5,1],[5,2,5,11]]}
["Policy/Alternative name","Policy H20: Housing Balance & Custom/Self-build "]
["Chapter","Housing"]
["Policy/alternative description","Policy H20 sets out the balance of housing required across the District in terms of both size and tenure. Specific requirements are also set out to detail the number of homes required to meet the specific needs of those with disabilities, housing with care and residential bed spaces. The mix of market and affordable homes expected to meet wheelchair adaptability criteria are also set out for major and mixed use developments. Provision for bungalows within mixed developments, custom and self builds are also detailed. "]
["Assumptions Made","None. "]
[]
["SA Framework",null,"SA Policy Assessment"]
["SA objective","SA sub-objective","Direct/\nIndirect","Magnitude","Duration","Spatial Extent","Permanence/ Reversibility","Significance","Description of potential effects","Potential for cumulative effects? ","Mitigation","Enhancements","SDDC Comments"]
["S01 Biodiversity\nTo safeguard and enhance biodiversity (including BAP habitats and species) and geodiversity through biodiversity net gain and improve connectivity between, and access to, green spaces and functional habitats.","· Will it conserve and enhance natural or semi natural habitats including internationally, nationally and locally designated wildlife sites, or create new wildlife habitats, and contribute to the creation of a network of habitats and green infrastructure in the District?\n· Will it protect BAP or protected species and contribute to the delivery of new, or safeguard existing BAP priority species and habitats?\n· Will it protect sites of geological importance?","N/A","N/A","N/A","N/A","N/A","Neutral","The policy neither supports nor detracts from the achievement of the SA objective. Therefore a neutral effect is predicted.","No"]
["S02 Housing\nTo ensure everyone has access to sustainable housing, which is affordable, and meets the needs of all residents including the elderly and other vulnerable groups and will support the vitality of existing communities and settlements. ","· Will it reduce the number of households waiting for accommodation or accepted as homeless?\n· Will it increase the number and mix of housing? \n· Will it improve the suitability of new homes for older and disabled people?\n· Will it provide affordable housing for those unable to access market housing?\n· Will it meet the needs of the travelling community and show people?\n· Will it secure infrastructure or community facilities?","Direct","Medium","Medium/Long","District-wide","Permanent/Irreversible","Significant Positive","Policy H20 supports the achievement of S02 as it sets out the housing balance for size and tenure required across the District. This will ensure there are homes of the appropriate size and tenure available for all residents. Therefore, a potential significant positive effect has been identified.","Yes"]
["S03 Accessibility and Health\nTo improve local accessibility to healthcare, education, employment, retail facilities and recreational resources (including open spaces and sports facilities) and enhance wellbeing, promoting healthy and sustainable lifestyles.","· Will it promote healthy lifestyles?\n· Will it deliver new, or contribute to the expansion or improvement of existing open spaces, green infrastructure, schools or healthcare facilities within reasonable walking distance?\n· Will it deliver growth within reasonable walking distance to a planned or existing major employment area (5ha +) or town centre?\n· Will it improve opportunities for active travel including walking and cycling?\n· Will it deliver services or facilities on-site or elsewhere within the District? ","N/A","N/A","N/A","N/A","N/A","Neutral","The policy neither supports nor detracts from the achievement of the SA objective. Therefore a neutral effect is predicted.","No"]
["S04 Quality of Life\nTo create safe and attractive places which contribute towards quality of life and community cohesion.","· Will it contribute towards reducing crime or fear of crime?\n· Will it provide attractive places which provide opportunities for communities to mix and meet?","N/A","N/A","N/A","N/A","N/A","Neutral","The policy neither supports nor detracts from the achievement of the SA objective. Therefore a neutral effect is predicted.","No"]
["S05 Inequalities\nEnsure all residents have equitable access to employment, education, community services and facilities irrespective of race, religion, sex, age, sexual orientation, disability, gender reassignment, marriage and civil partnership or pregnancy/maternity.","· Ensure the option / policy does not have an adverse/ discriminatory impact on protected characteristics/ equality groups?\n· Will it narrow the inequality gap between the richest and poorest in the District?\n· Will it reduce inequalities associated with deprivation across the District?","Direct","Low","Medium/Long","Localised","Permanent/Reversible","Minor Positive","Policy H20 specifically sets out the need to accommodate those with specific needs in criterion B. Criterion D also includes the need for wheelchair access in homes. These elements could help to ensure some protected characteristics are considered in new housing developments within the District, hence a minor positive effect has been identified. ","No"]
["S06 Economy\nTo deliver growth in key employment sectors and support the creation of new and retention of existing businesses in urban and rural areas.","· Will it encourage the creation of new businesses and existing businesses to grow?\n· Will it encourage economic diversification?\n· Will it help support and encourage the growth of the local economy (including in rural areas)?\n· Will it support the enhancement of the District’s tourism and cultural offer?","N/A","N/A","N/A","N/A","N/A","Neutral","The policy neither supports nor detracts from the achievement of the SA objective. Therefore a neutral effect is predicted.","No"]
["S07 Employment\nTo create greater employment opportunities and higher value jobs across the whole District","· Will it help to improve skills levels and access to training within the District?\n· Will it reduce unemployment rates overall and reduce disparities which exist across different parts of the District?","N/A","N/A","N/A","N/A","N/A","Neutral","The policy neither supports nor detracts from the achievement of the SA objective. Therefore a neutral effect is predicted.","No"]
["S08 Infrastructure\nTo deliver improved infrastructure to support growth and economic competitiveness of urban and rural businesses and communities.","· Will it minimise the impact of traffic congestion on the strategic and local road network through the delivery of new or enhanced transport infrastructure?\n· Will it provide opportunities to access key services, including doctor’s surgeries, education facilities, employment and town, local or village centres by means other than car?\n· Will it make the best use of other infrastructure which serves new development?","N/A","N/A","N/A","N/A","N/A","Neutral","The policy neither supports nor detracts from the achievement of the SA objective. Therefore a neutral effect is predicted.","No"]
["S09 Sustainable Travel\nTo promote sustainable travel habits including walking, cycling and public transport (bus and rail) usage.  ","· Will it reduce journey lengths and times? \n· Will it maximise opportunities for walking and cycling?\n· Will it maximise opportunities to access public transport provision?","N/A","N/A","N/A","N/A","N/A","Neutral","The policy neither supports nor detracts from the achievement of the SA objective. Therefore a neutral effect is predicted.","No"]
["S010 Town and Village Centres\nTo ensure that town and village centres are vibrant and viable.","· Will it improve existing shopping facilities within town and village centres? \n· Will it help safeguard existing town and village centres?","N/A","N/A","N/A","N/A","N/A","Neutral","The policy neither supports nor detracts from the achievement of the SA objective. Therefore a neutral effect is predicted.","No"]
["S011 Resources\nTo minimise waste and ensure the sustainable use and protection of natural resources including greenfield land, soil and minerals resources.  ","· Will it enhance opportunities for increased levels of recycling in the District?\n· Will it improve or remediate contaminated land or reuse previously developed land which has not been restored?\n· Will it protect Best and Most Versatile (BMV) Agricultural Land?\n· Will it avoid the sterilisation of minerals resources?","N/A","N/A","N/A","N/A","N/A","Neutral","The policy neither supports nor detracts from the achievement of the SA objective. Therefore a neutral effect is predicted.","No"]
["S012 Pollution\nTo minimise water, air, light and noise pollution and ensure that future growth does not lead to the further deterioration of environmental conditions.","· Will it contribute to improvements in water quality in the District?\n· Will it avoid increasing noise levels locally or introducing incompatible uses into an already noisy location?\n· Will it avoid deterioration in air quality within the District?\n· Will it reduce light pollution on sensitive receptors by keeping external lighting to the minimum required for safety and security?","N/A","N/A","N/A","N/A","N/A","Neutral","The policy neither supports nor detracts from the achievement of the SA objective. Therefore a neutral effect is predicted.","No"]
["S013 Contributions to Climate Change \nTo reduce the District’s contribution towards the emission of climate change gases.","· Will it provide opportunities to access local services and facilities by public transport walking or cycling?\n· Will it support the delivery of renewable energy capacity (including small scale or community energy projects)?\n· Will it support the shift toward usage of electric and ultralow emissions vehicles? ","N/A","N/A","N/A","N/A","N/A","Neutral","The policy neither supports nor detracts from the achievement of the SA objective. Therefore a neutral effect is predicted.","No"]
["S014 Adaptation to Climate Change \nTo manage the effects of climate change including flood risk, reduced water availability and overheating.","· Will it minimise flood risk?\n· Will it include provision of sustainable urban drainage which mimic natural drainage patterns?\n· Will it contribute towards sustainable water use?","N/A","N/A","N/A","N/A","N/A","Neutral","The policy neither supports nor detracts from the achievement of the SA objective. Therefore a neutral effect is predicted.","No"]
["S015 Townscape and Historic Environment\nTo conserve and enhance the townscape, historic environment, heritage assets (including known and unknown archaeological sites) and their settings. ","· Will it protect and enhance the condition and setting of historic, cultural, architectural and archaeological features in South Derbyshire?\n· Does it improve the quality of the built environment, and respect and protect existing townscape character?\n· Will it improve access to, and understanding of, the District’s historic and cultural assets for enjoyment and educational purposes?","N/A","N/A","N/A","N/A","N/A","Neutral","The policy neither supports nor detracts from the achievement of the SA objective. Therefore a neutral effect is predicted.","No"]
["S016 Landscape\nTo conserve and enhance the District’s landscape character.","· Does it respect and protect existing landscape character?\n· Will it protect sensitive landscapes including those within the World Heritage Site or its buffer or Special Landscape Areas?\n· Will it safeguard landscape features such as hedgerows?\n· Will it avoid intrusion into the greenbelt?","N/A","N/A","N/A","N/A","N/A","Neutral","The policy neither supports nor detracts from the achievement of the SA objective. Therefore a neutral effect is predicted.","No"]

{"sheet":"H21_Affordable_Housing","index":17,"n_rows":23,"n_cols":13,"rows_kept":23,"cut":false,"hidden":false,"merged":[[0,1,0,2],[1,1,1,2],[2,1,2,2],[3,1,3,2],[5,0,5,1],[5,2,5,11]]}
["Policy/Alternative name","Policy H21: Affordable Housing "]
["Chapter","Housing"]
["Policy/alternative description","Policy H21 sets out the requirement for 40% affordable housing as defined in the NPPF on sites of over 10 dwellings. Lower proportions of affordable housing will only be accepted where a viability assessment, prepared in accordance with national planning policy and guidance, clearly demonstrates that the full policy requirement cannot be achieved. The expectation for rural exception sites to provide affordable housing are also set out, alongside the criteria which need to be met where this cannot reasonably be met. "]
["Assumptions Made","None. "]
[]
["SA Framework",null,"SA Policy Assessment"]
["SA objective","SA sub-objective","Direct/\nIndirect","Magnitude","Duration","Spatial Extent","Permanence/ Reversibility","Significance","Description of potential effects","Potential for cumulative effects? ","Mitigation","Enhancements","SDDC Comments"]
["S01 Biodiversity\nTo safeguard and enhance biodiversity (including BAP habitats and species) and geodiversity through biodiversity net gain and improve connectivity between, and access to, green spaces and functional habitats.","· Will it conserve and enhance natural or semi natural habitats including internationally, nationally and locally designated wildlife sites, or create new wildlife habitats, and contribute to the creation of a network of habitats and green infrastructure in the District?\n· Will it protect BAP or protected species and contribute to the delivery of new, or safeguard existing BAP priority species and habitats?\n· Will it protect sites of geological importance?","N/A","N/A","N/A","N/A","N/A","Neutral","The policy neither supports nor detracts from the achievement of the SA objective. Therefore a neutral effect is predicted.","No"]
["S02 Housing\nTo ensure everyone has access to sustainable housing, which is affordable, and meets the needs of all residents including the elderly and other vulnerable groups and will support the vitality of existing communities and settlements. ","· Will it reduce the number of households waiting for accommodation or accepted as homeless?\n· Will it increase the number and mix of housing? \n· Will it improve the suitability of new homes for older and disabled people?\n· Will it provide affordable housing for those unable to access market housing?\n· Will it meet the needs of the travelling community and show people?\n· Will it secure infrastructure or community facilities?","N/A","N/A","N/A","N/A","N/A","Uncertain","Policy H21 sets out a requirement for 40% affordable housing provision for new developments where there will be 10 or more homes. This will help to increase the number of affordable housing within the District and is above that of the NPPF, to reflect local need as evidenced in the Local Housing Needs Assessment. However, criterion B of the policy permits a lower proportion of development where a viability assessment demonstrates that the 40% requirement cannot be achieved. It is therefore unclear how many sites will provide 40% of affordable housing. Therefore, an overall uncertain effect has been predicted. ","No","The addition of wording to the effect of permitting development which does not meet the 40% requirement on the provision that the overall affordable housing target can be met. "]
["S03 Accessibility and Health\nTo improve local accessibility to healthcare, education, employment, retail facilities and recreational resources (including open spaces and sports facilities) and enhance wellbeing, promoting healthy and sustainable lifestyles.","· Will it promote healthy lifestyles?\n· Will it deliver new, or contribute to the expansion or improvement of existing open spaces, green infrastructure, schools or healthcare facilities within reasonable walking distance?\n· Will it deliver growth within reasonable walking distance to a planned or existing major employment area (5ha +) or town centre?\n· Will it improve opportunities for active travel including walking and cycling?\n· Will it deliver services or facilities on-site or elsewhere within the District? ","N/A","N/A","N/A","N/A","N/A","Neutral","The policy neither supports nor detracts from the achievement of the SA objective. Therefore a neutral effect is predicted.","No"]
["S04 Quality of Life\nTo create safe and attractive places which contribute towards quality of life and community cohesion.","· Will it contribute towards reducing crime or fear of crime?\n· Will it provide attractive places which provide opportunities for communities to mix and meet?","N/A","N/A","N/A","N/A","N/A","Neutral","The policy neither supports nor detracts from the achievement of the SA objective. Therefore a neutral effect is predicted.","No"]
["S05 Inequalities\nEnsure all residents have equitable access to employment, education, community services and facilities irrespective of race, religion, sex, age, sexual orientation, disability, gender reassignment, marriage and civil partnership or pregnancy/maternity.","· Ensure the option / policy does not have an adverse/ discriminatory impact on protected characteristics/ equality groups?\n· Will it narrow the inequality gap between the richest and poorest in the District?\n· Will it reduce inequalities associated with deprivation across the District?","N/A","N/A","N/A","N/A","N/A","Neutral","The policy neither supports nor detracts from the achievement of the SA objective. Therefore a neutral effect is predicted.","No"]
["S06 Economy\nTo deliver growth in key employment sectors and support the creation of new and retention of existing businesses in urban and rural areas.","· Will it encourage the creation of new businesses and existing businesses to grow?\n· Will it encourage economic diversification?\n· Will it help support and encourage the growth of the local economy (including in rural areas)?\n· Will it support the enhancement of the District’s tourism and cultural offer?","N/A","N/A","N/A","N/A","N/A","Neutral","The policy neither supports nor detracts from the achievement of the SA objective. Therefore a neutral effect is predicted.","No"]
["S07 Employment\nTo create greater employment opportunities and higher value jobs across the whole District","· Will it help to improve skills levels and access to training within the District?\n· Will it reduce unemployment rates overall and reduce disparities which exist across different parts of the District?","N/A","N/A","N/A","N/A","N/A","Neutral","The policy neither supports nor detracts from the achievement of the SA objective. Therefore a neutral effect is predicted.","No"]
["S08 Infrastructure\nTo deliver improved infrastructure to support growth and economic competitiveness of urban and rural businesses and communities.","· Will it minimise the impact of traffic congestion on the strategic and local road network through the delivery of new or enhanced transport infrastructure?\n· Will it provide opportunities to access key services, including doctor’s surgeries, education facilities, employment and town, local or village centres by means other than car?\n· Will it make the best use of other infrastructure which serves new development?","N/A","N/A","N/A","N/A","N/A","Neutral","The policy neither supports nor detracts from the achievement of the SA objective. Therefore a neutral effect is predicted.","No"]
["S09 Sustainable Travel\nTo promote sustainable travel habits including walking, cycling and public transport (bus and rail) usage.  ","· Will it reduce journey lengths and times? \n· Will it maximise opportunities for walking and cycling?\n· Will it maximise opportunities to access public transport provision?","N/A","N/A","N/A","N/A","N/A","Neutral","The policy neither supports nor detracts from the achievement of the SA objective. Therefore a neutral effect is predicted.","No"]
["S010 Town and Village Centres\nTo ensure that town and village centres are vibrant and viable.","· Will it improve existing shopping facilities within town and village centres? \n· Will it help safeguard existing town and village centres?","N/A","N/A","N/A","N/A","N/A","Neutral","The policy neither supports nor detracts from the achievement of the SA objective. Therefore a neutral effect is predicted.","No"]
["S011 Resources\nTo minimise waste and ensure the sustainable use and protection of natural resources including greenfield land, soil and minerals resources.  ","· Will it enhance opportunities for increased levels of recycling in the District?\n· Will it improve or remediate contaminated land or reuse previously developed land which has not been restored?\n· Will it protect Best and Most Versatile (BMV) Agricultural Land?\n· Will it avoid the sterilisation of minerals resources?","N/A","N/A","N/A","N/A","N/A","Neutral","The policy neither supports nor detracts from the achievement of the SA objective. Therefore a neutral effect is predicted.","No"]
["S012 Pollution\nTo minimise water, air, light and noise pollution and ensure that future growth does not lead to the further deterioration of environmental conditions.","· Will it contribute to improvements in water quality in the District?\n· Will it avoid increasing noise levels locally or introducing incompatible uses into an already noisy location?\n· Will it avoid deterioration in air quality within the District?\n· Will it reduce light pollution on sensitive receptors by keeping external lighting to the minimum required for safety and security?","N/A","N/A","N/A","N/A","N/A","Neutral","The policy neither supports nor detracts from the achievement of the SA objective. Therefore a neutral effect is predicted.","No"]
["S013 Contributions to Climate Change \nTo reduce the District’s contribution towards the emission of climate change gases.","· Will it provide opportunities to access local services and facilities by public transport walking or cycling?\n· Will it support the delivery of renewable energy capacity (including small scale or community energy projects)?\n· Will it support the shift toward usage of electric and ultralow emissions vehicles? ","N/A","N/A","N/A","N/A","N/A","Neutral","The policy neither supports nor detracts from the achievement of the SA objective. Therefore a neutral effect is predicted.","No"]
["S014 Adaptation to Climate Change \nTo manage the effects of climate change including flood risk, reduced water availability and overheating.","· Will it minimise flood risk?\n· Will it include provision of sustainable urban drainage which mimic natural drainage patterns?\n· Will it contribute towards sustainable water use?","N/A","N/A","N/A","N/A","N/A","Neutral","The policy neither supports nor detracts from the achievement of the SA objective. Therefore a neutral effect is predicted.","No"]
["S015 Townscape and Historic Environment\nTo conserve and enhance the townscape, historic environment, heritage assets (including known and unknown archaeological sites) and their settings. ","· Will it protect and enhance the condition and setting of historic, cultural, architectural and archaeological features in South Derbyshire?\n· Does it improve the quality of the built environment, and respect and protect existing townscape character?\n· Will it improve access to, and understanding of, the District’s historic and cultural assets for enjoyment and educational purposes?","N/A","N/A","N/A","N/A","N/A","Neutral","The policy neither supports nor detracts from the achievement of the SA objective. Therefore a neutral effect is predicted.","No"]
["S016 Landscape\nTo conserve and enhance the District’s landscape character.","· Does it respect and protect existing landscape character?\n· Will it protect sensitive landscapes including those within the World Heritage Site or its buffer or Special Landscape Areas?\n· Will it safeguard landscape features such as hedgerows?\n· Will it avoid intrusion into the greenbelt?","N/A","N/A","N/A","N/A","N/A","Neutral","The policy neither supports nor detracts from the achievement of the SA objective. Therefore a neutral effect is predicted.","No"]

{"sheet":"H22_Gypsies_Travellers","index":18,"n_rows":23,"n_cols":14,"rows_kept":23,"cut":false,"hidden":false,"merged":[[0,1,0,2],[1,1,1,2],[2,1,2,2],[3,1,3,2],[5,0,5,1],[5,2,5,11]]}
["Policy/Alternative name","Policy H22: Gypsies and Travellers and for Travelling Showpeople"]
["Chapter","Housing"]
["Policy/alternative description","Policy H22 sets out the requirement for accommodation to meet the needs of Gypsy and Travellers and Travelling Showpeople throughout the District. This will predominantly be met through provision on strategic sites, where serviced pitched will be needed alongside the first housing completion, as well as serviced pitches on alternative land. The standard of sites is also set out in criterion C, which requires sites to be of an appropriate scale, with good vehicular and pedestrian access and provide a safe and acceptable living environment for occupiers. Existing Gypsy and Traveller pitches/sites will be protected, with removal of such sites only permitted where there is no longer demand. "]
["Assumptions Made","None. "]
[]
["SA Framework",null,"SA Policy Assessment"]
["SA objective","SA sub-objective","Direct/\nIndirect","Magnitude","Duration","Spatial Extent","Permanence/ Reversibility","Significance","Description of potential effects","Potential for cumulative effects? ","Mitigation","Enhancements","SDDC Comments"]
["S01 Biodiversity\nTo safeguard and enhance biodiversity (including BAP habitats and species) and geodiversity through biodiversity net gain and improve connectivity between, and access to, green spaces and functional habitats.","· Will it conserve and enhance natural or semi natural habitats including internationally, nationally and locally designated wildlife sites, or create new wildlife habitats, and contribute to the creation of a network of habitats and green infrastructure in the District?\n· Will it protect BAP or protected species and contribute to the delivery of new, or safeguard existing BAP priority species and habitats?\n· Will it protect sites of geological importance?","Direct","Low","Medium(10yrs)","Localised","Permanent/Reversible","Minor Positive","Criterion Ci requires that Gypsy and Traveller pitches and plots for Travelling Showpeople do not result in \"an unacceptable impact on the local environment, including biodiversity\". This could help to protect biodiversity within the District on such sites. ","No"]
["S02 Housing\nTo ensure everyone has access to sustainable housing, which is affordable, and meets the needs of all residents including the elderly and other vulnerable groups and will support the vitality of existing communities and settlements. ","· Will it reduce the number of households waiting for accommodation or accepted as homeless?\n· Will it increase the number and mix of housing? \n· Will it improve the suitability of new homes for older and disabled people?\n· Will it provide affordable housing for those unable to access market housing?\n· Will it meet the needs of the travelling community and show people?\n· Will it secure infrastructure or community facilities?","Direct","Low","Medium/Long","Localised","Permanent/Reversible","Significant Positive","Policy H22 sets out the requirement for accommodation to meet the needs of Gypsy and Travellers and Travelling Showpeople throughout the District. Strategic sites which are defined as housing or mixed-use sites of over 1000 dwellings will be required to provide 5 serviced Gypsy and Traveller pitches per 1000 dwellings, up to a maximum of 15 pitches, or provide serviced pitches on alternative land if this is not viable. Pitches will therefore need to be provided concurrently with other housing. The standard of sites is set out in criterion C, which requires sites to be of an appropriate scale, with good vehicular and pedestrian access and provide a safe and acceptable living environment for occupiers. Existing accommodation is also protected through criterion D, which will not allow for the loss of sites without proof of redundancy with robust evidence. ","Yes",null,null,null,"Mention pitches need providing concurrently with other housing. "]
["S03 Accessibility and Health\nTo improve local accessibility to healthcare, education, employment, retail facilities and recreational resources (including open spaces and sports facilities) and enhance wellbeing, promoting healthy and sustainable lifestyles.","· Will it promote healthy lifestyles?\n· Will it deliver new, or contribute to the expansion or improvement of existing open spaces, green infrastructure, schools or healthcare facilities within reasonable walking distance?\n· Will it deliver growth within reasonable walking distance to a planned or existing major employment area (5ha +) or town centre?\n· Will it improve opportunities for active travel including walking and cycling?\n· Will it deliver services or facilities on-site or elsewhere within the District? ","Direct","Low","Medium/Long","Localised","Permanent/Reversible","Minor Positive","Policy H22 requires development for Gypsy and Traveller pitches and plots for Travelling Showpeople to have safe vehicular and pedestrian access, and be located within reasonable distance to local services, shops, education and community facilities. This could help to ensure future residents are able to access the services they require. ","Yes"]
["S04 Quality of Life\nTo create safe and attractive places which contribute towards quality of life and community cohesion.","· Will it contribute towards reducing crime or fear of crime?\n· Will it provide attractive places which provide opportunities for communities to mix and meet?","Direct","Low","Medium/Long","Localised","Permanent/Reversible","Minor Positive","A potential minor positive effect has been identified, as the plots will need to be accessible and well planned. This could help to provide attractive places. In addition, the plots will be based alongside other housing, which could provide an opportunity for the communities to mix and meet. ","No"]
["S05 Inequalities\nEnsure all residents have equitable access to employment, education, community services and facilities irrespective of race, religion, sex, age, sexual orientation, disability, gender reassignment, marriage and civil partnership or pregnancy/maternity.","· Ensure the option / policy does not have an adverse/ discriminatory impact on protected characteristics/ equality groups?\n· Will it narrow the inequality gap between the richest and poorest in the District?\n· Will it reduce inequalities associated with deprivation across the District?","Direct","Low","Medium(10yrs)","Localised","Permanent/Reversible","Minor Positive","Policy H22 sets out the requirement for accommodation to meet the needs of Gypsy and Travellers and Travelling Showpeople throughout the District. The standard of sites is set out in criterion C, which requires sites to be of an appropriate scale, with good vehicular and pedestrian access and provide a safe and acceptable living environment for occupiers. ","No"]
["S06 Economy\nTo deliver growth in key employment sectors and support the creation of new and retention of existing businesses in urban and rural areas.","· Will it encourage the creation of new businesses and existing businesses to grow?\n· Will it encourage economic diversification?\n· Will it help support and encourage the growth of the local economy (including in rural areas)?\n· Will it support the enhancement of the District’s tourism and cultural offer?","N/A","N/A","N/A","N/A","N/A","Neutral","The policy neither supports nor detracts from the achievement of the SA objective. Therefore a neutral effect is predicted.","No"]
["S07 Employment\nTo create greater employment opportunities and higher value jobs across the whole District","· Will it help to improve skills levels and access to training within the District?\n· Will it reduce unemployment rates overall and reduce disparities which exist across different parts of the District?","N/A","N/A","N/A","N/A","N/A","Neutral","The policy neither supports nor detracts from the achievement of the SA objective. Therefore a neutral effect is predicted.","No"]
["S08 Infrastructure\nTo deliver improved infrastructure to support growth and economic competitiveness of urban and rural businesses and communities.","· Will it minimise the impact of traffic congestion on the strategic and local road network through the delivery of new or enhanced transport infrastructure?\n· Will it provide opportunities to access key services, including doctor’s surgeries, education facilities, employment and town, local or village centres by means other than car?\n· Will it make the best use of other infrastructure which serves new development?","N/A","N/A","N/A","N/A","N/A","Neutral","The policy neither supports nor detracts from the achievement of the SA objective. Therefore a neutral effect is predicted.","No"]
["S09 Sustainable Travel\nTo promote sustainable travel habits including walking, cycling and public transport (bus and rail) usage.  ","· Will it reduce journey lengths and times? \n· Will it maximise opportunities for walking and cycling?\n· Will it maximise opportunities to access public transport provision?","N/A","N/A","N/A","N/A","N/A","Neutral","The policy neither supports nor detracts from the achievement of the SA objective. Therefore a neutral effect is predicted.","No"]
["S010 Town and Village Centres\nTo ensure that town and village centres are vibrant and viable.","· Will it improve existing shopping facilities within town and village centres? \n· Will it help safeguard existing town and village centres?","N/A","N/A","N/A","N/A","N/A","Neutral","The policy neither supports nor detracts from the achievement of the SA objective. Therefore a neutral effect is predicted.","No"]
["S011 Resources\nTo minimise waste and ensure the sustainable use and protection of natural resources including greenfield land, soil and minerals resources.  ","· Will it enhance opportunities for increased levels of recycling in the District?\n· Will it improve or remediate contaminated land or reuse previously developed land which has not been restored?\n· Will it protect Best and Most Versatile (BMV) Agricultural Land?\n· Will it avoid the sterilisation of minerals resources?","N/A","N/A","N/A","N/A","N/A","Neutral","The policy neither supports nor detracts from the achievement of the SA objective. Therefore a neutral effect is predicted.","No"]
["S012 Pollution\nTo minimise water, air, light and noise pollution and ensure that future growth does not lead to the further deterioration of environmental conditions.","· Will it contribute to improvements in water quality in the District?\n· Will it avoid increasing noise levels locally or introducing incompatible uses into an already noisy location?\n· Will it avoid deterioration in air quality within the District?\n· Will it reduce light pollution on sensitive receptors by keeping external lighting to the minimum required for safety and security?","N/A","N/A","N/A","N/A","N/A","Neutral","The policy neither supports nor detracts from the achievement of the SA objective. Therefore a neutral effect is predicted.","No"]
["S013 Contributions to Climate Change \nTo reduce the District’s contribution towards the emission of climate change gases.","· Will it provide opportunities to access local services and facilities by public transport walking or cycling?\n· Will it support the delivery of renewable energy capacity (including small scale or community energy projects)?\n· Will it support the shift toward usage of electric and ultralow emissions vehicles? ","N/A","N/A","N/A","N/A","N/A","Neutral","The policy neither supports nor detracts from the achievement of the SA objective. Therefore a neutral effect is predicted.","No"]
["S014 Adaptation to Climate Change \nTo manage the effects of climate change including flood risk, reduced water availability and overheating.","· Will it minimise flood risk?\n· Will it include provision of sustainable urban drainage which mimic natural drainage patterns?\n· Will it contribute towards sustainable water use?","Direct","Low","Medium(10yrs)","Localised","Permanent/Reversible","Minor Positive","Criterion Cvi requires that accommodation for Gypsies, Travellers and Travelling Showpeople is not located in \"an areas at undue risk of flooding\". This could help to prevent development from exacerbating flood risk. ","No"]
["S015 Townscape and Historic Environment\nTo conserve and enhance the townscape, historic environment, heritage assets (including known and unknown archaeological sites) and their settings. ","· Will it protect and enhance the condition and setting of historic, cultural, architectural and archaeological features in South Derbyshire?\n· Does it improve the quality of the built environment, and respect and protect existing townscape character?\n· Will it improve access to, and understanding of, the District’s historic and cultural assets for enjoyment and educational purposes?","N/A","N/A","N/A","N/A","N/A","Neutral","The policy neither supports nor detracts from the achievement of the SA objective. Therefore a neutral effect is predicted.","No"]
["S016 Landscape\nTo conserve and enhance the District’s landscape character.","· Does it respect and protect existing landscape character?\n· Will it protect sensitive landscapes including those within the World Heritage Site or its buffer or Special Landscape Areas?\n· Will it safeguard landscape features such as hedgerows?\n· Will it avoid intrusion into the greenbelt?","N/A","N/A","N/A","N/A","N/A","Neutral","The policy neither supports nor detracts from the achievement of the SA objective. Therefore a neutral effect is predicted.","No"]

{"sheet":"E1_Strategic_Employment_Land","index":19,"n_rows":23,"n_cols":14,"rows_kept":23,"cut":false,"hidden":false,"merged":[[0,1,0,2],[1,1,1,2],[2,1,2,2],[3,1,3,2],[5,0,5,1],[5,2,5,11]]}
["Policy/Alternative name","Policy E1: Strategic Employment Land Allocation"]
["Chapter","Employment and the Economy"]
["Policy/alternative description","Policy E1 sets out the locations for employment development within the District, including the use classes permitted at each site. Development will be permitted at sites carried forward from the 2016 Local Plan (Drift Road, Church Gresley; Tetron Point, Stanton; Swadlincote Lane, Church Gresley; Drakelow; Hilton; Dove Valley Business Park; Land to the North of Dove Valley Business Park; Woodville Regeneration Area) and new allocations (Infinity Garden Village, Sinfin Moor; Land South of Mickleover; Former Drakelow Power Station; and Strategic Rail Freight Interchange/Freeport). In total, more than 350ha of land is likely to be developed across the District. Appropriate, detailed, and robust evidence will be required to satisfy the above criteria. Planning conditions or legal obligations may be necessary to ensure that any replacement sites are provided. Any replacement site should be available before the original site is lost. "]
["Assumptions Made","None."]
[]
["SA Framework",null,"SA Policy Assessment"]
["SA objective","SA sub-objective","Direct/\nIndirect","Magnitude","Duration","Spatial Extent","Permanence/ Reversibility","Significance","Description of potential effects","Potential for cumulative effects? ","Mitigation","Enhancements","SDDC Comments"]
["S01 Biodiversity\nTo safeguard and enhance biodiversity (including BAP habitats and species) and geodiversity through biodiversity net gain and improve connectivity between, and access to, green spaces and functional habitats.","· Will it conserve and enhance natural or semi natural habitats including internationally, nationally and locally designated wildlife sites, or create new wildlife habitats, and contribute to the creation of a network of habitats and green infrastructure in the District?\n· Will it protect BAP or protected species and contribute to the delivery of new, or safeguard existing BAP priority species and habitats?\n· Will it protect sites of geological importance?","N/A","N/A","N/A","N/A","N/A","Neutral","The policy itself is unlikely to result in positive or negative effects on this SA objective. The assessments of the strategic allocation sites themselves are predicted to result in potential positive effects in relation to biodiversity due to the mitigation and enhancement measures proposed within their policies. An overall neutral effect is identified for this policy. ","No",null,null,null,"I think this should be neutral or uncertain. There's inconsistency between the STRA1, STRA2 and STRA3 site assessments which needs addressing. I haven't yet looked at the assessment for INF3. I think the enhancement measure isn't needed for policy E1 -it could end up repeating mitigation required by the strategic sites couldn't it? Maybe delete it if we suggesting it for E1?"]
["S02 Housing\nTo ensure everyone has access to sustainable housing, which is affordable, and meets the needs of all residents including the elderly and other vulnerable groups and will support the vitality of existing communities and settlements. ","· Will it reduce the number of households waiting for accommodation or accepted as homeless?\n· Will it increase the number and mix of housing? \n· Will it improve the suitability of new homes for older and disabled people?\n· Will it provide affordable housing for those unable to access market housing?\n· Will it meet the needs of the travelling community and show people?\n· Will it secure infrastructure or community facilities?","N/A","N/A","N/A","N/A","N/A","Neutral","The policy neither supports nor detracts from the achievement of the SA objective. Therefore a neutral effect is predicted.","No"]
["S03 Accessibility and Health\nTo improve local accessibility to healthcare, education, employment, retail facilities and recreational resources (including open spaces and sports facilities) and enhance wellbeing, promoting healthy and sustainable lifestyles.","· Will it promote healthy lifestyles?\n· Will it deliver new, or contribute to the expansion or improvement of existing open spaces, green infrastructure, schools or healthcare facilities within reasonable walking distance?\n· Will it deliver growth within reasonable walking distance to a planned or existing major employment area (5ha +) or town centre?\n· Will it improve opportunities for active travel including walking and cycling?\n· Will it deliver services or facilities on-site or elsewhere within the District? ","Direct","Medium","Medium/Long","District-wide","Permanent/Irreversible","Minor Positive","The development of allocated employment sites (e.g. Infinity Garden Village, Land South of Mickleover) should contribute towards the development of green infrastructure networks, which will allow employment sites to be accessible via active travel methods. This should subsequently improve their accessibility, as well as provide employees with opportunities to walk/cycle to work. Therefore, a potential minor positive effect has been identified.","No"]
["S04 Quality of Life\nTo create safe and attractive places which contribute towards quality of life and community cohesion.","· Will it contribute towards reducing crime or fear of crime?\n· Will it provide attractive places which provide opportunities for communities to mix and meet?","N/A","N/A","N/A","N/A","N/A","Neutral","The policy neither supports nor detracts from the achievement of the SA objective. Therefore a neutral effect is predicted.","No"]
["S05 Inequalities\nEnsure all residents have equitable access to employment, education, community services and facilities irrespective of race, religion, sex, age, sexual orientation, disability, gender reassignment, marriage and civil partnership or pregnancy/maternity.","· Ensure the option / policy does not have an adverse/ discriminatory impact on protected characteristics/ equality groups?\n· Will it narrow the inequality gap between the richest and poorest in the District?\n· Will it reduce inequalities associated with deprivation across the District?","N/A","N/A","N/A","N/A","N/A","Neutral","The policy neither supports nor detracts from the achievement of the SA objective. Therefore a neutral effect is predicted.","No"]
["S06 Economy\nTo deliver growth in key employment sectors and support the creation of new and retention of existing businesses in urban and rural areas.","· Will it encourage the creation of new businesses and existing businesses to grow?\n· Will it encourage economic diversification?\n· Will it help support and encourage the growth of the local economy (including in rural areas)?\n· Will it support the enhancement of the District’s tourism and cultural offer?","Direct","High","Medium/Long","District-wide","Permanent/Irreversible","Significant Positive","Policy E1 will result in the development of more than 350ha of employment space within the District at a variety of locations and for varying uses, including office, light industrial and research spaces. A requirement for \"small and 'grow on'\" space is also set out, which could help to sustain this employment land growth into the future. This will help to support the employment opportunities available within the District, hence a potential significant positive effect has been identified. ","Yes"]
["S07 Employment\nTo create greater employment opportunities and higher value jobs across the whole District","· Will it help to improve skills levels and access to training within the District?\n· Will it reduce unemployment rates overall and reduce disparities which exist across different parts of the District?","Direct","High","Medium/Long","Regional","Permanent/Irreversible","Significant Positive","Policy E1 will result in the development of more than 350ha of employment space within the District at a variety of locations and for varying uses, including office, light industrial and research spaces. The development of the Strategic Rail Freight Interchange/Freeport- which is deemed a Nationally Significant Infrastructure Project- will also have benefits for regional and national employment. This will help to support the employment opportunities available within the District, which could help to improve local employment rates. Therefore a potential significant positive effect has been identified.  ","Yes"]
["S08 Infrastructure\nTo deliver improved infrastructure to support growth and economic competitiveness of urban and rural businesses and communities.","· Will it minimise the impact of traffic congestion on the strategic and local road network through the delivery of new or enhanced transport infrastructure?\n· Will it provide opportunities to access key services, including doctor’s surgeries, education facilities, employment and town, local or village centres by means other than car?\n· Will it make the best use of other infrastructure which serves new development?","Direct","Medium","Medium/Long","District-wide","Permanent/Irreversible","Minor Positive","The development of allocated employment sites should contribute towards improvements to transport infrastructure (e.g. a new road junction will be provided as a result of the Infinity Garden Village site, new public transport services will be provided as a result of the Drakelow Power Station site), which should improve congestion, as well as provide residents with more opportunities to utilise public transport to travel to work. Therefore, a potential minor positive effect has been identified.","No",null,"Due to the scale of the strategic employment sites, it is recommended that a criterion is added to the policy which requires congestion to be planned and mitigated. "]
["S09 Sustainable Travel\nTo promote sustainable travel habits including walking, cycling and public transport (bus and rail) usage.  ","· Will it reduce journey lengths and times? \n· Will it maximise opportunities for walking and cycling?\n· Will it maximise opportunities to access public transport provision?","Direct","Medium","Medium/Long","District-wide","Permanent/Irreversible","Minor Positive","The development of allocated employment sites should contribute towards improvements to transport infrastructure and active travel links (e.g. new public transport services and pedestrian/cycle links will be provided as a result of the Drakelow Power Station site and the East Midlands Freeport site), which should provide residents with more opportunities to utilise public and active transport to travel to work. Therefore, a potential minor positive effect has been identified.","No",null,"Due to the scale of the strategic employment sites, it is recommended that a criterion is added to the policy which requires sustainable transport links to be planned and developed alongside the employment sites. "]
["S010 Town and Village Centres\nTo ensure that town and village centres are vibrant and viable.","· Will it improve existing shopping facilities within town and village centres? \n· Will it help safeguard existing town and village centres?","N/A","N/A","N/A","N/A","N/A","Neutral","The policy neither supports nor detracts from the achievement of the SA objective. Therefore a neutral effect is predicted.","No"]
["S011 Resources\nTo minimise waste and ensure the sustainable use and protection of natural resources including greenfield land, soil and minerals resources.  ","· Will it enhance opportunities for increased levels of recycling in the District?\n· Will it improve or remediate contaminated land or reuse previously developed land which has not been restored?\n· Will it protect Best and Most Versatile (BMV) Agricultural Land?\n· Will it avoid the sterilisation of minerals resources?","Direct","Medium","Medium/Long","District-wide","Permanent/Irreversible","Significant Negative","A number of allocated employment sites contain grade 3 agricultural land (e.g. Infinity Garden Village, Land South of Mickleover, East Midlands Freeport). Development will subsequently lead to the irreversible loss of greenfield land, and soils considered as the 'best and most versatile'. As the loss of greenfield land/Grade 3 agricultural land cannot be mitigated, a potential significant negative effect is identified.","No","Loss of greenfield land and Grade 3 agricultural land cannot be mitigated. A detailed agricultural land assessment should be undertaken in order to identify more accurately what the agricultural classification grade is on development sites"]
["S012 Pollution\nTo minimise water, air, light and noise pollution and ensure that future growth does not lead to the further deterioration of environmental conditions.","· Will it contribute to improvements in water quality in the District?\n· Will it avoid increasing noise levels locally or introducing incompatible uses into an already noisy location?\n· Will it avoid deterioration in air quality within the District?\n· Will it reduce light pollution on sensitive receptors by keeping external lighting to the minimum required for safety and security?","N/A","N/A","N/A","N/A","N/A","Uncertain","It is likely that development of employment sites at this scale will increase air, noise and light pollution across the District. Although mitigation will be provided through Policy SD1 Amenity and Environmental Quality, it is not clear whether all potential effects can be minimised. Therefore, an uncertain effect is identified.","No","No further mitigation proposed in addition Policy SD1. "]
["S013 Contributions to Climate Change \nTo reduce the District’s contribution towards the emission of climate change gases.","· Will it provide opportunities to access local services and facilities by public transport walking or cycling?\n· Will it support the delivery of renewable energy capacity (including small scale or community energy projects)?\n· Will it support the shift toward usage of electric and ultralow emissions vehicles? ","Direct","Medium","Medium/Long","District-wide","Permanent/Irreversible","Minor Positive","The development of allocated employment sites should contribute towards improvements to transport infrastructure and active travel links (e.g. new public transport services and pedestrian/cycle links will be provided as a result of the Drakelow Power Station site and the East Midlands Freeport site), which should provide residents with more opportunities to utilise public and active transport to travel to work. Therefore, a potential minor positive effect has been identified.","No",null,"Due to the scale of the strategic employment sites, it is recommended that a criterion is added to the policy which requires EV charging points and renewable energy generation to be considered within the design for the employment sites. "]
["S014 Adaptation to Climate Change \nTo manage the effects of climate change including flood risk, reduced water availability and overheating.","· Will it minimise flood risk?\n· Will it include provision of sustainable urban drainage which mimic natural drainage patterns?\n· Will it contribute towards sustainable water use?","Direct","Medium","Medium/Long","District-wide","Permanent/Irreversible","Minor Negative","A number of allocated employment sites lie within Flood Zones 2 and 3 (e.g. Infinity Garden Village, Land South of Mickleover, Drakelow Power Station, East Midlands Freeport). Although mitigation will be provided through Policy SD2 Flood Risk and strategic policies, the sites could still be at risk from flood events. Therefore, a potential minor negative effect is identified.","No"]
["S015 Townscape and Historic Environment\nTo conserve and enhance the townscape, historic environment, heritage assets (including known and unknown archaeological sites) and their settings. ","· Will it protect and enhance the condition and setting of historic, cultural, architectural and archaeological features in South Derbyshire?\n· Does it improve the quality of the built environment, and respect and protect existing townscape character?\n· Will it improve access to, and understanding of, the District’s historic and cultural assets for enjoyment and educational purposes?","N/A","N/A","N/A","N/A","N/A","Uncertain","The development of employment sites at this scale could have negative impacts on heritage assets across the District (e.g. Drakelow Power Station contains a listed building). Although mitigation will be provided through site specific policies, it is not clear whether all potential effects can be minimised. Therefore, an uncertain effect is identified.","No","No further mitigation proposed in addition to site allocation policy requirements."]
["S016 Landscape\nTo conserve and enhance the District’s landscape character.","· Does it respect and protect existing landscape character?\n· Will it protect sensitive landscapes including those within the World Heritage Site or its buffer or Special Landscape Areas?\n· Will it safeguard landscape features such as hedgerows?\n· Will it avoid intrusion into the greenbelt?","Direct","Medium","Medium/Long","District-wide","Permanent/Irreversible","Minor Negative","Although no allocated employment sites lie within the Green Belt, a number of the employment sites (e.g. Infinity Garden Village, Land South of Mickleover, East Midlands Freeport) will lead to the loss of greenfield land, which could cause alterations to the landscape, even with mitigation incorporated into development design. Therefore, a potential minor negative effect is identified.","No"]

{"sheet":"E2_Industrial_Business_Dev","index":20,"n_rows":23,"n_cols":13,"rows_kept":23,"cut":false,"hidden":false,"merged":[[0,1,0,2],[1,1,1,2],[2,1,2,2],[3,1,3,2],[5,0,5,1],[5,2,5,11]]}
["Policy/Alternative name","Policy E2: Other Industrial and Business Development "]
["Chapter","Employment and the Economy"]
["Policy/alternative description","Policy E2 supports industrial and business development outside of existing industrial estates, in alternative premises, where the site lies within a settlement boundary, is for the redevelopment of established industrial or business land premises or is for the expansion of existing businesses. \nAll proposals should be in scale with existing built development and should not give rise to any significant harmful impacts on amenity, landscape, the natural environment, cultural heritage assets or the safety and operation of the highway network. Where planning permissions include provision within Use Class E(g) representing office, light industrial and research and development uses, changes of use to other types of development outside that Use Class will be restricted through the use of planning conditions."]
["Assumptions Made","None. "]
[]
["SA Framework",null,"SA Policy Assessment"]
["SA objective","SA sub-objective","Direct/\nIndirect","Magnitude","Duration","Spatial Extent","Permanence/ Reversibility","Significance","Description of potential effects","Potential for cumulative effects? ","Mitigation","Enhancements","SDDC Comments"]
["S01 Biodiversity\nTo safeguard and enhance biodiversity (including BAP habitats and species) and geodiversity through biodiversity net gain and improve connectivity between, and access to, green spaces and functional habitats.","· Will it conserve and enhance natural or semi natural habitats including internationally, nationally and locally designated wildlife sites, or create new wildlife habitats, and contribute to the creation of a network of habitats and green infrastructure in the District?\n· Will it protect BAP or protected species and contribute to the delivery of new, or safeguard existing BAP priority species and habitats?\n· Will it protect sites of geological importance?","Direct","Low","Medium/Long","Localised","Permanent/Reversible","Minor Positive","Whilst Policy E2 will not work directly towards enhancing the natural environment, it does require development for industrial and business uses defined by E(g), B2 and B8 not to give rise to significant harmful impacts on the environment, which could help to maintain the baseline of biodiversity in the vicinity of these developments. Therefore, a minor positive effect has been identified. ","No"]
["S02 Housing\nTo ensure everyone has access to sustainable housing, which is affordable, and meets the needs of all residents including the elderly and other vulnerable groups and will support the vitality of existing communities and settlements. ","· Will it reduce the number of households waiting for accommodation or accepted as homeless?\n· Will it increase the number and mix of housing? \n· Will it improve the suitability of new homes for older and disabled people?\n· Will it provide affordable housing for those unable to access market housing?\n· Will it meet the needs of the travelling community and show people?\n· Will it secure infrastructure or community facilities?","N/A","N/A","N/A","N/A","N/A","Neutral","The policy neither supports nor detracts from the achievement of the SA objective. Therefore a neutral effect is predicted.","No"]
["S03 Accessibility and Health\nTo improve local accessibility to healthcare, education, employment, retail facilities and recreational resources (including open spaces and sports facilities) and enhance wellbeing, promoting healthy and sustainable lifestyles.","· Will it promote healthy lifestyles?\n· Will it deliver new, or contribute to the expansion or improvement of existing open spaces, green infrastructure, schools or healthcare facilities within reasonable walking distance?\n· Will it deliver growth within reasonable walking distance to a planned or existing major employment area (5ha +) or town centre?\n· Will it improve opportunities for active travel including walking and cycling?\n· Will it deliver services or facilities on-site or elsewhere within the District? ","Direct","Low","Medium/Long","Localised","Permanent/Reversible","Minor Positive","Policy E2 requires development to be located within a settlement boundary or where there is established industrial uses, which could help to ensure that growth is located in areas of the District which are accessible, with existing transport and pedestrian links. Therefore, a minor positive effect has been identified. ","No"]
["S04 Quality of Life\nTo create safe and attractive places which contribute towards quality of life and community cohesion.","· Will it contribute towards reducing crime or fear of crime?\n· Will it provide attractive places which provide opportunities for communities to mix and meet?","N/A","N/A","N/A","N/A","N/A","Neutral","The policy neither supports nor detracts from the achievement of the SA objective. Therefore a neutral effect is predicted.","No"]
["S05 Inequalities\nEnsure all residents have equitable access to employment, education, community services and facilities irrespective of race, religion, sex, age, sexual orientation, disability, gender reassignment, marriage and civil partnership or pregnancy/maternity.","· Ensure the option / policy does not have an adverse/ discriminatory impact on protected characteristics/ equality groups?\n· Will it narrow the inequality gap between the richest and poorest in the District?\n· Will it reduce inequalities associated with deprivation across the District?","N/A","N/A","N/A","N/A","N/A","Neutral","The policy neither supports nor detracts from the achievement of the SA objective. Therefore a neutral effect is predicted.","No"]
["S06 Economy\nTo deliver growth in key employment sectors and support the creation of new and retention of existing businesses in urban and rural areas.","· Will it encourage the creation of new businesses and existing businesses to grow?\n· Will it encourage economic diversification?\n· Will it help support and encourage the growth of the local economy (including in rural areas)?\n· Will it support the enhancement of the District’s tourism and cultural offer?","Direct","Low","Medium/Long","Localised","Permanent/Reversible","Minor Positive","Policy E2 supports industrial and business development outside of existing industrial estates, in alternative premises, particularly where there are existing businesses trying to grow. Therefore, a minor positive effect has been identified. ","Yes"]
["S07 Employment\nTo create greater employment opportunities and higher value jobs across the whole District","· Will it help to improve skills levels and access to training within the District?\n· Will it reduce unemployment rates overall and reduce disparities which exist across different parts of the District?","N/A","N/A","N/A","N/A","N/A","Neutral","The policy neither supports nor detracts from the achievement of the SA objective. Therefore a neutral effect is predicted.","No"]
["S08 Infrastructure\nTo deliver improved infrastructure to support growth and economic competitiveness of urban and rural businesses and communities.","· Will it minimise the impact of traffic congestion on the strategic and local road network through the delivery of new or enhanced transport infrastructure?\n· Will it provide opportunities to access key services, including doctor’s surgeries, education facilities, employment and town, local or village centres by means other than car?\n· Will it make the best use of other infrastructure which serves new development?","Direct","Low","Medium/Long","Localised","Permanent/Reversible","Minor Positive","Whilst Policy E2 will not necessarily result in providing new infrastructure external to sites, it does require development for industrial and business uses defined by E(g), B2 and B8 not to give rise to significant harmful impacts on the safety and operation of the highway network, which could help to the strategic and local road networks are not compromised in the vicinity of these developments. Therefore, a minor positive effect has been identified. ","No"]
["S09 Sustainable Travel\nTo promote sustainable travel habits including walking, cycling and public transport (bus and rail) usage.  ","· Will it reduce journey lengths and times? \n· Will it maximise opportunities for walking and cycling?\n· Will it maximise opportunities to access public transport provision?","N/A","N/A","N/A","N/A","N/A","Neutral","The policy neither supports nor detracts from the achievement of the SA objective. Therefore a neutral effect is predicted.","No",null,"It is recommended that the policy includes a criterion which considers links to existing sustainable transport infrastructure. This could help to improve the performance against S09."]
["S010 Town and Village Centres\nTo ensure that town and village centres are vibrant and viable.","· Will it improve existing shopping facilities within town and village centres? \n· Will it help safeguard existing town and village centres?","N/A","N/A","N/A","N/A","N/A","Neutral","The policy neither supports nor detracts from the achievement of the SA objective. Therefore a neutral effect is predicted.","No"]
["S011 Resources\nTo minimise waste and ensure the sustainable use and protection of natural resources including greenfield land, soil and minerals resources.  ","· Will it enhance opportunities for increased levels of recycling in the District?\n· Will it improve or remediate contaminated land or reuse previously developed land which has not been restored?\n· Will it protect Best and Most Versatile (BMV) Agricultural Land?\n· Will it avoid the sterilisation of minerals resources?","N/A","N/A","N/A","N/A","N/A","Neutral","The policy neither supports nor detracts from the achievement of the SA objective. Therefore a neutral effect is predicted.","No"]
["S012 Pollution\nTo minimise water, air, light and noise pollution and ensure that future growth does not lead to the further deterioration of environmental conditions.","· Will it contribute to improvements in water quality in the District?\n· Will it avoid increasing noise levels locally or introducing incompatible uses into an already noisy location?\n· Will it avoid deterioration in air quality within the District?\n· Will it reduce light pollution on sensitive receptors by keeping external lighting to the minimum required for safety and security?","N/A","N/A","N/A","N/A","N/A","Neutral","The policy neither supports nor detracts from the achievement of the SA objective. Therefore a neutral effect is predicted.","No",null,"Due to the nature of industrial uses, it is recommended that the policy considers air, noise and light pollution alongside the need to prevent significant adverse impacts on the natural environment. Although Policy SD1 may assist in doing this, the explicit mention within  E2 could lead to a potential minor positive effect against S012. "]
["S013 Contributions to Climate Change \nTo reduce the District’s contribution towards the emission of climate change gases.","· Will it provide opportunities to access local services and facilities by public transport walking or cycling?\n· Will it support the delivery of renewable energy capacity (including small scale or community energy projects)?\n· Will it support the shift toward usage of electric and ultralow emissions vehicles? ","N/A","N/A","N/A","N/A","N/A","Neutral","The policy neither supports nor detracts from the achievement of the SA objective. Therefore a neutral effect is predicted.","No"]
["S014 Adaptation to Climate Change \nTo manage the effects of climate change including flood risk, reduced water availability and overheating.","· Will it minimise flood risk?\n· Will it include provision of sustainable urban drainage which mimic natural drainage patterns?\n· Will it contribute towards sustainable water use?","N/A","N/A","N/A","N/A","N/A","Neutral","The policy neither supports nor detracts from the achievement of the SA objective. Therefore a neutral effect is predicted.","No"]
["S015 Townscape and Historic Environment\nTo conserve and enhance the townscape, historic environment, heritage assets (including known and unknown archaeological sites) and their settings. ","· Will it protect and enhance the condition and setting of historic, cultural, architectural and archaeological features in South Derbyshire?\n· Does it improve the quality of the built environment, and respect and protect existing townscape character?\n· Will it improve access to, and understanding of, the District’s historic and cultural assets for enjoyment and educational purposes?","Direct","Low","Medium/Long","Localised","Permanent/Reversible","Minor Positive","Whilst Policy E2 will not work directly towards enhancing the historic landscape, it does require development for industrial and business uses defined by E(g), B2 and B8 not to give rise to significant harmful impacts on cultural heritage assets, which could help to maintain the historic setting in the vicinity of these developments. Therefore, a minor positive effect has been identified. ","No"]
["S016 Landscape\nTo conserve and enhance the District’s landscape character.","· Does it respect and protect existing landscape character?\n· Will it protect sensitive landscapes including those within the World Heritage Site or its buffer or Special Landscape Areas?\n· Will it safeguard landscape features such as hedgerows?\n· Will it avoid intrusion into the greenbelt?","Direct","Low","Medium/Long","Localised","Permanent/Reversible","Minor Positive","Whilst Policy E2 will not work directly towards enhancing the landscape, it does require development for industrial and business uses defined by E(g), B2 and B8 not to give rise to significant harmful impacts on the landscape, which could help to maintain the current land/townscapes in the vicinity of these developments. Therefore, a minor positive effect has been identified. ","No"]

{"sheet":"E3_Existing_Employment_Areas","index":21,"n_rows":23,"n_cols":13,"rows_kept":23,"cut":false,"hidden":false,"merged":[[0,1,0,2],[1,1,1,2],[2,1,2,2],[3,1,3,2],[5,0,5,1],[5,2,5,11]]}
["Policy/Alternative name","Policy E3: Existing Employment Areas "]
["Chapter","Employment and the Economy"]
["Policy/alternative description","Policy E3 seeks to protect existing industrial and business land, only allowing for redevelopment for other uses where clear criteria can be met to demonstrate that the site in it's existing use is either significantly harmful to receptors such as noise, visual qualities or traffic, or that there is no longer a demand for such land uses."]
["Assumptions Made","None. "]
[]
["SA Framework",null,"SA Policy Assessment"]
["SA objective","SA sub-objective","Direct/\nIndirect","Magnitude","Duration","Spatial Extent","Permanence/ Reversibility","Significance","Description of potential effects","Potential for cumulative effects? ","Mitigation","Enhancements","SDDC Comments"]
["S01 Biodiversity\nTo safeguard and enhance biodiversity (including BAP habitats and species) and geodiversity through biodiversity net gain and improve connectivity between, and access to, green spaces and functional habitats.","· Will it conserve and enhance natural or semi natural habitats including internationally, nationally and locally designated wildlife sites, or create new wildlife habitats, and contribute to the creation of a network of habitats and green infrastructure in the District?\n· Will it protect BAP or protected species and contribute to the delivery of new, or safeguard existing BAP priority species and habitats?\n· Will it protect sites of geological importance?","N/A","N/A","N/A","N/A","N/A","Neutral","The policy neither supports nor detracts from the achievement of the SA objective. Therefore a neutral effect is predicted.","No"]
["S02 Housing\nTo ensure everyone has access to sustainable housing, which is affordable, and meets the needs of all residents including the elderly and other vulnerable groups and will support the vitality of existing communities and settlements. ","· Will it reduce the number of households waiting for accommodation or accepted as homeless?\n· Will it increase the number and mix of housing? \n· Will it improve the suitability of new homes for older and disabled people?\n· Will it provide affordable housing for those unable to access market housing?\n· Will it meet the needs of the travelling community and show people?\n· Will it secure infrastructure or community facilities?","N/A","N/A","N/A","N/A","N/A","Neutral","The policy neither supports nor detracts from the achievement of the SA objective. Therefore a neutral effect is predicted.","No"]
["S03 Accessibility and Health\nTo improve local accessibility to healthcare, education, employment, retail facilities and recreational resources (including open spaces and sports facilities) and enhance wellbeing, promoting healthy and sustainable lifestyles.","· Will it promote healthy lifestyles?\n· Will it deliver new, or contribute to the expansion or improvement of existing open spaces, green infrastructure, schools or healthcare facilities within reasonable walking distance?\n· Will it deliver growth within reasonable walking distance to a planned or existing major employment area (5ha +) or town centre?\n· Will it improve opportunities for active travel including walking and cycling?\n· Will it deliver services or facilities on-site or elsewhere within the District? ","N/A","N/A","N/A","N/A","N/A","Neutral","The policy neither supports nor detracts from the achievement of the SA objective. Therefore a neutral effect is predicted.","No"]
["S04 Quality of Life\nTo create safe and attractive places which contribute towards quality of life and community cohesion.","· Will it contribute towards reducing crime or fear of crime?\n· Will it provide attractive places which provide opportunities for communities to mix and meet?","N/A","N/A","N/A","N/A","N/A","Neutral","The policy neither supports nor detracts from the achievement of the SA objective. Therefore a neutral effect is predicted.","No"]
["S05 Inequalities\nEnsure all residents have equitable access to employment, education, community services and facilities irrespective of race, religion, sex, age, sexual orientation, disability, gender reassignment, marriage and civil partnership or pregnancy/maternity.","· Ensure the option / policy does not have an adverse/ discriminatory impact on protected characteristics/ equality groups?\n· Will it narrow the inequality gap between the richest and poorest in the District?\n· Will it reduce inequalities associated with deprivation across the District?","N/A","N/A","N/A","N/A","N/A","Neutral","The policy neither supports nor detracts from the achievement of the SA objective. Therefore a neutral effect is predicted.","No"]
["S06 Economy\nTo deliver growth in key employment sectors and support the creation of new and retention of existing businesses in urban and rural areas.","· Will it encourage the creation of new businesses and existing businesses to grow?\n· Will it encourage economic diversification?\n· Will it help support and encourage the growth of the local economy (including in rural areas)?\n· Will it support the enhancement of the District’s tourism and cultural offer?","Direct","Low","Medium/Long","Localised","Permanent/Reversible","Minor Positive","Policy E3 seeks to protect existing industrial and business land, only allowing for redevelopment for other uses where clear criteria can be met to demonstrate that the site in it's existing use is either significantly harmful to receptors such as noise, visual qualities or traffic, or that there is no longer a demand for such land uses. Therefore, a minor positive effect has been identified. ","No"]
["S07 Employment\nTo create greater employment opportunities and higher value jobs across the whole District","· Will it help to improve skills levels and access to training within the District?\n· Will it reduce unemployment rates overall and reduce disparities which exist across different parts of the District?","N/A","N/A","N/A","N/A","N/A","Neutral","The policy neither supports nor detracts from the achievement of the SA objective. Therefore a neutral effect is predicted.","No"]
["S08 Infrastructure\nTo deliver improved infrastructure to support growth and economic competitiveness of urban and rural businesses and communities.","· Will it minimise the impact of traffic congestion on the strategic and local road network through the delivery of new or enhanced transport infrastructure?\n· Will it provide opportunities to access key services, including doctor’s surgeries, education facilities, employment and town, local or village centres by means other than car?\n· Will it make the best use of other infrastructure which serves new development?","Direct","Low","Medium/Long","Localised","Permanent/Reversible","Minor Positive","Policy E3 could help to improve congestion hotspots within the District, as sites with existing industrial and business use which are proven to be significantly harmful to generate significant traffic may be redeveloped. It is noted that this would likely be in distinct locations, hence a potential minor positive location has been identified. ","No"]
["S09 Sustainable Travel\nTo promote sustainable travel habits including walking, cycling and public transport (bus and rail) usage.  ","· Will it reduce journey lengths and times? \n· Will it maximise opportunities for walking and cycling?\n· Will it maximise opportunities to access public transport provision?","N/A","N/A","N/A","N/A","N/A","Neutral","The policy neither supports nor detracts from the achievement of the SA objective. Therefore a neutral effect is predicted.","No"]
["S010 Town and Village Centres\nTo ensure that town and village centres are vibrant and viable.","· Will it improve existing shopping facilities within town and village centres? \n· Will it help safeguard existing town and village centres?","N/A","N/A","N/A","N/A","N/A","Neutral","The policy neither supports nor detracts from the achievement of the SA objective. Therefore a neutral effect is predicted.","No"]
["S011 Resources\nTo minimise waste and ensure the sustainable use and protection of natural resources including greenfield land, soil and minerals resources.  ","· Will it enhance opportunities for increased levels of recycling in the District?\n· Will it improve or remediate contaminated land or reuse previously developed land which has not been restored?\n· Will it protect Best and Most Versatile (BMV) Agricultural Land?\n· Will it avoid the sterilisation of minerals resources?","N/A","N/A","N/A","N/A","N/A","Neutral","The policy neither supports nor detracts from the achievement of the SA objective. Therefore a neutral effect is predicted.","No"]
["S012 Pollution\nTo minimise water, air, light and noise pollution and ensure that future growth does not lead to the further deterioration of environmental conditions.","· Will it contribute to improvements in water quality in the District?\n· Will it avoid increasing noise levels locally or introducing incompatible uses into an already noisy location?\n· Will it avoid deterioration in air quality within the District?\n· Will it reduce light pollution on sensitive receptors by keeping external lighting to the minimum required for safety and security?","Direct","Low","Medium/Long","Localised","Permanent/Reversible","Minor Positive","Policy E3 could help to improve the noise and vibration hotspots within the District, as sites with existing industrial and business use which are proven to be significantly harmful to noise ad vibration may be redeveloped. It is noted that this would likely be in distinct locations, hence a potential minor positive location has been identified. ","No"]
["S013 Contributions to Climate Change \nTo reduce the District’s contribution towards the emission of climate change gases.","· Will it provide opportunities to access local services and facilities by public transport walking or cycling?\n· Will it support the delivery of renewable energy capacity (including small scale or community energy projects)?\n· Will it support the shift toward usage of electric and ultralow emissions vehicles? ","N/A","N/A","N/A","N/A","N/A","Neutral","The policy neither supports nor detracts from the achievement of the SA objective. Therefore a neutral effect is predicted.","No"]
["S014 Adaptation to Climate Change \nTo manage the effects of climate change including flood risk, reduced water availability and overheating.","· Will it minimise flood risk?\n· Will it include provision of sustainable urban drainage which mimic natural drainage patterns?\n· Will it contribute towards sustainable water use?","N/A","N/A","N/A","N/A","N/A","Neutral","The policy neither supports nor detracts from the achievement of the SA objective. Therefore a neutral effect is predicted.","No"]
["S015 Townscape and Historic Environment\nTo conserve and enhance the townscape, historic environment, heritage assets (including known and unknown archaeological sites) and their settings. ","· Will it protect and enhance the condition and setting of historic, cultural, architectural and archaeological features in South Derbyshire?\n· Does it improve the quality of the built environment, and respect and protect existing townscape character?\n· Will it improve access to, and understanding of, the District’s historic and cultural assets for enjoyment and educational purposes?","Direct","Low","Medium/Long","Localised","Permanent/Reversible","Minor Positive","Policy E3 could help to improve the townscape, as sites with existing industrial and business use which are proven to be significantly harmful to visual qualities may be redeveloped. This could therefore provide an opportunity to improve the visual aesthetics of the townscape in particular areas, hence a potential minor positive location has been identified. ","No"]
["S016 Landscape\nTo conserve and enhance the District’s landscape character.","· Does it respect and protect existing landscape character?\n· Will it protect sensitive landscapes including those within the World Heritage Site or its buffer or Special Landscape Areas?\n· Will it safeguard landscape features such as hedgerows?\n· Will it avoid intrusion into the greenbelt?","N/A","N/A","N/A","N/A","N/A","Neutral","The policy neither supports nor detracts from the achievement of the SA objective. Therefore a neutral effect is predicted.","No"]

{"sheet":"E4_Woodville_Regeneration_Area","index":22,"n_rows":23,"n_cols":13,"rows_kept":23,"cut":false,"hidden":false,"merged":[[0,1,0,2],[1,1,1,2],[2,1,2,2],[3,1,3,2],[5,0,5,1],[5,2,5,11]]}
["Policy/Alternative name","Policy E4: Woodville Regeneration Area"]
["Chapter","Employment and the Economy"]
["Policy/alternative description","Policy E4 sets out measures for protecting the Woodville Regeneration area for \"employment-led redevelopment , to enable the economic, social and environmental regeneration of Woodville and Swadlincote. \nWoodville Regeneration Area is protected for employment-led redevelopment, to enable the economic, social and environmental regeneration of Woodville and Swadlincote.\" Development of the area should incorporate a minimum of 4.6 ha of new industrial and business development defined by Use Classes E(g), B2 and B8, up to 300 new dwellings and a highway, cycle and pedestrian route linking Bridge Street, Church Gresley to Hepworth Road/Kiln Way, Woodville.  "]
["Assumptions Made"]
[]
["SA Framework",null,"SA Policy Assessment"]
["SA objective","SA sub-objective","Direct/\nIndirect","Magnitude","Duration","Spatial Extent","Permanence/ Reversibility","Significance","Description of potential effects","Potential for cumulative effects? ","Mitigation","Enhancements","SDDC Comments"]
["S01 Biodiversity\nTo safeguard and enhance biodiversity (including BAP habitats and species) and geodiversity through biodiversity net gain and improve connectivity between, and access to, green spaces and functional habitats.","· Will it conserve and enhance natural or semi natural habitats including internationally, nationally and locally designated wildlife sites, or create new wildlife habitats, and contribute to the creation of a network of habitats and green infrastructure in the District?\n· Will it protect BAP or protected species and contribute to the delivery of new, or safeguard existing BAP priority species and habitats?\n· Will it protect sites of geological importance?","Direct","Low","Medium/Long","Localised","Permanent/Reversible","Uncertain","Policy E4 sets out the need to \"enable the economic, social and environmental regeneration of Woodville and Swadlincote\", thus there is potential for positive effects to arise on the natural environment within the area. For example, proposals will be supported where they include National Forest planting. However, the precise actions which will be taken are unclear, hence it is not possible to determine the significance of a potential positive effect. ","No","Further details of plans for nature in and around the area could assist in determining the significance score. "]
["S02 Housing\nTo ensure everyone has access to sustainable housing, which is affordable, and meets the needs of all residents including the elderly and other vulnerable groups and will support the vitality of existing communities and settlements. ","· Will it reduce the number of households waiting for accommodation or accepted as homeless?\n· Will it increase the number and mix of housing? \n· Will it improve the suitability of new homes for older and disabled people?\n· Will it provide affordable housing for those unable to access market housing?\n· Will it meet the needs of the travelling community and show people?\n· Will it secure infrastructure or community facilities?","Direct","Medium","Long(20+yrs)","Localised","Permanent/Irreversible","Significant Positive","Policy E4 will result in the development of 300 new homes within the Woodville regeneration area, alongside business uses and links to transport routes. This could help to ensure new homes are available for local people whilst revitalising an area of the District which is currently largely vacant. Therefore, a potential significant positive effect has been identified. ","Yes"]
["S03 Accessibility and Health\nTo improve local accessibility to healthcare, education, employment, retail facilities and recreational resources (including open spaces and sports facilities) and enhance wellbeing, promoting healthy and sustainable lifestyles.","· Will it promote healthy lifestyles?\n· Will it deliver new, or contribute to the expansion or improvement of existing open spaces, green infrastructure, schools or healthcare facilities within reasonable walking distance?\n· Will it deliver growth within reasonable walking distance to a planned or existing major employment area (5ha +) or town centre?\n· Will it improve opportunities for active travel including walking and cycling?\n· Will it deliver services or facilities on-site or elsewhere within the District? ","N/A","N/A","N/A","N/A","N/A","Uncertain","Although Policy E4 requires development in the Woodville Regeneration Area to include a new highway and active travel links, it is unclear if community facilities will also be included with the development. It is also unknown if the existing services and facilities within Woodville will be able to accommodate the needs of an additional 300 households resulting from the redevelopment. Therefore, an uncertain effect has been predicted. ","No","Further details of the development proposed within the regeneration area could help to mitigate the uncertainty identified. "]
["S04 Quality of Life\nTo create safe and attractive places which contribute towards quality of life and community cohesion.","· Will it contribute towards reducing crime or fear of crime?\n· Will it provide attractive places which provide opportunities for communities to mix and meet?","N/A","N/A","N/A","N/A","N/A","Neutral","The policy neither supports nor detracts from the achievement of the SA objective. Therefore a neutral effect is predicted.","No"]
["S05 Inequalities\nEnsure all residents have equitable access to employment, education, community services and facilities irrespective of race, religion, sex, age, sexual orientation, disability, gender reassignment, marriage and civil partnership or pregnancy/maternity.","· Ensure the option / policy does not have an adverse/ discriminatory impact on protected characteristics/ equality groups?\n· Will it narrow the inequality gap between the richest and poorest in the District?\n· Will it reduce inequalities associated with deprivation across the District?","N/A","N/A","N/A","N/A","N/A","Neutral","The policy neither supports nor detracts from the achievement of the SA objective. Therefore a neutral effect is predicted.","No"]
["S06 Economy\nTo deliver growth in key employment sectors and support the creation of new and retention of existing businesses in urban and rural areas.","· Will it encourage the creation of new businesses and existing businesses to grow?\n· Will it encourage economic diversification?\n· Will it help support and encourage the growth of the local economy (including in rural areas)?\n· Will it support the enhancement of the District’s tourism and cultural offer?","Direct","Low","Medium/Long","Localised","Permanent/Irreversible","Minor Positive","The regeneration of the Woodville Regeneration Area will include housing alongside 4.6ha of employment land. This could help to bring new business opportunities into a currently run down area of the District. A minor positive effect has been recorded due to the specificity of the policy. ","Yes"]
["S07 Employment\nTo create greater employment opportunities and higher value jobs across the whole District","· Will it help to improve skills levels and access to training within the District?\n· Will it reduce unemployment rates overall and reduce disparities which exist across different parts of the District?","Direct","Low","Medium/Long","Localised","Permanent/Irreversible","Minor Positive","The regeneration of the Woodville Regeneration Area will include housing alongside employment land. This could help to bring new opportunities of employment to an area of the District, which is placed alongside future residents. A minor positive effect has been recorded due to the specificity of the policy. ","Yes"]
["S08 Infrastructure\nTo deliver improved infrastructure to support growth and economic competitiveness of urban and rural businesses and communities.","· Will it minimise the impact of traffic congestion on the strategic and local road network through the delivery of new or enhanced transport infrastructure?\n· Will it provide opportunities to access key services, including doctor’s surgeries, education facilities, employment and town, local or village centres by means other than car?\n· Will it make the best use of other infrastructure which serves new development?","Direct","Low","Medium/Long","Localised","Permanent/Irreversible","Minor Positive","Policy E4 will result in the delivery of a new highway to link roads around the regeneration areas to Woodville. As this will be a localised highway, a minor positive effect has been identified.","No"]
["S09 Sustainable Travel\nTo promote sustainable travel habits including walking, cycling and public transport (bus and rail) usage.  ","· Will it reduce journey lengths and times? \n· Will it maximise opportunities for walking and cycling?\n· Will it maximise opportunities to access public transport provision?","Direct","Low","Medium/Long","Localised","Permanent/Irreversible","Minor Positive","Policy E4 includes the need for cycle and pedestrian routes to link Woodville Regeneration Area to Woodville. As these will be localised routes, a minor positive effect has been identified.","No"]
["S010 Town and Village Centres\nTo ensure that town and village centres are vibrant and viable.","· Will it improve existing shopping facilities within town and village centres? \n· Will it help safeguard existing town and village centres?","N/A","N/A","N/A","N/A","N/A","Neutral","The policy neither supports nor detracts from the achievement of the SA objective. Therefore a neutral effect is predicted.","No"]
["S011 Resources\nTo minimise waste and ensure the sustainable use and protection of natural resources including greenfield land, soil and minerals resources.  ","· Will it enhance opportunities for increased levels of recycling in the District?\n· Will it improve or remediate contaminated land or reuse previously developed land which has not been restored?\n· Will it protect Best and Most Versatile (BMV) Agricultural Land?\n· Will it avoid the sterilisation of minerals resources?","Direct","Medium","Medium/Long","Localised","Permanent/Irreversible","Significant Positive","Policy E4 will regenerate an area of the District which is currently poorly restored, with many vacant industrial premises, thus previously used land will be restored and revitalised. A potential significant positive effect has therefore been identified. ","No"]
["S012 Pollution\nTo minimise water, air, light and noise pollution and ensure that future growth does not lead to the further deterioration of environmental conditions.","· Will it contribute to improvements in water quality in the District?\n· Will it avoid increasing noise levels locally or introducing incompatible uses into an already noisy location?\n· Will it avoid deterioration in air quality within the District?\n· Will it reduce light pollution on sensitive receptors by keeping external lighting to the minimum required for safety and security?","N/A","N/A","N/A","N/A","N/A","Neutral","The policy neither supports nor detracts from the achievement of the SA objective. Therefore a neutral effect is predicted.","No"]
["S013 Contributions to Climate Change \nTo reduce the District’s contribution towards the emission of climate change gases.","· Will it provide opportunities to access local services and facilities by public transport walking or cycling?\n· Will it support the delivery of renewable energy capacity (including small scale or community energy projects)?\n· Will it support the shift toward usage of electric and ultralow emissions vehicles? ","N/A","N/A","N/A","N/A","N/A","Neutral","The policy neither supports nor detracts from the achievement of the SA objective. Therefore a neutral effect is predicted.","No"]
["S014 Adaptation to Climate Change \nTo manage the effects of climate change including flood risk, reduced water availability and overheating.","· Will it minimise flood risk?\n· Will it include provision of sustainable urban drainage which mimic natural drainage patterns?\n· Will it contribute towards sustainable water use?","N/A","N/A","N/A","N/A","N/A","Neutral","The policy neither supports nor detracts from the achievement of the SA objective. Therefore a neutral effect is predicted.","No"]
["S015 Townscape and Historic Environment\nTo conserve and enhance the townscape, historic environment, heritage assets (including known and unknown archaeological sites) and their settings. ","· Will it protect and enhance the condition and setting of historic, cultural, architectural and archaeological features in South Derbyshire?\n· Does it improve the quality of the built environment, and respect and protect existing townscape character?\n· Will it improve access to, and understanding of, the District’s historic and cultural assets for enjoyment and educational purposes?","Direct","Medium","Medium/Long","Localised","Permanent/Irreversible","Significant Positive","Policy E4 will regenerate an area of the District which is currently poorly restored, with many vacant industrial premises. It also seeks to conserve and enhance historic features within the Woodville Regeneration Area. This will improve the quality of the built environment, thus a potential significant positive effect has been identified. ","No"]
["S016 Landscape\nTo conserve and enhance the District’s landscape character.","· Does it respect and protect existing landscape character?\n· Will it protect sensitive landscapes including those within the World Heritage Site or its buffer or Special Landscape Areas?\n· Will it safeguard landscape features such as hedgerows?\n· Will it avoid intrusion into the greenbelt?","N/A","N/A","N/A","N/A","N/A","Neutral","The policy neither supports nor detracts from the achievement of the SA objective. Therefore a neutral effect is predicted.","No"]

{"sheet":"E5_Rural_Employment_Development","index":23,"n_rows":23,"n_cols":13,"rows_kept":23,"cut":false,"hidden":false,"merged":[[0,1,0,2],[1,1,1,2],[2,1,2,2],[3,1,3,2],[5,0,5,1],[5,2,5,11]]}
["Policy/Alternative name","Policy E5: Rural Employment Development "]
["Chapter","Employment and the Economy"]
["Policy/alternative description","Policy E5 sets out the conditions which rural employment developments should meet when located outside of development boundaries. These include consideration of highway access, prevention of significant adverse effects on local nature, the built environment and character and needing to demonstrate that there is a social and economic need in rural communities. A sound business case is needed for the development of new buildings. "]
["Assumptions Made"]
[]
["SA Framework",null,"SA Policy Assessment"]
["SA objective","SA sub-objective","Direct/\nIndirect","Magnitude","Duration","Spatial Extent","Permanence/ Reversibility","Significance","Description of potential effects","Potential for cumulative effects? ","Mitigation","Enhancements","SDDC Comments"]
["S01 Biodiversity\nTo safeguard and enhance biodiversity (including BAP habitats and species) and geodiversity through biodiversity net gain and improve connectivity between, and access to, green spaces and functional habitats.","· Will it conserve and enhance natural or semi natural habitats including internationally, nationally and locally designated wildlife sites, or create new wildlife habitats, and contribute to the creation of a network of habitats and green infrastructure in the District?\n· Will it protect BAP or protected species and contribute to the delivery of new, or safeguard existing BAP priority species and habitats?\n· Will it protect sites of geological importance?","Direct","Low","Medium/Long","Localised","Permanent/Reversible","Minor Positive","Whilst Policy E5 will not work directly towards enhancing the natural environment, it does require development outside of existing development boundaries, for industrial and business uses defined by E(g), B2 and B8, not to give rise to significant harmful impacts on the environment. This could help to maintain the baseline of biodiversity in the vicinity of these developments. Therefore, a minor positive effect has been identified. ","No"]
["S02 Housing\nTo ensure everyone has access to sustainable housing, which is affordable, and meets the needs of all residents including the elderly and other vulnerable groups and will support the vitality of existing communities and settlements. ","· Will it reduce the number of households waiting for accommodation or accepted as homeless?\n· Will it increase the number and mix of housing? \n· Will it improve the suitability of new homes for older and disabled people?\n· Will it provide affordable housing for those unable to access market housing?\n· Will it meet the needs of the travelling community and show people?\n· Will it secure infrastructure or community facilities?","N/A","N/A","N/A","N/A","N/A","Neutral","The policy neither supports nor detracts from the achievement of the SA objective. Therefore a neutral effect is predicted.","No"]
["S03 Accessibility and Health\nTo improve local accessibility to healthcare, education, employment, retail facilities and recreational resources (including open spaces and sports facilities) and enhance wellbeing, promoting healthy and sustainable lifestyles.","· Will it promote healthy lifestyles?\n· Will it deliver new, or contribute to the expansion or improvement of existing open spaces, green infrastructure, schools or healthcare facilities within reasonable walking distance?\n· Will it deliver growth within reasonable walking distance to a planned or existing major employment area (5ha +) or town centre?\n· Will it improve opportunities for active travel including walking and cycling?\n· Will it deliver services or facilities on-site or elsewhere within the District? ","N/A","N/A","N/A","N/A","N/A","Neutral","The policy neither supports nor detracts from the achievement of the SA objective. Therefore a neutral effect is predicted.","No"]
["S04 Quality of Life\nTo create safe and attractive places which contribute towards quality of life and community cohesion.","· Will it contribute towards reducing crime or fear of crime?\n· Will it provide attractive places which provide opportunities for communities to mix and meet?","N/A","N/A","N/A","N/A","N/A","Neutral","The policy neither supports nor detracts from the achievement of the SA objective. Therefore a neutral effect is predicted.","No"]
["S05 Inequalities\nEnsure all residents have equitable access to employment, education, community services and facilities irrespective of race, religion, sex, age, sexual orientation, disability, gender reassignment, marriage and civil partnership or pregnancy/maternity.","· Ensure the option / policy does not have an adverse/ discriminatory impact on protected characteristics/ equality groups?\n· Will it narrow the inequality gap between the richest and poorest in the District?\n· Will it reduce inequalities associated with deprivation across the District?","N/A","N/A","N/A","N/A","N/A","Neutral","The policy neither supports nor detracts from the achievement of the SA objective. Therefore a neutral effect is predicted.","No"]
["S06 Economy\nTo deliver growth in key employment sectors and support the creation of new and retention of existing businesses in urban and rural areas.","· Will it encourage the creation of new businesses and existing businesses to grow?\n· Will it encourage economic diversification?\n· Will it help support and encourage the growth of the local economy (including in rural areas)?\n· Will it support the enhancement of the District’s tourism and cultural offer?","Direct","Low","Medium/Long","Localised","Permanent/Reversible","Minor Positive","Policy E5 could help to ensure that rural economic development is provided, where appropriate, thus supporting the rural economy. Due to the specific nature of the policy, a minor positive effect has been identified. ","Yes"]
["S07 Employment\nTo create greater employment opportunities and higher value jobs across the whole District","· Will it help to improve skills levels and access to training within the District?\n· Will it reduce unemployment rates overall and reduce disparities which exist across different parts of the District?","Direct","Low","Medium/Long","Localised","Permanent/Reversible","Minor Positive","Policy E5 could help to ensure that rural economic development is provided, where appropriate, thus supporting the rural economy. This could help to ensure that rural employment opportunities are available within the District. Due to the specific nature of the policy, a minor positive effect has been identified. ","Yes"]
["S08 Infrastructure\nTo deliver improved infrastructure to support growth and economic competitiveness of urban and rural businesses and communities.","· Will it minimise the impact of traffic congestion on the strategic and local road network through the delivery of new or enhanced transport infrastructure?\n· Will it provide opportunities to access key services, including doctor’s surgeries, education facilities, employment and town, local or village centres by means other than car?\n· Will it make the best use of other infrastructure which serves new development?","Direct","Low","Medium/Long","Localised","Permanent/Irreversible","Minor Positive","Policy E5 requires rural employment development proposals to consider the access via highways, including for commercial vehicles. This could help to ensure that the local rural road network is not overwhelmed by inappropriate development. As the nature of this policy is highly specific, a minor positive effect has been identified. ","No"]
["S09 Sustainable Travel\nTo promote sustainable travel habits including walking, cycling and public transport (bus and rail) usage.  ","· Will it reduce journey lengths and times? \n· Will it maximise opportunities for walking and cycling?\n· Will it maximise opportunities to access public transport provision?","N/A","N/A","N/A","N/A","N/A","Neutral","The policy neither supports nor detracts from the achievement of the SA objective. Therefore a neutral effect is predicted.","No"]
["S010 Town and Village Centres\nTo ensure that town and village centres are vibrant and viable.","· Will it improve existing shopping facilities within town and village centres? \n· Will it help safeguard existing town and village centres?","N/A","N/A","N/A","N/A","N/A","Neutral","The policy neither supports nor detracts from the achievement of the SA objective. Therefore a neutral effect is predicted.","No"]
["S011 Resources\nTo minimise waste and ensure the sustainable use and protection of natural resources including greenfield land, soil and minerals resources.  ","· Will it enhance opportunities for increased levels of recycling in the District?\n· Will it improve or remediate contaminated land or reuse previously developed land which has not been restored?\n· Will it protect Best and Most Versatile (BMV) Agricultural Land?\n· Will it avoid the sterilisation of minerals resources?","N/A","N/A","N/A","N/A","N/A","Neutral","The policy neither supports nor detracts from the achievement of the SA objective. Therefore a neutral effect is predicted.","No"]
["S012 Pollution\nTo minimise water, air, light and noise pollution and ensure that future growth does not lead to the further deterioration of environmental conditions.","· Will it contribute to improvements in water quality in the District?\n· Will it avoid increasing noise levels locally or introducing incompatible uses into an already noisy location?\n· Will it avoid deterioration in air quality within the District?\n· Will it reduce light pollution on sensitive receptors by keeping external lighting to the minimum required for safety and security?","N/A","N/A","N/A","N/A","N/A","Neutral","The policy neither supports nor detracts from the achievement of the SA objective. Therefore a neutral effect is predicted.","No",null,"The addition of the consideration of air, noise and light pollution for rural exception sites could strengthen the policy in relation to S09. Although Policy SD1 may help to ensure air quality is considered, the explicit reference within Policy E5 could ensure these are considered and mitigated prior to development. "]
["S013 Contributions to Climate Change \nTo reduce the District’s contribution towards the emission of climate change gases.","· Will it provide opportunities to access local services and facilities by public transport walking or cycling?\n· Will it support the delivery of renewable energy capacity (including small scale or community energy projects)?\n· Will it support the shift toward usage of electric and ultralow emissions vehicles? ","N/A","N/A","N/A","N/A","N/A","Neutral","The policy neither supports nor detracts from the achievement of the SA objective. Therefore a neutral effect is predicted.","No"]
["S014 Adaptation to Climate Change \nTo manage the effects of climate change including flood risk, reduced water availability and overheating.","· Will it minimise flood risk?\n· Will it include provision of sustainable urban drainage which mimic natural drainage patterns?\n· Will it contribute towards sustainable water use?","N/A","N/A","N/A","N/A","N/A","Neutral","The policy neither supports nor detracts from the achievement of the SA objective. Therefore a neutral effect is predicted.","No"]
["S015 Townscape and Historic Environment\nTo conserve and enhance the townscape, historic environment, heritage assets (including known and unknown archaeological sites) and their settings. ","· Will it protect and enhance the condition and setting of historic, cultural, architectural and archaeological features in South Derbyshire?\n· Does it improve the quality of the built environment, and respect and protect existing townscape character?\n· Will it improve access to, and understanding of, the District’s historic and cultural assets for enjoyment and educational purposes?","Direct","Low","Medium/Long","Localised","Permanent/Reversible","Minor Positive","Whilst Policy E5 will not work directly towards enhancing the historic environment, it does require development outside of existing development boundaries, for industrial and business uses defined by E(g), B2 and B8, not to give rise to significant harmful impacts on the historic environment. It also requires that developments are \"well designed and will not cause significant visual intrusion or harm the character of the surrounding area\". This could help to maintain or improve the built environment in the vicinity of these developments. Therefore, a minor positive effect has been identified. ","No"]
["S016 Landscape\nTo conserve and enhance the District’s landscape character.","· Does it respect and protect existing landscape character?\n· Will it protect sensitive landscapes including those within the World Heritage Site or its buffer or Special Landscape Areas?\n· Will it safeguard landscape features such as hedgerows?\n· Will it avoid intrusion into the greenbelt?","N/A","N/A","N/A","N/A","N/A","Neutral","The policy neither supports nor detracts from the achievement of the SA objective. Therefore a neutral effect is predicted.","No"]

{"sheet":"SD2_Flood_Risk","index":24,"n_rows":23,"n_cols":13,"rows_kept":23,"cut":false,"hidden":false,"merged":[[0,1,0,2],[1,1,1,2],[2,1,2,2],[3,1,3,2],[5,0,5,1],[5,2,5,11]]}
["Policy/Alternative name","Policy SD2: Flood Risk"]
["Chapter","Sustainable Development"]
["Policy/alternative description","Policy SD2 highlights that a sequential approach to flood risk management is being taken across the District, giving priority to the development of sites with the lowest risk of flooding. The development of sites with a higher risk of flooding will only be considered where essential for regeneration or where development provides wider sustainability benefits to the community that outweigh flood risk. Development in these areas will be expected to be resilient to flooding through design and layout; incorporate appropriate mitigation and protection measures; not increase flood risk to other properties or surrounding areas; not affect the integrity or continuity of existing flood defences; and provide a site-specific Flood Risk Assessment (if required). Suitable measures to deal with surface water will be required on all sites (including SuDS and the restoration of cultivated watercourses). Where new flood related infrastructure is proposed opportunities for delivering environmental improvements including biodiversity gain and green infrastructure delivery should be fully considered by those delivering the project. Development proposals will not result in the site or other locations being at increased risk of flooding. For a greenfield site the rate of runoff from the developed site should be no greater than the existing rate of runoff from the site. For a development on previously developed (brownfield) land, the rate of runoff should not exceed the runoff from the site in its previously developed condition. "]
["Assumptions Made","None."]
[]
["SA Framework",null,"SA Policy Assessment"]
["SA objective","SA sub-objective","Direct/\nIndirect","Magnitude","Duration","Spatial Extent","Permanence/ Reversibility","Significance","Description of potential effects","Potential for cumulative effects? ","Mitigation","Enhancements","SDDC Comments"]
["S01 Biodiversity\nTo safeguard and enhance biodiversity (including BAP habitats and species) and geodiversity through biodiversity net gain and improve connectivity between, and access to, green spaces and functional habitats.","· Will it conserve and enhance natural or semi natural habitats including internationally, nationally and locally designated wildlife sites, or create new wildlife habitats, and contribute to the creation of a network of habitats and green infrastructure in the District?\n· Will it protect BAP or protected species and contribute to the delivery of new, or safeguard existing BAP priority species and habitats?\n· Will it protect sites of geological importance?","Indirect","Medium","Medium/Long","District-wide","Permanent/Reversible","Minor Positive","Policy SD2 will indirectly contribute to the achievement of SA1 as the use of natural flood risk methods in development (e.g. SuDs, green infrastructure and the restoration of cultivated watercourses) is likely to be beneficial for habitat and species conservation and could lead to BNG within the area. Therefore, as this policy indirectly meets some of the criteria for SA1, a potential minor positive effect has been identified.","Yes"]
["S02 Housing\nTo ensure everyone has access to sustainable housing, which is affordable, and meets the needs of all residents including the elderly and other vulnerable groups and will support the vitality of existing communities and settlements. ","· Will it reduce the number of households waiting for accommodation or accepted as homeless?\n· Will it increase the number and mix of housing? \n· Will it improve the suitability of new homes for older and disabled people?\n· Will it provide affordable housing for those unable to access market housing?\n· Will it meet the needs of the travelling community and show people?\n· Will it secure infrastructure or community facilities?","N/A","N/A","N/A","N/A","N/A","Neutral","The policy neither supports nor detracts from the achievement of the SA objective. Therefore a neutral effect is predicted.","No"]
["S03 Accessibility and Health\nTo improve local accessibility to healthcare, education, employment, retail facilities and recreational resources (including open spaces and sports facilities) and enhance wellbeing, promoting healthy and sustainable lifestyles.","· Will it promote healthy lifestyles?\n· Will it deliver new, or contribute to the expansion or improvement of existing open spaces, green infrastructure, schools or healthcare facilities within reasonable walking distance?\n· Will it deliver growth within reasonable walking distance to a planned or existing major employment area (5ha +) or town centre?\n· Will it improve opportunities for active travel including walking and cycling?\n· Will it deliver services or facilities on-site or elsewhere within the District? ","Indirect","Medium","Medium/Long","District-wide","Permanent/Reversible","Minor Positive","Policy SD2 will indirectly contribute to the achievement of SA3 as by managing flood risk in the District, the likelihood of a major floor event occurring will be lessened. This will subsequently safeguard peoples homes and businesses, and thus their health and wellbeing. Therefore, as this policy indirectly meets some of the criteria for SA3, a potential minor positive effect has been identified.","No"]
["S04 Quality of Life\nTo create safe and attractive places which contribute towards quality of life and community cohesion.","· Will it contribute towards reducing crime or fear of crime?\n· Will it provide attractive places which provide opportunities for communities to mix and meet?","N/A","N/A","N/A","N/A","N/A","Neutral","The policy neither supports nor detracts from the achievement of the SA objective. Therefore a neutral effect is predicted.","No"]
["S05 Inequalities\nEnsure all residents have equitable access to employment, education, community services and facilities irrespective of race, religion, sex, age, sexual orientation, disability, gender reassignment, marriage and civil partnership or pregnancy/maternity.","· Ensure the option / policy does not have an adverse/ discriminatory impact on protected characteristics/ equality groups?\n· Will it narrow the inequality gap between the richest and poorest in the District?\n· Will it reduce inequalities associated with deprivation across the District?","N/A","N/A","N/A","N/A","N/A","Neutral","The policy neither supports nor detracts from the achievement of the SA objective. Therefore a neutral effect is predicted.","No"]
["S06 Economy\nTo deliver growth in key employment sectors and support the creation of new and retention of existing businesses in urban and rural areas.","· Will it encourage the creation of new businesses and existing businesses to grow?\n· Will it encourage economic diversification?\n· Will it help support and encourage the growth of the local economy (including in rural areas)?\n· Will it support the enhancement of the District’s tourism and cultural offer?","Indirect","Medium","Medium/Long","District-wide","Permanent/Reversible","Minor Positive","Policy SD2 will indirectly contribute to the achievement of SA6 as by managing flood risk in the District, the likelihood of a major floor event occurring will be lessened. This will subsequently safeguard peoples businesses and reduce the associated economic risk. Therefore, as this policy indirectly meets some of the criteria for SA6, a potential minor positive effect has been identified.","No"]
["S07 Employment\nTo create greater employment opportunities and higher value jobs across the whole District","· Will it help to improve skills levels and access to training within the District?\n· Will it reduce unemployment rates overall and reduce disparities which exist across different parts of the District?","N/A","N/A","N/A","N/A","N/A","Neutral","The policy neither supports nor detracts from the achievement of the SA objective. Therefore a neutral effect is predicted.","No"]
["S08 Infrastructure\nTo deliver improved infrastructure to support growth and economic competitiveness of urban and rural businesses and communities.","· Will it minimise the impact of traffic congestion on the strategic and local road network through the delivery of new or enhanced transport infrastructure?\n· Will it provide opportunities to access key services, including doctor’s surgeries, education facilities, employment and town, local or village centres by means other than car?\n· Will it make the best use of other infrastructure which serves new development?","N/A","N/A","N/A","N/A","N/A","Neutral","The policy neither supports nor detracts from the achievement of the SA objective. Therefore a neutral effect is predicted.","No"]
["S09 Sustainable Travel\nTo promote sustainable travel habits including walking, cycling and public transport (bus and rail) usage.  ","· Will it reduce journey lengths and times? \n· Will it maximise opportunities for walking and cycling?\n· Will it maximise opportunities to access public transport provision?","N/A","N/A","N/A","N/A","N/A","Neutral","The policy neither supports nor detracts from the achievement of the SA objective. Therefore a neutral effect is predicted.","No"]
["S010 Town and Village Centres\nTo ensure that town and village centres are vibrant and viable.","· Will it improve existing shopping facilities within town and village centres? \n· Will it help safeguard existing town and village centres?","N/A","N/A","N/A","N/A","N/A","Neutral","The policy neither supports nor detracts from the achievement of the SA objective. Therefore a neutral effect is predicted.","No"]
["S011 Resources\nTo minimise waste and ensure the sustainable use and protection of natural resources including greenfield land, soil and minerals resources.  ","· Will it enhance opportunities for increased levels of recycling in the District?\n· Will it improve or remediate contaminated land or reuse previously developed land which has not been restored?\n· Will it protect Best and Most Versatile (BMV) Agricultural Land?\n· Will it avoid the sterilisation of minerals resources?","N/A","N/A","N/A","N/A","N/A","Neutral","The policy neither supports nor detracts from the achievement of the SA objective. Therefore a neutral effect is predicted.","No"]
["S012 Pollution\nTo minimise water, air, light and noise pollution and ensure that future growth does not lead to the further deterioration of environmental conditions.","· Will it contribute to improvements in water quality in the District?\n· Will it avoid increasing noise levels locally or introducing incompatible uses into an already noisy location?\n· Will it avoid deterioration in air quality within the District?\n· Will it reduce light pollution on sensitive receptors by keeping external lighting to the minimum required for safety and security?","Indirect","Medium","Medium/Long","District-wide","Permanent/Reversible","Minor Positive","Policy SD2 will indirectly contribute to the achievement of SA12 as by managing flood risk in the District and enhancing watercourses through recultivation, the likelihood of water pollution should be reduced, thus protecting natural resources. Therefore, as this policy indirectly meets some of the criteria for SA12, a potential minor positive effect has been identified.","No"]
["S013 Contributions to Climate Change \nTo reduce the District’s contribution towards the emission of climate change gases.","· Will it provide opportunities to access local services and facilities by public transport walking or cycling?\n· Will it support the delivery of renewable energy capacity (including small scale or community energy projects)?\n· Will it support the shift toward usage of electric and ultralow emissions vehicles? ","N/A","N/A","N/A","N/A","N/A","Neutral","The policy neither supports nor detracts from the achievement of the SA objective. Therefore a neutral effect is predicted.","No"]
["S014 Adaptation to Climate Change \nTo manage the effects of climate change including flood risk, reduced water availability and overheating.","· Will it minimise flood risk?\n· Will it include provision of sustainable urban drainage which mimic natural drainage patterns?\n· Will it contribute towards sustainable water use?","Direct","Medium","Medium/Long","District-wide","Permanent/Irreversible","Significant Positive","Policy SD2 supports the achievement of SA14 through the provision to reduce flood risk in the District by prioritising developments with the lowest risk of flooding. Sites with a high risk of flooding will only be considered where essential for regeneration, or where benefits outweigh the flood risk. They should not increase flood risk to other properties/surrounding areas however. For a greenfield site the rate of runoff from the developed site should be no greater than the existing rate of runoff from the site. For a previously developed (brownfield) site, the rate of runoff should not exceed the runoff from the site in its previously developed condition. Developments should incorporate appropriate flood risk mitigation and protection measures, including the use of SuDs and the restoration of culverted watercourses. Therefore, as this policy meets most/all of the criteria for SA14, a potential significant positive effect has been identified.","No"]
["S015 Townscape and Historic Environment\nTo conserve and enhance the townscape, historic environment, heritage assets (including known and unknown archaeological sites) and their settings. ","· Will it protect and enhance the condition and setting of historic, cultural, architectural and archaeological features in South Derbyshire?\n· Does it improve the quality of the built environment, and respect and protect existing townscape character?\n· Will it improve access to, and understanding of, the District’s historic and cultural assets for enjoyment and educational purposes?","N/A","N/A","N/A","N/A","N/A","Neutral","The policy neither supports nor detracts from the achievement of the SA objective. Therefore a neutral effect is predicted.","No"]
["S016 Landscape\nTo conserve and enhance the District’s landscape character.","· Does it respect and protect existing landscape character?\n· Will it protect sensitive landscapes including those within the World Heritage Site or its buffer or Special Landscape Areas?\n· Will it safeguard landscape features such as hedgerows?\n· Will it avoid intrusion into the greenbelt?","N/A","N/A","N/A","N/A","N/A","Neutral","The policy neither supports nor detracts from the achievement of the SA objective. Therefore a neutral effect is predicted.","No"]

{"sheet":"SD3_Sustainable_Water_Supply","index":25,"n_rows":23,"n_cols":14,"rows_kept":23,"cut":false,"hidden":false,"merged":[[0,1,0,2],[1,1,1,2],[2,1,2,2],[3,1,3,2],[5,0,5,1],[5,2,5,11]]}
["Policy/Alternative name","Policy SD3: Sustainable Water Supply, Drainage and Sewerage Infrastructure"]
["Chapter","Sustainable Development"]
["Policy/alternative description","Policy SD3 highlights that future water resource needs, wastewater treatment and drainage infrastructure will be managed effectively by ensuring that adequate water supply, sewerage and drainage infrastructure needed to service new development is delivered in tandem with identified growth; supporting activities to achieve a water consumption rate of no more than 110 litres per person per day; incorporating sustainable drainage schemes where possible to improve river water quality, enhance green infrastructure, reduce local drainage pressure and deliver biodiversity gains. All relevant developments within the catchment of the River Mease should support the delivery of the River Mease Water Quality Management Plan in order to improve the quality of the River Mese Special Area of Conservation. New development within the catchment will only be allowed where there is sufficient headroom capacity available at the named/identified Wastewater Treatment Works to which flows from the development will go and the proposed development will not cause an adverse effect on the integrity of the SAC, and where appropriate the provision of bespoke mitigation measures of contribution to any future strategic mitigation scheme should be made. Foul flows generated by new development will be expected to connect to the mains sewer. Developments that utilise non-mains drainage will only be permitted where proposals do not give rise to unacceptable environmental impacts. Where there is no headroom capacity at an appropriate wastewater treatment works, developers should propose a bespoke mitigation package to avoid an adverse effect on the River Mease SAC. "]
["Assumptions Made","None."]
[]
["SA Framework",null,"SA Policy Assessment"]
["SA objective","SA sub-objective","Direct/\nIndirect","Magnitude","Duration","Spatial Extent","Permanence/ Reversibility","Significance","Description of potential effects","Potential for cumulative effects? ","Mitigation","Enhancements","SDDC Comments"]
["S01 Biodiversity\nTo safeguard and enhance biodiversity (including BAP habitats and species) and geodiversity through biodiversity net gain and improve connectivity between, and access to, green spaces and functional habitats.","· Will it conserve and enhance natural or semi natural habitats including internationally, nationally and locally designated wildlife sites, or create new wildlife habitats, and contribute to the creation of a network of habitats and green infrastructure in the District?\n· Will it protect BAP or protected species and contribute to the delivery of new, or safeguard existing BAP priority species and habitats?\n· Will it protect sites of geological importance?","Direct","Medium","Medium/Long","District-wide","Permanent/Reversible","Minor Positive","Policy SD3 will contribute to the achievement of SA1 as the use of sustainable drainage schemes in development (e.g. SuDs, green infrastructure) is likely to be beneficial for habitat and species conservation and could lead to BNG within the area. Additionally, developments will only be supported where they do not cause an adverse effect on the integrity of the River Mease SAC. Where there is no headroom capacity at an appropriate wastewater treatment works, developers should propose a bespoke mitigation package to avoid an adverse effect on the River Mease SAC. Where appropriate, the provision of bespoke mitigation measures of contribution to any future strategic mitigation scheme should be made. Therefore, as this policy is likely to result in a minor improvement to biodiversity, a potential minor positive effect is identified.","Yes",null,null,null,"If this policy isn't going to result in a net improvement and is only mitigating / avoiding effects, it should be neutral not sig pos. I think this needs amendment. If we make it nautral please don't use the stock text, we need to explain why."]
["S02 Housing\nTo ensure everyone has access to sustainable housing, which is affordable, and meets the needs of all residents including the elderly and other vulnerable groups and will support the vitality of existing communities and settlements. ","· Will it reduce the number of households waiting for accommodation or accepted as homeless?\n· Will it increase the number and mix of housing? \n· Will it improve the suitability of new homes for older and disabled people?\n· Will it provide affordable housing for those unable to access market housing?\n· Will it meet the needs of the travelling community and show people?\n· Will it secure infrastructure or community facilities?","N/A","N/A","N/A","N/A","N/A","Neutral","The policy neither supports nor detracts from the achievement of the SA objective. Therefore a neutral effect is predicted.","No"]
["S03 Accessibility and Health\nTo improve local accessibility to healthcare, education, employment, retail facilities and recreational resources (including open spaces and sports facilities) and enhance wellbeing, promoting healthy and sustainable lifestyles.","· Will it promote healthy lifestyles?\n· Will it deliver new, or contribute to the expansion or improvement of existing open spaces, green infrastructure, schools or healthcare facilities within reasonable walking distance?\n· Will it deliver growth within reasonable walking distance to a planned or existing major employment area (5ha +) or town centre?\n· Will it improve opportunities for active travel including walking and cycling?\n· Will it deliver services or facilities on-site or elsewhere within the District? ","Indirect","Medium","Medium/Long","District-wide","Permanent/Irreversible","Minor Positive","Policy SD3 indirectly supports the achievement of SA3 as improvements to water infrastructure will benefit the health of residents, by lessening the risk of water pollution and drought. Therefore, as this policy indirectly meets some of the criteria for SA3, a potential minor positive effect has been identified.","No"]
["S04 Quality of Life\nTo create safe and attractive places which contribute towards quality of life and community cohesion.","· Will it contribute towards reducing crime or fear of crime?\n· Will it provide attractive places which provide opportunities for communities to mix and meet?","N/A","N/A","N/A","N/A","N/A","Neutral","The policy neither supports nor detracts from the achievement of the SA objective. Therefore a neutral effect is predicted.","No"]
["S05 Inequalities\nEnsure all residents have equitable access to employment, education, community services and facilities irrespective of race, religion, sex, age, sexual orientation, disability, gender reassignment, marriage and civil partnership or pregnancy/maternity.","· Ensure the option / policy does not have an adverse/ discriminatory impact on protected characteristics/ equality groups?\n· Will it narrow the inequality gap between the richest and poorest in the District?\n· Will it reduce inequalities associated with deprivation across the District?","N/A","N/A","N/A","N/A","N/A","Neutral","The policy neither supports nor detracts from the achievement of the SA objective. Therefore a neutral effect is predicted.","No"]
["S06 Economy\nTo deliver growth in key employment sectors and support the creation of new and retention of existing businesses in urban and rural areas.","· Will it encourage the creation of new businesses and existing businesses to grow?\n· Will it encourage economic diversification?\n· Will it help support and encourage the growth of the local economy (including in rural areas)?\n· Will it support the enhancement of the District’s tourism and cultural offer?","N/A","N/A","N/A","N/A","N/A","Neutral","The policy neither supports nor detracts from the achievement of the SA objective. Therefore a neutral effect is predicted.","No"]
["S07 Employment\nTo create greater employment opportunities and higher value jobs across the whole District","· Will it help to improve skills levels and access to training within the District?\n· Will it reduce unemployment rates overall and reduce disparities which exist across different parts of the District?","N/A","N/A","N/A","N/A","N/A","Neutral","The policy neither supports nor detracts from the achievement of the SA objective. Therefore a neutral effect is predicted.","No"]
["S08 Infrastructure\nTo deliver improved infrastructure to support growth and economic competitiveness of urban and rural businesses and communities.","· Will it minimise the impact of traffic congestion on the strategic and local road network through the delivery of new or enhanced transport infrastructure?\n· Will it provide opportunities to access key services, including doctor’s surgeries, education facilities, employment and town, local or village centres by means other than car?\n· Will it make the best use of other infrastructure which serves new development?","N/A","N/A","N/A","N/A","N/A","Neutral","The policy neither supports nor detracts from the achievement of the SA objective. Therefore a neutral effect is predicted.","No"]
["S09 Sustainable Travel\nTo promote sustainable travel habits including walking, cycling and public transport (bus and rail) usage.  ","· Will it reduce journey lengths and times? \n· Will it maximise opportunities for walking and cycling?\n· Will it maximise opportunities to access public transport provision?","N/A","N/A","N/A","N/A","N/A","Neutral","The policy neither supports nor detracts from the achievement of the SA objective. Therefore a neutral effect is predicted.","No"]
["S010 Town and Village Centres\nTo ensure that town and village centres are vibrant and viable.","· Will it improve existing shopping facilities within town and village centres? \n· Will it help safeguard existing town and village centres?","N/A","N/A","N/A","N/A","N/A","Neutral","The policy neither supports nor detracts from the achievement of the SA objective. Therefore a neutral effect is predicted.","No"]
["S011 Resources\nTo minimise waste and ensure the sustainable use and protection of natural resources including greenfield land, soil and minerals resources.  ","· Will it enhance opportunities for increased levels of recycling in the District?\n· Will it improve or remediate contaminated land or reuse previously developed land which has not been restored?\n· Will it protect Best and Most Versatile (BMV) Agricultural Land?\n· Will it avoid the sterilisation of minerals resources?","N/A","N/A","N/A","N/A","N/A","Neutral","The policy neither supports nor detracts from the achievement of the SA objective. Therefore a neutral effect is predicted.","No"]
["S012 Pollution\nTo minimise water, air, light and noise pollution and ensure that future growth does not lead to the further deterioration of environmental conditions.","· Will it contribute to improvements in water quality in the District?\n· Will it avoid increasing noise levels locally or introducing incompatible uses into an already noisy location?\n· Will it avoid deterioration in air quality within the District?\n· Will it reduce light pollution on sensitive receptors by keeping external lighting to the minimum required for safety and security?","N/A","N/A","N/A","N/A","N/A","Neutral","Policy SD3 highlights that developments should incorporate sustainable drainage schemes (SuDs), to manage pollutants, which should improve water quality. Additionally, developments will only be supported where they do not cause an adverse effect on the integrity of the River Mease SAC. Where there is no headroom capacity at an appropriate wastewater treatment works, developers should propose a bespoke mitigation package to avoid an adverse effect on the River Mease SAC. Where appropriate, the provision of bespoke mitigation measures of contribution to any future strategic mitigation scheme should be made. As this policy isn't going to result in a net improvement and is only mitigating / avoiding effects a neutral effect has been identified.","No",null,null,null,"same comment as above."]
["S013 Contributions to Climate Change \nTo reduce the District’s contribution towards the emission of climate change gases.","· Will it provide opportunities to access local services and facilities by public transport walking or cycling?\n· Will it support the delivery of renewable energy capacity (including small scale or community energy projects)?\n· Will it support the shift toward usage of electric and ultralow emissions vehicles? ","N/A","N/A","N/A","N/A","N/A","Neutral","The policy neither supports nor detracts from the achievement of the SA objective. Therefore a neutral effect is predicted.","No"]
["S014 Adaptation to Climate Change \nTo manage the effects of climate change including flood risk, reduced water availability and overheating.","· Will it minimise flood risk?\n· Will it include provision of sustainable urban drainage which mimic natural drainage patterns?\n· Will it contribute towards sustainable water use?","Direct","Medium","Medium/Long","District-wide","Permanent/Irreversible","Significant Positive","Policy SD3 supports the achievement of SA14 as it highlights that developments should incorporate sustainable drainage schemes, including the use of SuDs. This will subsequently help to minimise flood risk. Additionally, the policy provides support for the reduction in water demand, ensuring that water consumption is no more than 110 litres per person per day. Therefore, as this policy meets most/all of the criteria for SA14, a potential significant positive effect has been identified.","No"]
["S015 Townscape and Historic Environment\nTo conserve and enhance the townscape, historic environment, heritage assets (including known and unknown archaeological sites) and their settings. ","· Will it protect and enhance the condition and setting of historic, cultural, architectural and archaeological features in South Derbyshire?\n· Does it improve the quality of the built environment, and respect and protect existing townscape character?\n· Will it improve access to, and understanding of, the District’s historic and cultural assets for enjoyment and educational purposes?","N/A","N/A","N/A","N/A","N/A","Neutral","The policy neither supports nor detracts from the achievement of the SA objective. Therefore a neutral effect is predicted.","No"]
["S016 Landscape\nTo conserve and enhance the District’s landscape character.","· Does it respect and protect existing landscape character?\n· Will it protect sensitive landscapes including those within the World Heritage Site or its buffer or Special Landscape Areas?\n· Will it safeguard landscape features such as hedgerows?\n· Will it avoid intrusion into the greenbelt?","N/A","N/A","N/A","N/A","N/A","Neutral","The policy neither supports nor detracts from the achievement of the SA objective. Therefore a neutral effect is predicted.","No"]

{"sheet":"SD4_Contaminated_Land","index":26,"n_rows":23,"n_cols":14,"rows_kept":23,"cut":false,"hidden":false,"merged":[[0,1,0,2],[1,1,1,2],[2,1,2,2],[3,1,3,2],[5,0,5,1],[5,2,5,11]]}
["Policy/Alternative name","Policy SD4: Contaminated Land and Mining Legacy "]
["Chapter","Sustainable Development"]
["Policy/alternative description","Policy SD4 highlights that support will be provided for the regeneration of derelict, unstable or contaminated sites, as long as they incorporate any necessary remediation measures to protect human health and/or the natural environment."]
["Assumptions Made","None."]
[]
["SA Framework",null,"SA Policy Assessment"]
["SA objective","SA sub-objective","Direct/\nIndirect","Magnitude","Duration","Spatial Extent","Permanence/ Reversibility","Significance","Description of potential effects","Potential for cumulative effects? ","Mitigation","Enhancements","SDDC Comments"]
["S01 Biodiversity\nTo safeguard and enhance biodiversity (including BAP habitats and species) and geodiversity through biodiversity net gain and improve connectivity between, and access to, green spaces and functional habitats.","· Will it conserve and enhance natural or semi natural habitats including internationally, nationally and locally designated wildlife sites, or create new wildlife habitats, and contribute to the creation of a network of habitats and green infrastructure in the District?\n· Will it protect BAP or protected species and contribute to the delivery of new, or safeguard existing BAP priority species and habitats?\n· Will it protect sites of geological importance?","N/A","N/A","N/A","N/A","N/A","Neutral","The policy neither supports nor detracts from the achievement of the SA objective. Therefore a neutral effect is predicted.","No"]
["S02 Housing\nTo ensure everyone has access to sustainable housing, which is affordable, and meets the needs of all residents including the elderly and other vulnerable groups and will support the vitality of existing communities and settlements. ","· Will it reduce the number of households waiting for accommodation or accepted as homeless?\n· Will it increase the number and mix of housing? \n· Will it improve the suitability of new homes for older and disabled people?\n· Will it provide affordable housing for those unable to access market housing?\n· Will it meet the needs of the travelling community and show people?\n· Will it secure infrastructure or community facilities?","N/A","N/A","N/A","N/A","N/A","Neutral","The policy neither supports nor detracts from the achievement of the SA objective. Therefore a neutral effect is predicted.","No"]
["S03 Accessibility and Health\nTo improve local accessibility to healthcare, education, employment, retail facilities and recreational resources (including open spaces and sports facilities) and enhance wellbeing, promoting healthy and sustainable lifestyles.","· Will it promote healthy lifestyles?\n· Will it deliver new, or contribute to the expansion or improvement of existing open spaces, green infrastructure, schools or healthcare facilities within reasonable walking distance?\n· Will it deliver growth within reasonable walking distance to a planned or existing major employment area (5ha +) or town centre?\n· Will it improve opportunities for active travel including walking and cycling?\n· Will it deliver services or facilities on-site or elsewhere within the District? ","Direct","Low","Medium/Long","Localised","Permanent/Irreversible","Minor Positive","Policy SD4 supports the achievement of SA3 as the policy supports the remediation of contaminated land, as long as there is no unacceptable impact on human health. Therefore, as this policy meets some of the criteria for SA3, a potential minor positive effect has been identified.","No"]
["S04 Quality of Life\nTo create safe and attractive places which contribute towards quality of life and community cohesion.","· Will it contribute towards reducing crime or fear of crime?\n· Will it provide attractive places which provide opportunities for communities to mix and meet?","N/A","N/A","N/A","N/A","N/A","Neutral","The policy neither supports nor detracts from the achievement of the SA objective. Therefore a neutral effect is predicted.","No"]
["S05 Inequalities\nEnsure all residents have equitable access to employment, education, community services and facilities irrespective of race, religion, sex, age, sexual orientation, disability, gender reassignment, marriage and civil partnership or pregnancy/maternity.","· Ensure the option / policy does not have an adverse/ discriminatory impact on protected characteristics/ equality groups?\n· Will it narrow the inequality gap between the richest and poorest in the District?\n· Will it reduce inequalities associated with deprivation across the District?","N/A","N/A","N/A","N/A","N/A","Neutral","The policy neither supports nor detracts from the achievement of the SA objective. Therefore a neutral effect is predicted.","No"]
["S06 Economy\nTo deliver growth in key employment sectors and support the creation of new and retention of existing businesses in urban and rural areas.","· Will it encourage the creation of new businesses and existing businesses to grow?\n· Will it encourage economic diversification?\n· Will it help support and encourage the growth of the local economy (including in rural areas)?\n· Will it support the enhancement of the District’s tourism and cultural offer?","N/A","N/A","N/A","N/A","N/A","Neutral","The policy neither supports nor detracts from the achievement of the SA objective. Therefore a neutral effect is predicted.","No"]
["S07 Employment\nTo create greater employment opportunities and higher value jobs across the whole District","· Will it help to improve skills levels and access to training within the District?\n· Will it reduce unemployment rates overall and reduce disparities which exist across different parts of the District?","N/A","N/A","N/A","N/A","N/A","Neutral","The policy neither supports nor detracts from the achievement of the SA objective. Therefore a neutral effect is predicted.","No"]
["S08 Infrastructure\nTo deliver improved infrastructure to support growth and economic competitiveness of urban and rural businesses and communities.","· Will it minimise the impact of traffic congestion on the strategic and local road network through the delivery of new or enhanced transport infrastructure?\n· Will it provide opportunities to access key services, including doctor’s surgeries, education facilities, employment and town, local or village centres by means other than car?\n· Will it make the best use of other infrastructure which serves new development?","N/A","N/A","N/A","N/A","N/A","Neutral","The policy neither supports nor detracts from the achievement of the SA objective. Therefore a neutral effect is predicted.","No"]
["S09 Sustainable Travel\nTo promote sustainable travel habits including walking, cycling and public transport (bus and rail) usage.  ","· Will it reduce journey lengths and times? \n· Will it maximise opportunities for walking and cycling?\n· Will it maximise opportunities to access public transport provision?","N/A","N/A","N/A","N/A","N/A","Neutral","The policy neither supports nor detracts from the achievement of the SA objective. Therefore a neutral effect is predicted.","No"]
["S010 Town and Village Centres\nTo ensure that town and village centres are vibrant and viable.","· Will it improve existing shopping facilities within town and village centres? \n· Will it help safeguard existing town and village centres?","N/A","N/A","N/A","N/A","N/A","Neutral","The policy neither supports nor detracts from the achievement of the SA objective. Therefore a neutral effect is predicted.","No"]
["S011 Resources\nTo minimise waste and ensure the sustainable use and protection of natural resources including greenfield land, soil and minerals resources.  ","· Will it enhance opportunities for increased levels of recycling in the District?\n· Will it improve or remediate contaminated land or reuse previously developed land which has not been restored?\n· Will it protect Best and Most Versatile (BMV) Agricultural Land?\n· Will it avoid the sterilisation of minerals resources?","Direct","Medium","Long(20+yrs)","Localised","Permanent/Irreversible","Minor Positive","Policy SD4 supports the achievement of SA11 as the policy supports the regeneration of derelict, unstable or contaminated sites. Therefore, as this policy meets some of the criteria for SA11, a potential minor positive effect has been identified.","No",null,"The policy would perform more positively against SO11 if it required remediation to not have any unacceptable impact on soils of high environmental value such as ‘Best and Most Versatile’ agricultural land (Grades 1, 2 and 3a in the Agricultural Land Classification). The policy could also state that soil resources should be conserved and managed in a sustainable way.",null,"could you please add an enhancement measure which replicates the text they've removed? I.e. the policy would perform more positively against SO11 if it required…..(add in the requirements they've removed)."]
["S012 Pollution\nTo minimise water, air, light and noise pollution and ensure that future growth does not lead to the further deterioration of environmental conditions.","· Will it contribute to improvements in water quality in the District?\n· Will it avoid increasing noise levels locally or introducing incompatible uses into an already noisy location?\n· Will it avoid deterioration in air quality within the District?\n· Will it reduce light pollution on sensitive receptors by keeping external lighting to the minimum required for safety and security?","Direct","Medium","Long(20+yrs)","Localised","Permanent/Irreversible","Minor Positive","Policy SD4 supports the achievement of SA12 as the policy supports the remediation of contaminated land, as long as there is no unacceptable impact on groundwater quality. Therefore, as this policy indirectly meets some of the criteria for SA12, a potential minor positive effect has been identified.","No"]
["S013 Contributions to Climate Change \nTo reduce the District’s contribution towards the emission of climate change gases.","· Will it provide opportunities to access local services and facilities by public transport walking or cycling?\n· Will it support the delivery of renewable energy capacity (including small scale or community energy projects)?\n· Will it support the shift toward usage of electric and ultralow emissions vehicles? ","N/A","N/A","N/A","N/A","N/A","Neutral","The policy neither supports nor detracts from the achievement of the SA objective. Therefore a neutral effect is predicted.","No"]
["S014 Adaptation to Climate Change \nTo manage the effects of climate change including flood risk, reduced water availability and overheating.","· Will it minimise flood risk?\n· Will it include provision of sustainable urban drainage which mimic natural drainage patterns?\n· Will it contribute towards sustainable water use?","N/A","N/A","N/A","N/A","N/A","Neutral","The policy neither supports nor detracts from the achievement of the SA objective. Therefore a neutral effect is predicted.","No"]
["S015 Townscape and Historic Environment\nTo conserve and enhance the townscape, historic environment, heritage assets (including known and unknown archaeological sites) and their settings. ","· Will it protect and enhance the condition and setting of historic, cultural, architectural and archaeological features in South Derbyshire?\n· Does it improve the quality of the built environment, and respect and protect existing townscape character?\n· Will it improve access to, and understanding of, the District’s historic and cultural assets for enjoyment and educational purposes?","N/A","N/A","N/A","N/A","N/A","Neutral","The policy neither supports nor detracts from the achievement of the SA objective. Therefore a neutral effect is predicted.","No"]
["S016 Landscape\nTo conserve and enhance the District’s landscape character.","· Does it respect and protect existing landscape character?\n· Will it protect sensitive landscapes including those within the World Heritage Site or its buffer or Special Landscape Areas?\n· Will it safeguard landscape features such as hedgerows?\n· Will it avoid intrusion into the greenbelt?","Indirect","Medium","Long(20+yrs)","Localised","Permanent/Irreversible","Minor Positive","Policy SD4 indirectly supports the achievement of SA16 as the policy supports the remediation of contaminated land, which may subsequently enhance the landscape of the local areas. Therefore, as this policy indirectly meets some of the criteria for SA16, a potential minor positive effect has been identified.","No",null,null,null,"I think this might support this objective but it's a bit tenuous. Maybe change the wording to 'may' instead of 'should'. If this was minor pos last time then leave It as it is. Otherwise I would suggest it was either neutral or uncertain. If it were uncertain I'm not sure that we could suggest any mitigation. It would be uncertain becuase the circumstances may or may not result in remediation improving the appearance of a site. It doesn't always. "]

{"sheet":"SD6_Sustainable_Energy","index":27,"n_rows":23,"n_cols":13,"rows_kept":23,"cut":false,"hidden":false,"merged":[[0,1,0,2],[1,1,1,2],[2,1,2,2],[3,1,3,2],[5,0,5,1],[5,2,5,11]]}
["Policy/Alternative name","Policy SD6: Sustainable Energy and Power Generation"]
["Chapter","Sustainable Development"]
["Policy/alternative description","Policy SD6 highlights support for renewable and other energy developments which do not give rise to impacts on landscape/townscape, the historic environment/heritage assets or ecology; do not give rise to impacts on local amenity (noise, ground/air emissions, traffic generation, visual dominance); and provide a consideration of future maintenance. Biomass developments should primarily utilise local fuel sources, such as from within the National Forest, and will need to make a case for why any sources are utilised from outside of the region. Any new generating plant capable of producing heating or cooling as well as electricity will be expected to be designed and located in a way that facilitates the future connection to a local distributed energy system. Proposals for solar energy developments should avoid using the best and most versatile agricultural land where possible. Proposals for wind energy developments will be supported where it can be demonstrated that the proposal has support from the local community and all impacts on aviation have been mitigated. Developments should have regard to the Derbyshire Spatial Energy Study and any other relevant plans and county-wide work. \n"]
["Assumptions Made","None."]
[]
["SA Framework",null,"SA Policy Assessment"]
["SA objective","SA sub-objective","Direct/\nIndirect","Magnitude","Duration","Spatial Extent","Permanence/ Reversibility","Significance","Description of potential effects","Potential for cumulative effects? ","Mitigation","Enhancements","SDDC Comments"]
["S01 Biodiversity\nTo safeguard and enhance biodiversity (including BAP habitats and species) and geodiversity through biodiversity net gain and improve connectivity between, and access to, green spaces and functional habitats.","· Will it conserve and enhance natural or semi natural habitats including internationally, nationally and locally designated wildlife sites, or create new wildlife habitats, and contribute to the creation of a network of habitats and green infrastructure in the District?\n· Will it protect BAP or protected species and contribute to the delivery of new, or safeguard existing BAP priority species and habitats?\n· Will it protect sites of geological importance?","Direct","Low","Medium/Long","Localised","Permanent/Irreversible","Minor Positive","Policy SD6 provides support for the achievement of SA1 as the development of renewable energy developments should not cause harm to local ecology. Therefore, as this policy meets some of the criteria for SA1, a potential minor positive effect has been identified.","No"]
["S02 Housing\nTo ensure everyone has access to sustainable housing, which is affordable, and meets the needs of all residents including the elderly and other vulnerable groups and will support the vitality of existing communities and settlements. ","· Will it reduce the number of households waiting for accommodation or accepted as homeless?\n· Will it increase the number and mix of housing? \n· Will it improve the suitability of new homes for older and disabled people?\n· Will it provide affordable housing for those unable to access market housing?\n· Will it meet the needs of the travelling community and show people?\n· Will it secure infrastructure or community facilities?","N/A","N/A","N/A","N/A","N/A","Neutral","The policy neither supports nor detracts from the achievement of the SA objective. Therefore a neutral effect is predicted.","No"]
["S03 Accessibility and Health\nTo improve local accessibility to healthcare, education, employment, retail facilities and recreational resources (including open spaces and sports facilities) and enhance wellbeing, promoting healthy and sustainable lifestyles.","· Will it promote healthy lifestyles?\n· Will it deliver new, or contribute to the expansion or improvement of existing open spaces, green infrastructure, schools or healthcare facilities within reasonable walking distance?\n· Will it deliver growth within reasonable walking distance to a planned or existing major employment area (5ha +) or town centre?\n· Will it improve opportunities for active travel including walking and cycling?\n· Will it deliver services or facilities on-site or elsewhere within the District? ","N/A","N/A","N/A","N/A","N/A","Neutral","The policy neither supports nor detracts from the achievement of the SA objective. Therefore a neutral effect is predicted.","No"]
["S04 Quality of Life\nTo create safe and attractive places which contribute towards quality of life and community cohesion.","· Will it contribute towards reducing crime or fear of crime?\n· Will it provide attractive places which provide opportunities for communities to mix and meet?","N/A","N/A","N/A","N/A","N/A","Neutral","The policy neither supports nor detracts from the achievement of the SA objective. Therefore a neutral effect is predicted.","No"]
["S05 Inequalities\nEnsure all residents have equitable access to employment, education, community services and facilities irrespective of race, religion, sex, age, sexual orientation, disability, gender reassignment, marriage and civil partnership or pregnancy/maternity.","· Ensure the option / policy does not have an adverse/ discriminatory impact on protected characteristics/ equality groups?\n· Will it narrow the inequality gap between the richest and poorest in the District?\n· Will it reduce inequalities associated with deprivation across the District?","N/A","N/A","N/A","N/A","N/A","Neutral","The policy neither supports nor detracts from the achievement of the SA objective. Therefore a neutral effect is predicted.","No"]
["S06 Economy\nTo deliver growth in key employment sectors and support the creation of new and retention of existing businesses in urban and rural areas.","· Will it encourage the creation of new businesses and existing businesses to grow?\n· Will it encourage economic diversification?\n· Will it help support and encourage the growth of the local economy (including in rural areas)?\n· Will it support the enhancement of the District’s tourism and cultural offer?","N/A","N/A","N/A","N/A","N/A","Neutral","The policy neither supports nor detracts from the achievement of the SA objective. Therefore a neutral effect is predicted.","No"]
["S07 Employment\nTo create greater employment opportunities and higher value jobs across the whole District","· Will it help to improve skills levels and access to training within the District?\n· Will it reduce unemployment rates overall and reduce disparities which exist across different parts of the District?","Indirect","Medium","Medium/Long","Localised","Permanent/Reversible","Minor Positive","Policy SD6 indirectly supports the achievement of SA7 through the provision of energy infrastructure, for instance the installation of wind turbines, which will in turn create a number of full and part time jobs for the local community. The proposed power station sites at Drakelow and Willington will also generate employment during both construction and operation. Therefore, as this policy indirectly meets some of the criteria for SA7, a potential minor positive effect has been identified.","Yes"]
["S08 Infrastructure\nTo deliver improved infrastructure to support growth and economic competitiveness of urban and rural businesses and communities.","· Will it minimise the impact of traffic congestion on the strategic and local road network through the delivery of new or enhanced transport infrastructure?\n· Will it provide opportunities to access key services, including doctor’s surgeries, education facilities, employment and town, local or village centres by means other than car?\n· Will it make the best use of other infrastructure which serves new development?","N/A","N/A","N/A","N/A","N/A","Neutral","The policy neither supports nor detracts from the achievement of the SA objective. Therefore a neutral effect is predicted.","No"]
["S09 Sustainable Travel\nTo promote sustainable travel habits including walking, cycling and public transport (bus and rail) usage.  ","· Will it reduce journey lengths and times? \n· Will it maximise opportunities for walking and cycling?\n· Will it maximise opportunities to access public transport provision?","N/A","N/A","N/A","N/A","N/A","Neutral","The policy neither supports nor detracts from the achievement of the SA objective. Therefore a neutral effect is predicted.","No"]
["S010 Town and Village Centres\nTo ensure that town and village centres are vibrant and viable.","· Will it improve existing shopping facilities within town and village centres? \n· Will it help safeguard existing town and village centres?","N/A","N/A","N/A","N/A","N/A","Neutral","The policy neither supports nor detracts from the achievement of the SA objective. Therefore a neutral effect is predicted.","No"]
["S011 Resources\nTo minimise waste and ensure the sustainable use and protection of natural resources including greenfield land, soil and minerals resources.  ","· Will it enhance opportunities for increased levels of recycling in the District?\n· Will it improve or remediate contaminated land or reuse previously developed land which has not been restored?\n· Will it protect Best and Most Versatile (BMV) Agricultural Land?\n· Will it avoid the sterilisation of minerals resources?","Direct","Medium","Medium/Long","District-wide","Permanent/Reversible","Minor Positive","Policy SD6 provides support for the achievement of SA11 as the policy highlights that proposals for solar PV should avoid using the ‘Best and Most Versatile’ agricultural land (Grades 1, 2 and 3a in the Agricultural Land Classification), where possible. Therefore, as this policy meets some of the criteria for SA11, a potential minor positive effect has been identified.","No",null,"The wording for this policy could be amended so that developments for solar PV 'must avoid using the best and most versatile agricultural land where possible.'."]
["S012 Pollution\nTo minimise water, air, light and noise pollution and ensure that future growth does not lead to the further deterioration of environmental conditions.","· Will it contribute to improvements in water quality in the District?\n· Will it avoid increasing noise levels locally or introducing incompatible uses into an already noisy location?\n· Will it avoid deterioration in air quality within the District?\n· Will it reduce light pollution on sensitive receptors by keeping external lighting to the minimum required for safety and security?","Direct","Low","Medium/Long","Localised","Permanent/Irreversible","Minor Positive","Policy SD6 provides support for the achievement of SA12 as the development of renewable energy developments should give to impacts on local amenity, including a rise to noise or air pollution. Therefore, as this policy meets some of the criteria for SA12, a potential minor positive effect has been identified.","No"]
["S013 Contributions to Climate Change \nTo reduce the District’s contribution towards the emission of climate change gases.","· Will it provide opportunities to access local services and facilities by public transport walking or cycling?\n· Will it support the delivery of renewable energy capacity (including small scale or community energy projects)?\n· Will it support the shift toward usage of electric and ultralow emissions vehicles? ","Direct","Medium","Medium/Long","District-wide","Permanent/Irreversible","Significant Positive","Policy SD6 provides support for the achievement of SA13 as the policy supports the provision on renewable energy developments, including biomass, carbon capture, wind turbines, and solar PV. Plants generating heating, cooling and/or electricity should be located in suitable areas that allow for connection to the grid/community heat networks. Therefore, as this policy meets most/all of the criteria for SA13, a potential significant positive effect has been identified.","No"]
["S014 Adaptation to Climate Change \nTo manage the effects of climate change including flood risk, reduced water availability and overheating.","· Will it minimise flood risk?\n· Will it include provision of sustainable urban drainage which mimic natural drainage patterns?\n· Will it contribute towards sustainable water use?","N/A","N/A","N/A","N/A","N/A","Neutral","The policy neither supports nor detracts from the achievement of the SA objective. Therefore a neutral effect is predicted.","No"]
["S015 Townscape and Historic Environment\nTo conserve and enhance the townscape, historic environment, heritage assets (including known and unknown archaeological sites) and their settings. ","· Will it protect and enhance the condition and setting of historic, cultural, architectural and archaeological features in South Derbyshire?\n· Does it improve the quality of the built environment, and respect and protect existing townscape character?\n· Will it improve access to, and understanding of, the District’s historic and cultural assets for enjoyment and educational purposes?","Direct","Low","Medium/Long","Localised","Permanent/Irreversible","Minor Positive","Policy SD6 provides support for the achievement of SA15 as the development of renewable energy developments should not cause harm to the character of the local townscape, the historic environment or cultural heritage assets. Any physical changes to historic buildings designed to improve the building’s energy efficiency will require careful the benefits of such measures to be weighed against the extent of harm to the significance of the heritage asset. Therefore, as this policy meets some of the criteria for SA15, a potential minor positive effect has been identified.","No"]
["S016 Landscape\nTo conserve and enhance the District’s landscape character.","· Does it respect and protect existing landscape character?\n· Will it protect sensitive landscapes including those within the World Heritage Site or its buffer or Special Landscape Areas?\n· Will it safeguard landscape features such as hedgerows?\n· Will it avoid intrusion into the greenbelt?","Direct","Low","Medium/Long","Localised","Permanent/Irreversible","Minor Positive","Policy SD6 provides support for the achievement of SA16 as the development of renewable energy developments should not cause harm to the character of the local landscape, including national character areas. Therefore, as this policy meets some of the criteria for SA16, a potential minor positive effect has been identified.","No"]

{"sheet":"BNE1_Design_Excellence","index":28,"n_rows":23,"n_cols":13,"rows_kept":23,"cut":false,"hidden":false,"merged":[[0,1,0,2],[1,1,1,2],[2,1,2,2],[3,1,3,2],[5,0,5,1],[5,2,5,11]]}
["Policy/Alternative name","Policy BNE1: Design Excellence "]
["Chapter","Built and Natural Environment"]
["Policy/alternative description","Policy BNE1 highlights that all new development will be expected to be well designed, embrace the principles of sustainable development, encourage healthy lifestyles and enhance people's quality of life. The following design principles should be adhered to:\na) community safety\nb) street design, movement and legibility\nc) diversity and community cohesion\nd) ease of use\ne) local distinctiveness, character and pride\nf) national forest\ng) visual attractiveness\nh) neighbouring uses and amenity\ni) cross boundary collaboration\nj) healthy living\nk) resource use"]
["Assumptions Made","None."]
[]
["SA Framework",null,"SA Policy Assessment"]
["SA objective","SA sub-objective","Direct/\nIndirect","Magnitude","Duration","Spatial Extent","Permanence/ Reversibility","Significance","Description of potential effects","Potential for cumulative effects? ","Mitigation","Enhancements","SDDC Comments"]
["S01 Biodiversity\nTo safeguard and enhance biodiversity (including BAP habitats and species) and geodiversity through biodiversity net gain and improve connectivity between, and access to, green spaces and functional habitats.","· Will it conserve and enhance natural or semi natural habitats including internationally, nationally and locally designated wildlife sites, or create new wildlife habitats, and contribute to the creation of a network of habitats and green infrastructure in the District?\n· Will it protect BAP or protected species and contribute to the delivery of new, or safeguard existing BAP priority species and habitats?\n· Will it protect sites of geological importance?","Direct","Low","Medium/Long","District-wide","Permanent/Irreversible","Minor Positive","Policy BNE1 supports the achievement of SA3 as it requires new development to respect existing natural features, thus providing some protection for habitats and species. Therefore, as the policy meets some of the criteria for SA1, a potential minor positive effect has been identified.","No",null,"This policy could be enhanced by adding reference to how biodiversity can be incorporated into the design of developments, in order to benefit species and habitats and achieve a network of habitats and green infrastructure across the District."]
["S02 Housing\nTo ensure everyone has access to sustainable housing, which is affordable, and meets the needs of all residents including the elderly and other vulnerable groups and will support the vitality of existing communities and settlements. ","· Will it reduce the number of households waiting for accommodation or accepted as homeless?\n· Will it increase the number and mix of housing? \n· Will it improve the suitability of new homes for older and disabled people?\n· Will it provide affordable housing for those unable to access market housing?\n· Will it meet the needs of the travelling community and show people?\n· Will it secure infrastructure or community facilities?","N/A","N/A","N/A","N/A","N/A","Neutral","The policy neither supports nor detracts from the achievement of the SA objective. Therefore a neutral effect is predicted.","No"]
["S03 Accessibility and Health\nTo improve local accessibility to healthcare, education, employment, retail facilities and recreational resources (including open spaces and sports facilities) and enhance wellbeing, promoting healthy and sustainable lifestyles.","· Will it promote healthy lifestyles?\n· Will it deliver new, or contribute to the expansion or improvement of existing open spaces, green infrastructure, schools or healthcare facilities within reasonable walking distance?\n· Will it deliver growth within reasonable walking distance to a planned or existing major employment area (5ha +) or town centre?\n· Will it improve opportunities for active travel including walking and cycling?\n· Will it deliver services or facilities on-site or elsewhere within the District? ","Direct","Medium","Medium/Long","District-wide","Permanent/Irreversible","Minor Positive","Policy BNE1 supports the achievement of SA3 as all new development will be expected to encourage healthy living and enhance people's quality of life. Design principles including 'ease of use' highlights that development should be accessible to all user groups and should be adaptable to the changing demographic (e.g. the aging population). Developments should also make provision for public open space, sports and other leisure facilities, and good quality green infrastructure, as part of design principle 'healthy living'. Therefore, as the policy meets some of the criteria for SA3, a potential minor positive effect has been identified.","No"]
["S04 Quality of Life\nTo create safe and attractive places which contribute towards quality of life and community cohesion.","· Will it contribute towards reducing crime or fear of crime?\n· Will it provide attractive places which provide opportunities for communities to mix and meet?","Direct","Medium","Medium/Long","District-wide","Permanent/Irreversible","Significant Positive","Policy BNE1 supports the achievement of SA4 as all new development will be expected to be well designed and enhance people's quality of life. Design principles including community safety, and diversity and community cohesion highlight that development should be designed so that people feel safe, and crime/anti-social behaviour is minimised, and social interaction is encouraged. Therefore, as this policy meets most/all of the criteria for SA4, a potential significant positive effect has been identified.","No"]
["S05 Inequalities\nEnsure all residents have equitable access to employment, education, community services and facilities irrespective of race, religion, sex, age, sexual orientation, disability, gender reassignment, marriage and civil partnership or pregnancy/maternity.","· Ensure the option / policy does not have an adverse/ discriminatory impact on protected characteristics/ equality groups?\n· Will it narrow the inequality gap between the richest and poorest in the District?\n· Will it reduce inequalities associated with deprivation across the District?","N/A","N/A","N/A","N/A","N/A","Neutral","The policy neither supports nor detracts from the achievement of the SA objective. Therefore a neutral effect is predicted.","No"]
["S06 Economy\nTo deliver growth in key employment sectors and support the creation of new and retention of existing businesses in urban and rural areas.","· Will it encourage the creation of new businesses and existing businesses to grow?\n· Will it encourage economic diversification?\n· Will it help support and encourage the growth of the local economy (including in rural areas)?\n· Will it support the enhancement of the District’s tourism and cultural offer?","N/A","N/A","N/A","N/A","N/A","Neutral","The policy neither supports nor detracts from the achievement of the SA objective. Therefore a neutral effect is predicted.","No"]
["S07 Employment\nTo create greater employment opportunities and higher value jobs across the whole District","· Will it help to improve skills levels and access to training within the District?\n· Will it reduce unemployment rates overall and reduce disparities which exist across different parts of the District?","N/A","N/A","N/A","N/A","N/A","Neutral","The policy neither supports nor detracts from the achievement of the SA objective. Therefore a neutral effect is predicted.","No"]
["S08 Infrastructure\nTo deliver improved infrastructure to support growth and economic competitiveness of urban and rural businesses and communities.","· Will it minimise the impact of traffic congestion on the strategic and local road network through the delivery of new or enhanced transport infrastructure?\n· Will it provide opportunities to access key services, including doctor’s surgeries, education facilities, employment and town, local or village centres by means other than car?\n· Will it make the best use of other infrastructure which serves new development?","N/A","N/A","N/A","N/A","N/A","Neutral","The policy neither supports nor detracts from the achievement of the SA objective. Therefore a neutral effect is predicted.","No"]
["S09 Sustainable Travel\nTo promote sustainable travel habits including walking, cycling and public transport (bus and rail) usage.  ","· Will it reduce journey lengths and times? \n· Will it maximise opportunities for walking and cycling?\n· Will it maximise opportunities to access public transport provision?","Direct","Medium","Medium/Long","District-wide","Permanent/Irreversible","Significant Positive","Policy BNE1 supports the achievement of SA9 as all new development will be expected to be well designed, encourage healthy living and enhance people's quality of life. Design principles including healthy living, and street design, movement and legibility highlight that new development should be designed to promote the use of active and sustainable modes of transport, with walking, cycling and wheeling being prioritised. Street layouts, particularly to everyday local designations, should be made to be more direct/easy for active and sustainable modes of transport, compared to private vehicles. Therefore, as the policy meets all of the criteria for SA9, a potential significant positive effect has been identified.","No"]
["S010 Town and Village Centres\nTo ensure that town and village centres are vibrant and viable.","· Will it improve existing shopping facilities within town and village centres? \n· Will it help safeguard existing town and village centres?","Direct","Medium","Medium/Long","District-wide","Permanent/Irreversible","Minor Positive","Policy BNE1 supports the achievement of SA10 as the incorporation of design principles into existing town and village centres will help to improve existing facilities, and encourage more footfall. Therefore, as the policy meets some of the criteria for SA10, a potential minor positive effect has been identified.","No"]
["S011 Resources\nTo minimise waste and ensure the sustainable use and protection of natural resources including greenfield land, soil and minerals resources.  ","· Will it enhance opportunities for increased levels of recycling in the District?\n· Will it improve or remediate contaminated land or reuse previously developed land which has not been restored?\n· Will it protect Best and Most Versatile (BMV) Agricultural Land?\n· Will it avoid the sterilisation of minerals resources?","Direct","Medium","Medium/Long","District-wide","Permanent/Irreversible","Minor Positive","Policy BNE1 supports the achievement of SA11 as all new development will be expected to be well designed and enhance people's quality of life. Design principles including resource use highlight that new development should be designed to facilitate the efficient use of resources and support the reuse and recycling of waste throughout its lifecycle. Adequate space should also be provided for the storage and collection of waste. Therefore, as the policy meets some of the criteria for SA11, a potential minor positive effect has been identified.","No"]
["S012 Pollution\nTo minimise water, air, light and noise pollution and ensure that future growth does not lead to the further deterioration of environmental conditions.","· Will it contribute to improvements in water quality in the District?\n· Will it avoid increasing noise levels locally or introducing incompatible uses into an already noisy location?\n· Will it avoid deterioration in air quality within the District?\n· Will it reduce light pollution on sensitive receptors by keeping external lighting to the minimum required for safety and security?","N/A","N/A","N/A","N/A","N/A","Neutral","The policy neither supports nor detracts from the achievement of the SA objective. Therefore a neutral effect is predicted.","No",null,"The policy could be enhanced by adding reference to the incorporation of mitigation into design in order to minimise noise and light pollution."]
["S013 Contributions to Climate Change \nTo reduce the District’s contribution towards the emission of climate change gases.","· Will it provide opportunities to access local services and facilities by public transport walking or cycling?\n· Will it support the delivery of renewable energy capacity (including small scale or community energy projects)?\n· Will it support the shift toward usage of electric and ultralow emissions vehicles? ","N/A","N/A","N/A","N/A","N/A","Neutral","The policy neither supports nor detracts from the achievement of the SA objective. Therefore a neutral effect is predicted.","No",null,"The policy could be enhanced by adding reference to the incorporation of sustainable designs where possible (e.g. energy efficient buildings, double glazing)."]
["S014 Adaptation to Climate Change \nTo manage the effects of climate change including flood risk, reduced water availability and overheating.","· Will it minimise flood risk?\n· Will it include provision of sustainable urban drainage which mimic natural drainage patterns?\n· Will it contribute towards sustainable water use?","N/A","N/A","N/A","N/A","N/A","Neutral","The policy neither supports nor detracts from the achievement of the SA objective. Therefore a neutral effect is predicted.","No",null,"The policy could be enhanced by adding reference to the incorporation of sustainable designs where possible (e.g. water efficient buildings, landscaping to minimise flood risk)."]
["S015 Townscape and Historic Environment\nTo conserve and enhance the townscape, historic environment, heritage assets (including known and unknown archaeological sites) and their settings. ","· Will it protect and enhance the condition and setting of historic, cultural, architectural and archaeological features in South Derbyshire?\n· Does it improve the quality of the built environment, and respect and protect existing townscape character?\n· Will it improve access to, and understanding of, the District’s historic and cultural assets for enjoyment and educational purposes?","Direct","Medium","Medium/Long","District-wide","Permanent/Irreversible","Minor Positive","Policy BNE1 supports the achievement of SA15 as all new development will be expected to be well designed and enhance people's quality of life. Design principles including local distinctiveness, character and pride highlight that new development should be designed with regard to townscape and heritage. Therefore, as the policy meets some of the criteria for SA15, a potential minor positive effect has been identified.","No"]
["S016 Landscape\nTo conserve and enhance the District’s landscape character.","· Does it respect and protect existing landscape character?\n· Will it protect sensitive landscapes including those within the World Heritage Site or its buffer or Special Landscape Areas?\n· Will it safeguard landscape features such as hedgerows?\n· Will it avoid intrusion into the greenbelt?","Direct","Medium","Medium/Long","District-wide","Permanent/Irreversible","Minor Positive","Policy BNE1 supports the achievement of SA16 as all new development will be expected to be well designed and enhance people's quality of life. Design principles including street design, movement and legibility, and local character and pride highlight that new development should be designed with regard to valued landscape, and streets should be designed to relate to their context. Additionally, design principles including the National Forest will ensure that new development follows guides where possible, to fully reflect the Forest context. Therefore, as the policy meets some of the criteria for SA16, a potential minor positive effect has been identified.","No"]

{"sheet":"BNE2_Heritage_Assets","index":29,"n_rows":23,"n_cols":13,"rows_kept":23,"cut":false,"hidden":false,"merged":[[0,1,0,2],[1,1,1,2],[2,1,2,2],[3,1,3,2],[5,0,5,1],[5,2,5,11]]}
["Policy/Alternative name","Policy BNE2: Heritage Assets"]
["Chapter","Built and Natural Environment"]
["Policy/alternative description","This policy states that the council will The Council will support development proposals which conserve and enhance the significance of the District’s heritage assets including their settings and will assess them in accordance with case law, legislation and the National Planning Framework in a manner that is appropriate to the significance of the heritage asset.\n"]
["Assumptions Made","None."]
[]
["SA Framework",null,"SA Policy Assessment"]
["SA objective","SA sub-objective","Direct/\nIndirect","Magnitude","Duration","Spatial Extent","Permanence/ Reversibility","Significance","Description of potential effects","Potential for cumulative effects? ","Mitigation","Enhancements","SDDC Comments"]
["S01 Biodiversity\nTo safeguard and enhance biodiversity (including BAP habitats and species) and geodiversity through biodiversity net gain and improve connectivity between, and access to, green spaces and functional habitats.","· Will it conserve and enhance natural or semi natural habitats including internationally, nationally and locally designated wildlife sites, or create new wildlife habitats, and contribute to the creation of a network of habitats and green infrastructure in the District?\n· Will it protect BAP or protected species and contribute to the delivery of new, or safeguard existing BAP priority species and habitats?\n· Will it protect sites of geological importance?","Indirect","Medium","Medium(10yrs)","Localised","Permenant/Reversible","Minor Positive","This policy supports this objective by conserving and enhancing heritage assets, including natural features like trees and hedgerows that contribute to biodiversity. It also protects archaeological sites important for geodiversity. Therefore, a potential minor positive effect is identified. "]
["S02 Housing\nTo ensure everyone has access to sustainable housing, which is affordable, and meets the needs of all residents including the elderly and other vulnerable groups and will support the vitality of existing communities and settlements. ","· Will it reduce the number of households waiting for accommodation or accepted as homeless?\n· Will it increase the number and mix of housing? \n· Will it improve the suitability of new homes for older and disabled people?\n· Will it provide affordable housing for those unable to access market housing?\n· Will it meet the needs of the travelling community and show people?\n· Will it secure infrastructure or community facilities?","N/A","N/A","N/A","N/A","N/A","Neutral","The policy neither supports nor detracts from the achievement of the SA objective. Therefore a neutral effect is predicted."]
["S03 Accessibility and Health\nTo improve local accessibility to healthcare, education, employment, retail facilities and recreational resources (including open spaces and sports facilities) and enhance wellbeing, promoting healthy and sustainable lifestyles.","· Will it promote healthy lifestyles?\n· Will it deliver new, or contribute to the expansion or improvement of existing open spaces, green infrastructure, schools or healthcare facilities within reasonable walking distance?\n· Will it deliver growth within reasonable walking distance to a planned or existing major employment area (5ha +) or town centre?\n· Will it improve opportunities for active travel including walking and cycling?\n· Will it deliver services or facilities on-site or elsewhere within the District? ","N/A","N/A","N/A","N/A","N/A","Neutral","The policy neither supports nor detracts from the achievement of the SA objective. Therefore a neutral effect is predicted."]
["S04 Quality of Life\nTo create safe and attractive places which contribute towards quality of life and community cohesion.","· Will it contribute towards reducing crime or fear of crime?\n· Will it provide attractive places which provide opportunities for communities to mix and meet?","N/A","N/A","N/A","N/A","N/A","Neutral","The policy neither supports nor detracts from the achievement of the SA objective. Therefore a neutral effect is predicted."]
["S05 Inequalities\nEnsure all residents have equitable access to employment, education, community services and facilities irrespective of race, religion, sex, age, sexual orientation, disability, gender reassignment, marriage and civil partnership or pregnancy/maternity.","· Ensure the option / policy does not have an adverse/ discriminatory impact on protected characteristics/ equality groups?\n· Will it narrow the inequality gap between the richest and poorest in the District?\n· Will it reduce inequalities associated with deprivation across the District?","N/A","N/A","N/A","N/A","N/A","Neutral","The policy neither supports nor detracts from the achievement of the SA objective. Therefore a neutral effect is predicted."]
["S06 Economy\nTo deliver growth in key employment sectors and support the creation of new and retention of existing businesses in urban and rural areas.","· Will it encourage the creation of new businesses and existing businesses to grow?\n· Will it encourage economic diversification?\n· Will it help support and encourage the growth of the local economy (including in rural areas)?\n· Will it support the enhancement of the District’s tourism and cultural offer?","Indirect","Medium","Medium(10yrs)","District-wide","Temporary/Reversible","Minor Positive","This policy supports S06 by enhancing the District’s tourism and cultural offer through the conservation and enhancement of heritage assets. This can encourage economic growth and diversification by attracting visitors and supporting local businesses. Therefore, a potential minor positive effect has been identified."]
["S07 Employment\nTo create greater employment opportunities and higher value jobs across the whole District","· Will it help to improve skills levels and access to training within the District?\n· Will it reduce unemployment rates overall and reduce disparities which exist across different parts of the District?","Indirect","Medium","Medium(10yrs)","District-wide","Temporary/Reversible","Minor Positive","This policy can indirectly support job creation in the tourism and heritage sectors by preserving and promoting heritage assets. Therefore, a potential minor positive effect is identified"]
["S08 Infrastructure\nTo deliver improved infrastructure to support growth and economic competitiveness of urban and rural businesses and communities.","· Will it minimise the impact of traffic congestion on the strategic and local road network through the delivery of new or enhanced transport infrastructure?\n· Will it provide opportunities to access key services, including doctor’s surgeries, education facilities, employment and town, local or village centres by means other than car?\n· Will it make the best use of other infrastructure which serves new development?","N/A","N/A","N/A","N/A","N/A","Neutral","The policy neither supports nor detracts from the achievement of the SA objective. Therefore a neutral effect is predicted."]
["S09 Sustainable Travel\nTo promote sustainable travel habits including walking, cycling and public transport (bus and rail) usage.  ","· Will it reduce journey lengths and times? \n· Will it maximise opportunities for walking and cycling?\n· Will it maximise opportunities to access public transport provision?","N/A","N/A","N/A","N/A","N/A","Neutral","The policy neither supports nor detracts from the achievement of the SA objective. Therefore a neutral effect is predicted."]
["S010 Town and Village Centres\nTo ensure that town and village centres are vibrant and viable.","· Will it improve existing shopping facilities within town and village centres? \n· Will it help safeguard existing town and village centres?","Indirect","Medium","Medium(10yrs)","District-wide","Temporary/Reversible","Minor Positive","This policy supports this objective by enhancing the attractiveness of town and village centres through the conservation of heritage assets. Therefore, a potential minor positive effect is recorded. "]
["S011 Resources\nTo minimise waste and ensure the sustainable use and protection of natural resources including greenfield land, soil and minerals resources.  ","· Will it enhance opportunities for increased levels of recycling in the District?\n· Will it improve or remediate contaminated land or reuse previously developed land which has not been restored?\n· Will it protect Best and Most Versatile (BMV) Agricultural Land?\n· Will it avoid the sterilisation of minerals resources?","N/A","N/A","N/A","N/A","N/A","Neutral","The policy neither supports nor detracts from the achievement of the SA objective. Therefore a neutral effect is predicted."]
["S012 Pollution\nTo minimise water, air, light and noise pollution and ensure that future growth does not lead to the further deterioration of environmental conditions.","· Will it contribute to improvements in water quality in the District?\n· Will it avoid increasing noise levels locally or introducing incompatible uses into an already noisy location?\n· Will it avoid deterioration in air quality within the District?\n· Will it reduce light pollution on sensitive receptors by keeping external lighting to the minimum required for safety and security?","N/A","N/A","N/A","N/A","N/A","Neutral","The policy neither supports nor detracts from the achievement of the SA objective. Therefore a neutral effect is predicted."]
["S013 Contributions to Climate Change \nTo reduce the District’s contribution towards the emission of climate change gases.","· Will it provide opportunities to access local services and facilities by public transport walking or cycling?\n· Will it support the delivery of renewable energy capacity (including small scale or community energy projects)?\n· Will it support the shift toward usage of electric and ultralow emissions vehicles? ","N/A","N/A","N/A","N/A","N/A","Neutral","The policy neither supports nor detracts from the achievement of the SA objective. Therefore a neutral effect is predicted."]
["S014 Adaptation to Climate Change \nTo manage the effects of climate change including flood risk, reduced water availability and overheating.","· Will it minimise flood risk?\n· Will it include provision of sustainable urban drainage which mimic natural drainage patterns?\n· Will it contribute towards sustainable water use?","N/A","N/A","N/A","N/A","N/A","Neutral","The policy neither supports nor detracts from the achievement of the SA objective. Therefore a neutral effect is predicted."]
["S015 Townscape and Historic Environment\nTo conserve and enhance the townscape, historic environment, heritage assets (including known and unknown archaeological sites) and their settings. ","· Will it protect and enhance the condition and setting of historic, cultural, architectural and archaeological features in South Derbyshire?\n· Does it improve the quality of the built environment, and respect and protect existing townscape character?\n· Will it improve access to, and understanding of, the District’s historic and cultural assets for enjoyment and educational purposes?","Direct","High","Medium(10yrs)","District-wide","Permenant/Reversible","Significant Positive","This policy supports S015 by protecting and enhancing the condition and setting of historic, cultural, architectural, and archaeological features. It improves the quality of the built environment and enhances access to and understanding of the District’s historic and cultural assets. The policy helps to achieve all of the sub-objectives and supports the achievement of the overall objective and should result in a potential significant positive effect. "]
["S016 Landscape\nTo conserve and enhance the District’s landscape character.","· Does it respect and protect existing landscape character?\n· Will it protect sensitive landscapes including those within the World Heritage Site or its buffer or Special Landscape Areas?\n· Will it safeguard landscape features such as hedgerows?\n· Will it avoid intrusion into the greenbelt?","Direct","Medium","Medium(10yrs)","Localised","Permenant/Reversible","Minor Positive","This policy supports S016 by respecting and protecting existing landscape character and safeguarding landscape features such as hedgerows. It helps avoid intrusion into sensitive landscapes. Therefore, a potential minor positive effect is recorded. "]

{"sheet":"BNE3_Biodiversity","index":30,"n_rows":23,"n_cols":13,"rows_kept":23,"cut":false,"hidden":false,"merged":[[0,1,0,2],[1,1,1,2],[2,1,2,2],[3,1,3,2],[5,0,5,1],[5,2,5,11]]}
["Policy/Alternative name","Policy BNE3: Biodiversity "]
["Chapter","Built and Natural Environment"]
["Policy/alternative description","Policy BNE3 highlights support for development which contributes to the protection, enhancement, management and restoration of biodiversity or geodiversity and delivers a minimum biodiversity net gain of 10%. Biodiversity enhancing features (e.g. SuDs, green roofs and walls, street trees) such be implemented where possible in order to meet BNG on site. Development will be expected to avoid an adverse impact on sites of nature conservation value, including the River Mease SAC, site of international, national and local importance, BAP priority habitats, and existing assets (e.g. trees, hedgerows, ponds etc). All proposals for development within the catchment for the River Mease will need to demonstrate that they will have no adverse effects on the integrity of the Special Area of Conservation (SAC) either alone or in combination. These proposals should also contribute to the restoration of the River Mease SAC, support targets set out in local/national plans and that contribute to the maintenance of a District wide ecological network. Development should also create or contributes towards green infrastructure, and ensure that the quality of water courses is maintained and enhanced wherever possible."]
["Assumptions Made","None."]
[]
["SA Framework",null,"SA Policy Assessment"]
["SA objective","SA sub-objective","Direct/\nIndirect","Magnitude","Duration","Spatial Extent","Permanence/ Reversibility","Significance","Description of potential effects","Potential for cumulative effects? ","Mitigation","Enhancements","SDDC Comments"]
["S01 Biodiversity\nTo safeguard and enhance biodiversity (including BAP habitats and species) and geodiversity through biodiversity net gain and improve connectivity between, and access to, green spaces and functional habitats.","· Will it conserve and enhance natural or semi natural habitats including internationally, nationally and locally designated wildlife sites, or create new wildlife habitats, and contribute to the creation of a network of habitats and green infrastructure in the District?\n· Will it protect BAP or protected species and contribute to the delivery of new, or safeguard existing BAP priority species and habitats?\n· Will it protect sites of geological importance?","Direct","Medium","Medium/Long","District-wide","Permanent/Reversible","Significant Positive","Policy BNE3 supports development which contributes to the protection, enhancement, management and restoration of biodiversity or geodiversity and delivers a minimum biodiversity net gain of 10%. The policy highlights that where possible, this BNG should be delivered on site. This includes the maintenance of a District wide ecological network. Development will be expected to avoid an adverse impact on sites of nature conservation value. In particular, all proposals for development within the catchment for the River Mease will need to demonstrate that they will have no adverse effects on the integrity of the Special Area of Conservation (SAC) either alone or in combination. These proposals should also contribute to the restoration of the River Mease SAC. Therefore, as this policy meets most/all of the criteria for SA1, a potential significant positive effect has been identified.","Yes"]
["S02 Housing\nTo ensure everyone has access to sustainable housing, which is affordable, and meets the needs of all residents including the elderly and other vulnerable groups and will support the vitality of existing communities and settlements. ","· Will it reduce the number of households waiting for accommodation or accepted as homeless?\n· Will it increase the number and mix of housing? \n· Will it improve the suitability of new homes for older and disabled people?\n· Will it provide affordable housing for those unable to access market housing?\n· Will it meet the needs of the travelling community and show people?\n· Will it secure infrastructure or community facilities?","N/A","N/A","N/A","N/A","N/A","Neutral","The policy neither supports nor detracts from the achievement of the SA objective. Therefore a neutral effect is predicted.","No"]
["S03 Accessibility and Health\nTo improve local accessibility to healthcare, education, employment, retail facilities and recreational resources (including open spaces and sports facilities) and enhance wellbeing, promoting healthy and sustainable lifestyles.","· Will it promote healthy lifestyles?\n· Will it deliver new, or contribute to the expansion or improvement of existing open spaces, green infrastructure, schools or healthcare facilities within reasonable walking distance?\n· Will it deliver growth within reasonable walking distance to a planned or existing major employment area (5ha +) or town centre?\n· Will it improve opportunities for active travel including walking and cycling?\n· Will it deliver services or facilities on-site or elsewhere within the District? ","Direct","Medium","Medium/Long","District-wide","Permanent/Reversible","Minor Positive","Policy BNE3 supports development that creates or contributes towards the creation of and access to green infrastructure. The maintenance and expansion of green spaces will enable residents to make healthy choices and ensure that they have access to nature, benefitting both their physical and mental health. Therefore, as the policy meets some of the criteria for SA3, a potential minor positive effect has been identified.","No"]
["S04 Quality of Life\nTo create safe and attractive places which contribute towards quality of life and community cohesion.","· Will it contribute towards reducing crime or fear of crime?\n· Will it provide attractive places which provide opportunities for communities to mix and meet?","N/A","N/A","N/A","N/A","N/A","Neutral","The policy neither supports nor detracts from the achievement of the SA objective. Therefore a neutral effect is predicted.","No"]
["S05 Inequalities\nEnsure all residents have equitable access to employment, education, community services and facilities irrespective of race, religion, sex, age, sexual orientation, disability, gender reassignment, marriage and civil partnership or pregnancy/maternity.","· Ensure the option / policy does not have an adverse/ discriminatory impact on protected characteristics/ equality groups?\n· Will it narrow the inequality gap between the richest and poorest in the District?\n· Will it reduce inequalities associated with deprivation across the District?","N/A","N/A","N/A","N/A","N/A","Neutral","The policy neither supports nor detracts from the achievement of the SA objective. Therefore a neutral effect is predicted.","No"]
["S06 Economy\nTo deliver growth in key employment sectors and support the creation of new and retention of existing businesses in urban and rural areas.","· Will it encourage the creation of new businesses and existing businesses to grow?\n· Will it encourage economic diversification?\n· Will it help support and encourage the growth of the local economy (including in rural areas)?\n· Will it support the enhancement of the District’s tourism and cultural offer?","N/A","N/A","N/A","N/A","N/A","Neutral","The policy neither supports nor detracts from the achievement of the SA objective. Therefore a neutral effect is predicted.","No"]
["S07 Employment\nTo create greater employment opportunities and higher value jobs across the whole District","· Will it help to improve skills levels and access to training within the District?\n· Will it reduce unemployment rates overall and reduce disparities which exist across different parts of the District?","N/A","N/A","N/A","N/A","N/A","Neutral","The policy neither supports nor detracts from the achievement of the SA objective. Therefore a neutral effect is predicted.","No"]
["S08 Infrastructure\nTo deliver improved infrastructure to support growth and economic competitiveness of urban and rural businesses and communities.","· Will it minimise the impact of traffic congestion on the strategic and local road network through the delivery of new or enhanced transport infrastructure?\n· Will it provide opportunities to access key services, including doctor’s surgeries, education facilities, employment and town, local or village centres by means other than car?\n· Will it make the best use of other infrastructure which serves new development?","N/A","N/A","N/A","N/A","N/A","Neutral","The policy neither supports nor detracts from the achievement of the SA objective. Therefore a neutral effect is predicted.","No"]
["S09 Sustainable Travel\nTo promote sustainable travel habits including walking, cycling and public transport (bus and rail) usage.  ","· Will it reduce journey lengths and times? \n· Will it maximise opportunities for walking and cycling?\n· Will it maximise opportunities to access public transport provision?","N/A","N/A","N/A","N/A","N/A","Neutral","The policy neither supports nor detracts from the achievement of the SA objective. Therefore a neutral effect is predicted.","No"]
["S010 Town and Village Centres\nTo ensure that town and village centres are vibrant and viable.","· Will it improve existing shopping facilities within town and village centres? \n· Will it help safeguard existing town and village centres?","N/A","N/A","N/A","N/A","N/A","Neutral","The policy neither supports nor detracts from the achievement of the SA objective. Therefore a neutral effect is predicted.","No"]
["S011 Resources\nTo minimise waste and ensure the sustainable use and protection of natural resources including greenfield land, soil and minerals resources.  ","· Will it enhance opportunities for increased levels of recycling in the District?\n· Will it improve or remediate contaminated land or reuse previously developed land which has not been restored?\n· Will it protect Best and Most Versatile (BMV) Agricultural Land?\n· Will it avoid the sterilisation of minerals resources?","N/A","N/A","N/A","N/A","N/A","Neutral","The policy neither supports nor detracts from the achievement of the SA objective. Therefore a neutral effect is predicted.","No"]
["S012 Pollution\nTo minimise water, air, light and noise pollution and ensure that future growth does not lead to the further deterioration of environmental conditions.","· Will it contribute to improvements in water quality in the District?\n· Will it avoid increasing noise levels locally or introducing incompatible uses into an already noisy location?\n· Will it avoid deterioration in air quality within the District?\n· Will it reduce light pollution on sensitive receptors by keeping external lighting to the minimum required for safety and security?","Direct","Medium","Medium/Long","District-wide","Permanent/Reversible","Minor Positive","Policy BNE3 will contribute to the achievement of SA12 by ensuring that the quality of water courses is maintained and enhanced wherever possible. Additionally, by improving biodiversity through the implementation of features such as SuDS, storm water provision swales, ponds and raingardens the likelihood of water pollution will also be reduced, thus protecting natural resources. Therefore, as the policy meets some of the criteria for SA12, a potential minor positive effect has been identified.","No"]
["S013 Contributions to Climate Change \nTo reduce the District’s contribution towards the emission of climate change gases.","· Will it provide opportunities to access local services and facilities by public transport walking or cycling?\n· Will it support the delivery of renewable energy capacity (including small scale or community energy projects)?\n· Will it support the shift toward usage of electric and ultralow emissions vehicles? ","N/A","N/A","N/A","N/A","N/A","Neutral","The policy neither supports nor detracts from the achievement of the SA objective. Therefore a neutral effect is predicted.","No"]
["S014 Adaptation to Climate Change \nTo manage the effects of climate change including flood risk, reduced water availability and overheating.","· Will it minimise flood risk?\n· Will it include provision of sustainable urban drainage which mimic natural drainage patterns?\n· Will it contribute towards sustainable water use?","Indirect","Medium","Medium/Long","District-wide","Permanent/Reversible","Minor Positive","Policy BNE3 will indirectly contribute to the achievement of SA14 as flood minimising features such as SuDS, storm water provision swales, ponds and raingardens will be implemented to improve biodiversity, thus protecting new developments from flooding. Therefore, as the policy indirectly meets some of the criteria for SA14, a potential minor positive effect has been identified.","No"]
["S015 Townscape and Historic Environment\nTo conserve and enhance the townscape, historic environment, heritage assets (including known and unknown archaeological sites) and their settings. ","· Will it protect and enhance the condition and setting of historic, cultural, architectural and archaeological features in South Derbyshire?\n· Does it improve the quality of the built environment, and respect and protect existing townscape character?\n· Will it improve access to, and understanding of, the District’s historic and cultural assets for enjoyment and educational purposes?","N/A","N/A","N/A","N/A","N/A","Neutral","The policy neither supports nor detracts from the achievement of the SA objective. Therefore a neutral effect is predicted.","No"]
["S016 Landscape\nTo conserve and enhance the District’s landscape character.","· Does it respect and protect existing landscape character?\n· Will it protect sensitive landscapes including those within the World Heritage Site or its buffer or Special Landscape Areas?\n· Will it safeguard landscape features such as hedgerows?\n· Will it avoid intrusion into the greenbelt?","Direct","Low","Medium/Long","District-wide","Permanent/Reversible","Minor Positive","Policy BNE3 provides support for the achievement of SA16 as the policy highlights that damage to mature plantation, established woodland and secondary woodland, hedgerows, and veteran and aged trees from development should be avoided. Therefore, as the policy meets some of the criteria for SA16, a potential minor positive effect has been identified.","No"]

{"sheet":"BNE4_Landscape_Character","index":31,"n_rows":23,"n_cols":13,"rows_kept":23,"cut":false,"hidden":false,"merged":[[0,1,0,2],[1,1,1,2],[2,1,2,2],[3,1,3,2],[5,0,5,1],[5,2,5,11]]}
["Policy/Alternative name","Policy BNE4: Landscape Character and Local Distinctiveness "]
["Chapter","Built and Natural Environment"]
["Policy/alternative description","The character, local distinctiveness, and quality of South Derbyshire’s landscape and soilscape will be protected and enhanced through the careful design and sensitive implementation of new development. Development proposals will be expected to retain key valued landscape components though retaining features which contribute to the landscape character, offsetting the loss or damage to existing landscape features where harm resulting from a development cannot be avoided, incorporating mitigation measures where appropriate which are suitable to the character type, and respecting the character of developed areas and rural landscapes that are of historic importance. Development that will have an unacceptable impact on landscape character (including historic character) will not be permitted. A landscape and visual impact assessment will be required for all major development proposals and for proposals likely to have a significant impact on landscape. Developers should pay close regard to the landscape types and landscape character areas (including within the National Forest Area) and have regard to the woodland and tree planting, landscape management and habitat guidance. The Council will seek to protect soils that are ‘Best and Most Versatile’, (Grades 1, 2 and 3a in the Agricultural Land Classification). "]
["Assumptions Made","None."]
[]
["SA Framework",null,"SA Policy Assessment"]
["SA objective","SA sub-objective","Direct/\nIndirect","Magnitude","Duration","Spatial Extent","Permanence/ Reversibility","Significance","Description of potential effects","Potential for cumulative effects? ","Mitigation","Enhancements","SDDC Comments"]
["S01 Biodiversity\nTo safeguard and enhance biodiversity (including BAP habitats and species) and geodiversity through biodiversity net gain and improve connectivity between, and access to, green spaces and functional habitats.","· Will it conserve and enhance natural or semi natural habitats including internationally, nationally and locally designated wildlife sites, or create new wildlife habitats, and contribute to the creation of a network of habitats and green infrastructure in the District?\n· Will it protect BAP or protected species and contribute to the delivery of new, or safeguard existing BAP priority species and habitats?\n· Will it protect sites of geological importance?","Direct","Medium","Medium/Long","District-wide","Permanent/Reversible","Minor Positive","Policy BNE4 provides support for the achievement of SA1 as the policy highlights that developments should incorporate woodland/tree planting and landscaping and have regard for habitat guidance. This is particularly the case for developments within the National Forest. Development should also retain landscape features such as hedgerows, trees, woodland, field boundaries, waterbodies and watercourses, and key wildlife habitats for at least 30 years after development. This should subsequently have benefits for biodiversity, by creating more habitats for species. Therefore, as the policy meets some of the criteria for SA1, a potential minor positive effect has been identified.","Yes"]
["S02 Housing\nTo ensure everyone has access to sustainable housing, which is affordable, and meets the needs of all residents including the elderly and other vulnerable groups and will support the vitality of existing communities and settlements. ","· Will it reduce the number of households waiting for accommodation or accepted as homeless?\n· Will it increase the number and mix of housing? \n· Will it improve the suitability of new homes for older and disabled people?\n· Will it provide affordable housing for those unable to access market housing?\n· Will it meet the needs of the travelling community and show people?\n· Will it secure infrastructure or community facilities?","N/A","N/A","N/A","N/A","N/A","Neutral","The policy neither supports nor detracts from the achievement of the SA objective. Therefore a neutral effect is predicted.","No"]
["S03 Accessibility and Health\nTo improve local accessibility to healthcare, education, employment, retail facilities and recreational resources (including open spaces and sports facilities) and enhance wellbeing, promoting healthy and sustainable lifestyles.","· Will it promote healthy lifestyles?\n· Will it deliver new, or contribute to the expansion or improvement of existing open spaces, green infrastructure, schools or healthcare facilities within reasonable walking distance?\n· Will it deliver growth within reasonable walking distance to a planned or existing major employment area (5ha +) or town centre?\n· Will it improve opportunities for active travel including walking and cycling?\n· Will it deliver services or facilities on-site or elsewhere within the District? ","N/A","N/A","N/A","N/A","N/A","Neutral","The policy neither supports nor detracts from the achievement of the SA objective. Therefore a neutral effect is predicted.","No"]
["S04 Quality of Life\nTo create safe and attractive places which contribute towards quality of life and community cohesion.","· Will it contribute towards reducing crime or fear of crime?\n· Will it provide attractive places which provide opportunities for communities to mix and meet?","N/A","N/A","N/A","N/A","N/A","Neutral","The policy neither supports nor detracts from the achievement of the SA objective. Therefore a neutral effect is predicted.","No"]
["S05 Inequalities\nEnsure all residents have equitable access to employment, education, community services and facilities irrespective of race, religion, sex, age, sexual orientation, disability, gender reassignment, marriage and civil partnership or pregnancy/maternity.","· Ensure the option / policy does not have an adverse/ discriminatory impact on protected characteristics/ equality groups?\n· Will it narrow the inequality gap between the richest and poorest in the District?\n· Will it reduce inequalities associated with deprivation across the District?","N/A","N/A","N/A","N/A","N/A","Neutral","The policy neither supports nor detracts from the achievement of the SA objective. Therefore a neutral effect is predicted.","No"]
["S06 Economy\nTo deliver growth in key employment sectors and support the creation of new and retention of existing businesses in urban and rural areas.","· Will it encourage the creation of new businesses and existing businesses to grow?\n· Will it encourage economic diversification?\n· Will it help support and encourage the growth of the local economy (including in rural areas)?\n· Will it support the enhancement of the District’s tourism and cultural offer?","Indirect","Low","Medium/Long","District-wide","Permanent/Reversible","Minor Positive","Policy BNE4 provides indirect support for the achievement of SA6 as the policy highlights that soils that are ‘Best and Most Versatile’, (Grades 1, 2 and 3a in the Agricultural Land Classification) will be protected where possible. This will subsequently protect industries- such as farming- that rely on these landscapes. Therefore, as the policy meets some of the criteria for SA6, a potential minor positive effect has been identified.","No"]
["S07 Employment\nTo create greater employment opportunities and higher value jobs across the whole District","· Will it help to improve skills levels and access to training within the District?\n· Will it reduce unemployment rates overall and reduce disparities which exist across different parts of the District?","N/A","N/A","N/A","N/A","N/A","Neutral","The policy neither supports nor detracts from the achievement of the SA objective. Therefore a neutral effect is predicted.","No"]
["S08 Infrastructure\nTo deliver improved infrastructure to support growth and economic competitiveness of urban and rural businesses and communities.","· Will it minimise the impact of traffic congestion on the strategic and local road network through the delivery of new or enhanced transport infrastructure?\n· Will it provide opportunities to access key services, including doctor’s surgeries, education facilities, employment and town, local or village centres by means other than car?\n· Will it make the best use of other infrastructure which serves new development?","N/A","N/A","N/A","N/A","N/A","Neutral","The policy neither supports nor detracts from the achievement of the SA objective. Therefore a neutral effect is predicted.","No"]
["S09 Sustainable Travel\nTo promote sustainable travel habits including walking, cycling and public transport (bus and rail) usage.  ","· Will it reduce journey lengths and times? \n· Will it maximise opportunities for walking and cycling?\n· Will it maximise opportunities to access public transport provision?","N/A","N/A","N/A","N/A","N/A","Neutral","The policy neither supports nor detracts from the achievement of the SA objective. Therefore a neutral effect is predicted.","No"]
["S010 Town and Village Centres\nTo ensure that town and village centres are vibrant and viable.","· Will it improve existing shopping facilities within town and village centres? \n· Will it help safeguard existing town and village centres?","N/A","N/A","N/A","N/A","N/A","Neutral","The policy neither supports nor detracts from the achievement of the SA objective. Therefore a neutral effect is predicted.","No"]
["S011 Resources\nTo minimise waste and ensure the sustainable use and protection of natural resources including greenfield land, soil and minerals resources.  ","· Will it enhance opportunities for increased levels of recycling in the District?\n· Will it improve or remediate contaminated land or reuse previously developed land which has not been restored?\n· Will it protect Best and Most Versatile (BMV) Agricultural Land?\n· Will it avoid the sterilisation of minerals resources?","Direct","Medium","Medium/Long","District-wide","Permanent/Reversible","Minor Positive","Policy BNE4 provides support for the achievement of SA11 as the policy highlights that soils that are ‘Best and Most Versatile’, (Grades 1, 2 and 3a in the Agricultural Land Classification) will be protected where possible. Therefore, as the policy meets some of the criteria for SA11, a potential minor positive effect has been identified.","No"]
["S012 Pollution\nTo minimise water, air, light and noise pollution and ensure that future growth does not lead to the further deterioration of environmental conditions.","· Will it contribute to improvements in water quality in the District?\n· Will it avoid increasing noise levels locally or introducing incompatible uses into an already noisy location?\n· Will it avoid deterioration in air quality within the District?\n· Will it reduce light pollution on sensitive receptors by keeping external lighting to the minimum required for safety and security?","N/A","N/A","N/A","N/A","N/A","Neutral","The policy neither supports nor detracts from the achievement of the SA objective. Therefore a neutral effect is predicted.","No"]
["S013 Contributions to Climate Change \nTo reduce the District’s contribution towards the emission of climate change gases.","· Will it provide opportunities to access local services and facilities by public transport walking or cycling?\n· Will it support the delivery of renewable energy capacity (including small scale or community energy projects)?\n· Will it support the shift toward usage of electric and ultralow emissions vehicles? ","N/A","N/A","N/A","N/A","N/A","Neutral","The policy neither supports nor detracts from the achievement of the SA objective. Therefore a neutral effect is predicted.","No"]
["S014 Adaptation to Climate Change \nTo manage the effects of climate change including flood risk, reduced water availability and overheating.","· Will it minimise flood risk?\n· Will it include provision of sustainable urban drainage which mimic natural drainage patterns?\n· Will it contribute towards sustainable water use?","N/A","N/A","N/A","N/A","N/A","Neutral","The policy neither supports nor detracts from the achievement of the SA objective. Therefore a neutral effect is predicted.","No"]
["S015 Townscape and Historic Environment\nTo conserve and enhance the townscape, historic environment, heritage assets (including known and unknown archaeological sites) and their settings. ","· Will it protect and enhance the condition and setting of historic, cultural, architectural and archaeological features in South Derbyshire?\n· Does it improve the quality of the built environment, and respect and protect existing townscape character?\n· Will it improve access to, and understanding of, the District’s historic and cultural assets for enjoyment and educational purposes?","Direct","Medium","Medium/Long","District-wide","Permanent/Irreversible","Minor Positive","Policy BNE4 provides support for the achievement of SA15 as the policy highlights that developments should respect areas of historic importance. Developments that identify an unacceptable impact on historic character that cannot be mitigated, will not be permitted. This subsequently provides protection for the historic environment. Therefore, as the policy meets some of the criteria for SA15, a potential minor positive effect has been identified.","No"]
["S016 Landscape\nTo conserve and enhance the District’s landscape character.","· Does it respect and protect existing landscape character?\n· Will it protect sensitive landscapes including those within the World Heritage Site or its buffer or Special Landscape Areas?\n· Will it safeguard landscape features such as hedgerows?\n· Will it avoid intrusion into the greenbelt?","Direct","Medium","Medium/Long","District-wide","Permanent/Irreversible","Significant Positive","Policy BNE4 provides support for the achievement of SA16 as the policy highlights that the character, local distinctiveness and quality of the District's landscape will be protected and enhanced during new development, through the use of use of character to inform design. Developers should consider landscape types/character areas, including development within the National Forest. Landscape features, such as hedgerows and watercourses, will also be retained for at least 30 years after development where possible. A landscape and visual impact assessment will be required for all major development proposals and for proposals that are likely to have a significant impact on landscape; developments that cause significant impacts that cannot be mitigated will not be permitted. Therefore, as this policy meets most/all of the criteria for SA16, a potential significant positive effect has been identified.","No"]

{"sheet":"INF1_Infrastructure","index":32,"n_rows":23,"n_cols":13,"rows_kept":23,"cut":false,"hidden":false,"merged":[[0,1,0,2],[1,1,1,2],[2,1,2,2],[3,1,3,2],[5,0,5,1],[5,2,5,11]]}
["Policy/Alternative name","Policy INF1: Infrastructure and Developer Contributions"]
["Chapter","Infrastructure"]
["Policy/alternative description","Policy INF1 highlights that new development will only be permitted if necessary infrastructure (both on- and off-site) is already in place, or will be developed in the correct time frame, near to the new development, and to a high standard. Site-specific infrastructure is required through S106 Planning Obligations. If an infrastructure levy is adopted the Council will adopt a charging schedule to secure funding from new development towards infrastructure provision. Where appropriate, the Council will permit developers to provide the necessary infrastructure themselves as part of their development proposals, rather than making financial contributions. Where appropriate, developers will be expected to contribute toward recruitment, skills and training programmes to ensure that the benefits of development are maximised for local communities. It is expected that development is appropriately supported and its effects mitigated, in the interests of sustainability."]
["Assumptions Made","None."]
[]
["SA Framework",null,"SA Policy Assessment"]
["SA objective","SA sub-objective","Direct/\nIndirect","Magnitude","Duration","Spatial Extent","Permanence/ Reversibility","Significance","Description of potential effects","Potential for cumulative effects? ","Mitigation","Enhancements","SDDC Comments"]
["S01 Biodiversity\nTo safeguard and enhance biodiversity (including BAP habitats and species) and geodiversity through biodiversity net gain and improve connectivity between, and access to, green spaces and functional habitats.","· Will it conserve and enhance natural or semi natural habitats including internationally, nationally and locally designated wildlife sites, or create new wildlife habitats, and contribute to the creation of a network of habitats and green infrastructure in the District?\n· Will it protect BAP or protected species and contribute to the delivery of new, or safeguard existing BAP priority species and habitats?\n· Will it protect sites of geological importance?","N/A","N/A","N/A","N/A","N/A","Neutral","The policy neither supports nor detracts from the achievement of the SA objective. Therefore a neutral effect is predicted.","No"]
["S02 Housing\nTo ensure everyone has access to sustainable housing, which is affordable, and meets the needs of all residents including the elderly and other vulnerable groups and will support the vitality of existing communities and settlements. ","· Will it reduce the number of households waiting for accommodation or accepted as homeless?\n· Will it increase the number and mix of housing? \n· Will it improve the suitability of new homes for older and disabled people?\n· Will it provide affordable housing for those unable to access market housing?\n· Will it meet the needs of the travelling community and show people?\n· Will it secure infrastructure or community facilities?","N/A","N/A","N/A","N/A","N/A","Neutral","The policy neither supports nor detracts from the achievement of the SA objective. Therefore a neutral effect is predicted.","No"]
["S03 Accessibility and Health\nTo improve local accessibility to healthcare, education, employment, retail facilities and recreational resources (including open spaces and sports facilities) and enhance wellbeing, promoting healthy and sustainable lifestyles.","· Will it promote healthy lifestyles?\n· Will it deliver new, or contribute to the expansion or improvement of existing open spaces, green infrastructure, schools or healthcare facilities within reasonable walking distance?\n· Will it deliver growth within reasonable walking distance to a planned or existing major employment area (5ha +) or town centre?\n· Will it improve opportunities for active travel including walking and cycling?\n· Will it deliver services or facilities on-site or elsewhere within the District? ","Direct","Medium","Medium(10yrs)","District-wide","Permanent/Reversible","Minor Positive","Policy INF1 provides support for the achievement of SA3 as the policy highlights that infrastructure for new developments- such as those relating to community facilities (health, education, cultural)- may either by provided through financial contributions or by direct provision. Therefore, as the policy meets some of the criteria for SA3, a potential minor positive effect has been identified.","No"]
["S04 Quality of Life\nTo create safe and attractive places which contribute towards quality of life and community cohesion.","· Will it contribute towards reducing crime or fear of crime?\n· Will it provide attractive places which provide opportunities for communities to mix and meet?","N/A","N/A","N/A","N/A","N/A","Neutral","The policy neither supports nor detracts from the achievement of the SA objective. Therefore a neutral effect is predicted.","No"]
["S05 Inequalities\nEnsure all residents have equitable access to employment, education, community services and facilities irrespective of race, religion, sex, age, sexual orientation, disability, gender reassignment, marriage and civil partnership or pregnancy/maternity.","· Ensure the option / policy does not have an adverse/ discriminatory impact on protected characteristics/ equality groups?\n· Will it narrow the inequality gap between the richest and poorest in the District?\n· Will it reduce inequalities associated with deprivation across the District?","N/A","N/A","N/A","N/A","N/A","Neutral","The policy neither supports nor detracts from the achievement of the SA objective. Therefore a neutral effect is predicted.","No"]
["S06 Economy\nTo deliver growth in key employment sectors and support the creation of new and retention of existing businesses in urban and rural areas.","· Will it encourage the creation of new businesses and existing businesses to grow?\n· Will it encourage economic diversification?\n· Will it help support and encourage the growth of the local economy (including in rural areas)?\n· Will it support the enhancement of the District’s tourism and cultural offer?","N/A","N/A","N/A","N/A","N/A","Neutral","The policy neither supports nor detracts from the achievement of the SA objective. Therefore a neutral effect is predicted.","No"]
["S07 Employment\nTo create greater employment opportunities and higher value jobs across the whole District","· Will it help to improve skills levels and access to training within the District?\n· Will it reduce unemployment rates overall and reduce disparities which exist across different parts of the District?","Direct","Medium","Medium(10yrs)","District-wide","Permanent/Reversible","Significant Positive","Policy INF1 provides support for the achievement of SA7 as the policy highlights that where possible/appropriate, infrastructure developers will be expected to contribute towards recruitment, skills and training programmes to ensure that the benefits of infrastructure development are maximised for local communities. This could subsequently lead to the upskilling of individuals, allowing them to access employment opportunities. Therefore, as this policy meets most/all of the criteria for SA7, a potential significant positive effect has been identified.","Yes"]
["S08 Infrastructure\nTo deliver improved infrastructure to support growth and economic competitiveness of urban and rural businesses and communities.","· Will it minimise the impact of traffic congestion on the strategic and local road network through the delivery of new or enhanced transport infrastructure?\n· Will it provide opportunities to access key services, including doctor’s surgeries, education facilities, employment and town, local or village centres by means other than car?\n· Will it make the best use of other infrastructure which serves new development?","Direct","Medium","Medium(10yrs)","District-wide","Permanent/Reversible","Significant Positive","Policy INF1 provides support for the achievement of SA8 as the policy highlights that new development will only be permitted if necessary infrastructure (both on- and off-site) is already in place, or will be developed in the correct time frame, near to the new development, and to a high standard. Critical infrastructure should be delivered as early as possible in the site's construction. The policy also highlights that infrastructure for new developments- such as those relating to transport and community facilities- may either by provided through financial contributions or by direct provision. Therefore, as this policy meets most/all of the criteria for SA8, a potential significant positive effect has been identified.","No"]
["S09 Sustainable Travel\nTo promote sustainable travel habits including walking, cycling and public transport (bus and rail) usage.  ","· Will it reduce journey lengths and times? \n· Will it maximise opportunities for walking and cycling?\n· Will it maximise opportunities to access public transport provision?","Direct","Medium","Medium(10yrs)","District-wide","Permanent/Reversible","Minor Positive","Policy INF1 provides support for the achievement of SA9 as the policy highlights that infrastructure for new developments- such as those relating to transport- may either by provided through financial contributions or by direct provision. This should subsequently contribute to the improvement of public transport networks in the District. Therefore, as the policy meets some of the criteria for SA9, a potential minor positive effect has been identified.","No"]
["S010 Town and Village Centres\nTo ensure that town and village centres are vibrant and viable.","· Will it improve existing shopping facilities within town and village centres? \n· Will it help safeguard existing town and village centres?","N/A","N/A","N/A","N/A","N/A","Neutral","The policy neither supports nor detracts from the achievement of the SA objective. Therefore a neutral effect is predicted.","No"]
["S011 Resources\nTo minimise waste and ensure the sustainable use and protection of natural resources including greenfield land, soil and minerals resources.  ","· Will it enhance opportunities for increased levels of recycling in the District?\n· Will it improve or remediate contaminated land or reuse previously developed land which has not been restored?\n· Will it protect Best and Most Versatile (BMV) Agricultural Land?\n· Will it avoid the sterilisation of minerals resources?","Direct","Low","Medium(10yrs)","District-wide","Permanent/Reversible","Minor Positive","Policy INF1 provides support for the achievement of SA11 as the policy highlights that infrastructure for new developments- such as those relating to waste management and the provision of minerals- may either by provided through financial contributions or by direct provision. Therefore, as the policy meets some of the criteria for SA11, a potential minor positive effect has been identified.","No"]
["S012 Pollution\nTo minimise water, air, light and noise pollution and ensure that future growth does not lead to the further deterioration of environmental conditions.","· Will it contribute to improvements in water quality in the District?\n· Will it avoid increasing noise levels locally or introducing incompatible uses into an already noisy location?\n· Will it avoid deterioration in air quality within the District?\n· Will it reduce light pollution on sensitive receptors by keeping external lighting to the minimum required for safety and security?","Direct","Low","Medium(10yrs)","District-wide","Permanent/Reversible","Minor Positive","Policy INF1 provides support for the achievement of SA12 as the policy highlights that infrastructure for new developments- such as those relating to wastewater management- may either by provided through financial contributions or by direct provision. This should subsequently contribute to the minimisation of water pollution. Therefore, as the policy meets some of the criteria for SA12, a potential minor positive effect has been identified.","No"]
["S013 Contributions to Climate Change \nTo reduce the District’s contribution towards the emission of climate change gases.","· Will it provide opportunities to access local services and facilities by public transport walking or cycling?\n· Will it support the delivery of renewable energy capacity (including small scale or community energy projects)?\n· Will it support the shift toward usage of electric and ultralow emissions vehicles? ","N/A","N/A","N/A","N/A","N/A","Neutral","The policy neither supports nor detracts from the achievement of the SA objective. Therefore a neutral effect is predicted.","No"]
["S014 Adaptation to Climate Change \nTo manage the effects of climate change including flood risk, reduced water availability and overheating.","· Will it minimise flood risk?\n· Will it include provision of sustainable urban drainage which mimic natural drainage patterns?\n· Will it contribute towards sustainable water use?","Direct","Low","Medium(10yrs)","District-wide","Permanent/Reversible","Minor Positive","Policy INF1 provides support for the achievement of SA14 as the policy highlights that infrastructure for new developments- such as those relating to flood risk and coastal change management- may either by provided through financial contributions or by direct provision. Drainage infrastructure such as these should be completed as early as possible in the site's construction. Therefore, as the policy meets some of the criteria for SA14, a potential minor positive effect has been identified.","No"]
["S015 Townscape and Historic Environment\nTo conserve and enhance the townscape, historic environment, heritage assets (including known and unknown archaeological sites) and their settings. ","· Will it protect and enhance the condition and setting of historic, cultural, architectural and archaeological features in South Derbyshire?\n· Does it improve the quality of the built environment, and respect and protect existing townscape character?\n· Will it improve access to, and understanding of, the District’s historic and cultural assets for enjoyment and educational purposes?","N/A","N/A","N/A","N/A","N/A","Neutral","The policy neither supports nor detracts from the achievement of the SA objective. Therefore a neutral effect is predicted.","No"]
["S016 Landscape\nTo conserve and enhance the District’s landscape character.","· Does it respect and protect existing landscape character?\n· Will it protect sensitive landscapes including those within the World Heritage Site or its buffer or Special Landscape Areas?\n· Will it safeguard landscape features such as hedgerows?\n· Will it avoid intrusion into the greenbelt?","N/A","N/A","N/A","N/A","N/A","Neutral","The policy neither supports nor detracts from the achievement of the SA objective. Therefore a neutral effect is predicted.","No"]

{"sheet":"INF2_Sustainable_Transport","index":33,"n_rows":23,"n_cols":13,"rows_kept":23,"cut":false,"hidden":false,"merged":[[0,1,0,2],[1,1,1,2],[2,1,2,2],[3,1,3,2],[5,0,5,1],[5,2,5,11]]}
["Policy/Alternative name","Policy INF2: Sustainable Transport"]
["Chapter","Infrastructure"]
["Policy/alternative description","Policy INF2 highlights support for the expansion, improvement and protection of walking and cycling networks. Routes should be coherent, direct, continuous, safe, secure and attractive and should contribute to the wider green infrastructure network wherever possible. The Council will work in partnership with County Councils, neighbouring local authorities, public transport operators and community transport operators to improve public transport services, infrastructure and information provision in the District. Development should be designed and laid out in such a way as to ensure that, wherever possible, public transport services are within convenient walking distance of all site residents, staff and visitors. Improvements to bus shelters and laybys (including the provision of real time information), railway stations (and associated infrastructure) and the running of public transport services may be made through financial contributions, or suitable alternatives as appropriate, from developers. Land is protected against development that would prejudice the establishment of new passenger railway stations at Castle Gresley, Drakelow and Stenson Fields, and the development of an intermodal Transport Mobility Hub at Boulton Moor, Elvaston. Development should make adequate provision for service vehicle access, manoeuvring and off-street parking. Development should include appropriate car parking provision having regard to the need to make appropriate provision for electric vehicle charging, the provision of cycle storage, the need to provide sufficient conveniently located spaces to meet the needs of people with impaired mobility, and the need to ensure that development would not have an undue detrimental impact on pedestrian and cyclist movement and highway safety."]
["Assumptions Made","None."]
[]
["SA Framework",null,"SA Policy Assessment"]
["SA objective","SA sub-objective","Direct/\nIndirect","Magnitude","Duration","Spatial Extent","Permanence/ Reversibility","Significance","Description of potential effects","Potential for cumulative effects? ","Mitigation","Enhancements","SDDC Comments"]
["S01 Biodiversity\nTo safeguard and enhance biodiversity (including BAP habitats and species) and geodiversity through biodiversity net gain and improve connectivity between, and access to, green spaces and functional habitats.","· Will it conserve and enhance natural or semi natural habitats including internationally, nationally and locally designated wildlife sites, or create new wildlife habitats, and contribute to the creation of a network of habitats and green infrastructure in the District?\n· Will it protect BAP or protected species and contribute to the delivery of new, or safeguard existing BAP priority species and habitats?\n· Will it protect sites of geological importance?","Indirect","Medium","Medium/Long","District-wide","Permanent/Irreversible","Minor Positive","Policy INF2 indirectly supports the achievement of SA1 as active travel networks should contribute to the wider green infrastructure network wherever possible, thus having a positive influence on biodiversity within green infrastructure corridors. Therefore, as this policy indirectly meets some of the criteria for SA1, a potential minor positive effect has been identified.","No"]
["S02 Housing\nTo ensure everyone has access to sustainable housing, which is affordable, and meets the needs of all residents including the elderly and other vulnerable groups and will support the vitality of existing communities and settlements. ","· Will it reduce the number of households waiting for accommodation or accepted as homeless?\n· Will it increase the number and mix of housing? \n· Will it improve the suitability of new homes for older and disabled people?\n· Will it provide affordable housing for those unable to access market housing?\n· Will it meet the needs of the travelling community and show people?\n· Will it secure infrastructure or community facilities?","N/A","N/A","N/A","N/A","N/A","Neutral","The policy neither supports nor detracts from the achievement of the SA objective. Therefore a neutral effect is predicted.","No"]
["S03 Accessibility and Health\nTo improve local accessibility to healthcare, education, employment, retail facilities and recreational resources (including open spaces and sports facilities) and enhance wellbeing, promoting healthy and sustainable lifestyles.","· Will it promote healthy lifestyles?\n· Will it deliver new, or contribute to the expansion or improvement of existing open spaces, green infrastructure, schools or healthcare facilities within reasonable walking distance?\n· Will it deliver growth within reasonable walking distance to a planned or existing major employment area (5ha +) or town centre?\n· Will it improve opportunities for active travel including walking and cycling?\n· Will it deliver services or facilities on-site or elsewhere within the District? ","Direct","Medium","Medium/Long","District-wide","Permanent/Irreversible","Minor Positive","Policy INF2 indirectly supports the achievement of SA3 as the provision of modes of active travel across the District (e.g. footpaths and cycleways) will enable residents to make healthy choices to benefit both their mental health and physical health. Active travel networks should contribute to the wider green infrastructure network wherever possible. Development should also make provision for accessible car parking spaces, to meet the needs of disabled/elderly residents. Therefore, as this policy meets some of the criteria for SA3, a potential minor positive effect has been identified.","No"]
["S04 Quality of Life\nTo create safe and attractive places which contribute towards quality of life and community cohesion.","· Will it contribute towards reducing crime or fear of crime?\n· Will it provide attractive places which provide opportunities for communities to mix and meet?","N/A","N/A","N/A","N/A","N/A","Neutral","The policy neither supports nor detracts from the achievement of the SA objective. Therefore a neutral effect is predicted.","No"]
["S05 Inequalities\nEnsure all residents have equitable access to employment, education, community services and facilities irrespective of race, religion, sex, age, sexual orientation, disability, gender reassignment, marriage and civil partnership or pregnancy/maternity.","· Ensure the option / policy does not have an adverse/ discriminatory impact on protected characteristics/ equality groups?\n· Will it narrow the inequality gap between the richest and poorest in the District?\n· Will it reduce inequalities associated with deprivation across the District?","N/A","N/A","N/A","N/A","N/A","Neutral","The policy neither supports nor detracts from the achievement of the SA objective. Therefore a neutral effect is predicted.","No"]
["S06 Economy\nTo deliver growth in key employment sectors and support the creation of new and retention of existing businesses in urban and rural areas.","· Will it encourage the creation of new businesses and existing businesses to grow?\n· Will it encourage economic diversification?\n· Will it help support and encourage the growth of the local economy (including in rural areas)?\n· Will it support the enhancement of the District’s tourism and cultural offer?","Indirect","Medium","Medium/Long","Regional","Permanent/Irreversible","Minor Positive","Policy INF2 provides indirect support for the achievement of SA6 as by improving sustainable transport infrastructure across South Derbyshire, the policy is also improving regional connectivity and infrastructure. This could subsequently support economic growth across Derbyshire. Therefore, as this policy indirectly meets some of the criteria for SA6, a potential minor positive effect has been identified.","No"]
["S07 Employment\nTo create greater employment opportunities and higher value jobs across the whole District","· Will it help to improve skills levels and access to training within the District?\n· Will it reduce unemployment rates overall and reduce disparities which exist across different parts of the District?","Indirect","Medium","Medium/Long","Regional","Permanent/Irreversible","Minor Positive","Policy INF2 provides indirect support for the achievement of SA7 as by improving sustainable transport infrastructure across South Derbyshire, the policy is also improving regional connectivity and infrastructure. This could subsequently support job creation as employment becomes more accessible. Therefore, as this policy indirectly meets some of the criteria for SA7, a potential minor positive effect has been identified.","Yes"]
["S08 Infrastructure\nTo deliver improved infrastructure to support growth and economic competitiveness of urban and rural businesses and communities.","· Will it minimise the impact of traffic congestion on the strategic and local road network through the delivery of new or enhanced transport infrastructure?\n· Will it provide opportunities to access key services, including doctor’s surgeries, education facilities, employment and town, local or village centres by means other than car?\n· Will it make the best use of other infrastructure which serves new development?","Direct","Medium","Medium/Long","District-wide","Permanent/Irreversible","Minor Positive","Policy INF2 supports the achievement of SA8 as the provision of modes of active travel across the District (e.g. footpaths and cycleways) will enable residents to access community facilities/services by modes other than car. Therefore, as this policy meets some of the criteria for SA8, a potential minor positive effect has been identified.","No"]
["S09 Sustainable Travel\nTo promote sustainable travel habits including walking, cycling and public transport (bus and rail) usage.  ","· Will it reduce journey lengths and times? \n· Will it maximise opportunities for walking and cycling?\n· Will it maximise opportunities to access public transport provision?","Direct","Medium","Medium/Long","District-wide","Permanent/Irreversible","Significant Positive","Policy INF2 supports the achievement of SA9 as modes of active travel (e.g. footpaths and cycleways) should be maximised across the District, as should improvements to public transport services. Improvements to bus shelters, railway stations (and associated infrastructure) and the running of public transport services may be made through financial contributions from developers. Therefore, as this policy meets most/all of the criteria for SA9, a potential significant positive effect has been identified.","No"]
["S010 Town and Village Centres\nTo ensure that town and village centres are vibrant and viable.","· Will it improve existing shopping facilities within town and village centres? \n· Will it help safeguard existing town and village centres?","N/A","N/A","N/A","N/A","N/A","Neutral","The policy neither supports nor detracts from the achievement of the SA objective. Therefore a neutral effect is predicted.","No"]
["S011 Resources\nTo minimise waste and ensure the sustainable use and protection of natural resources including greenfield land, soil and minerals resources.  ","· Will it enhance opportunities for increased levels of recycling in the District?\n· Will it improve or remediate contaminated land or reuse previously developed land which has not been restored?\n· Will it protect Best and Most Versatile (BMV) Agricultural Land?\n· Will it avoid the sterilisation of minerals resources?","N/A","N/A","N/A","N/A","N/A","Neutral","The policy neither supports nor detracts from the achievement of the SA objective. Therefore a neutral effect is predicted.","No"]
["S012 Pollution\nTo minimise water, air, light and noise pollution and ensure that future growth does not lead to the further deterioration of environmental conditions.","· Will it contribute to improvements in water quality in the District?\n· Will it avoid increasing noise levels locally or introducing incompatible uses into an already noisy location?\n· Will it avoid deterioration in air quality within the District?\n· Will it reduce light pollution on sensitive receptors by keeping external lighting to the minimum required for safety and security?","Direct","Medium","Medium/Long","District-wide","Permanent/Irreversible","Minor Positive","Policy INF2 provides support for the achievement of SA12 as improvements to sustainable transport infrastructure should encourage residents to use public transport, thus reducing the number of cars on the road. This should subsequently improve air quality across the District. Therefore, as the policy meets some of the criteria for SA12, a potential minor positive effect has been identified.","Yes"]
["S013 Contributions to Climate Change \nTo reduce the District’s contribution towards the emission of climate change gases.","· Will it provide opportunities to access local services and facilities by public transport walking or cycling?\n· Will it support the delivery of renewable energy capacity (including small scale or community energy projects)?\n· Will it support the shift toward usage of electric and ultralow emissions vehicles? ","Direct","Medium","Medium/Long","District-wide","Permanent/Irreversible","Significant Positive","Policy INF2 supports the achievement of SA13 as the provision of modes of active travel across the District (e.g. footpaths and cycleways) will support reductions in car usage, and thus reductions in the amount of carbon emissions generated through transport. Development should also make provision for EV charging, encouraging the use of low carbon vehicles. Therefore, as this policy meets most/all of the criteria for SA13, a potential significant positive effect has been identified.","Yes"]
["S014 Adaptation to Climate Change \nTo manage the effects of climate change including flood risk, reduced water availability and overheating.","· Will it minimise flood risk?\n· Will it include provision of sustainable urban drainage which mimic natural drainage patterns?\n· Will it contribute towards sustainable water use?","N/A","N/A","N/A","N/A","N/A","Neutral","The policy neither supports nor detracts from the achievement of the SA objective. Therefore a neutral effect is predicted.","No"]
["S015 Townscape and Historic Environment\nTo conserve and enhance the townscape, historic environment, heritage assets (including known and unknown archaeological sites) and their settings. ","· Will it protect and enhance the condition and setting of historic, cultural, architectural and archaeological features in South Derbyshire?\n· Does it improve the quality of the built environment, and respect and protect existing townscape character?\n· Will it improve access to, and understanding of, the District’s historic and cultural assets for enjoyment and educational purposes?","N/A","N/A","N/A","N/A","N/A","Neutral","The policy neither supports nor detracts from the achievement of the SA objective. Therefore a neutral effect is predicted.","No",null,"Policy INF2 could be enhanced by making reference to the protection of townscape character. "]
["S016 Landscape\nTo conserve and enhance the District’s landscape character.","· Does it respect and protect existing landscape character?\n· Will it protect sensitive landscapes including those within the World Heritage Site or its buffer or Special Landscape Areas?\n· Will it safeguard landscape features such as hedgerows?\n· Will it avoid intrusion into the greenbelt?","N/A","N/A","N/A","N/A","N/A","Neutral","The policy neither supports nor detracts from the achievement of the SA objective. Therefore a neutral effect is predicted.","No"]

{"sheet":"INF3_East_Midlands_Freeport","index":34,"n_rows":29,"n_cols":22,"rows_kept":29,"cut":false,"hidden":false,"merged":[[11,0,11,2],[11,3,11,6],[11,7,11,17]]}
["Site Name",null,"INF3_East_Midlands_Freeport"]
["Site Address",null,"N/A"]
["Town/Locality",null,"Egginton Common"]
["Est Housing Yield/Employment Space",null,"N/A"]
["Site Area (ha)",null,"N/A"]
["Site Description",null,"N/A"]
["Greenfield/Brownfield",null,"Greenfield"]
["Assumptions Made",null,"None."]
["Policy Name ",null,"Policy INF3: East Midlands Intermodal Park Strategic Rail Freight Interchange/East Midlands Freeport"]
["Policy Description",null,"Land is allocated for the development of an East Midlands Intermodal Park Strategic Rail Freight Interchange/East Midlands Freeport at Egginton Common, which shall include an operational connection to Network Rail track and signalling standards, and to main trunk rail routes; railway wagon reception and inter-modal handling and container storage facilities; and rail connected and rail accessible buildings. Development should make provision for road access and parking; cause no amenity or safety impacts (e.g. noise, light, odour, traffic generation); be well designed and cause no harm to the character of the local landscape; preserve historic assets; cause no harm to ecological or environmental features, make provision for green infrastructure and BNG, and minimise flood risk; and make provision for convenient and safe access to the site via public transport and active travel modes."]
[]
["SA Framework",null,null,"GIS Inputs",null,null,null,"SA Policy Assessment"]
["SA objective","SA","SA sub-objective","GIS Data Available?","R","A","G","Direct/\nIndirect","Magnitude","Duration","Spatial Extent","Permanence/ Reversibility","Significance","Description of potential effects","Potential for cumulative effects? ","Policy Mitigation","Mitigation Recommendations","Enhancement Recommendation","SDDC Comments","review comments",null,"Link "]
["S01 Biodiversity\nTo safeguard and enhance biodiversity (including BAP habitats and species) and geodiversity through biodiversity net gain and improve connectivity between, and access to, green spaces and functional habitats.","S01","· Will it conserve and enhance natural or semi natural habitats including internationally, nationally and locally designated wildlife sites, or create new wildlife habitats, and contribute to the creation of a network of habitats and green infrastructure in the District?\n· Will it protect BAP or protected species and contribute to the delivery of new, or safeguard existing BAP priority species and habitats?\n· Will it protect sites of geological importance?","Yes",{"$f":"COUNTIFS(INDIRECT(\"RAG!$C$\"&$V14&\":$AX$\"&$V14),E$13,RAG!$C$2:$AX$2,$B14)","v":1},{"$f":"COUNTIFS(INDIRECT(\"RAG!$C$\"&$V14&\":$AX$\"&$V14),F$13,RAG!$C$2:$AX$2,$B14)","v":0},{"$f":"COUNTIFS(INDIRECT(\"RAG!$C$\"&$V14&\":$AX$\"&$V14),G$13,RAG!$C$2:$AX$2,$B14)","v":5},"Direct","Medium","Medium/Long","Localised","Permanent/Irreversible","Minor Positive","There are no internationally designated/BAP species or habitats located on or near to this site, nor are there any locally designated wildlife sites nearby. The site contains of a number of TPOs. However as this allocation works alongside Policy BNE3 Biodiversity and Policy INF3, which requires development to avoid any adverse impact on sites of nature conservation value, as well as deliver a minimum of 10% BNG, it is very unlikely that these will be damaged or removed during development. Policy INF3 also highlights that the site should not cause harm to ecological/environmental features and should contribute toward the delivery of green and blue infrastructure; the area to the South of the Derby-Crewe railway shall be reserved for this purpose. This should subsequently help to support and enhance habitats and species. Therefore, a potential minor positive effect has been identified.","No",null,null,null,null,"edited the enhancement. Copy over to the other sites assessed?\n\nGreen wedges only relevant to this assessment","Not sure why all the RAGs say N/A? I think this should be minor pos so that it's consistent with other sites assessments",{"$f":"MATCH($C$1,RAG!$B$1:$B9, 0)","v":9}]
["S02 Housing\nTo ensure everyone has access to sustainable housing, which is affordable, and meets the needs of all residents including the elderly and other vulnerable groups and will support the vitality of existing communities and settlements. ","S02","· Will it reduce the number of households waiting for accommodation or accepted as homeless?\n· Will it increase the number and mix of housing? \n· Will it improve the suitability of new homes for older and disabled people?\n· Will it provide affordable housing for those unable to access market housing?\n· Will it meet the needs of the travelling community and show people?\n· Will it secure infrastructure or community facilities?","Yes",{"$f":"COUNTIFS(INDIRECT(\"RAG!$C$\"&$V15&\":$AX$\"&$V15),E$13,RAG!$C$2:$AX$2,$B15)","v":0},{"$f":"COUNTIFS(INDIRECT(\"RAG!$C$\"&$V15&\":$AX$\"&$V15),F$13,RAG!$C$2:$AX$2,$B15)","v":0},{"$f":"COUNTIFS(INDIRECT(\"RAG!$C$\"&$V15&\":$AX$\"&$V15),G$13,RAG!$C$2:$AX$2,$B15)","v":0},"N/A","N/A","N/A","N/A","N/A","Neutral","As the development encompasses employment uses only, the site's provision of housing is not relevant. Therefore, a neutral effect is predicted.","No",null,null,null,null,"minor edits",null,{"$f":"MATCH($C$1,RAG!$B$1:$B10, 0)","v":9}]
["S03 Accessibility and Health\nTo improve local accessibility to healthcare, education, employment, retail facilities and recreational resources (including open spaces and sports facilities) and enhance wellbeing, promoting healthy and sustainable lifestyles.","S03","· Will it promote healthy lifestyles?\n· Will it deliver new, or contribute to the expansion or improvement of existing open spaces, green infrastructure, schools or healthcare facilities within reasonable walking distance?\n· Will it deliver growth within reasonable walking distance to a planned or existing major employment area (5ha +) or town centre?\n· Will it improve opportunities for active travel including walking and cycling?\n· Will it deliver services or facilities on-site or elsewhere within the District? ","Yes",{"$f":"COUNTIFS(INDIRECT(\"RAG!$C$\"&$V16&\":$AX$\"&$V16),E$13,RAG!$C$2:$AX$2,$B16)","v":0},{"$f":"COUNTIFS(INDIRECT(\"RAG!$C$\"&$V16&\":$AX$\"&$V16),F$13,RAG!$C$2:$AX$2,$B16)","v":0},{"$f":"COUNTIFS(INDIRECT(\"RAG!$C$\"&$V16&\":$AX$\"&$V16),G$13,RAG!$C$2:$AX$2,$B16)","v":0},"Direct","Low","Medium/Long","Localised","Permanent/Irreversible","Minor Positive","As the development encompasses employment uses only, the site's location in relation to a GP surgery, school, existing employment sites, leisure facilities and recreation is not relevant. The site will provide more accessibility to employment however. Policy INF3 also highlights that the area to the south of the Derby-Crewe railway line shall be reserved for blue and green infrastructure, and shall be made publicly available for recreational purposes. As green infrastructure includes open spaces, footpaths and cycleways, the maintenance and expansion of green/blue infrastructure will enable employees (and possibly local residents) to make healthy choices and ensure that they have access of natural green spaces. Therefore, a potential minor positive effect has been identified.","Yes",null,null,null,null,"I'm changing some refs to 'the site' to 'the development'. Presume the minor is because some will be delivered offsite and may rely on other contributions / third parties.",null,{"$f":"MATCH($C$1,RAG!$B$1:$B11, 0)","v":9}]
["S04 Quality of Life\nTo create safe and attractive places which contribute towards quality of life and community cohesion.","S04","· Will it contribute towards reducing crime or fear of crime?\n· Will it provide attractive places which provide opportunities for communities to mix and meet?","No",null,null,null,"N/A","N/A","N/A","N/A","N/A","Neutral","It is assumed that this allocation works alongside Policy BNE1 Design Excellence, which requires developments to be designed to minimise opportunities for crime and anti-social behaviour, and encourage diversity and social interaction. Therefore a neutral effect is predicted.","No","Policy BNE1 Design Excellence requires developments to be designed to minimise opportunities for crime and anti-social behaviour, and encourage diversity and social interaction.",null,null,null,"see strikethough",null,{"$f":"MATCH($C$1,RAG!$B$1:$B12, 0)","v":9}]
["S05 Inequalities\nEnsure all residents have equitable access to employment, education, community services and facilities irrespective of race, religion, sex, age, sexual orientation, disability, gender reassignment, marriage and civil partnership or pregnancy/maternity.","S05","· Ensure the option / policy does not have an adverse/ discriminatory impact on protected characteristics/ equality groups?\n· Will it narrow the inequality gap between the richest and poorest in the District?\n· Will it reduce inequalities associated with deprivation across the District?","Yes",{"$f":"COUNTIFS(INDIRECT(\"RAG!$C$\"&$V18&\":$AX$\"&$V18),E$13,RAG!$C$2:$AX$2,$B18)","v":0},{"$f":"COUNTIFS(INDIRECT(\"RAG!$C$\"&$V18&\":$AX$\"&$V18),F$13,RAG!$C$2:$AX$2,$B18)","v":0},{"$f":"COUNTIFS(INDIRECT(\"RAG!$C$\"&$V18&\":$AX$\"&$V18),G$13,RAG!$C$2:$AX$2,$B18)","v":1},"N/A","N/A","N/A","N/A","N/A","Neutral","This site is within a low IMD deprivation area. However, development of this site alone will not necessarily reduce the gap between the richest and poorest in the District. Therefore, a neutral effect is predicted.","No",null,null,null,null,null,null,{"$f":"MATCH($C$1,RAG!$B$1:$B13, 0)","v":9}]
["S06 Economy\nTo deliver growth in key employment sectors and support the creation of new and retention of existing businesses in urban and rural areas.","S06","· Will it encourage the creation of new businesses and existing businesses to grow?\n· Will it encourage economic diversification?\n· Will it help support and encourage the growth of the local economy (including in rural areas)?\n· Will it support the enhancement of the District’s tourism and cultural offer?","Yes",{"$f":"COUNTIFS(INDIRECT(\"RAG!$C$\"&$V19&\":$AX$\"&$V19),E$13,RAG!$C$2:$AX$2,$B19)","v":0},{"$f":"COUNTIFS(INDIRECT(\"RAG!$C$\"&$V19&\":$AX$\"&$V19),F$13,RAG!$C$2:$AX$2,$B19)","v":0},{"$f":"COUNTIFS(INDIRECT(\"RAG!$C$\"&$V19&\":$AX$\"&$V19),G$13,RAG!$C$2:$AX$2,$B19)","v":1},"Direct","Medium","Medium/Long","District-wide","Permanent/Irreversible","Significant Positive","The development of the East Midlands Intermodal Park Strategic Rail Freight Interchange/East Midlands Freeport will support businesses within South Derbyshire and beyond through the provision of a transport route for freight. The Strategic Rail Freight Interchange/Freeport has been deemed as a Nationally Significant Infrastructure Project. The site will also provide space for business use, and will subsequently contribute towards economic growth in the District. The Freeport predicts that there will be £9 billion of growth as a result of the development. Finally, businesses located within the freeport will benefit from duty exception, duty deferral and TAX incentives, which will help to generate new economic activity. The Freeport predicts that the development will generate more than £1 billion in additional taxes that can be reinvested into the East Midlands. Therefore, a potential significant positive effect has been identified.","Yes",null,null,null,null,null,"There's a tax benefit to the 'freeport'. Could you look it up on google and add a sentence about the benefit to businesses located in the freeport tax area. I think it means they can do some movement of goods without paying tax or something! Could you also please look up whether there will actually be any improvements to rail links because there might not be. It might be that the location takes advantage of the existing rail head which they can then get freight onto. ",{"$f":"MATCH($C$1,RAG!$B$1:$B14, 0)","v":9}]
["S07 Employment\nTo create greater employment opportunities and higher value jobs across the whole District","S07","· Will it help to improve skills levels and access to training within the District?\n· Will it reduce unemployment rates overall and reduce disparities which exist across different parts of the District?","Yes",{"$f":"COUNTIFS(INDIRECT(\"RAG!$C$\"&$V20&\":$AX$\"&$V20),E$13,RAG!$C$2:$AX$2,$B20)","v":0},{"$f":"COUNTIFS(INDIRECT(\"RAG!$C$\"&$V20&\":$AX$\"&$V20),F$13,RAG!$C$2:$AX$2,$B20)","v":0},{"$f":"COUNTIFS(INDIRECT(\"RAG!$C$\"&$V20&\":$AX$\"&$V20),G$13,RAG!$C$2:$AX$2,$B20)","v":1},"Direct","Medium","Medium/Long","District-wide","Permanent/Irreversible","Significant Positive","The development of the East Midlands Intermodal Park Strategic Rail Freight Interchange/East Midlands Freeport will help to improve regional connectivity and infrastructure. This could subsequently support job creation during both construction and operation, across the District. The Freeport predicts that the development will create tens of thousands of jobs. Therefore, a potential significant positive effect has been identified.","Yes",null,null,null,null,"minor edits","See above. I'm not sure it's the rail links that does this, it's the benefits of the freeport itself  to businesses that should provide jobs.",{"$f":"MATCH($C$1,RAG!$B$1:$B15, 0)","v":9}]
["S08 Infrastructure\nTo deliver improved infrastructure to support growth and economic competitiveness of urban and rural businesses and communities.","S08","· Will it minimise the impact of traffic congestion on the strategic and local road network through the delivery of new or enhanced transport infrastructure?\n· Will it provide opportunities to access key services, including doctor’s surgeries, education facilities, employment and town, local or village centres by means other than car?\n· Will it make the best use of other infrastructure which serves new development?","No",{"$f":"COUNTIFS(INDIRECT(\"RAG!$C$\"&$V21&\":$AX$\"&$V21),E$13,RAG!$C$2:$AX$2,$B21)","v":0},{"$f":"COUNTIFS(INDIRECT(\"RAG!$C$\"&$V21&\":$AX$\"&$V21),F$13,RAG!$C$2:$AX$2,$B21)","v":0},{"$f":"COUNTIFS(INDIRECT(\"RAG!$C$\"&$V21&\":$AX$\"&$V21),G$13,RAG!$C$2:$AX$2,$B21)","v":0},"Direct","Medium","Medium/Long","Regional","Permanent/Irreversible","Minor Positive","As the development encompasses employment uses only, the site's location in relation to a GP surgery, school, existing employment sites, leisure facilities or recreation is not relevant. However, the development of the East Midlands Intermodal Park Strategic Rail Freight Interchange/East Midlands Freeport should enable more freight to be transported by rail, as opposed to by road, which may subsequently reduce HGV road traffic and congestion across the District and beyond. Policy INF3 also provisions for convenient and safe access to the site on foot, by cycle and by public transport. The policy highlights that these means of travel should be connected to population centres and to Willington railway station. Therefore, a potential minor positive effect has been identified.","No",null,null,null,null,null,null,{"$f":"MATCH($C$1,RAG!$B$1:$B16, 0)","v":9}]
["S09 Sustainable Travel\nTo promote sustainable travel habits including walking, cycling and public transport (bus and rail) usage.  ","S09","· Will it reduce journey lengths and times? \n· Will it maximise opportunities for walking and cycling?\n· Will it maximise opportunities to access public transport provision?","Yes",{"$f":"COUNTIFS(INDIRECT(\"RAG!$C$\"&$V22&\":$AX$\"&$V22),E$13,RAG!$C$2:$AX$2,$B22)","v":1},{"$f":"COUNTIFS(INDIRECT(\"RAG!$C$\"&$V22&\":$AX$\"&$V22),F$13,RAG!$C$2:$AX$2,$B22)","v":0},{"$f":"COUNTIFS(INDIRECT(\"RAG!$C$\"&$V22&\":$AX$\"&$V22),G$13,RAG!$C$2:$AX$2,$B22)","v":1},"Direct","Medium","Medium/Long","Localised","Permanent/Irreversible","Minor Positive","The site is not currently in proximity to an existing train station, however it is within 400m of an existing bus stops. Mitigation will be provided by Policy INF1, which highlights that new development will only be permitted if necessary infrastructure (both on- and off-site) is already in place; this includes the provision and improvement of transport infrastructure. Additionally, Policy INF3 highlights that provision should be made for modes of public transport (potentially including passenger rail if feasible) and active travel (walking and cycling) to access the East Midlands Intermodal Park Strategic Rail Freight Interchange/East Midlands Freeport. Finally, the development of the East Midlands Intermodal Park Strategic Rail Freight Interchange/East Midlands Freeport should enable more freight to be transported by rail, as opposed to by road, which may subsequently reduce HGV road traffic and congestion across the District and beyond. Therefore, as this policy meets most/all of the criteria for SA9, a potential minor positive effect has been identified.","No",null,null,null,null,"is this the same as for site 1? I think it's slightly inconsistent. Please check\nThey have the same measures so it should be the same","add a sentence from above about modal shift of freight from road to rail. ",{"$f":"MATCH($C$1,RAG!$B$1:$B17, 0)","v":9}]
["S010 Town and Village Centres\nTo ensure that town and village centres are vibrant and viable.","S010","· Will it improve existing shopping facilities within town and village centres? \n· Will it help safeguard existing town and village centres?","Yes",{"$f":"COUNTIFS(INDIRECT(\"RAG!$C$\"&$V23&\":$AX$\"&$V23),E$13,RAG!$C$2:$AX$2,$B23)","v":0},{"$f":"COUNTIFS(INDIRECT(\"RAG!$C$\"&$V23&\":$AX$\"&$V23),F$13,RAG!$C$2:$AX$2,$B23)","v":0},{"$f":"COUNTIFS(INDIRECT(\"RAG!$C$\"&$V23&\":$AX$\"&$V23),G$13,RAG!$C$2:$AX$2,$B23)","v":0},"N/A","N/A","N/A","N/A","N/A","Neutral","The site is not located within or adjacent to a town or village centre (it is located around 1.2km from Etwall, 1.5km from Willington and around 3.5km from Derby City). The development should not have any impact on the safeguarding of towns and village centres as it will not be providing competing uses. Therefore a neutral effect is predicted.","No",null,null,null,null,null,null,{"$f":"MATCH($C$1,RAG!$B$1:$B18, 0)","v":9}]
["S011 Resources\nTo minimise waste and ensure the sustainable use and protection of natural resources including greenfield land, soil and minerals resources.  ","S011","· Will it enhance opportunities for increased levels of recycling in the District?\n· Will it improve or remediate contaminated land or reuse previously developed land which has not been restored?\n· Will it protect Best and Most Versatile (BMV) Agricultural Land?\n· Will it avoid the sterilisation of minerals resources?","Yes",{"$f":"COUNTIFS(INDIRECT(\"RAG!$C$\"&$V24&\":$AX$\"&$V24),E$13,RAG!$C$2:$AX$2,$B24)","v":4},{"$f":"COUNTIFS(INDIRECT(\"RAG!$C$\"&$V24&\":$AX$\"&$V24),F$13,RAG!$C$2:$AX$2,$B24)","v":1},{"$f":"COUNTIFS(INDIRECT(\"RAG!$C$\"&$V24&\":$AX$\"&$V24),G$13,RAG!$C$2:$AX$2,$B24)","v":0},"N/A","N/A","N/A","N/A","N/A","Uncertain","This site is located on grade 3 agricultural land; development will subsequently lead to the irreversible loss of greenfield land, and soils considered as the 'best and most versatile'. The development of this site in isolation will likely have no influence on the levels of recycling across South Derbyshire. However, It is assumed that this allocation will be in accordance with Policy BNE1 Design Excellence, which requires developments to provide adequate space for waste storage and collection. The site also lies within a sand and gravel mineral safeguarding zone, a historical landfill site and a contamination zone; development may subsequently lead to the sterilisation of mineral resources unless they are worked prior to development. Policy SD4 Contaminated Land and Mining Legacy will require the development of the site so incorporate necessary remediation measures to protect human health and/or the natural environment. However, despite these policy measures it is unclear whether all potential impacts can be mitigated. Therefore, an uncertain effect is identified.","Yes","Policy BNE1 Design Excellence will require developments to provide adequate space for waste storage and collection.\nPolicy SD4 Contaminated Land and Mining Legacy will require the development of the site to incorporate necessary remediation measures to protect human health and/or the natural environment.","Loss of greenfield land and Grade 3 agricultural land cannot be mitigated. A detailed agricultural land assessment should be undertaken in order to identify more accurately what the agricultural classification grade is on development sites.",null,null,null,null,{"$f":"MATCH($C$1,RAG!$B$1:$B19, 0)","v":9}]
["S012 Pollution\nTo minimise water, air, light and noise pollution and ensure that future growth does not lead to the further deterioration of environmental conditions.","S012","· Will it contribute to improvements in water quality in the District?\n· Will it avoid increasing noise levels locally or introducing incompatible uses into an already noisy location?\n· Will it avoid deterioration in air quality within the District?\n· Will it reduce light pollution on sensitive receptors by keeping external lighting to the minimum required for safety and security?","Yes",{"$f":"COUNTIFS(INDIRECT(\"RAG!$C$\"&$V25&\":$AX$\"&$V25),E$13,RAG!$C$2:$AX$2,$B25)","v":2},{"$f":"COUNTIFS(INDIRECT(\"RAG!$C$\"&$V25&\":$AX$\"&$V25),F$13,RAG!$C$2:$AX$2,$B25)","v":0},{"$f":"COUNTIFS(INDIRECT(\"RAG!$C$\"&$V25&\":$AX$\"&$V25),G$13,RAG!$C$2:$AX$2,$B25)","v":2},"N/A","N/A","N/A","N/A","N/A","Uncertain","The site currently experiences high noise pollution and light pollution. It is likely that development at this scale will increase both noise and light pollution. The A50 is located adjacent to the site and could be a source of noise and air pollution. It is likely that development at this scale will increase air pollution in South Derbyshire, as well as in Derby City as residents may commute to the site for work. The site does not lie within the River Mease nutrient neutrality zone or any groundwater protection zones. Policy SD1 Amenity and Environmental Quality will require developments to consider the need for a strategic buffer in order to mitigate noise and light pollution. Policy INF3 also requires that the site have no undue noise and light pollution, although it is not clear whether all potential effects can be minimised through mitigation. Therefore, an uncertain effect is identified.","Yes","Policy SD1 Amenity and Environmental Quality will require developments to consider the need for a strategic buffer in order to mitigate noise and light pollution.","No further mitigation proposed in addition to Policy SD1 and INF3 requirements.",null,null,"I'm not sure that we can assume there is air pollution on the site just because it's near to some A roads. It would depend on the air dispersal pattern. I've edited the text and transferred to text about STRA2 into the assessment text. ","isn't there a policy already which requires the mitigation that we're suggesting for noise and light?\nYes Policy SD1- removed the mitigation suggestion",{"$f":"MATCH($C$1,RAG!$B$1:$B20, 0)","v":9}]
["S013 Contributions to Climate Change \nTo reduce the District’s contribution towards the emission of climate change gases.","S013","· Will it provide opportunities to access local services and facilities by public transport walking or cycling?\n· Will it support the delivery of renewable energy capacity (including small scale or community energy projects)?\n· Will it support the shift toward usage of electric and ultralow emissions vehicles? ","Yes",{"$f":"COUNTIFS(INDIRECT(\"RAG!$C$\"&$V26&\":$AX$\"&$V26),E$13,RAG!$C$2:$AX$2,$B26)","v":0},{"$f":"COUNTIFS(INDIRECT(\"RAG!$C$\"&$V26&\":$AX$\"&$V26),F$13,RAG!$C$2:$AX$2,$B26)","v":1},{"$f":"COUNTIFS(INDIRECT(\"RAG!$C$\"&$V26&\":$AX$\"&$V26),G$13,RAG!$C$2:$AX$2,$B26)","v":0},"Direct","Low","Medium/Long","Localised","Permanent/Irreversible","Minor Positive","Although the site is located within 400m of an existing EV charger, Policy INF2  will require the development to also include EV chargers. The development is unlikely to have a significant impact on heat networks. The site is not currently in proximity to an existing railway station, but is within 400m of a bus stop. Policy INF3 highlights that provision shall be made for convenient and safe access to the site on foot, by cycle and by public transport however, including Key and Local Cycle Network routes connecting to population centres and bus services connecting to Willington railway station and population centres, including Swadlincote. Therefore, a potential minor positive effect is predicted.","No","Policy INF2 Sustainable Transport will require  developments to make provision for EV chargers.",null,"The site should be built to low-carbon standards with high levels of energy efficiency and small scale energy generation technologies (e.g. heat source pumps, solar PV) as well as heat networks being promoted where possible.",null,"minor edit. Edited enhancement measure. Is there no policy in the plan which promotes energy efficiency etc? If there isn't we might need to suggest they need one! \nThey do not have an energy efficiency policy- recommend to client","isn't there a policy already which requires what we're suggesting in the enhancement measure? \nNot this specific wording no- Policy SD6 exists but it doesn't include these aspects",{"$f":"MATCH($C$1,RAG!$B$1:$B21, 0)","v":9}]
["S014 Adaptation to Climate Change \nTo manage the effects of climate change including flood risk, reduced water availability and overheating.","S014","· Will it minimise flood risk?\n· Will it include provision of sustainable urban drainage which mimic natural drainage patterns?\n· Will it contribute towards sustainable water use?","Yes",{"$f":"COUNTIFS(INDIRECT(\"RAG!$C$\"&$V27&\":$AX$\"&$V27),E$13,RAG!$C$2:$AX$2,$B27)","v":0},{"$f":"COUNTIFS(INDIRECT(\"RAG!$C$\"&$V27&\":$AX$\"&$V27),F$13,RAG!$C$2:$AX$2,$B27)","v":1},{"$f":"COUNTIFS(INDIRECT(\"RAG!$C$\"&$V27&\":$AX$\"&$V27),G$13,RAG!$C$2:$AX$2,$B27)","v":1},"Direct","Medium","Medium/Long","Localised","Permanent/Irreversible","Minor Negative","Parts of the site lie within Flood Zones 2 and 3 and are within 1000m of a watercourse, which may place development on the site at risk of flooding. However, mitigation will be provided by Policy SD2 Flood Risk which will require the site to incorporate flood risk mitigation, such as SuDs. Although this won't eradicate flood risk, it will reduce the likelihood of a flood risk event taking place. Policy INF3 will also require the site to ensure that the surface water run-off rate from the site, as well as flood risk elsewhere, is not heightened through the development. Therefore, as the site may still be at risk of flood events following policy mitigation, a potential minor negative effect is identified.","No","Policy SD2 Flood Risk will require developments to incorporate flood risk mitigation, such as SuDs. ",null,null,null,null,null,{"$f":"MATCH($C$1,RAG!$B$1:$B22, 0)","v":9}]
["S015 Townscape and Historic Environment\nTo conserve and enhance the townscape, historic environment, heritage assets (including known and unknown archaeological sites) and their settings. ","S015","· Will it protect and enhance the condition and setting of historic, cultural, architectural and archaeological features in South Derbyshire?\n· Does it improve the quality of the built environment, and respect and protect existing townscape character?\n· Will it improve access to, and understanding of, the District’s historic and cultural assets for enjoyment and educational purposes?","Yes",{"$f":"COUNTIFS(INDIRECT(\"RAG!$C$\"&$V28&\":$AX$\"&$V28),E$13,RAG!$C$2:$AX$2,$B28)","v":0},{"$f":"COUNTIFS(INDIRECT(\"RAG!$C$\"&$V28&\":$AX$\"&$V28),F$13,RAG!$C$2:$AX$2,$B28)","v":0},{"$f":"COUNTIFS(INDIRECT(\"RAG!$C$\"&$V28&\":$AX$\"&$V28),G$13,RAG!$C$2:$AX$2,$B28)","v":4},"N/A","N/A","N/A","N/A","N/A","Neutral","The site is not within close proximity to any designated heritage assets. Additionally, Policy INF3 requires the site to be designed in a way that preserves the character or setting of any listed buildings, conservation areas, or other heritage assets. Therefore, neutral effect has been predicted.","No",null,null,null,null,"see site 1 comment. Amended to mention development.","This should be neutral. I can't see that an net positive effect will result.",{"$f":"MATCH($C$1,RAG!$B$1:$B23, 0)","v":9}]
["S016 Landscape\nTo conserve and enhance the District’s landscape character.","S016","· Does it respect and protect existing landscape character?\n· Will it protect sensitive landscapes including those within the World Heritage Site or its buffer or Special Landscape Areas?\n· Will it safeguard landscape features such as hedgerows?\n· Will it avoid intrusion into the greenbelt?","Yes",{"$f":"COUNTIFS(INDIRECT(\"RAG!$C$\"&$V29&\":$AX$\"&$V29),E$13,RAG!$C$2:$AX$2,$B29)","v":0},{"$f":"COUNTIFS(INDIRECT(\"RAG!$C$\"&$V29&\":$AX$\"&$V29),F$13,RAG!$C$2:$AX$2,$B29)","v":0},{"$f":"COUNTIFS(INDIRECT(\"RAG!$C$\"&$V29&\":$AX$\"&$V29),G$13,RAG!$C$2:$AX$2,$B29)","v":2},"Direct","Medium","Medium/Long","Localised","Permanent/Irreversible","Minor Negative","The site does not lie within the Greenbelt or an area of multiple environmental sensitivity. Policy INF3 requires the development to be well designed, and highlights that it should not cause undue harm to the character of the local landscape. The site should also contribute toward landscape scale enhancement in accordance with the Trent Valley Vision. The development will still lead to the loss of greenfield land however, which could cause alterations to the landscape. Any impacts to landscape will be mitigated by Policy BNE4 which requires developments to conserve local distinctiveness, retain landscape features (e.g. hedgerows) and offset any damage to landscape features. Therefore, a potential minor negative effect is identified.","Yes","Policy BNE4 Landscape Character and Local Distinctiveness will require developments to conserve local distinctiveness, retain landscape features (e.g. hedgerows) and offset any damage to landscape features.","Loss of greenfield land cannot be mitigated.",null,null,"edited mitigation. Doesn't the strategic allocation policy contain any mitigation / requirement for GI or mention the green wedges?\nNot specifically the green wedges, this is only mentioned for Site 1","I don't think it contributes to preserving the GB or sensitive areas by developing outside of it. I've edited the sentence and we should do that same where it appears elsewhere. The council could still have negative impacts on the GB and sensitive areas through deciding to develop sites elsewhere. ",{"$f":"MATCH($C$1,RAG!$B$1:$B24, 0)","v":9}]

{"sheet":"INF4_Transport_Improvements","index":35,"n_rows":23,"n_cols":13,"rows_kept":23,"cut":false,"hidden":false,"merged":[[0,1,0,2],[1,1,1,2],[2,1,2,2],[3,1,3,2],[5,0,5,1],[5,2,5,11]]}
["Policy/Alternative name","Policy INF4: Transport Infrastructure Improvement Schemes"]
["Chapter","Infrastructure"]
["Policy/alternative description","Policy INF4 aims to provide a number of transport infrastructure (road) improvement schemes. All schemes should have regard to the following: minimising the impact on natural and built environment assets; taking full account of active travel routes along, or affected by, the schemes; providing for the needs of pedestrians, cyclists and people with impaired mobility;  and mitigating any potential flood risk impact."]
["Assumptions Made","None."]
[]
["SA Framework",null,"SA Policy Assessment"]
["SA objective","SA sub-objective","Direct/\nIndirect","Magnitude","Duration","Spatial Extent","Permanence/ Reversibility","Significance","Description of potential effects","Potential for cumulative effects? ","Mitigation","Enhancements","SDDC Comments"]
["S01 Biodiversity\nTo safeguard and enhance biodiversity (including BAP habitats and species) and geodiversity through biodiversity net gain and improve connectivity between, and access to, green spaces and functional habitats.","· Will it conserve and enhance natural or semi natural habitats including internationally, nationally and locally designated wildlife sites, or create new wildlife habitats, and contribute to the creation of a network of habitats and green infrastructure in the District?\n· Will it protect BAP or protected species and contribute to the delivery of new, or safeguard existing BAP priority species and habitats?\n· Will it protect sites of geological importance?","Direct","Low","Medium/Long","Localised","Permanent/Irreversible","Minor Positive","Policy INF4 provides direct support for the achievement of SA1 as all schemes should aim to minimise impact on natural environmental assets. Therefore, as the policy will likely provide a low magnitude, localised impact, a potential minor positive effect has been identified.","No"]
["S02 Housing\nTo ensure everyone has access to sustainable housing, which is affordable, and meets the needs of all residents including the elderly and other vulnerable groups and will support the vitality of existing communities and settlements. ","· Will it reduce the number of households waiting for accommodation or accepted as homeless?\n· Will it increase the number and mix of housing? \n· Will it improve the suitability of new homes for older and disabled people?\n· Will it provide affordable housing for those unable to access market housing?\n· Will it meet the needs of the travelling community and show people?\n· Will it secure infrastructure or community facilities?","N/A","N/A","N/A","N/A","N/A","Neutral","The policy neither supports nor detracts from the achievement of the SA objective. Therefore a neutral effect is predicted.","No"]
["S03 Accessibility and Health\nTo improve local accessibility to healthcare, education, employment, retail facilities and recreational resources (including open spaces and sports facilities) and enhance wellbeing, promoting healthy and sustainable lifestyles.","· Will it promote healthy lifestyles?\n· Will it deliver new, or contribute to the expansion or improvement of existing open spaces, green infrastructure, schools or healthcare facilities within reasonable walking distance?\n· Will it deliver growth within reasonable walking distance to a planned or existing major employment area (5ha +) or town centre?\n· Will it improve opportunities for active travel including walking and cycling?\n· Will it deliver services or facilities on-site or elsewhere within the District? ","Indirect","Low","Medium/Long","Localised","Permanent/Irreversible","Minor Positive","Policy INF4 provides indirect support for the achievement of SA3 as by improving transport infrastructure infrastructure across South Derbyshire, the policy is improving local accessibility to healthcare, education, employment, retail facilities and recreational resources. Therefore, as this policy indirectly meets some of the criteria for SA3, a potential minor positive effect has been identified.","No"]
["S04 Quality of Life\nTo create safe and attractive places which contribute towards quality of life and community cohesion.","· Will it contribute towards reducing crime or fear of crime?\n· Will it provide attractive places which provide opportunities for communities to mix and meet?","N/A","N/A","N/A","N/A","N/A","Neutral","The policy neither supports nor detracts from the achievement of the SA objective. Therefore a neutral effect is predicted.","No"]
["S05 Inequalities\nEnsure all residents have equitable access to employment, education, community services and facilities irrespective of race, religion, sex, age, sexual orientation, disability, gender reassignment, marriage and civil partnership or pregnancy/maternity.","· Ensure the option / policy does not have an adverse/ discriminatory impact on protected characteristics/ equality groups?\n· Will it narrow the inequality gap between the richest and poorest in the District?\n· Will it reduce inequalities associated with deprivation across the District?","N/A","N/A","N/A","N/A","N/A","Neutral","The policy neither supports nor detracts from the achievement of the SA objective. Therefore a neutral effect is predicted.","No"]
["S06 Economy\nTo deliver growth in key employment sectors and support the creation of new and retention of existing businesses in urban and rural areas.","· Will it encourage the creation of new businesses and existing businesses to grow?\n· Will it encourage economic diversification?\n· Will it help support and encourage the growth of the local economy (including in rural areas)?\n· Will it support the enhancement of the District’s tourism and cultural offer?","Indirect","Medium","Medium/Long","Regional","Permanent/Irreversible","Minor Positive","Policy INF4 provides indirect support for the achievement of SA6 as by improving transport infrastructure across South Derbyshire, the policy is also improving regional connectivity and infrastructure. This could subsequently support economic growth across Derbyshire. Therefore, as this policy indirectly meets some of the criteria for SA6, a potential minor positive effect has been identified.","No"]
["S07 Employment\nTo create greater employment opportunities and higher value jobs across the whole District","· Will it help to improve skills levels and access to training within the District?\n· Will it reduce unemployment rates overall and reduce disparities which exist across different parts of the District?","Indirect","Medium","Medium/Long","Regional","Permanent/Irreversible","Minor Positive","Policy INF4 provides indirect support for the achievement of SA7 as by improving transport infrastructure across South Derbyshire, the policy is also improving regional connectivity and infrastructure. This could subsequently support job creation as employment becomes more accessible. Therefore, as this policy indirectly meets some of the criteria for SA7, a potential minor positive effect has been identified.","Yes"]
["S08 Infrastructure\nTo deliver improved infrastructure to support growth and economic competitiveness of urban and rural businesses and communities.","· Will it minimise the impact of traffic congestion on the strategic and local road network through the delivery of new or enhanced transport infrastructure?\n· Will it provide opportunities to access key services, including doctor’s surgeries, education facilities, employment and town, local or village centres by means other than car?\n· Will it make the best use of other infrastructure which serves new development?","Direct","Medium","Medium/Long","Localised","Permanent/Irreversible","Minor Positive","Policy INF4 provides direct support for the achievement of SA8 as improvements to road schemes should help to ease congestion along key highways in the District. Therefore, as this policy meets some of the criteria for SA8, a potential minor positive effect has been identified.","No"]
["S09 Sustainable Travel\nTo promote sustainable travel habits including walking, cycling and public transport (bus and rail) usage.  ","· Will it reduce journey lengths and times? \n· Will it maximise opportunities for walking and cycling?\n· Will it maximise opportunities to access public transport provision?","Direct","Medium","Medium/Long","Localised","Permanent/Irreversible","Minor Positive","Policy INF4 provides direct support for the achievement of SA9 as all schemes should aim to provide for the needs to pedestrians, cyclists and people with impaired mobility, enabling methods of active travel to take place alongside the highway. Therefore, as this policy meets some of the criteria for SA9, a potential minor positive effect has been identified.","No"]
["S010 Town and Village Centres\nTo ensure that town and village centres are vibrant and viable.","· Will it improve existing shopping facilities within town and village centres? \n· Will it help safeguard existing town and village centres?","N/A","N/A","N/A","N/A","N/A","Neutral","The policy neither supports nor detracts from the achievement of the SA objective. Therefore a neutral effect is predicted.","No"]
["S011 Resources\nTo minimise waste and ensure the sustainable use and protection of natural resources including greenfield land, soil and minerals resources.  ","· Will it enhance opportunities for increased levels of recycling in the District?\n· Will it improve or remediate contaminated land or reuse previously developed land which has not been restored?\n· Will it protect Best and Most Versatile (BMV) Agricultural Land?\n· Will it avoid the sterilisation of minerals resources?","N/A","N/A","N/A","N/A","N/A","Neutral","The policy neither supports nor detracts from the achievement of the SA objective. Therefore a neutral effect is predicted.","No"]
["S012 Pollution\nTo minimise water, air, light and noise pollution and ensure that future growth does not lead to the further deterioration of environmental conditions.","· Will it contribute to improvements in water quality in the District?\n· Will it avoid increasing noise levels locally or introducing incompatible uses into an already noisy location?\n· Will it avoid deterioration in air quality within the District?\n· Will it reduce light pollution on sensitive receptors by keeping external lighting to the minimum required for safety and security?","Direct","Low","Medium/Long","Localised","Permanent/Irreversible","Minor Negative","Policy INF4 does not provide support for the achievement of SA12 as improvements to road infrastructure may encourage more cars on the road network, negatively impacting air pollution levels. Therefore, as the policy will likely provide a low magnitude, localised impact, a potential minor negative effect has been identified.","No"]
["S013 Contributions to Climate Change \nTo reduce the District’s contribution towards the emission of climate change gases.","· Will it provide opportunities to access local services and facilities by public transport walking or cycling?\n· Will it support the delivery of renewable energy capacity (including small scale or community energy projects)?\n· Will it support the shift toward usage of electric and ultralow emissions vehicles? ","N/A","N/A","N/A","N/A","N/A","Neutral","The policy neither supports nor detracts from the achievement of the SA objective. Therefore a neutral effect is predicted.","No"]
["S014 Adaptation to Climate Change \nTo manage the effects of climate change including flood risk, reduced water availability and overheating.","· Will it minimise flood risk?\n· Will it include provision of sustainable urban drainage which mimic natural drainage patterns?\n· Will it contribute towards sustainable water use?","Direct","Low","Medium/Long","Localised","Permanent/Irreversible","Minor Positive","Policy INF4 provides direct support for the achievement of SA14 as all schemes should aim to mitigate any potential flood risk impact. Therefore, as the policy will likely provide a low magnitude, localised impact, a potential minor positive effect has been identified.","No"]
["S015 Townscape and Historic Environment\nTo conserve and enhance the townscape, historic environment, heritage assets (including known and unknown archaeological sites) and their settings. ","· Will it protect and enhance the condition and setting of historic, cultural, architectural and archaeological features in South Derbyshire?\n· Does it improve the quality of the built environment, and respect and protect existing townscape character?\n· Will it improve access to, and understanding of, the District’s historic and cultural assets for enjoyment and educational purposes?","Direct","Low","Medium/Long","Localised","Permanent/Irreversible","Minor Positive","Policy INF4 provides direct support for the achievement of SA15 as all schemes should aim to minimise impact on built environmental assets, such as those relating to cultural heritage. Therefore, as the policy will likely provide a low magnitude, localised impact, a potential minor positive effect has been identified.","No"]
["S016 Landscape\nTo conserve and enhance the District’s landscape character.","· Does it respect and protect existing landscape character?\n· Will it protect sensitive landscapes including those within the World Heritage Site or its buffer or Special Landscape Areas?\n· Will it safeguard landscape features such as hedgerows?\n· Will it avoid intrusion into the greenbelt?","Direct","Low","Medium/Long","Localised","Permanent/Irreversible","Minor Positive","Policy INF4 provides direct support for the achievement of SA16 as all schemes should aim to minimise impact on built environmental assets, such as those relating to landscape. Therefore, as the policy will likely provide a low magnitude, localised impact, a potential minor positive effect has been identified.","No"]

{"sheet":"INF5_East_Midlands_Airport","index":36,"n_rows":23,"n_cols":13,"rows_kept":23,"cut":false,"hidden":false,"merged":[[0,1,0,2],[1,1,1,2],[2,1,2,2],[3,1,3,2],[5,0,5,1],[5,2,5,11]]}
["Policy/Alternative name","Policy INF5: East Midlands Airport"]
["Chapter","Infrastructure"]
["Policy/alternative description","Development which would adversely affect the operational integrity or safety of East Midlands Airport will not be permitted. Developments within the outer boundary of the Safeguarded Area will require consultation to ensure the safety of the  airport. Development proposals include: all buildings, structures, erections and works that exceed the height specified on the safeguarding map, which may have the potential to interfere with the operation of its navigational aids, radio aids and telecommunication systems and which may contain lighting elements with the potential to distract/confuse pilots; proposals for aviation use within 13km of the airport; proposals which have the potential to attract a large number of birds (e.g. significant landscaping or tree planting; minerals extraction or quarrying; waste disposal or management; reservoirs or other significant water bodies; land restoration schemes; sewage works; nature reserves; bird sanctuaries; any proposal for a wind turbine development within 30km of the airport; and proposals for large-scale solar photovoltaic arrays which have the potential to generate glint and glare, particularly in the immediate vicinity of the airport and of the airport approach and departure paths."]
["Assumptions Made","None."]
[]
["SA Framework",null,"SA Policy Assessment"]
["SA objective","SA sub-objective","Direct/\nIndirect","Magnitude","Duration","Spatial Extent","Permanence/ Reversibility","Significance","Description of potential effects","Potential for cumulative effects? ","Mitigation","Enhancements","SDDC Comments"]
["S01 Biodiversity\nTo safeguard and enhance biodiversity (including BAP habitats and species) and geodiversity through biodiversity net gain and improve connectivity between, and access to, green spaces and functional habitats.","· Will it conserve and enhance natural or semi natural habitats including internationally, nationally and locally designated wildlife sites, or create new wildlife habitats, and contribute to the creation of a network of habitats and green infrastructure in the District?\n· Will it protect BAP or protected species and contribute to the delivery of new, or safeguard existing BAP priority species and habitats?\n· Will it protect sites of geological importance?","Direct","Low","Medium(10yrs)","Localised","Permanent/Reversible","Minor Negative","Policy INF5 does not provide support for the achievement of SA1 as significant landscape or tree planting, nature reserves and bird sanctuaries within 13km of the airport will not be permitted. The delivery of biodiversity opportunities is thus not supported by this policy. Therefore, as the policy will likely provide a low magnitude, localised impact, a potential minor negative effect has been identified.","No"]
["S02 Housing\nTo ensure everyone has access to sustainable housing, which is affordable, and meets the needs of all residents including the elderly and other vulnerable groups and will support the vitality of existing communities and settlements. ","· Will it reduce the number of households waiting for accommodation or accepted as homeless?\n· Will it increase the number and mix of housing? \n· Will it improve the suitability of new homes for older and disabled people?\n· Will it provide affordable housing for those unable to access market housing?\n· Will it meet the needs of the travelling community and show people?\n· Will it secure infrastructure or community facilities?","N/A","N/A","N/A","N/A","N/A","Neutral","The policy neither supports nor detracts from the achievement of the SA objective. Therefore a neutral effect is predicted.","No"]
["S03 Accessibility and Health\nTo improve local accessibility to healthcare, education, employment, retail facilities and recreational resources (including open spaces and sports facilities) and enhance wellbeing, promoting healthy and sustainable lifestyles.","· Will it promote healthy lifestyles?\n· Will it deliver new, or contribute to the expansion or improvement of existing open spaces, green infrastructure, schools or healthcare facilities within reasonable walking distance?\n· Will it deliver growth within reasonable walking distance to a planned or existing major employment area (5ha +) or town centre?\n· Will it improve opportunities for active travel including walking and cycling?\n· Will it deliver services or facilities on-site or elsewhere within the District? ","N/A","N/A","N/A","N/A","N/A","Neutral","The policy neither supports nor detracts from the achievement of the SA objective. Therefore a neutral effect is predicted.","No"]
["S04 Quality of Life\nTo create safe and attractive places which contribute towards quality of life and community cohesion.","· Will it contribute towards reducing crime or fear of crime?\n· Will it provide attractive places which provide opportunities for communities to mix and meet?","N/A","N/A","N/A","N/A","N/A","Neutral","The policy neither supports nor detracts from the achievement of the SA objective. Therefore a neutral effect is predicted.","No"]
["S05 Inequalities\nEnsure all residents have equitable access to employment, education, community services and facilities irrespective of race, religion, sex, age, sexual orientation, disability, gender reassignment, marriage and civil partnership or pregnancy/maternity.","· Ensure the option / policy does not have an adverse/ discriminatory impact on protected characteristics/ equality groups?\n· Will it narrow the inequality gap between the richest and poorest in the District?\n· Will it reduce inequalities associated with deprivation across the District?","N/A","N/A","N/A","N/A","N/A","Neutral","The policy neither supports nor detracts from the achievement of the SA objective. Therefore a neutral effect is predicted.","No"]
["S06 Economy\nTo deliver growth in key employment sectors and support the creation of new and retention of existing businesses in urban and rural areas.","· Will it encourage the creation of new businesses and existing businesses to grow?\n· Will it encourage economic diversification?\n· Will it help support and encourage the growth of the local economy (including in rural areas)?\n· Will it support the enhancement of the District’s tourism and cultural offer?","Indirect","Low","Medium(10yrs)","Regional","Permanent/Irreversible","Minor Positive","Policy INF5 provides indirect support for the achievement of SA6 as the airport supports businesses within NWL and beyond through the provision of a transport route for freight. Therefore, as this policy meets some of the criteria for SA6, a potential minor positive effect has been identified.","No"]
["S07 Employment\nTo create greater employment opportunities and higher value jobs across the whole District","· Will it help to improve skills levels and access to training within the District?\n· Will it reduce unemployment rates overall and reduce disparities which exist across different parts of the District?","Indirect","Low","Medium(10yrs)","Localised","Permanent/Reversible","Minor Positive","Policy INF5 provides indirect support for the achievement of SA7 as existing employment opportunities at East Midlands Airport will be retained. Therefore, as the policy will likely provide a low magnitude, localised impact, a potential minor positive effect has been identified.","No"]
["S08 Infrastructure\nTo deliver improved infrastructure to support growth and economic competitiveness of urban and rural businesses and communities.","· Will it minimise the impact of traffic congestion on the strategic and local road network through the delivery of new or enhanced transport infrastructure?\n· Will it provide opportunities to access key services, including doctor’s surgeries, education facilities, employment and town, local or village centres by means other than car?\n· Will it make the best use of other infrastructure which serves new development?","Indirect","Low","Medium(10yrs)","Localised","Permanent/Reversible","Minor Negative","Policy INF5 does not provide support for the achievement of SA8 certain forms of infrastructure development will not be permitted (e.g. minerals extraction, quarrying, waste disposal or waste management). The delivery of such infrastructure is thus not directly supported by this policy. Therefore, as the policy will likely provide a low magnitude, localised impact, a potential minor negative effect has been identified.","No"]
["S09 Sustainable Travel\nTo promote sustainable travel habits including walking, cycling and public transport (bus and rail) usage.  ","· Will it reduce journey lengths and times? \n· Will it maximise opportunities for walking and cycling?\n· Will it maximise opportunities to access public transport provision?","N/A","N/A","N/A","N/A","N/A","Neutral","The policy neither supports nor detracts from the achievement of the SA objective. Therefore a neutral effect is predicted.","No"]
["S010 Town and Village Centres\nTo ensure that town and village centres are vibrant and viable.","· Will it improve existing shopping facilities within town and village centres? \n· Will it help safeguard existing town and village centres?","N/A","N/A","N/A","N/A","N/A","Neutral","The policy neither supports nor detracts from the achievement of the SA objective. Therefore a neutral effect is predicted.","No"]
["S011 Resources\nTo minimise waste and ensure the sustainable use and protection of natural resources including greenfield land, soil and minerals resources.  ","· Will it enhance opportunities for increased levels of recycling in the District?\n· Will it improve or remediate contaminated land or reuse previously developed land which has not been restored?\n· Will it protect Best and Most Versatile (BMV) Agricultural Land?\n· Will it avoid the sterilisation of minerals resources?","N/A","N/A","N/A","N/A","N/A","Neutral","The policy neither supports nor detracts from the achievement of the SA objective. Therefore a neutral effect is predicted.","No"]
["S012 Pollution\nTo minimise water, air, light and noise pollution and ensure that future growth does not lead to the further deterioration of environmental conditions.","· Will it contribute to improvements in water quality in the District?\n· Will it avoid increasing noise levels locally or introducing incompatible uses into an already noisy location?\n· Will it avoid deterioration in air quality within the District?\n· Will it reduce light pollution on sensitive receptors by keeping external lighting to the minimum required for safety and security?","N/A","N/A","N/A","N/A","N/A","Neutral","The policy neither supports nor detracts from the achievement of the SA objective. Therefore a neutral effect is predicted.","No"]
["S013 Contributions to Climate Change \nTo reduce the District’s contribution towards the emission of climate change gases.","· Will it provide opportunities to access local services and facilities by public transport walking or cycling?\n· Will it support the delivery of renewable energy capacity (including small scale or community energy projects)?\n· Will it support the shift toward usage of electric and ultralow emissions vehicles? ","Direct","Low","Medium(10yrs)","Localised","Permanent/Reversible","Minor Negative","Policy INF5 does not provide support for the achievement of SA13 as wind turbine developments (within 30km of the airport) and large-scale solar PV (within 13km of the airport) will not be permitted. The delivery of renewable energy capacity is thus not supported by this policy. Therefore, as the policy will likely provide a low magnitude, localised impact, a potential minor negative effect has been identified.","No"]
["S014 Adaptation to Climate Change \nTo manage the effects of climate change including flood risk, reduced water availability and overheating.","· Will it minimise flood risk?\n· Will it include provision of sustainable urban drainage which mimic natural drainage patterns?\n· Will it contribute towards sustainable water use?","N/A","N/A","N/A","N/A","N/A","Neutral","The policy neither supports nor detracts from the achievement of the SA objective. Therefore a neutral effect is predicted.","No"]
["S015 Townscape and Historic Environment\nTo conserve and enhance the townscape, historic environment, heritage assets (including known and unknown archaeological sites) and their settings. ","· Will it protect and enhance the condition and setting of historic, cultural, architectural and archaeological features in South Derbyshire?\n· Does it improve the quality of the built environment, and respect and protect existing townscape character?\n· Will it improve access to, and understanding of, the District’s historic and cultural assets for enjoyment and educational purposes?","N/A","N/A","N/A","N/A","N/A","Neutral","The policy neither supports nor detracts from the achievement of the SA objective. Therefore a neutral effect is predicted.","No"]
["S016 Landscape\nTo conserve and enhance the District’s landscape character.","· Does it respect and protect existing landscape character?\n· Will it protect sensitive landscapes including those within the World Heritage Site or its buffer or Special Landscape Areas?\n· Will it safeguard landscape features such as hedgerows?\n· Will it avoid intrusion into the greenbelt?","N/A","N/A","N/A","N/A","N/A","Neutral","The policy neither supports nor detracts from the achievement of the SA objective. Therefore a neutral effect is predicted.","No"]

{"sheet":"INF6_Community_Facilities","index":37,"n_rows":23,"n_cols":13,"rows_kept":23,"cut":false,"hidden":false,"merged":[[0,1,0,2],[1,1,1,2],[2,1,2,2],[3,1,3,2],[5,0,5,1],[5,2,5,11]]}
["Policy/Alternative name","Policy INF6: Community Facilities "]
["Chapter","Infrastructure."]
["Policy/alternative description","Policy INF6 will require that development that increases the demand for community facilities and services either provides the required community facilities as part of the development, or makes appropriate contributions towards providing new facilities or improving new existing facilities. Development proposals for new community facilities will be supported where they meet an identified local need, they are located on sites accessible by public transport and active travel modes wherever possible, and they provide, where practicable, the provision and upkeep of multipurpose community facilities that can provide a range of services to the community at a single, accessible location. Alterations or expansion of an existing community facility to enhance, extend or diversify the level of service provided will be supported. Existing community facilities and land and buildings previously in use as a community facility will be protected except in exceptional circumstances."]
["Assumptions Made","None."]
[]
["SA Framework",null,"SA Policy Assessment"]
["SA objective","SA sub-objective","Direct/\nIndirect","Magnitude","Duration","Spatial Extent","Permanence/ Reversibility","Significance","Description of potential effects","Potential for cumulative effects? ","Mitigation","Enhancements","SDDC Comments"]
["S01 Biodiversity\nTo safeguard and enhance biodiversity (including BAP habitats and species) and geodiversity through biodiversity net gain and improve connectivity between, and access to, green spaces and functional habitats.","· Will it conserve and enhance natural or semi natural habitats including internationally, nationally and locally designated wildlife sites, or create new wildlife habitats, and contribute to the creation of a network of habitats and green infrastructure in the District?\n· Will it protect BAP or protected species and contribute to the delivery of new, or safeguard existing BAP priority species and habitats?\n· Will it protect sites of geological importance?","N/A","N/A","N/A","N/A","N/A","Neutral","The policy neither supports nor detracts from the achievement of the SA objective. Therefore a neutral effect is predicted.","No"]
["S02 Housing\nTo ensure everyone has access to sustainable housing, which is affordable, and meets the needs of all residents including the elderly and other vulnerable groups and will support the vitality of existing communities and settlements. ","· Will it reduce the number of households waiting for accommodation or accepted as homeless?\n· Will it increase the number and mix of housing? \n· Will it improve the suitability of new homes for older and disabled people?\n· Will it provide affordable housing for those unable to access market housing?\n· Will it meet the needs of the travelling community and show people?\n· Will it secure infrastructure or community facilities?","Direct","Medium","Medium/Long","District-wide","Permanent/Irreversible","Minor Positive","Policy INF6 supports the achievement of SA2 as the policy requires that development that increases the demand for community facilities either provides new community facilities as part of the development, or makes contributions towards the enhancement of existing facilities. Therefore, as this policy meets some of the criteria for SA2, a potential minor positive effect has been identified.","No"]
["S03 Accessibility and Health\nTo improve local accessibility to healthcare, education, employment, retail facilities and recreational resources (including open spaces and sports facilities) and enhance wellbeing, promoting healthy and sustainable lifestyles.","· Will it promote healthy lifestyles?\n· Will it deliver new, or contribute to the expansion or improvement of existing open spaces, green infrastructure, schools or healthcare facilities within reasonable walking distance?\n· Will it deliver growth within reasonable walking distance to a planned or existing major employment area (5ha +) or town centre?\n· Will it improve opportunities for active travel including walking and cycling?\n· Will it deliver services or facilities on-site or elsewhere within the District? ","Direct","Medium","Medium/Long","District-wide","Permanent/Irreversible","Minor Positive","Policy INF6 supports the achievement of SA3 through the promotion of new, and the enhancement of existing community facilities. Existing community facilities and land and buildings previously in use as a community facility will be protected except in exceptional circumstances. Therefore, as this policy meets some of the criteria for SA3, a potential minor positive effect has been identified.","No"]
["S04 Quality of Life\nTo create safe and attractive places which contribute towards quality of life and community cohesion.","· Will it contribute towards reducing crime or fear of crime?\n· Will it provide attractive places which provide opportunities for communities to mix and meet?","Direct","Medium","Medium/Long","District-wide","Permanent/Irreversible","Minor Positive","Policy INF6 supports the achievement of SA4 through the promotion of new, and the enhancement of existing community facilities, which will provide opportunities for communities to mix and meet. Therefore, as this policy meets some of the criteria for SA4, a potential minor positive effect has been identified.","No"]
["S05 Inequalities\nEnsure all residents have equitable access to employment, education, community services and facilities irrespective of race, religion, sex, age, sexual orientation, disability, gender reassignment, marriage and civil partnership or pregnancy/maternity.","· Ensure the option / policy does not have an adverse/ discriminatory impact on protected characteristics/ equality groups?\n· Will it narrow the inequality gap between the richest and poorest in the District?\n· Will it reduce inequalities associated with deprivation across the District?","N/A","N/A","N/A","N/A","N/A","Neutral","The policy neither supports nor detracts from the achievement of the SA objective. Therefore a neutral effect is predicted.","No"]
["S06 Economy\nTo deliver growth in key employment sectors and support the creation of new and retention of existing businesses in urban and rural areas.","· Will it encourage the creation of new businesses and existing businesses to grow?\n· Will it encourage economic diversification?\n· Will it help support and encourage the growth of the local economy (including in rural areas)?\n· Will it support the enhancement of the District’s tourism and cultural offer?","Indirect","Medium","Medium/Long","District-wide","Permanent/Irreversible","Minor Positive","This policy indirectly supports the achievement of SA6 as it promotes the provision of enhanced and/or new community facilities. This should indirectly support the economic regeneration of the area, and ensure town centres maintain a range of uses. Therefore, as this policy meets some of the criteria for SA6, a potential minor positive effect has been identified.","No"]
["S07 Employment\nTo create greater employment opportunities and higher value jobs across the whole District","· Will it help to improve skills levels and access to training within the District?\n· Will it reduce unemployment rates overall and reduce disparities which exist across different parts of the District?","Indirect","Low","Medium/Long","District-wide","Permanent/Irreversible","Minor Positive","This policy indirectly supports the achievement of SA7 as it promotes the provision of enhanced and/or new community facilities, which will in turn create a number of full and part time jobs for the local community. Therefore, as this policy meets some of the criteria for SA7, a potential minor positive effect has been identified.","Yes"]
["S08 Infrastructure\nTo deliver improved infrastructure to support growth and economic competitiveness of urban and rural businesses and communities.","· Will it minimise the impact of traffic congestion on the strategic and local road network through the delivery of new or enhanced transport infrastructure?\n· Will it provide opportunities to access key services, including doctor’s surgeries, education facilities, employment and town, local or village centres by means other than car?\n· Will it make the best use of other infrastructure which serves new development?","Direct","Medium","Medium/Long","District-wide","Permanent/Irreversible","Significant Positive","This policy supports the achievement of SA8 as it highlights that developments for new or enhanced community facilities should be located within areas that are easily accessible by public transport, walking and cycling, therefore promoting sustainable transport habits. New development of community facilities will also be supported where the provide multipurpose uses (a range of services can be provided in a single, accessible location). Therefore, as this policy meets most/all of the criteria for SA8, a potential significant positive effect has been identified.","No"]
["S09 Sustainable Travel\nTo promote sustainable travel habits including walking, cycling and public transport (bus and rail) usage.  ","· Will it reduce journey lengths and times? \n· Will it maximise opportunities for walking and cycling?\n· Will it maximise opportunities to access public transport provision?","Direct","Medium","Medium/Long","District-wide","Permanent/Irreversible","Minor Positive","This policy supports the achievement of SA9 as it highlights that developments for new or enhanced community facilities should be located within areas that are easily accessible by public transport, walking and cycling. Therefore, as this policy meets some of the criteria for SA9, a potential minor positive effect has been identified.","No"]
["S010 Town and Village Centres\nTo ensure that town and village centres are vibrant and viable.","· Will it improve existing shopping facilities within town and village centres? \n· Will it help safeguard existing town and village centres?","Indirect","Low","Medium/Long","District-wide","Permanent/Irreversible","Minor Positive","This policy indirectly supports the achievement of SA10 as it promotes the provision of enhanced and/or new community facilities, which should subsequently improve the existing shopping facilities and services within town and village centres. Therefore, as this policy meets some of the criteria for SA10, a potential minor positive effect has been identified.","No"]
["S011 Resources\nTo minimise waste and ensure the sustainable use and protection of natural resources including greenfield land, soil and minerals resources.  ","· Will it enhance opportunities for increased levels of recycling in the District?\n· Will it improve or remediate contaminated land or reuse previously developed land which has not been restored?\n· Will it protect Best and Most Versatile (BMV) Agricultural Land?\n· Will it avoid the sterilisation of minerals resources?","N/A","N/A","N/A","N/A","N/A","Neutral","The policy neither supports nor detracts from the achievement of the SA objective. Therefore a neutral effect is predicted.","No"]
["S012 Pollution\nTo minimise water, air, light and noise pollution and ensure that future growth does not lead to the further deterioration of environmental conditions.","· Will it contribute to improvements in water quality in the District?\n· Will it avoid increasing noise levels locally or introducing incompatible uses into an already noisy location?\n· Will it avoid deterioration in air quality within the District?\n· Will it reduce light pollution on sensitive receptors by keeping external lighting to the minimum required for safety and security?","N/A","N/A","N/A","N/A","N/A","Neutral","The policy neither supports nor detracts from the achievement of the SA objective. Therefore a neutral effect is predicted.","No"]
["S013 Contributions to Climate Change \nTo reduce the District’s contribution towards the emission of climate change gases.","· Will it provide opportunities to access local services and facilities by public transport walking or cycling?\n· Will it support the delivery of renewable energy capacity (including small scale or community energy projects)?\n· Will it support the shift toward usage of electric and ultralow emissions vehicles? ","N/A","N/A","N/A","N/A","N/A","Neutral","The policy neither supports nor detracts from the achievement of the SA objective. Therefore a neutral effect is predicted.","No"]
["S014 Adaptation to Climate Change \nTo manage the effects of climate change including flood risk, reduced water availability and overheating.","· Will it minimise flood risk?\n· Will it include provision of sustainable urban drainage which mimic natural drainage patterns?\n· Will it contribute towards sustainable water use?","N/A","N/A","N/A","N/A","N/A","Neutral","The policy neither supports nor detracts from the achievement of the SA objective. Therefore a neutral effect is predicted.","No"]
["S015 Townscape and Historic Environment\nTo conserve and enhance the townscape, historic environment, heritage assets (including known and unknown archaeological sites) and their settings. ","· Will it protect and enhance the condition and setting of historic, cultural, architectural and archaeological features in South Derbyshire?\n· Does it improve the quality of the built environment, and respect and protect existing townscape character?\n· Will it improve access to, and understanding of, the District’s historic and cultural assets for enjoyment and educational purposes?","N/A","N/A","N/A","N/A","N/A","Neutral","The policy neither supports nor detracts from the achievement of the SA objective. Therefore a neutral effect is predicted.","No",null,"This policy could be enhanced by adding reference to the need for new community facilities to be in keeping with existing landscape/ townscape."]
["S016 Landscape\nTo conserve and enhance the District’s landscape character.","· Does it respect and protect existing landscape character?\n· Will it protect sensitive landscapes including those within the World Heritage Site or its buffer or Special Landscape Areas?\n· Will it safeguard landscape features such as hedgerows?\n· Will it avoid intrusion into the greenbelt?","N/A","N/A","N/A","N/A","N/A","Neutral","The policy neither supports nor detracts from the achievement of the SA objective. Therefore a neutral effect is predicted.","No"]

{"sheet":"INF7_Blue_Green_Infrastructure","index":38,"n_rows":23,"n_cols":13,"rows_kept":23,"cut":false,"hidden":false,"merged":[[0,1,0,2],[1,1,1,2],[2,1,2,2],[3,1,3,2],[5,0,5,1],[5,2,5,11]]}
["Policy/Alternative name","Policy INF7: Blue and Green Infrastructure "]
["Chapter","Infrastructure"]
["Policy/alternative description","Policy INF7 seeks to conserve, enhance and wherever possible extend blue and green infrastructure in the District, particularly within identified opportunity areas. This should be done whilst protecting ecological/geological assets (including protected/designated sites) and the separate identity of existing communities. SDDC expects all major development, where appropriate, to contribute towards the delivery of new green infrastructure either on site provision and/or contributions, through: \nAccess to green infrastructure corridors and employment and leisure facilities; physical activity and wellbeing opportunities; biodiversity opportunities (including the integration of biodiversity enhancing features, tree planting, and the provision of private land for conservation purposes); education resources for local residents; tackling and adapting to climate change; protecting/enhancing heritage assets and their setting; enhancement of landscape character; protection and enhancement of all waterbodies; enhancement of existing park facilities; and providing opportunities for sustainable leisure and tourism. Proposals that cause loss or harm to the green infrastructure network will not be permitted unless it can be demonstrated that the benefits outweigh the costs. Development proposals will be expected to comply with Natural England's Green Infrastructure Framework, including the principles of nature, health prosperity, water management and climate resilience and should be reflective of local character."]
["Assumptions Made","None."]
[]
["SA Framework",null,"SA Policy Assessment"]
["SA objective","SA sub-objective","Direct/\nIndirect","Magnitude","Duration","Spatial Extent","Permanence/ Reversibility","Significance","Description of potential effects","Potential for cumulative effects? ","Mitigation","Enhancements","SDDC Comments"]
["S01 Biodiversity\nTo safeguard and enhance biodiversity (including BAP habitats and species) and geodiversity through biodiversity net gain and improve connectivity between, and access to, green spaces and functional habitats.","· Will it conserve and enhance natural or semi natural habitats including internationally, nationally and locally designated wildlife sites, or create new wildlife habitats, and contribute to the creation of a network of habitats and green infrastructure in the District?\n· Will it protect BAP or protected species and contribute to the delivery of new, or safeguard existing BAP priority species and habitats?\n· Will it protect sites of geological importance?","Direct","Medium","Medium/Long","District-wide","Permanent/Reversible","Significant Positive","Policy INF7 supports the achievement of SA1 as the policy seeks to conserve, enhance and extend blue and green infrastructure. This should subsequently protect internationally, nationally and locally designated wildlife sites and BAP priority species/habitats within the District. New or enhanced green infrastructure corridors should also seek to provide opportunities for biodiversity (including SuDs, swift bricks and green roofs/walls etc) and tree planting, where appropriate. Existing trees, woodlands and hedgerows should be retained wherever possible. Therefore, as this policy meets most/all of the criteria for SA1, a potential significant positive effect has been identified.","Yes"]
["S02 Housing\nTo ensure everyone has access to sustainable housing, which is affordable, and meets the needs of all residents including the elderly and other vulnerable groups and will support the vitality of existing communities and settlements. ","· Will it reduce the number of households waiting for accommodation or accepted as homeless?\n· Will it increase the number and mix of housing? \n· Will it improve the suitability of new homes for older and disabled people?\n· Will it provide affordable housing for those unable to access market housing?\n· Will it meet the needs of the travelling community and show people?\n· Will it secure infrastructure or community facilities?","N/A","N/A","N/A","N/A","N/A","Neutral","The policy neither supports nor detracts from the achievement of the SA objective. Therefore a neutral effect is predicted.","No"]
["S03 Accessibility and Health\nTo improve local accessibility to healthcare, education, employment, retail facilities and recreational resources (including open spaces and sports facilities) and enhance wellbeing, promoting healthy and sustainable lifestyles.","· Will it promote healthy lifestyles?\n· Will it deliver new, or contribute to the expansion or improvement of existing open spaces, green infrastructure, schools or healthcare facilities within reasonable walking distance?\n· Will it deliver growth within reasonable walking distance to a planned or existing major employment area (5ha +) or town centre?\n· Will it improve opportunities for active travel including walking and cycling?\n· Will it deliver services or facilities on-site or elsewhere within the District? ","Direct","Medium","Medium/Long","District-wide","Permanent/Reversible","Significant Positive","Policy INF7 supports the achievement of SA3 as the policy highlights that all major development should contribute towards the delivery of new green infrastructure either on site or through contributions to access employment and leisure facilities and, as well as physical activity and wellbeing opportunities. Existing open space will be protected as part of development proposals, with loss only being permitted due to the proposed replacement of an equivalent/better open space provision. This is specifically the case for strategic developments, which are expected to create or contribute towards new open spaces. As green infrastructure includes open spaces, footpaths and cycleways, the maintenance and expansion of green/blue infrastructure will enable residents to make healthy choices and ensure that they have access of natural green spaces. Additionally, the policy states that delivery of new green infrastructure should be as inclusive as possible. Therefore, as this policy meets some of the criteria for SA3, a potential significant positive effect has been identified.","No"]
["S04 Quality of Life\nTo create safe and attractive places which contribute towards quality of life and community cohesion.","· Will it contribute towards reducing crime or fear of crime?\n· Will it provide attractive places which provide opportunities for communities to mix and meet?","Direct","Low","Medium/Long","District-wide","Permanent/Reversible","Minor Positive","Policy INF7 supports the achievement of SA4 through the delivery of new green infrastructure. Areas including open green space will provide the community with space to mix and meet, and therefore presents an opportunity for the community to thrive. Therefore, as this policy meets some of the criteria for SA4, a potential minor positive effect has been identified.","No"]
["S05 Inequalities\nEnsure all residents have equitable access to employment, education, community services and facilities irrespective of race, religion, sex, age, sexual orientation, disability, gender reassignment, marriage and civil partnership or pregnancy/maternity.","· Ensure the option / policy does not have an adverse/ discriminatory impact on protected characteristics/ equality groups?\n· Will it narrow the inequality gap between the richest and poorest in the District?\n· Will it reduce inequalities associated with deprivation across the District?","Direct","Low","Medium/Long","District-wide","Permanent/Reversible","Minor Positive","Policy INF7 supports the achievement of SA5 as the policy states that delivery of new green infrastructure should be as inclusive as possible. Therefore, as this policy meets some of the criteria for SA5, a potential minor positive effect has been identified.","No"]
["S06 Economy\nTo deliver growth in key employment sectors and support the creation of new and retention of existing businesses in urban and rural areas.","· Will it encourage the creation of new businesses and existing businesses to grow?\n· Will it encourage economic diversification?\n· Will it help support and encourage the growth of the local economy (including in rural areas)?\n· Will it support the enhancement of the District’s tourism and cultural offer?","Direct","Low","Medium/Long","District-wide","Permanent/Reversible","Minor Positive","Policy INF7 supports the achievement of SA6 as the delivery of new green/blue infrastructure could provide opportunities for sustainable leisure and tourism, thus supporting the tourist economy. Therefore, as this policy meets some of the criteria for SA6, a potential minor positive effect has been identified.","No"]
["S07 Employment\nTo create greater employment opportunities and higher value jobs across the whole District","· Will it help to improve skills levels and access to training within the District?\n· Will it reduce unemployment rates overall and reduce disparities which exist across different parts of the District?","N/A","N/A","N/A","N/A","N/A","Neutral","The policy neither supports nor detracts from the achievement of the SA objective. Therefore a neutral effect is predicted.","No"]
["S08 Infrastructure\nTo deliver improved infrastructure to support growth and economic competitiveness of urban and rural businesses and communities.","· Will it minimise the impact of traffic congestion on the strategic and local road network through the delivery of new or enhanced transport infrastructure?\n· Will it provide opportunities to access key services, including doctor’s surgeries, education facilities, employment and town, local or village centres by means other than car?\n· Will it make the best use of other infrastructure which serves new development?","Direct","Low","Medium/Long","District-wide","Permanent/Reversible","Minor Positive","Policy INF7 supports the achievement of SA8 as the policy highlights that new or enhanced green infrastructure corridors should seek to provide opportunities for access to green/blue infrastructure and employment/ leisure/ recreation facilities. This should subsequently provide residents with access key services by means other than car. Therefore, as this policy meets some of the criteria for SA8, a potential minor positive effect has been identified.","No"]
["S09 Sustainable Travel\nTo promote sustainable travel habits including walking, cycling and public transport (bus and rail) usage.  ","· Will it reduce journey lengths and times? \n· Will it maximise opportunities for walking and cycling?\n· Will it maximise opportunities to access public transport provision?","Direct","Medium","Medium/Long","District-wide","Permanent/Reversible","Minor Positive","Policy INF7 supports the achievement of SA9 through the delivery of new green/blue infrastructure, which will include open spaces, footpaths and cycle paths. This will provide residents with sustainable modes of travel in and around the green/blue infrastructure, promoting an active lifestyle and sustainable commute. Therefore, as this policy meets some of the criteria for SA9, a potential minor positive effect has been identified.","No"]
["S010 Town and Village Centres\nTo ensure that town and village centres are vibrant and viable.","· Will it improve existing shopping facilities within town and village centres? \n· Will it help safeguard existing town and village centres?","N/A","N/A","N/A","N/A","N/A","Neutral","The policy neither supports nor detracts from the achievement of the SA objective. Therefore a neutral effect is predicted.","No"]
["S011 Resources\nTo minimise waste and ensure the sustainable use and protection of natural resources including greenfield land, soil and minerals resources.  ","· Will it enhance opportunities for increased levels of recycling in the District?\n· Will it improve or remediate contaminated land or reuse previously developed land which has not been restored?\n· Will it protect Best and Most Versatile (BMV) Agricultural Land?\n· Will it avoid the sterilisation of minerals resources?","N/A","N/A","N/A","N/A","N/A","Neutral","The policy neither supports nor detracts from the achievement of the SA objective. Therefore a neutral effect is predicted.","No"]
["S012 Pollution\nTo minimise water, air, light and noise pollution and ensure that future growth does not lead to the further deterioration of environmental conditions.","· Will it contribute to improvements in water quality in the District?\n· Will it avoid increasing noise levels locally or introducing incompatible uses into an already noisy location?\n· Will it avoid deterioration in air quality within the District?\n· Will it reduce light pollution on sensitive receptors by keeping external lighting to the minimum required for safety and security?","Direct","Medium","Medium/Long","Regional","Permanent/Reversible","Significant Positive","Policy INF7 supports the achievement of SA12 through the provision of new green infrastructure, which should contribute to the protection or enhancement of all water bodies. Green infrastructure tends to have multifunctional environmental benefits, including the potential to alleviate air pollution. By including green spaces within new developments, the risk of air pollution should not be minimised and may improve. Development proposals will be expected to comply with Natural England's Green Infrastructure Framework, including the principles of water management. Enhancement of green/blue infrastructure could subsequently help to minimise air and water pollution, in both the District, as well as more regionally. Therefore, a potential  significant positive effect has been identified.","Yes"]
["S013 Contributions to Climate Change \nTo reduce the District’s contribution towards the emission of climate change gases.","· Will it provide opportunities to access local services and facilities by public transport walking or cycling?\n· Will it support the delivery of renewable energy capacity (including small scale or community energy projects)?\n· Will it support the shift toward usage of electric and ultralow emissions vehicles? ","Direct","Low","Medium/Long","District-wide","Permanent/Reversible","Minor Positive","Policy INF7 supports the achievement of SA13 through the delivery of new green infrastructure, which will provide residents with sustainable modes of travel, promoting an active lifestyle and sustainable commute. Therefore, as this policy meets some of the criteria for SA13, a potential minor positive effect has been identified.","Yes"]
["S014 Adaptation to Climate Change \nTo manage the effects of climate change including flood risk, reduced water availability and overheating.","· Will it minimise flood risk?\n· Will it include provision of sustainable urban drainage which mimic natural drainage patterns?\n· Will it contribute towards sustainable water use?","Direct","Low","Medium/Long","District-wide","Permanent/Reversible","Minor Positive","Policy INF7 supports the achievement of SA14 through the provision of new or enhanced green/blue infrastructure corridors, which should seek to provide opportunities to tackle and adapt to climate change, such as through the provision of SuDs. Green/blue infrastructure can also provide cooling opportunities to alleviate changes in temperature. Development proposals will be expected to comply with Natural England's Green Infrastructure Framework, including the principles of water management and climate resilience. Therefore, as this policy meets some of the criteria for SA14, a potential minor positive effect has been identified.","No"]
["S015 Townscape and Historic Environment\nTo conserve and enhance the townscape, historic environment, heritage assets (including known and unknown archaeological sites) and their settings. ","· Will it protect and enhance the condition and setting of historic, cultural, architectural and archaeological features in South Derbyshire?\n· Does it improve the quality of the built environment, and respect and protect existing townscape character?\n· Will it improve access to, and understanding of, the District’s historic and cultural assets for enjoyment and educational purposes?","Direct","Low","Medium/Long","District-wide","Permanent/Reversible","Minor Positive","Policy INF7 supports the achievement of SA15 through the provision of new or enhanced green/blue infrastructure corridors, which should seek to provide opportunities to protect or enhance heritage assets and their settings. Therefore, as this policy meets some of the criteria for SA15, a potential minor positive effect has been identified.","No"]
["S016 Landscape\nTo conserve and enhance the District’s landscape character.","· Does it respect and protect existing landscape character?\n· Will it protect sensitive landscapes including those within the World Heritage Site or its buffer or Special Landscape Areas?\n· Will it safeguard landscape features such as hedgerows?\n· Will it avoid intrusion into the greenbelt?","Direct","Low","Medium/Long","District-wide","Permanent/Reversible","Minor Positive","Policy INF7 supports the achievement of SA14 through the provision of new or enhanced green/blue infrastructure corridors, which should seek to provide opportunities to enhance landscape character. Such provision should be proportionate to the scale of the development and the sites context. This is particularly the case for any development within the Trent Valley. Blue/green infrastructure should also be utilised within development to ensure that the separate identity of existing communities is protected. Development proposals should be reflective of local character. Therefore, as this policy meets some of the criteria for SA16, a potential minor positive effect has been identified.","No"]

{"sheet":"INF8_The_National_Forest","index":39,"n_rows":23,"n_cols":13,"rows_kept":23,"cut":false,"hidden":false,"merged":[[0,1,0,2],[1,1,1,2],[2,1,2,2],[3,1,3,2],[5,0,5,1],[5,2,5,11]]}
["Policy/Alternative name","Policy INF8: The National Forest"]
["Chapter","Infrastructure"]
["Policy/alternative description","Policy INF8 highlights that in the National Forest, development will be supported that provides opportunities for the diversification of the economy, especially in relation to the woodland economy and tourism, including visitor accommodation. Development should contribute to leisure opportunities for residents and visitors, provide tree planting and landscaping, and ensure the character and appearance of the wider countryside is not adversely affected. Development including tourism and leisure attractions, visitor accommodation, enhancements to the active travel network, small scale renewable energy installations and volunteer facilities will be supported within the National Forest."]
["Assumptions Made","None."]
[]
["SA Framework",null,"SA Policy Assessment"]
["SA objective","SA sub-objective","Direct/\nIndirect","Magnitude","Duration","Spatial Extent","Permanence/ Reversibility","Significance","Description of potential effects","Potential for cumulative effects? ","Mitigation","Enhancements","SDDC Comments"]
["S01 Biodiversity\nTo safeguard and enhance biodiversity (including BAP habitats and species) and geodiversity through biodiversity net gain and improve connectivity between, and access to, green spaces and functional habitats.","· Will it conserve and enhance natural or semi natural habitats including internationally, nationally and locally designated wildlife sites, or create new wildlife habitats, and contribute to the creation of a network of habitats and green infrastructure in the District?\n· Will it protect BAP or protected species and contribute to the delivery of new, or safeguard existing BAP priority species and habitats?\n· Will it protect sites of geological importance?","Direct","Medium","Medium/Long","Localised","Permanent/Reversible","Significant Positive","Policy INF8 supports the achievement of SA1 as the policy highlights that SDDC will work with relevant stakeholders to expand the National Forest to achieve 33% woodland cover, which in turn will help to provide more habitats for species to utilise. Stakeholders will also work together to ensure that trees planted within the National Forest, including plantation or secondary woodland, will be protected wherever practical. Residential development within the National Forest will be expected to incorporate tree planting and landscaping (e.g. the creation of additional habitats), to contribute to BNG. A committed sum may be deemed more appropriate in some circumstances, and can subsequently be used to provide alternative BNG initiatives. Therefore, as this policy meets most/all of the criteria for SA1, a potential significant positive effect has been identified.","Yes"]
["S02 Housing\nTo ensure everyone has access to sustainable housing, which is affordable, and meets the needs of all residents including the elderly and other vulnerable groups and will support the vitality of existing communities and settlements. ","· Will it reduce the number of households waiting for accommodation or accepted as homeless?\n· Will it increase the number and mix of housing? \n· Will it improve the suitability of new homes for older and disabled people?\n· Will it provide affordable housing for those unable to access market housing?\n· Will it meet the needs of the travelling community and show people?\n· Will it secure infrastructure or community facilities?","N/A","N/A","N/A","N/A","N/A","Neutral","The policy neither supports nor detracts from the achievement of the SA objective. Therefore a neutral effect is predicted.","No"]
["S03 Accessibility and Health\nTo improve local accessibility to healthcare, education, employment, retail facilities and recreational resources (including open spaces and sports facilities) and enhance wellbeing, promoting healthy and sustainable lifestyles.","· Will it promote healthy lifestyles?\n· Will it deliver new, or contribute to the expansion or improvement of existing open spaces, green infrastructure, schools or healthcare facilities within reasonable walking distance?\n· Will it deliver growth within reasonable walking distance to a planned or existing major employment area (5ha +) or town centre?\n· Will it improve opportunities for active travel including walking and cycling?\n· Will it deliver services or facilities on-site or elsewhere within the District? ","Indirect","Low","Medium/Long","Localised","Permanent/Reversible","Minor Positive","Policy INF8 indirectly supports the achievement of SA3 as by supporting the maintenance and expansion of the National Forest, and thus open green space for local residents to use for leisure and recreation, health and wellbeing can be improved. The provision of volunteer facilities is also likely to benefit the mental health of residents. Therefore, as the policy will likely provide a low magnitude, localised impact, a potential minor positive effect has been identified.","No"]
["S04 Quality of Life\nTo create safe and attractive places which contribute towards quality of life and community cohesion.","· Will it contribute towards reducing crime or fear of crime?\n· Will it provide attractive places which provide opportunities for communities to mix and meet?","N/A","N/A","N/A","N/A","N/A","Neutral","The policy neither supports nor detracts from the achievement of the SA objective. Therefore a neutral effect is predicted.","No"]
["S05 Inequalities\nEnsure all residents have equitable access to employment, education, community services and facilities irrespective of race, religion, sex, age, sexual orientation, disability, gender reassignment, marriage and civil partnership or pregnancy/maternity.","· Ensure the option / policy does not have an adverse/ discriminatory impact on protected characteristics/ equality groups?\n· Will it narrow the inequality gap between the richest and poorest in the District?\n· Will it reduce inequalities associated with deprivation across the District?","N/A","N/A","N/A","N/A","N/A","Neutral","The policy neither supports nor detracts from the achievement of the SA objective. Therefore a neutral effect is predicted.","No"]
["S06 Economy\nTo deliver growth in key employment sectors and support the creation of new and retention of existing businesses in urban and rural areas.","· Will it encourage the creation of new businesses and existing businesses to grow?\n· Will it encourage economic diversification?\n· Will it help support and encourage the growth of the local economy (including in rural areas)?\n· Will it support the enhancement of the District’s tourism and cultural offer?","Direct","Medium","Medium/Long","Localised","Permanent/Reversible","Significant Positive","Policy INF8 supports the achievement of SA6 as development relating to diversification of the economy, specifically woodland economy and tourism, is supported. More specifically, developments that reflect the National Forest Company’s Sustainable Tourism Accommodation Design Guide will be supported, as they highlight how sustainable tourism accommodation can contribute to a zero carbon future. This should subsequently help to improve the tourism and leisure sector, as well as protect existing sites from change of use. Therefore, as this policy meets most/all of the criteria for SA6, a potential significant positive effect has been identified.","Yes"]
["S07 Employment\nTo create greater employment opportunities and higher value jobs across the whole District","· Will it help to improve skills levels and access to training within the District?\n· Will it reduce unemployment rates overall and reduce disparities which exist across different parts of the District?","Indirect","Low","Medium/Long","Localised","Permanent/Reversible","Minor Positive","Policy INF8 indirectly supports the achievement of SA7 as development relating to diversification of the economy, specifically woodland economy and tourism, is supported. This subsequently also supports opportunities for the expansion of the National Forest and skills relating to forestry, wood fuel, crafting, woodland skills and green energy. Therefore, as the policy will likely provide a low magnitude, localised impact, a potential minor positive effect has been identified.","No"]
["S08 Infrastructure\nTo deliver improved infrastructure to support growth and economic competitiveness of urban and rural businesses and communities.","· Will it minimise the impact of traffic congestion on the strategic and local road network through the delivery of new or enhanced transport infrastructure?\n· Will it provide opportunities to access key services, including doctor’s surgeries, education facilities, employment and town, local or village centres by means other than car?\n· Will it make the best use of other infrastructure which serves new development?","N/A","N/A","N/A","N/A","N/A","Neutral","The policy neither supports nor detracts from the achievement of the SA objective. Therefore a neutral effect is predicted.","No"]
["S09 Sustainable Travel\nTo promote sustainable travel habits including walking, cycling and public transport (bus and rail) usage.  ","· Will it reduce journey lengths and times? \n· Will it maximise opportunities for walking and cycling?\n· Will it maximise opportunities to access public transport provision?","Direct","Low","Medium/Long","Localised","Permanent/Irreversible","Minor Positive","Policy INF8 supports the achievement of SA9 as developments relating to the enhancement of active travel networks (walking and cycling) will be supported within the National Forest. Therefore, as the policy will likely provide a low magnitude, localised impact, a potential minor positive effect has been identified.","No"]
["S010 Town and Village Centres\nTo ensure that town and village centres are vibrant and viable.","· Will it improve existing shopping facilities within town and village centres? \n· Will it help safeguard existing town and village centres?","N/A","N/A","N/A","N/A","N/A","Neutral","The policy neither supports nor detracts from the achievement of the SA objective. Therefore a neutral effect is predicted.","No"]
["S011 Resources\nTo minimise waste and ensure the sustainable use and protection of natural resources including greenfield land, soil and minerals resources.  ","· Will it enhance opportunities for increased levels of recycling in the District?\n· Will it improve or remediate contaminated land or reuse previously developed land which has not been restored?\n· Will it protect Best and Most Versatile (BMV) Agricultural Land?\n· Will it avoid the sterilisation of minerals resources?","N/A","N/A","N/A","N/A","N/A","Neutral","The policy neither supports nor detracts from the achievement of the SA objective. Therefore a neutral effect is predicted.","No"]
["S012 Pollution\nTo minimise water, air, light and noise pollution and ensure that future growth does not lead to the further deterioration of environmental conditions.","· Will it contribute to improvements in water quality in the District?\n· Will it avoid increasing noise levels locally or introducing incompatible uses into an already noisy location?\n· Will it avoid deterioration in air quality within the District?\n· Will it reduce light pollution on sensitive receptors by keeping external lighting to the minimum required for safety and security?","Indirect","Medium","Medium/Long","District-wide","Permanent/Reversible","Minor Positive","Policy INF8 supports the achievement of SA12 as the expansion of the National Forest to achieve 33% woodland cover will help to improve air quality across the District, by improving the forest's capacity as a carbon sink. Therefore, as this policy indirectly meets some of the criteria for SA12, a potential minor positive effect has been identified.","No"]
["S013 Contributions to Climate Change \nTo reduce the District’s contribution towards the emission of climate change gases.","· Will it provide opportunities to access local services and facilities by public transport walking or cycling?\n· Will it support the delivery of renewable energy capacity (including small scale or community energy projects)?\n· Will it support the shift toward usage of electric and ultralow emissions vehicles? ","Direct","Low","Medium/Long","Localised","Permanent/Irreversible","Minor Positive","Policy INF8 supports the achievement of SA13 as developments relating to small scale renewable energy installations and the enhancement of active travel networks (walking and cycling) will be supported within the National Forest. Therefore, as the policy will likely provide a low magnitude, localised impact, a potential minor positive effect has been identified.","No"]
["S014 Adaptation to Climate Change \nTo manage the effects of climate change including flood risk, reduced water availability and overheating.","· Will it minimise flood risk?\n· Will it include provision of sustainable urban drainage which mimic natural drainage patterns?\n· Will it contribute towards sustainable water use?","N/A","N/A","N/A","N/A","N/A","Neutral","The policy neither supports nor detracts from the achievement of the SA objective. Therefore a neutral effect is predicted.","No"]
["S015 Townscape and Historic Environment\nTo conserve and enhance the townscape, historic environment, heritage assets (including known and unknown archaeological sites) and their settings. ","· Will it protect and enhance the condition and setting of historic, cultural, architectural and archaeological features in South Derbyshire?\n· Does it improve the quality of the built environment, and respect and protect existing townscape character?\n· Will it improve access to, and understanding of, the District’s historic and cultural assets for enjoyment and educational purposes?","N/A","N/A","N/A","N/A","N/A","Neutral","The policy neither supports nor detracts from the achievement of the SA objective. Therefore a neutral effect is predicted.","No"]
["S016 Landscape\nTo conserve and enhance the District’s landscape character.","· Does it respect and protect existing landscape character?\n· Will it protect sensitive landscapes including those within the World Heritage Site or its buffer or Special Landscape Areas?\n· Will it safeguard landscape features such as hedgerows?\n· Will it avoid intrusion into the greenbelt?","Direct","Low","Medium/Long","Localised","Permanent/Irreversible","Minor Positive","Policy INF8 supports the achievement of SA16 as new development within the National Forest should be of a scale and design appropriate to its setting, and not adversely affect the character and appearance of the wider countryside. Therefore, as the policy will likely provide a low magnitude, localised impact, a potential minor positive effect has been identified.","No"]

{"sheet":"INF9_Open_Space_Sport","index":40,"n_rows":23,"n_cols":13,"rows_kept":23,"cut":false,"hidden":false,"merged":[[0,1,0,2],[1,1,1,2],[2,1,2,2],[3,1,3,2],[5,0,5,1],[5,2,5,11]]}
["Policy/Alternative name","Policy INF9: Open Space, Sport and Recreation"]
["Chapter","Infrastructure"]
["Policy/alternative description","Policy INF9: Open Space, Sport and Recreation states that current provision of open space and sports and recreation facilities in South Derbyshire is not sufficient to meet local need. To address this, the Council will work with partners to provide sufficient high quality green space and recreation facilities including sports pitches and built facilities, allotments, woodland creation, cemeteries and publicly accessible natural green space to meet the needs of new residential development and, where possible, to meet the needs of the existing population. "]
["Assumptions Made","None."]
[]
["SA Framework",null,"SA Policy Assessment"]
["SA objective","SA sub-objective","Direct/\nIndirect","Magnitude","Duration","Spatial Extent","Permanence/ Reversibility","Significance","Description of potential effects","Potential for cumulative effects? ","Mitigation","Enhancements","SDDC Comments"]
["S01 Biodiversity\nTo safeguard and enhance biodiversity (including BAP habitats and species) and geodiversity through biodiversity net gain and improve connectivity between, and access to, green spaces and functional habitats.","· Will it conserve and enhance natural or semi natural habitats including internationally, nationally and locally designated wildlife sites, or create new wildlife habitats, and contribute to the creation of a network of habitats and green infrastructure in the District?\n· Will it protect BAP or protected species and contribute to the delivery of new, or safeguard existing BAP priority species and habitats?\n· Will it protect sites of geological importance?","Direct","Low","Medium/Long","District-wide","Permanent/Irreversible","Minor Positive","Policy INF9 supports the achievement of S01 as it aims to provide sufficient high-quality green space and recreation facilities, including sports pitches, allotments, woodland, cemeteries, and publicly accessible green space. The policy emphasises connecting new open spaces to existing Green Infrastructure improves connectivity between green spaces and functional habitats, enhancing biodiversity. Therefore, a potential minor positive effect is identified. "]
["S02 Housing\nTo ensure everyone has access to sustainable housing, which is affordable, and meets the needs of all residents including the elderly and other vulnerable groups and will support the vitality of existing communities and settlements. ","· Will it reduce the number of households waiting for accommodation or accepted as homeless?\n· Will it increase the number and mix of housing? \n· Will it improve the suitability of new homes for older and disabled people?\n· Will it provide affordable housing for those unable to access market housing?\n· Will it meet the needs of the travelling community and show people?\n· Will it secure infrastructure or community facilities?","N/A","N/A","N/A","N/A","N/A","Neutral","The policy neither supports nor detracts from the achievement of the SA objective. Therefore a neutral effect is predicted."]
["S03 Accessibility and Health\nTo improve local accessibility to healthcare, education, employment, retail facilities and recreational resources (including open spaces and sports facilities) and enhance wellbeing, promoting healthy and sustainable lifestyles.","· Will it promote healthy lifestyles?\n· Will it deliver new, or contribute to the expansion or improvement of existing open spaces, green infrastructure, schools or healthcare facilities within reasonable walking distance?\n· Will it deliver growth within reasonable walking distance to a planned or existing major employment area (5ha +) or town centre?\n· Will it improve opportunities for active travel including walking and cycling?\n· Will it deliver services or facilities on-site or elsewhere within the District? ","Direct","Low","Medium/Long","District-wide","Permanent/Irreversible","Minor Positive","Policy INF9 supports the achievement of S03 by promoting healthy lifestyles through the provision of high-quality green spaces and sports and recreational facilities. It enhances local accessibility to these resources, encourages active travel, and improves opportunities for walking and cycling. The policy also ensures that new facilities are within reasonable walking distance of residential areas. Therefore, as this policy meets several criteria for S03, a potential minor positive effect has been identified."]
["S04 Quality of Life\nTo create safe and attractive places which contribute towards quality of life and community cohesion.","· Will it contribute towards reducing crime or fear of crime?\n· Will it provide attractive places which provide opportunities for communities to mix and meet?","Direct","Low","Medium/Long","District-wide","Permanent/Irreversible","Minor Positive","Policy INF9 supports the achievement of S04 by providing high-quality green spaces and sports and recreational facilities that create attractive places for community interaction. These spaces offer opportunities for communities to mix and meet, fostering social cohesion. Additionally, well-designed and maintained public spaces can contribute to reducing crime or the fear of crime by promoting natural surveillance and community engagement. Therefore, as this policy meets several criteria for S04, a potential minor positive effect has been identified."]
["S05 Inequalities\nEnsure all residents have equitable access to employment, education, community services and facilities irrespective of race, religion, sex, age, sexual orientation, disability, gender reassignment, marriage and civil partnership or pregnancy/maternity.","· Ensure the option / policy does not have an adverse/ discriminatory impact on protected characteristics/ equality groups?\n· Will it narrow the inequality gap between the richest and poorest in the District?\n· Will it reduce inequalities associated with deprivation across the District?","Direct","Low","Medium/Long","District-wide","Permanent/Irreversible","Minor Positive","The Policy supports this achievement of this objective by ensuring that new and improved open space and recreational facilities are accessible to all residents. A potential minor positive effect is therefore identified. "]
["S06 Economy\nTo deliver growth in key employment sectors and support the creation of new and retention of existing businesses in urban and rural areas.","· Will it encourage the creation of new businesses and existing businesses to grow?\n· Will it encourage economic diversification?\n· Will it help support and encourage the growth of the local economy (including in rural areas)?\n· Will it support the enhancement of the District’s tourism and cultural offer?","N/A","N/A","N/A","N/A","N/A","Neutral","The policy neither supports nor detracts from the achievement of the SA objective. Therefore a neutral effect is predicted."]
["S07 Employment\nTo create greater employment opportunities and higher value jobs across the whole District","· Will it help to improve skills levels and access to training within the District?\n· Will it reduce unemployment rates overall and reduce disparities which exist across different parts of the District?","Direct","Low","Medium/Long","District-wide","Permanent/Irreversible","Minor Positive","The provision of new sports facilities may increase employment opportunities within the sport and leisure sector. Therefore a potential minor positive effect is identified."]
["S08 Infrastructure\nTo deliver improved infrastructure to support growth and economic competitiveness of urban and rural businesses and communities.","· Will it minimise the impact of traffic congestion on the strategic and local road network through the delivery of new or enhanced transport infrastructure?\n· Will it provide opportunities to access key services, including doctor’s surgeries, education facilities, employment and town, local or village centres by means other than car?\n· Will it make the best use of other infrastructure which serves new development?","Direct","Low","Medium/Long","District-wide","Permanent/Irreversible","Minor Positive","This policy will support, where possible the connection of new open spaces and sports and recreational facilities to existing green infrastructure to improve accessibility across sites. Therefore a potential minor positive effect is identified."]
["S09 Sustainable Travel\nTo promote sustainable travel habits including walking, cycling and public transport (bus and rail) usage.  ","· Will it reduce journey lengths and times? \n· Will it maximise opportunities for walking and cycling?\n· Will it maximise opportunities to access public transport provision?","Direct","Low","Medium/Long","District-wide","Permanent/Irreversible","Minor Positive","This policy will support, where possible the connection of new open spaces and sports and recreational facilities to existing green infrastructure to improve accessibility across sites. Therefore a potential minor positive effect is identified."]
["S010 Town and Village Centres\nTo ensure that town and village centres are vibrant and viable.","· Will it improve existing shopping facilities within town and village centres? \n· Will it help safeguard existing town and village centres?","Direct","Low","Medium/Long","District-wide","Permenant/Reversible","Minor Positive","The creation of new open space and sport and recreation facilities, if provided within or adjacent to town and village centres may attract people from across and outside of the district to these areas which should help to safeguard existing town and villages centres. Therefore,  a potential minor positive effect is identified. "]
["S011 Resources\nTo minimise waste and ensure the sustainable use and protection of natural resources including greenfield land, soil and minerals resources.  ","· Will it enhance opportunities for increased levels of recycling in the District?\n· Will it improve or remediate contaminated land or reuse previously developed land which has not been restored?\n· Will it protect Best and Most Versatile (BMV) Agricultural Land?\n· Will it avoid the sterilisation of minerals resources?","N/A","N/A","N/A","N/A","N/A","Neutral","The policy neither supports nor detracts from the achievement of the SA objective. Therefore a neutral effect is predicted."]
["S012 Pollution\nTo minimise water, air, light and noise pollution and ensure that future growth does not lead to the further deterioration of environmental conditions.","· Will it contribute to improvements in water quality in the District?\n· Will it avoid increasing noise levels locally or introducing incompatible uses into an already noisy location?\n· Will it avoid deterioration in air quality within the District?\n· Will it reduce light pollution on sensitive receptors by keeping external lighting to the minimum required for safety and security?","N/A","N/A","N/A","N/A","N/A","Neutral","This policy will result in the safeguarding of green space across the district which will help to prevent an increase in light, noise and air pollution. Maintaining green space will also prevent a deterioration of water quality in the district. Whilst this policy should prevent a worsening of pollution levels across the district, it is unlikely to have a positive effect, therefore a neutral effect is predicted. ",null,"The council should ensure that development of sports pitches which also include floodlighting do not contribute to light pollution. A lighting assessment should be undertaken for any new or improved sports / recreational facilities which use lighting.  "]
["S013 Contributions to Climate Change \nTo reduce the District’s contribution towards the emission of climate change gases.","· Will it provide opportunities to access local services and facilities by public transport walking or cycling?\n· Will it support the delivery of renewable energy capacity (including small scale or community energy projects)?\n· Will it support the shift toward usage of electric and ultralow emissions vehicles? ","N/A","N/A","N/A","N/A","N/A","Neutral","This policy will result in the safeguarding of green space across the district which will help to prevent an increase in light, noise and air pollution. Maintaining green space will also prevent a deterioration of water quality in the district. Whilst this policy should prevent a worsening of pollution levels across the district, it is unlikely to have a positive effect, therefore a neutral effect is predicted. "]
["S014 Adaptation to Climate Change \nTo manage the effects of climate change including flood risk, reduced water availability and overheating.","· Will it minimise flood risk?\n· Will it include provision of sustainable urban drainage which mimic natural drainage patterns?\n· Will it contribute towards sustainable water use?","N/A","N/A","N/A","N/A","N/A","Neutral","This policy supports maintaining green spaces for sports and recreational purposes. Whilst this will contribute climate change adaptation it is not likely to improve conditions from the current baseline, therefore a neutral effect is predicted. "]
["S015 Townscape and Historic Environment\nTo conserve and enhance the townscape, historic environment, heritage assets (including known and unknown archaeological sites) and their settings. ","· Will it protect and enhance the condition and setting of historic, cultural, architectural and archaeological features in South Derbyshire?\n· Does it improve the quality of the built environment, and respect and protect existing townscape character?\n· Will it improve access to, and understanding of, the District’s historic and cultural assets for enjoyment and educational purposes?","N/A","N/A","N/A","N/A","N/A","Neutral","The policy neither supports nor detracts from the achievement of the SA objective. Therefore a neutral effect is predicted."]
["S016 Landscape\nTo conserve and enhance the District’s landscape character.","· Does it respect and protect existing landscape character?\n· Will it protect sensitive landscapes including those within the World Heritage Site or its buffer or Special Landscape Areas?\n· Will it safeguard landscape features such as hedgerows?\n· Will it avoid intrusion into the greenbelt?","N/A","N/A","N/A","N/A","N/A","Uncertain","There is potential for new sports and recreational facilities to alter the existing character of the landscape. It is not possible to assess whether this policy will impact this objective due to insufficient information about the potential developments, therefore an uncertain effect is predicted. ",null,"The council should ensure that development of sports pitches which also include floodlighting do not contribute to light pollution. A lighting assessment should be undertaken for any new or improved sports / recreational facilities which use lighting.  "]

{"sheet":"INF10_Tourism_Development","index":41,"n_rows":23,"n_cols":13,"rows_kept":23,"cut":false,"hidden":false,"merged":[[0,1,0,2],[1,1,1,2],[2,1,2,2],[3,1,3,2],[5,0,5,1],[5,2,5,11]]}
["Policy name","Policy INF10: Tourism Development"]
["Chapter","Infrastructure"]
["Policy description","Policy INF10 highlights that tourism development, including overnight accommodation and visitor attractions, will be permitted. Developments should be provided through the conversion/re-use of existing buildings (either on a temporary or permanent basis) or through sustainable and well-designed new buildings. Where proposals including accommodation facilities are located in the National Forest, development will be expected to reflect the Sustainable Tourism Accommodation Design Guide. Opportunities to maximise the delivery of new, or improvement of existing public transport and active travel provision will be sought where appropriate. New tourism development that is likely to give rise to undue impacts on the local landscape, natural environment or cultural heritage assets will be refused. Where proposals involve the loss of overnight holiday accommodation,  compelling evidence will be required to demonstrate that the accommodation is no longer required to meet the tourism needs of the locality."]
["Assumptions Made","None."]
[]
["SA Framework",null,"SA Policy Assessment"]
["SA objective","SA sub-objective","Direct/\nIndirect","Magnitude","Duration","Spatial Extent","Permanence/ Reversibility","Significance","Description of potential effects","Potential for cumulative effects? ","Mitigation","Enhancements","SDDC Comments"]
["S01 Biodiversity\nTo safeguard and enhance biodiversity (including BAP habitats and species) and geodiversity through biodiversity net gain and improve connectivity between, and access to, green spaces and functional habitats.","· Will it conserve and enhance natural or semi natural habitats including internationally, nationally and locally designated wildlife sites, or create new wildlife habitats, and contribute to the creation of a network of habitats and green infrastructure in the District?\n· Will it protect BAP or protected species and contribute to the delivery of new, or safeguard existing BAP priority species and habitats?\n· Will it protect sites of geological importance?","Direct","Low","Medium/Long","District-wide","Permanent/Irreversible","Minor Positive","Policy INF10 supports the achievement of SA1 as opportunities for tourism development across the District will be maximised where it has been demonstrated that there is no undue impact on the natural environment. This should subsequently minimise impacts on biodiversity surrounding these developments. Therefore, as this policy meets some of the criteria for SA1, a potential minor positive effect has been identified.","No"]
["S02 Housing\nTo ensure everyone has access to sustainable housing, which is affordable, and meets the needs of all residents including the elderly and other vulnerable groups and will support the vitality of existing communities and settlements. ","· Will it reduce the number of households waiting for accommodation or accepted as homeless?\n· Will it increase the number and mix of housing? \n· Will it improve the suitability of new homes for older and disabled people?\n· Will it provide affordable housing for those unable to access market housing?\n· Will it meet the needs of the travelling community and show people?\n· Will it secure infrastructure or community facilities?","N/A","N/A","N/A","N/A","N/A","Neutral","The policy neither supports nor detracts from the achievement of the SA objective. Therefore a neutral effect is predicted.","No"]
["S03 Accessibility and Health\nTo improve local accessibility to healthcare, education, employment, retail facilities and recreational resources (including open spaces and sports facilities) and enhance wellbeing, promoting healthy and sustainable lifestyles.","· Will it promote healthy lifestyles?\n· Will it deliver new, or contribute to the expansion or improvement of existing open spaces, green infrastructure, schools or healthcare facilities within reasonable walking distance?\n· Will it deliver growth within reasonable walking distance to a planned or existing major employment area (5ha +) or town centre?\n· Will it improve opportunities for active travel including walking and cycling?\n· Will it deliver services or facilities on-site or elsewhere within the District? ","N/A","N/A","N/A","N/A","N/A","Neutral","The policy neither supports nor detracts from the achievement of the SA objective. Therefore a neutral effect is predicted.","No"]
["S04 Quality of Life\nTo create safe and attractive places which contribute towards quality of life and community cohesion.","· Will it contribute towards reducing crime or fear of crime?\n· Will it provide attractive places which provide opportunities for communities to mix and meet?","N/A","N/A","N/A","N/A","N/A","Neutral","The policy neither supports nor detracts from the achievement of the SA objective. Therefore a neutral effect is predicted.","No"]
["S05 Inequalities\nEnsure all residents have equitable access to employment, education, community services and facilities irrespective of race, religion, sex, age, sexual orientation, disability, gender reassignment, marriage and civil partnership or pregnancy/maternity.","· Ensure the option / policy does not have an adverse/ discriminatory impact on protected characteristics/ equality groups?\n· Will it narrow the inequality gap between the richest and poorest in the District?\n· Will it reduce inequalities associated with deprivation across the District?","N/A","N/A","N/A","N/A","N/A","Neutral","The policy neither supports nor detracts from the achievement of the SA objective. Therefore a neutral effect is predicted.","No"]
["S06 Economy\nTo deliver growth in key employment sectors and support the creation of new and retention of existing businesses in urban and rural areas.","· Will it encourage the creation of new businesses and existing businesses to grow?\n· Will it encourage economic diversification?\n· Will it help support and encourage the growth of the local economy (including in rural areas)?\n· Will it support the enhancement of the District’s tourism and cultural offer?","Direct","Medium","Medium/Long","District-wide","Permanent/Irreversible","Significant Positive","Policy INF10 supports the achievement of SA6 as opportunities for tourism development across the District will be maximised. This provides economic growth opportunities (particularly in rural areas), economic diversification and support for the tourism industry. Therefore, as this policy meets most/all of the criteria for SA6, a potential significant positive effect has been identified.","Yes"]
["S07 Employment\nTo create greater employment opportunities and higher value jobs across the whole District","· Will it help to improve skills levels and access to training within the District?\n· Will it reduce unemployment rates overall and reduce disparities which exist across different parts of the District?","Direct","Low","Medium/Long","District-wide","Permanent/Irreversible","Minor Positive","Policy INF10 supports the achievement of SA7 as opportunities for tourism development across the District will be maximised. This provides employment opportunities within the tourism industry. Therefore, as this policy meets some of the criteria for SA7, a potential minor positive effect has been identified.","Yes"]
["S08 Infrastructure\nTo deliver improved infrastructure to support growth and economic competitiveness of urban and rural businesses and communities.","· Will it minimise the impact of traffic congestion on the strategic and local road network through the delivery of new or enhanced transport infrastructure?\n· Will it provide opportunities to access key services, including doctor’s surgeries, education facilities, employment and town, local or village centres by means other than car?\n· Will it make the best use of other infrastructure which serves new development?","N/A","N/A","N/A","N/A","N/A","Neutral","The policy neither supports nor detracts from the achievement of the SA objective. Therefore a neutral effect is predicted.","No"]
["S09 Sustainable Travel\nTo promote sustainable travel habits including walking, cycling and public transport (bus and rail) usage.  ","· Will it reduce journey lengths and times? \n· Will it maximise opportunities for walking and cycling?\n· Will it maximise opportunities to access public transport provision?","Direct","Low","Medium/Long","District-wide","Permanent/Irreversible","Minor Positive","Policy INF10 supports the achievement of SA9 as opportunities to deliver new or improve existing public transport/active travel provision to tourism spots across the District will be maximised where appropriate. Therefore, as this policy meets some of the criteria for SA9, a potential minor positive effect has been identified.","No"]
["S010 Town and Village Centres\nTo ensure that town and village centres are vibrant and viable.","· Will it improve existing shopping facilities within town and village centres? \n· Will it help safeguard existing town and village centres?","Direct","Low","Medium/Long","District-wide","Permanent/Irreversible","Minor Positive","Policy INF10 supports the achievement of SA10 as the development of new hotels should ideally be located in key towns and villages, where accessibility to public transport and public facilities/services is maximised. Therefore, as this policy meets some of the criteria for SA10, a potential minor positive effect has been identified.","No"]
["S011 Resources\nTo minimise waste and ensure the sustainable use and protection of natural resources including greenfield land, soil and minerals resources.  ","· Will it enhance opportunities for increased levels of recycling in the District?\n· Will it improve or remediate contaminated land or reuse previously developed land which has not been restored?\n· Will it protect Best and Most Versatile (BMV) Agricultural Land?\n· Will it avoid the sterilisation of minerals resources?","N/A","N/A","N/A","N/A","N/A","Neutral","The policy neither supports nor detracts from the achievement of the SA objective. Therefore a neutral effect is predicted.","No"]
["S012 Pollution\nTo minimise water, air, light and noise pollution and ensure that future growth does not lead to the further deterioration of environmental conditions.","· Will it contribute to improvements in water quality in the District?\n· Will it avoid increasing noise levels locally or introducing incompatible uses into an already noisy location?\n· Will it avoid deterioration in air quality within the District?\n· Will it reduce light pollution on sensitive receptors by keeping external lighting to the minimum required for safety and security?","Direct","Low","Medium/Long","District-wide","Permanent/Irreversible","Minor Positive","Policy INF10 supports the achievement of SA12 as opportunities for tourism development across the District will be maximised where it has been demonstrated that there is no undue impact on the natural environment. This should subsequently minimise impacts on water and air quality surrounding these developments. Therefore, as this policy meets some of the criteria for SA12, a potential minor positive effect has been identified.","No"]
["S013 Contributions to Climate Change \nTo reduce the District’s contribution towards the emission of climate change gases.","· Will it provide opportunities to access local services and facilities by public transport walking or cycling?\n· Will it support the delivery of renewable energy capacity (including small scale or community energy projects)?\n· Will it support the shift toward usage of electric and ultralow emissions vehicles? ","N/A","N/A","N/A","N/A","N/A","Neutral","The policy neither supports nor detracts from the achievement of the SA objective. Therefore a neutral effect is predicted.","No"]
["S014 Adaptation to Climate Change \nTo manage the effects of climate change including flood risk, reduced water availability and overheating.","· Will it minimise flood risk?\n· Will it include provision of sustainable urban drainage which mimic natural drainage patterns?\n· Will it contribute towards sustainable water use?","N/A","N/A","N/A","N/A","N/A","Neutral","The policy neither supports nor detracts from the achievement of the SA objective. Therefore a neutral effect is predicted.","No"]
["S015 Townscape and Historic Environment\nTo conserve and enhance the townscape, historic environment, heritage assets (including known and unknown archaeological sites) and their settings. ","· Will it protect and enhance the condition and setting of historic, cultural, architectural and archaeological features in South Derbyshire?\n· Does it improve the quality of the built environment, and respect and protect existing townscape character?\n· Will it improve access to, and understanding of, the District’s historic and cultural assets for enjoyment and educational purposes?","Direct","Low","Medium/Long","District-wide","Permanent/Irreversible","Minor Positive","Policy INF10 supports the achievement of SA15 as opportunities for tourism development across the District will be maximised where it has been demonstrated that there is no undue impact on cultural heritage assets. This should subsequently minimise impacts on cultural heritage surrounding these developments. Therefore, as this policy meets some of the criteria for SA15, a potential minor positive effect has been identified.","No"]
["S016 Landscape\nTo conserve and enhance the District’s landscape character.","· Does it respect and protect existing landscape character?\n· Will it protect sensitive landscapes including those within the World Heritage Site or its buffer or Special Landscape Areas?\n· Will it safeguard landscape features such as hedgerows?\n· Will it avoid intrusion into the greenbelt?","Direct","Low","Medium/Long","District-wide","Permanent/Irreversible","Minor Positive","Policy INF10 supports the achievement of SA16 as opportunities for tourism development across the District will be maximised where it has been demonstrated that there is no undue impact on the local landscape. This should subsequently minimise impacts on landscape surrounding these developments. Therefore, as this policy meets some of the criteria for SA16, a potential minor positive effect has been identified.","No"]